Workbook

Sheet Contents
C2: Contents
F3: Colour Codes | K3: File Name: | M3: =IFERROR(File_name(),"") -> 
C4: Guide | G4: Inputs | I4: 1234567890
D5: Cells | G5: Section Titles | I5: TITLE ROW | K5: Last Save Date | M5: =IFERROR(lastsaved(),"") -> 
D6: Headers | G6: Sum Column | I6: 1000000000
D7: Sheets | G7: True or 1 | I7: =1=1 -> TRUE | K7: Last Save By | M7: =IFERROR(last_save_by(),"") -> 
D8: Charts | G8: False or 0 | I8: =1=2 -> FALSE
D9: Timing Assumptions | G9: Other Sheet Links | I9: |||||||||||||||||||
D10: Project cost and financing plan
D11: Technical Parameters
D12: TARIFF
D13: OPERATING EXPENSES
D14: PROJECT FINANCE DEBT
C16: QA
C18: Summary
D19: FAST Modelling Exercise
C21: Annual Financial Statement
D22: Profit and Loss
D23: Cash Flow Statement
D24: Balance Sheet
C26: Charts
C28: InputC
D29: Model Timeline
D30: Solar Plant Details
D31: Revenues
D32: Operation and Maintenance
D33: Capital Expenditures
D34: Taxes and Capital Allowance
D35: Funding
D36: Constants
C38: InputS
D39: Construction Timeline
D40: EPC - Expenses
D41: Solar Seasonality
C43: TimeM
C45: TimeSA
C47: OperM
D48: Capacity and Production
D49: Revenues
D50: Operations and Maintenance
D51: Working Capital
C53: ConstM
D54: EPC Cost
D55: Developer Bonus and Other Costs
D56: Sources and Uses Summary (For Copy/Paste Macro)
D57: Funding Needs During Construction
C59: Tax SA
D60: Transferred Variables
D61: Taxes
C63: Debt and Waterfall SA
D64: Transferred Variables
D65: CFADS
D66: Cash Flow Waterfall After Construction
C68: Fin Statment SA
D69: Profit and Loss
D70: Cash Flow Statement
D71: Balance Sheet
C73: Returns and Ratios
D74: Transferred Variables
D75: Pre-tax Project Cash Flow
D76: After-tax Project Cash Flow
D77: Equity IRR
D78: Equity IRR without SHL
D79: DSCR
D80: Graph Data
C82: Checks

Sheet Guide
A2: COLOR CODES
B4: Cells
C5: Blue font & light yellow shade | D5: --->Hard-coded inputs
C7: Black font + light dot border | D7: ---> sum total of a row
C9: Green shade | D9: ---> from macro
C11: Black font | D11: ---> calculation within sheet
C13: Green font | D13: ---> imported from other sheets
C15: =FALSE -> FALSE | D15: ---> Falg is False
C16: =TRUE -> TRUE | D16: ---> Flag is true
C18: 0 | D18: ---> Error check if no error
C19: 1 | D19: ---> Error check if error
B21: Headers
C22: Header1 | D22: ---> main section separator in column A
C24: Header2 | D24: ---> section separator in column B
C26: Header3 | D26: ---> section separator in column C
B28: Sheets
C29: Cover | D29: ---> preliminary sheets like cover page
C31: Inputs | D31: ---> sheets containing assumptions
C33: Outputs | D33: ---> sheets containing model outputs and summary results
C35: Calculation | D35: ---> calculation sheets
B37: Charts
C38: Accent1 | D38: =1/COUNTA($C$38:$C$43) -> 0.1666666667
C39: Accent2 | D39: 0.1666666667
C40: Accent3 | D40: 0.1666666667
C41: Accent4 | D41: 0.1666666667
C42: Accent5 | D42: 0.1666666667
C43: Accent6 | D43: 0.1666666667
A45: FINANCIAL MODEL WORKSHEET STRUCTURE
C64: ="The Financial model contains "&COUNTA(C67:C88) - 3&" worksheets which are dynamically linked. " -> The Financial model contains 17 worksheets which are dynamically linked.
C65: Name | D65: Hyperlink | E65: Content
C66: Preliminary sheets
C67: Guide | D67: Guide | E67: Contains the color codes used in the model, model structure and macros used in the model are listed in this worksheet. Key assumptions and results are also extracted here in form of tables and can be used as the databook and aims to facilitate the extraction of financial model assumptions and results to be used in project documents.
C68: Tracker | E68: Aims to keep a track of the changes through multiple versions
C69: Q&A | D69: Q&A | E69: To keep track of questions and answers on the financial model
C70: Input Sheets
C71: InputC | D71: InputC | E71: Contains the model inputs structure in form of scenario analysis.
C72: InputS | D72: InputS | E72: Contains time based inputs
C73: Tariff | D73: Tariff | E73: Contains parameters for setting the tariff
C74: Sens | D74: sens | E74: Contains sensitivity inputs and outputs
C75: Calculation sheet
C76: Time | D76: Time | E76: Calculation of the different timing flags and counters, used as time reference throughout the model.
C77: CapEx | D77: CapEx | E77: Calculation of construction cost breakdown
C79: Financing | D79: Financing | E79: Includes: - Calculation of sources and uses of funds during the construction period. - Calculation of disbursement profile, interest and fees during construction - Debt drawdown and repayment profiles
C80: Rev & Opex | D80: Rev&Opex | E80: Includes : - Revenues of the project - Opex calculation - Account receivables - Account Payables
C82: Tax | D82: Tax | E82: Includes calculation of: - Depreciation - Corporate Income tax payment
C83: Return and Ratios | D83: Return and Ratios | E83: Calculation of debt and equity ratios, including the debt service coverage ratio (DSCR), loan life coverage ratio (LLCR) average loan life, debt returns, weighted average cost of capital (WACC) and equity IRR
C84: IFS | D84: IFS | E84: Cashflow, balance sheet and income statement on periodic basis using time inputs from "Inputs" sheet.
C85: Checks | D85: Checks | E85: contains model error and integrity checks
C86: Output sheets
C87: Summary | D87: Summary | E87: Summary ket inputs & Outputs like Summary Sources and Uses of Funds Cover ratios, average loan life, and Shareholder return
C88: AFS | D88: AFS | E88: Cashflow, balance sheet and income statement on annual basis
A90: ERROR CHECKS
C91: Check | F91: Description
C92: Capex payment curves checks | F92: Do capex payment profile percentages sum up to 100%?
C93: Debt to equity check | F93: Do total equity and debt drawdown at the end of construction match the debt to equity ratio?
C94: Uses of funds =Sources of funds | F94: Do sources and uses of funds match? Is there any funding shortfall or surplus?
C95: Debt tenor check | F95: Is Senior Debt paid fully at the end of the loan tenor?
C96: Senior Debt Principal Repayment check | F96: Is Senior Debt paid fully at the end of the loan tenor?
C97: DSRA is fully funded? Check | F97: Is DSRA fully funded?
C98: DSRA balance check | F98: Is the balance of DSRA released at the end of loan lives?
C99: Balance sheet in balancing check | F99: Does the sum of the assets in the balance sheet equal the sum of equity and liabilities?
C100: Min Retained Cash Balance Check | F100: Is there a negative cash balance?
C101: Minimum Periodical Senior DSCR check | F101: Is there any breach of the periodic min DSCR?
C102: Minimum 12 months backward looking Senior DSCR check | F102: is there a breach pf Min DSCR (12 Month b/w)?
C103: Minimum 12 months forward looking Senior DSCR check | F103: is there a breach of Min DSCR (12 Month f/w)?
C104: Min LLCR covenant check | F104: Is there a breach of min LLCR?
C105: Uses copy and paste macro check | F105: Do the copy and paste lines match?
A107: ABBREVIATION
D108: BEG | E108: Beginning
D109: Capex | E109: Capital Expenditures
D110: CFADS | E110: Cash Flow Available for Debt Service
D111: DSCR | E111: Debt Service Cover Ratio
D112: DSRA | E112: Debt Service Reserve Account
D113: EPC | E113: Engineering, Procurement and Construction
D114: MW | E114: Mégawatt =1 000 kW
D115: MWh | E115: Megawatt hour
D116: O&M | E116: Operation & Maintenance
D117: Opex | E117: Operating Expenditures
D118: Ops | E118: Operation
D119: POS | E119: Positive
D120: IRR | E120: Internal rate of return
D121: WACC | E121: Weighted Average Cost Of Capital
A123: KEY FINANCIAL MODEL ASSUMPTIONS
B125: Timing Assumptions
D126: Construction Start date | F126: 2022-07-01
D127: Construction Program | F127: 36
D128: Construction End | F128: 2025-06-30
D130: Operation Start | F130: 2025-07-01
D131: Duration of the concession | F131: 35
D132: Operation End | F132: 2060-06-30
C134: The Model has been structured with semi-annual construction phase and semi-annual during operation
C135: The Model uses an end of period convention throughout.
B137: Project cost and financing plan
C138: The total project cost is estimated at 275701.5 EUR'000
C139: the project is financed with debt to capital ratio of 75%
C140: total cost per unit of installed capacity is 4820EUR /MW
C141: The Project’s total cost and breakdown of sources and uses of funds is provided below:
F143: EUR'000
C144: Total Construction Costs | F144: =SUM(F145:F154) -> 249629.0375
E145: All-in EPC | F145: 216177.5
E146: SPV budget during construction | F146: 11400
E147: Contingency provision | F147: 10808.875
E148: Insurance | F148: 3242.6625
E149: Development cost | F149: 8000
E150: Pre-funding of working capital | F150: 0
E151: Others | F151: 0
E152: Others | F152: 0
E153: Others | F153: 0
E154: Others | F154: 0
C155: Financing costs-total | F155: =SUM(F156:F163) -> 26072.44794
E156: Senior Debt Commitment fee | F156: 0
E157: Senior Debt Front-end-fee | F157: 2584.701426
E158: Senior Debt Interest payments during construction | F158: 20646.26898
E159: Concessional debt Commitment fee | F159: 0
E160: Concessional debt Front-end-fee | F160: 0
E161: Concessional Debt Interest payments during construction | F161: 0
E162: Political Risk Premium during construction | F162: 2841.47754
E163: Pre-funding of DSRA | F163: 0
C164: Total Project Cost | F164: =F144 + F155 -> 275701.4854
C166: ="The project will be finance with "&ROUND(F171, 0)&F168&" of private equity amd "&ROUND(F170 + F169, 0)&F168&" of debt." -> The project will be finance with 68925EUR'000 of private equity amd 206776EUR'000 of debt.
C167: Gearing ratio is 75:25
F168: EUR'000
E169: Senior Debt | F169: 206776.1141
E170: Concessional debt | F170: 0
E171: Private Equity | F171: 68925.37135
E172: Grant | F172: 0
C173: Total Project Funds | F173: =SUM(F169:F172) -> 275701.4854
B175: Technical Parameters
C177: Nameplate Capacity | E177: 57.2 | F177: MW
C178: Losses | E178: 1 | F178: %
C179: Generation | E179: 198100000 | F179: kWh
C180: Annual production degradation | E180: 0.001 | F180: % p.a.
B182: TARIFF
C183: Tariff at COD-Nominal | E183: EUR cents per kWh | F183: 17.43939178
C184: Average tariff-Nominal | E184: =E183 -> EUR cents per kWh | F184: 15.20445751
C186: Tariff at COD-Reference 2021 | E186: =E184 -> EUR cents per kWh | F186: 16.30958843
C187: Average tariff-Nominal | E187: =E186 -> EUR cents per kWh | F187: 11.46833872
B190: OPERATING EXPENSES
C191: Fixed O&M
C192: O&M | D192: 3057550 | E192: EUR per year
C193: Insurance | D193: 1080887.5 | E193: EUR per year
C194: MMRA | D194: 0 | E194: EUR per year
C195: Spare | D195: 0 | E195: EUR per year
C196: Spare | D196: 0 | E196: EUR per year
C197: Spare | D197: 0 | E197: EUR per year
C198: Spare | D198: 0 | E198: EUR per year
C199: Spare | D199: 0 | E199: EUR per year
C200: Spare | D200: 0 | E200: EUR per year
C202: Variable O&M
C203: Other Opex | D203: 0 | E203: EUR/KWh
C204: Spare | D204: 0 | E204: EUR/KWh
C205: Spare | D205: 0 | E205: EUR/KWh
C206: Spare | D206: 0 | E206: EUR/KWh
B208: PROJECT FINANCE DEBT
C209: The table below summarizes the debt assumption used in the Model.
D211: Commitment | E211: Tenor | F211: Grace Period | G211: Senior Debt all-in interest rate | H211: Senior Debt Commitment fee | I211: Senior Debt Front-end-fee
D212: EUR'000 | E212: Years | F212: Months | G212: % p.a. | H212: =G212 -> % p.a. | I212: %
C213: Senior Debt | D213: 206776.1141 | E213: 18 | F213: 42 | G213: 0.05 | H213: 0 | I213: 0.0125
A215: COMMERCIAL VIABILITY
C217: Based on current base case assumptions contained in the Financial Model, a return on equity of 16.1 % is anticipated.
C218: The project is commercially viable with the minimum DSCR in the model base case at 1.585x
C219: prouvé par le Ratio moyen annuel minimum de Couverture du Service de la Dette (DSCR) de 1.64 en 2029
C220: The funding structure of the Project is based on a 0 % equity and 75% debt principle
A222: SENSITIVITY ANALYSIS
C224: Au-delà de la confirmation de la viabilité commerciale générale dans les hypothèses de base, le modèle a testé
C225: un certain nombre de scénarios conservateurs afin de déterminer le tarif en cas de conditions défavorables.
C226: Une évaluation sommaire de ces tests de sensibilité est présentée dans le tableau ci-dessous:
D228: Total Project Cost EUR'000 | E228: Shareholder IRR | F228: Min Senior DSCR | G228: Average Senior DSCR | H228: Tariff at COD-EUR cents per kWh -Nominal | I228: Average tariff-EUR cents per kWh -Nominal | J228: Tariff at COD-EUR cents per kWh -Reference 2021 | K228: Average tariff-EUR cents per kWh -Reference 2021 | L228: Master error check | M228: Spare
C229: Base Case | D229: 267119.1855 | E229: 0.1599999964 | F229: 1.715667124 | G229: 1.817060748 | H229: 10.97771468 | I229: 10.08775301 | J229: 10.26652825 | K229: 7.498308667 | L229: 0 | M229: 0
C230: Capex up | D230: 293991.8016 | E230: 0.1600000322 | F230: 1.715890115 | G230: 1.817049719 | H230: 11.85708743 | I230: 10.80384791 | J230: 11.08893122 | K230: 8.038491188 | L230: 0 | M230: 0
C231: Opex Up | D231: 267118.6075 | E231: 0.1599999726 | F231: 1.715177862 | G231: 1.817083899 | H231: 11.4250039 | I231: 10.68165749 | J231: 10.68484003 | K231: 7.924050384 | L231: 0 | M231: 0
C232: Generation down | D232: 267119.1855 | E232: 0.1600000083 | F232: 1.715667177 | G232: 1.817060787 | H232: 11.55548941 | I232: 10.6186876 | J232: 10.80687209 | K232: 7.892956649 | L232: 0 | M232: 0
C233: Interest rate up | D233: 269802.6232 | E233: 0.1599999845 | F233: 1.758944807 | G233: 1.841197575 | H233: 11.57388165 | I233: 10.45572445 | J233: 10.8240728 | K233: 7.782222015 | L233: 0 | M233: 0
C234: Capex down | D234: 240276.924 | E234: 0.1599999726 | F234: 1.71539465 | G234: 1.81707427 | H234: 10.09933552 | I234: 9.372467218 | J234: 9.445054499 | K234: 6.958736482 | L234: 0 | M234: 0
C235: Opex down | D235: 267119.7635 | E235: 0.1600000322 | F235: 1.716156375 | G235: 1.81703759 | H235: 10.53042542 | I235: 9.493848506 | J235: 9.848216429 | K235: 7.072566924 | L235: 0 | M235: 0
C236: Generation Up | D236: 267119.1855 | E236: 0.1599999845 | F236: 1.715667062 | G236: 1.817060703 | H236: 10.45496608 | I236: 9.607383593 | J236: 9.777645688 | K236: 7.141246182 | L236: 0 | M236: 0
C237: Interest rate down | D237: 264470.786 | E237: 0.1600000083 | F237: 1.668894427 | G237: 1.791697904 | H237: 10.39569996 | I237: 9.734540416 | J237: 9.7222191 | K237: 7.225379431 | L237: 0 | M237: 0
C238: 0 | D238: 267119.1855 | E238: 0.1599999964 | F238: 1.715667127 | G238: 1.81706075 | H238: 10.9777147 | I238: 10.08775303 | J238: 10.26652826 | K238: 7.498308675 | L238: 0 | M238: 0

Sheet QA
C2: High | D2: Enter 1 for High Impact
C3: Medium | D3: Enter 2 for Medium Impact
C4: Low | D4: enter 3 for Low Impact
C6: ="Matters arising from review of Financial Model Filename: “"&MID(CELL("filename",A1),FIND("[",CELL("filename",A1))+1,FIND("]", CELL("filename",A1))-FIND("[",CELL("filename",A1))-1)&" ”" -> Matters arising from review of Financial Model Filename: “FAST Simple Case.xlsm ”
C7: No | D7: Impact level | E7: Category | F7: Reference | G7: Issue/Question
C8: 1
C9: 2
C10: 3
C11: 4
C12: 5
C13: 6
C14: 7
C15: 8
C16: 9
C17: 10
C18: 11
C19: 12
C20: 13

Sheet Summary
A1: =RIGHT(CELL("filename",A1),LEN(CELL("filename",A1))- SEARCH("]",CELL("filename",A1))) -> Summary
B2: FAST Modelling Exercise
E5: Key Dates | F5: Start | I5: Return Metrics
E6: Financial Close Date | F6: =InputC!F9 -> 2023-01-01 | I6: Equity IRR -- All Equity | J6: ='Returns and Ratios'!H33 -> 0.1193835199
E7: Commercial Operation | F7: =InputC!F14 -> 2023-08-01 | I7: SHL IRR
E8: Operations Period End | F8: =InputC!F17 -> 2058-07-01 | I8: Equity IRR - without SHL | J8: ='Returns and Ratios'!H39 -> 0.1193835199
E10: Key Metrics - Tariff & Financial Score | I10: Post-Tax Project IRR | J10: ='Returns and Ratios'!H28 -> 0.04492143691
E11: PPA Rate (USD/MWH) | F11: =InputC!F37 -> 30 | I11: Pre-Tax Project IRR | J11: ='Returns and Ratios'!H19 -> 0.06160548031
E12: PPA Inflation | F12: =InputC!F40 -> 0.015
I13: Debt Metrics
E14: Capacity (MWp) | F14: =InputC!F23 -> 132 | I14: DSCR Output from Sculpting | J14: ='Returns and Ratios'!H53 -> 1.538279115
I15: LLCR | J15: ='Returns and Ratios'!H53 -> 1.538279115
F16: kWh/kWp | G16: Cap Fac | I16: PLCR | J16: ='Returns and Ratios'!H58 -> 2.010048511
E17: Annual Yield - P50 | F17: =InputC!F27 -> 2040 | G17: =F17/8760 -> 0.2328767123
E18: Annual Yield - P90 | F18: =InputC!F28 -> 1713.6 | G18: =F18/8760 -> 0.1956164384 | I18: Target Leverage | J18: =ConstM!F53 -> 0.8
I19: Average Debt Life | J19: ='Returns and Ratios'!H64 -> 14.21715627
F20: kUSD | G20: USD/kW
E21: EPC Cost | F21: =G21*F14 -> 99000 | G21: =InputC!F67 -> 750
E22: Total Plant Cost | F22: =ConstM!G50/1000 -> 106265.0604 | G22: =F22/F14 -> 805.0383365
E25: Uses of Funds
E26: Total EPC Cost Incl. Contingency | F26: =ConstM!H19 -> 99495000 | G26: =F26/$F$29 -> 0.9362908148
E27: Total Development Bonus | F27: =ConstM!F23 -> 3600000 | G27: =F27/$F$29 -> 0.03387755096
E28: Other Inputs | F28: =ConstM!G55-Summary!F26-Summary!F27 -> 3170060.415 | G28: =F28/$F$29 -> 0.02983163424
E29: Total | F29: =SUM(F26:F28) -> 106265060.4 | G29: =F29/$F$29 -> 1
E31: Sources of funds
E32: Sponsor Share Capital | F32: =ConstM!G54 -> 21253012.08 | G32: =F32/$F$34 -> 0.2
E33: Total Senior Debt | F33: =ConstM!G53 -> 85012048.33 | G33: =F33/$F$34 -> 0.8
E34: Total Senior Debt | F34: =SUM(F32:F33) -> 106265060.4 | G34: =F34/$F$29 -> 1

Sheet Annual Financial Statement
I2: =YEAR('Fin Statment SA'!K2) -> 2023 | J2: =I2+1 -> 2024 | K2: =J2+1 -> 2025 | L2: 2026 | M2: 2027 | N2: 2028 | O2: 2029 | P2: 2030 | Q2: 2031 | R2: 2032 | S2: 2033 | T2: 2034 | U2: 2035 | V2: 2036 | W2: 2037 | X2: 2038 | Y2: 2039 | Z2: 2040 | AA2: 2041 | AB2: 2042 | AC2: 2043 | AD2: 2044 | AE2: 2045 | AF2: 2046 | AG2: 2047 | AH2: 2048 | AI2: 2049 | AJ2: 2050 | AK2: 2051 | AL2: 2052 | AM2: 2053 | AN2: 2054 | AO2: 2055 | AP2: 2056 | AQ2: 2057 | AR2: 2058 | AS2: 2059 | AT2: 2060 | AU2: 2061 | AV2: 2062
F3: Flow | G3: Balance
B5: Profit and Loss
C6: Revenues | I6: =SUMIF('Fin Statment SA'!$6:$6,'Annual Financial Statement'!I$2,'Fin Statment SA'!11:11) -> 3068455.563 | J6: =SUMIF('Fin Statment SA'!$6:$6,'Annual Financial Statement'!J$2,'Fin Statment SA'!11:11) -> 7052106.177 | K6: =SUMIF('Fin Statment SA'!$6:$6,'Annual Financial Statement'!K$2,'Fin Statment SA'!11:11) -> 7122189.037 | L6: =SUMIF('Fin Statment SA'!$6:$6,'Annual Financial Statement'!L$2,'Fin Statment SA'!11:11) -> 7192968.371 | M6: =SUMIF('Fin Statment SA'!$6:$6,'Annual Financial Statement'!M$2,'Fin Statment SA'!11:11) -> 7264451.1 | N6: =SUMIF('Fin Statment SA'!$6:$6,'Annual Financial Statement'!N$2,'Fin Statment SA'!11:11) -> 7336943.282 | O6: =SUMIF('Fin Statment SA'!$6:$6,'Annual Financial Statement'!O$2,'Fin Statment SA'!11:11) -> 7409856.814 | P6: =SUMIF('Fin Statment SA'!$6:$6,'Annual Financial Statement'!P$2,'Fin Statment SA'!11:11) -> 7483494.951 | Q6: =SUMIF('Fin Statment SA'!$6:$6,'Annual Financial Statement'!Q$2,'Fin Statment SA'!11:11) -> 7557864.893 | R6: =SUMIF('Fin Statment SA'!$6:$6,'Annual Financial Statement'!R$2,'Fin Statment SA'!11:11) -> 7633285.061 | S6: =SUMIF('Fin Statment SA'!$6:$6,'Annual Financial Statement'!S$2,'Fin Statment SA'!11:11) -> 7709143.596 | T6: =SUMIF('Fin Statment SA'!$6:$6,'Annual Financial Statement'!T$2,'Fin Statment SA'!11:11) -> 7785756.004 | U6: =SUMIF('Fin Statment SA'!$6:$6,'Annual Financial Statement'!U$2,'Fin Statment SA'!11:11) -> 7863129.775 | V6: =SUMIF('Fin Statment SA'!$6:$6,'Annual Financial Statement'!V$2,'Fin Statment SA'!11:11) -> 7941596.19 | W6: =SUMIF('Fin Statment SA'!$6:$6,'Annual Financial Statement'!W$2,'Fin Statment SA'!11:11) -> 8020518.68 | X6: =SUMIF('Fin Statment SA'!$6:$6,'Annual Financial Statement'!X$2,'Fin Statment SA'!11:11) -> 8100225.489 | Y6: =SUMIF('Fin Statment SA'!$6:$6,'Annual Financial Statement'!Y$2,'Fin Statment SA'!11:11) -> 8180724.415 | Z6: =SUMIF('Fin Statment SA'!$6:$6,'Annual Financial Statement'!Z$2,'Fin Statment SA'!11:11) -> 8262360.117 | AA6: =SUMIF('Fin Statment SA'!$6:$6,'Annual Financial Statement'!AA$2,'Fin Statment SA'!11:11) -> 8344470.314 | AB6: =SUMIF('Fin Statment SA'!$6:$6,'Annual Financial Statement'!AB$2,'Fin Statment SA'!11:11) -> 8427396.511 | AC6: =SUMIF('Fin Statment SA'!$6:$6,'Annual Financial Statement'!AC$2,'Fin Statment SA'!11:11) -> 8511146.817 | AD6: =SUMIF('Fin Statment SA'!$6:$6,'Annual Financial Statement'!AD$2,'Fin Statment SA'!11:11) -> 8596079.815 | AE6: =SUMIF('Fin Statment SA'!$6:$6,'Annual Financial Statement'!AE$2,'Fin Statment SA'!11:11) -> 8681506.472 | AF6: =SUMIF('Fin Statment SA'!$6:$6,'Annual Financial Statement'!AF$2,'Fin Statment SA'!11:11) -> 8767782.088 | AG6: =SUMIF('Fin Statment SA'!$6:$6,'Annual Financial Statement'!AG$2,'Fin Statment SA'!11:11) -> 8854915.098 | AH6: =SUMIF('Fin Statment SA'!$6:$6,'Annual Financial Statement'!AH$2,'Fin Statment SA'!11:11) -> 8943278.571 | AI6: =SUMIF('Fin Statment SA'!$6:$6,'Annual Financial Statement'!AI$2,'Fin Statment SA'!11:11) -> 9032155.641 | AJ6: =SUMIF('Fin Statment SA'!$6:$6,'Annual Financial Statement'!AJ$2,'Fin Statment SA'!11:11) -> 9121915.96 | AK6: =SUMIF('Fin Statment SA'!$6:$6,'Annual Financial Statement'!AK$2,'Fin Statment SA'!11:11) -> 9212568.305 | AL6: =SUMIF('Fin Statment SA'!$6:$6,'Annual Financial Statement'!AL$2,'Fin Statment SA'!11:11) -> 9304500.809 | AM6: =SUMIF('Fin Statment SA'!$6:$6,'Annual Financial Statement'!AM$2,'Fin Statment SA'!11:11) -> 9396967.657 | AN6: =SUMIF('Fin Statment SA'!$6:$6,'Annual Financial Statement'!AN$2,'Fin Statment SA'!11:11) -> 9490353.427 | AO6: =SUMIF('Fin Statment SA'!$6:$6,'Annual Financial Statement'!AO$2,'Fin Statment SA'!11:11) -> 9584667.253 | AP6: =SUMIF('Fin Statment SA'!$6:$6,'Annual Financial Statement'!AP$2,'Fin Statment SA'!11:11) -> 9680312.944 | AQ6: =SUMIF('Fin Statment SA'!$6:$6,'Annual Financial Statement'!AQ$2,'Fin Statment SA'!11:11) -> 9776514.561 | AR6: =SUMIF('Fin Statment SA'!$6:$6,'Annual Financial Statement'!AR$2,'Fin Statment SA'!11:11) -> 5534648.155 | AS6: =SUMIF('Fin Statment SA'!$6:$6,'Annual Financial Statement'!AS$2,'Fin Statment SA'!11:11) -> 0 | AT6: =SUMIF('Fin Statment SA'!$6:$6,'Annual Financial Statement'!AT$2,'Fin Statment SA'!11:11) -> 0 | AU6: =SUMIF('Fin Statment SA'!$6:$6,'Annual Financial Statement'!AU$2,'Fin Statment SA'!11:11) -> 0 | AV6: =SUMIF('Fin Statment SA'!$6:$6,'Annual Financial Statement'!AV$2,'Fin Statment SA'!11:11) -> 0
C7: Operating Expense | I7: =SUMIF('Fin Statment SA'!$6:$6,'Annual Financial Statement'!I$2,'Fin Statment SA'!12:12) -> 159193.4223 | J7: =SUMIF('Fin Statment SA'!$6:$6,'Annual Financial Statement'!J$2,'Fin Statment SA'!12:12) -> 318731.1827 | K7: =SUMIF('Fin Statment SA'!$6:$6,'Annual Financial Statement'!K$2,'Fin Statment SA'!12:12) -> 319199.1377 | L7: =SUMIF('Fin Statment SA'!$6:$6,'Annual Financial Statement'!L$2,'Fin Statment SA'!12:12) -> 319678.7836 | M7: =SUMIF('Fin Statment SA'!$6:$6,'Annual Financial Statement'!M$2,'Fin Statment SA'!12:12) -> 320170.4123 | N7: =SUMIF('Fin Statment SA'!$6:$6,'Annual Financial Statement'!N$2,'Fin Statment SA'!12:12) -> 320525.2805 | O7: =SUMIF('Fin Statment SA'!$6:$6,'Annual Financial Statement'!O$2,'Fin Statment SA'!12:12) -> 320885.7609 | P7: =SUMIF('Fin Statment SA'!$6:$6,'Annual Financial Statement'!P$2,'Fin Statment SA'!12:12) -> 321407.5432 | Q7: =SUMIF('Fin Statment SA'!$6:$6,'Annual Financial Statement'!Q$2,'Fin Statment SA'!12:12) -> 321942.3609 | R7: =SUMIF('Fin Statment SA'!$6:$6,'Annual Financial Statement'!R$2,'Fin Statment SA'!12:12) -> 322492.0603 | S7: =SUMIF('Fin Statment SA'!$6:$6,'Annual Financial Statement'!S$2,'Fin Statment SA'!12:12) -> 323053.9722 | T7: =SUMIF('Fin Statment SA'!$6:$6,'Annual Financial Statement'!T$2,'Fin Statment SA'!12:12) -> 323629.9221 | U7: =SUMIF('Fin Statment SA'!$6:$6,'Annual Financial Statement'!U$2,'Fin Statment SA'!12:12) -> 324220.2608 | V7: =SUMIF('Fin Statment SA'!$6:$6,'Annual Financial Statement'!V$2,'Fin Statment SA'!12:12) -> 324827.0261 | W7: =SUMIF('Fin Statment SA'!$6:$6,'Annual Financial Statement'!W$2,'Fin Statment SA'!12:12) -> 325447.2717 | X7: =SUMIF('Fin Statment SA'!$6:$6,'Annual Financial Statement'!X$2,'Fin Statment SA'!12:12) -> 326083.0126 | Y7: =SUMIF('Fin Statment SA'!$6:$6,'Annual Financial Statement'!Y$2,'Fin Statment SA'!12:12) -> 326734.6361 | Z7: =SUMIF('Fin Statment SA'!$6:$6,'Annual Financial Statement'!Z$2,'Fin Statment SA'!12:12) -> 327404.3914 | AA7: =SUMIF('Fin Statment SA'!$6:$6,'Annual Financial Statement'!AA$2,'Fin Statment SA'!12:12) -> 328089.0265 | AB7: =SUMIF('Fin Statment SA'!$6:$6,'Annual Financial Statement'!AB$2,'Fin Statment SA'!12:12) -> 328790.7655 | AC7: =SUMIF('Fin Statment SA'!$6:$6,'Annual Financial Statement'!AC$2,'Fin Statment SA'!12:12) -> 329510.0359 | AD7: =SUMIF('Fin Statment SA'!$6:$6,'Annual Financial Statement'!AD$2,'Fin Statment SA'!12:12) -> 330249.3205 | AE7: =SUMIF('Fin Statment SA'!$6:$6,'Annual Financial Statement'!AE$2,'Fin Statment SA'!12:12) -> 331005.0295 | AF7: =SUMIF('Fin Statment SA'!$6:$6,'Annual Financial Statement'!AF$2,'Fin Statment SA'!12:12) -> 331779.6181 | AG7: =SUMIF('Fin Statment SA'!$6:$6,'Annual Financial Statement'!AG$2,'Fin Statment SA'!12:12) -> 332573.5581 | AH7: =SUMIF('Fin Statment SA'!$6:$6,'Annual Financial Statement'!AH$2,'Fin Statment SA'!12:12) -> 333389.5899 | AI7: =SUMIF('Fin Statment SA'!$6:$6,'Annual Financial Statement'!AI$2,'Fin Statment SA'!12:12) -> 334223.7513 | AJ7: =SUMIF('Fin Statment SA'!$6:$6,'Annual Financial Statement'!AJ$2,'Fin Statment SA'!12:12) -> 335078.7522 | AK7: =SUMIF('Fin Statment SA'!$6:$6,'Annual Financial Statement'!AK$2,'Fin Statment SA'!12:12) -> 335955.1133 | AL7: =SUMIF('Fin Statment SA'!$6:$6,'Annual Financial Statement'!AL$2,'Fin Statment SA'!12:12) -> 336855.8598 | AM7: =SUMIF('Fin Statment SA'!$6:$6,'Annual Financial Statement'!AM$2,'Fin Statment SA'!12:12) -> 337776.6178 | AN7: =SUMIF('Fin Statment SA'!$6:$6,'Annual Financial Statement'!AN$2,'Fin Statment SA'!12:12) -> 338720.3788 | AO7: =SUMIF('Fin Statment SA'!$6:$6,'Annual Financial Statement'!AO$2,'Fin Statment SA'!12:12) -> 339687.7175 | AP7: =SUMIF('Fin Statment SA'!$6:$6,'Annual Financial Statement'!AP$2,'Fin Statment SA'!12:12) -> 340681.9731 | AQ7: =SUMIF('Fin Statment SA'!$6:$6,'Annual Financial Statement'!AQ$2,'Fin Statment SA'!12:12) -> 341698.3177 | AR7: =SUMIF('Fin Statment SA'!$6:$6,'Annual Financial Statement'!AR$2,'Fin Statment SA'!12:12) -> 171237.3552 | AS7: =SUMIF('Fin Statment SA'!$6:$6,'Annual Financial Statement'!AS$2,'Fin Statment SA'!12:12) -> 0 | AT7: =SUMIF('Fin Statment SA'!$6:$6,'Annual Financial Statement'!AT$2,'Fin Statment SA'!12:12) -> 0 | AU7: =SUMIF('Fin Statment SA'!$6:$6,'Annual Financial Statement'!AU$2,'Fin Statment SA'!12:12) -> 0 | AV7: =SUMIF('Fin Statment SA'!$6:$6,'Annual Financial Statement'!AV$2,'Fin Statment SA'!12:12) -> 0
D8: EBITDA | I8: =SUMIF('Fin Statment SA'!$6:$6,'Annual Financial Statement'!I$2,'Fin Statment SA'!13:13) -> 2909262.141 | J8: =SUMIF('Fin Statment SA'!$6:$6,'Annual Financial Statement'!J$2,'Fin Statment SA'!13:13) -> 6733374.994 | K8: =SUMIF('Fin Statment SA'!$6:$6,'Annual Financial Statement'!K$2,'Fin Statment SA'!13:13) -> 6802989.899 | L8: =SUMIF('Fin Statment SA'!$6:$6,'Annual Financial Statement'!L$2,'Fin Statment SA'!13:13) -> 6873289.587 | M8: =SUMIF('Fin Statment SA'!$6:$6,'Annual Financial Statement'!M$2,'Fin Statment SA'!13:13) -> 6944280.687 | N8: =SUMIF('Fin Statment SA'!$6:$6,'Annual Financial Statement'!N$2,'Fin Statment SA'!13:13) -> 7016418.002 | O8: =SUMIF('Fin Statment SA'!$6:$6,'Annual Financial Statement'!O$2,'Fin Statment SA'!13:13) -> 7088971.053 | P8: =SUMIF('Fin Statment SA'!$6:$6,'Annual Financial Statement'!P$2,'Fin Statment SA'!13:13) -> 7162087.407 | Q8: =SUMIF('Fin Statment SA'!$6:$6,'Annual Financial Statement'!Q$2,'Fin Statment SA'!13:13) -> 7235922.532 | R8: =SUMIF('Fin Statment SA'!$6:$6,'Annual Financial Statement'!R$2,'Fin Statment SA'!13:13) -> 7310793.001 | S8: =SUMIF('Fin Statment SA'!$6:$6,'Annual Financial Statement'!S$2,'Fin Statment SA'!13:13) -> 7386089.624 | T8: =SUMIF('Fin Statment SA'!$6:$6,'Annual Financial Statement'!T$2,'Fin Statment SA'!13:13) -> 7462126.082 | U8: =SUMIF('Fin Statment SA'!$6:$6,'Annual Financial Statement'!U$2,'Fin Statment SA'!13:13) -> 7538909.514 | V8: =SUMIF('Fin Statment SA'!$6:$6,'Annual Financial Statement'!V$2,'Fin Statment SA'!13:13) -> 7616769.164 | W8: =SUMIF('Fin Statment SA'!$6:$6,'Annual Financial Statement'!W$2,'Fin Statment SA'!13:13) -> 7695071.408 | X8: =SUMIF('Fin Statment SA'!$6:$6,'Annual Financial Statement'!X$2,'Fin Statment SA'!13:13) -> 7774142.477 | Y8: =SUMIF('Fin Statment SA'!$6:$6,'Annual Financial Statement'!Y$2,'Fin Statment SA'!13:13) -> 7853989.779 | Z8: =SUMIF('Fin Statment SA'!$6:$6,'Annual Financial Statement'!Z$2,'Fin Statment SA'!13:13) -> 7934955.726 | AA8: =SUMIF('Fin Statment SA'!$6:$6,'Annual Financial Statement'!AA$2,'Fin Statment SA'!13:13) -> 8016381.288 | AB8: =SUMIF('Fin Statment SA'!$6:$6,'Annual Financial Statement'!AB$2,'Fin Statment SA'!13:13) -> 8098605.745 | AC8: =SUMIF('Fin Statment SA'!$6:$6,'Annual Financial Statement'!AC$2,'Fin Statment SA'!13:13) -> 8181636.781 | AD8: =SUMIF('Fin Statment SA'!$6:$6,'Annual Financial Statement'!AD$2,'Fin Statment SA'!13:13) -> 8265830.494 | AE8: =SUMIF('Fin Statment SA'!$6:$6,'Annual Financial Statement'!AE$2,'Fin Statment SA'!13:13) -> 8350501.442 | AF8: =SUMIF('Fin Statment SA'!$6:$6,'Annual Financial Statement'!AF$2,'Fin Statment SA'!13:13) -> 8436002.469 | AG8: =SUMIF('Fin Statment SA'!$6:$6,'Annual Financial Statement'!AG$2,'Fin Statment SA'!13:13) -> 8522341.54 | AH8: =SUMIF('Fin Statment SA'!$6:$6,'Annual Financial Statement'!AH$2,'Fin Statment SA'!13:13) -> 8609888.981 | AI8: =SUMIF('Fin Statment SA'!$6:$6,'Annual Financial Statement'!AI$2,'Fin Statment SA'!13:13) -> 8697931.89 | AJ8: =SUMIF('Fin Statment SA'!$6:$6,'Annual Financial Statement'!AJ$2,'Fin Statment SA'!13:13) -> 8786837.208 | AK8: =SUMIF('Fin Statment SA'!$6:$6,'Annual Financial Statement'!AK$2,'Fin Statment SA'!13:13) -> 8876613.191 | AL8: =SUMIF('Fin Statment SA'!$6:$6,'Annual Financial Statement'!AL$2,'Fin Statment SA'!13:13) -> 8967644.95 | AM8: =SUMIF('Fin Statment SA'!$6:$6,'Annual Financial Statement'!AM$2,'Fin Statment SA'!13:13) -> 9059191.039 | AN8: =SUMIF('Fin Statment SA'!$6:$6,'Annual Financial Statement'!AN$2,'Fin Statment SA'!13:13) -> 9151633.048 | AO8: =SUMIF('Fin Statment SA'!$6:$6,'Annual Financial Statement'!AO$2,'Fin Statment SA'!13:13) -> 9244979.535 | AP8: =SUMIF('Fin Statment SA'!$6:$6,'Annual Financial Statement'!AP$2,'Fin Statment SA'!13:13) -> 9339630.971 | AQ8: =SUMIF('Fin Statment SA'!$6:$6,'Annual Financial Statement'!AQ$2,'Fin Statment SA'!13:13) -> 9434816.243 | AR8: =SUMIF('Fin Statment SA'!$6:$6,'Annual Financial Statement'!AR$2,'Fin Statment SA'!13:13) -> 5363410.8 | AS8: =SUMIF('Fin Statment SA'!$6:$6,'Annual Financial Statement'!AS$2,'Fin Statment SA'!13:13) -> 0 | AT8: =SUMIF('Fin Statment SA'!$6:$6,'Annual Financial Statement'!AT$2,'Fin Statment SA'!13:13) -> 0 | AU8: =SUMIF('Fin Statment SA'!$6:$6,'Annual Financial Statement'!AU$2,'Fin Statment SA'!13:13) -> 0 | AV8: =SUMIF('Fin Statment SA'!$6:$6,'Annual Financial Statement'!AV$2,'Fin Statment SA'!13:13) -> 0
C9: Less: Capital Allowance | I9: =SUMIF('Fin Statment SA'!$6:$6,'Annual Financial Statement'!I$2,'Fin Statment SA'!14:14) -> 10626506.04 | J9: =SUMIF('Fin Statment SA'!$6:$6,'Annual Financial Statement'!J$2,'Fin Statment SA'!14:14) -> 21253012.08 | K9: =SUMIF('Fin Statment SA'!$6:$6,'Annual Financial Statement'!K$2,'Fin Statment SA'!14:14) -> 21253012.08 | L9: =SUMIF('Fin Statment SA'!$6:$6,'Annual Financial Statement'!L$2,'Fin Statment SA'!14:14) -> 21253012.08 | M9: =SUMIF('Fin Statment SA'!$6:$6,'Annual Financial Statement'!M$2,'Fin Statment SA'!14:14) -> 21253012.08 | N9: =SUMIF('Fin Statment SA'!$6:$6,'Annual Financial Statement'!N$2,'Fin Statment SA'!14:14) -> 10626506.04 | O9: =SUMIF('Fin Statment SA'!$6:$6,'Annual Financial Statement'!O$2,'Fin Statment SA'!14:14) -> 0 | P9: =SUMIF('Fin Statment SA'!$6:$6,'Annual Financial Statement'!P$2,'Fin Statment SA'!14:14) -> 0 | Q9: =SUMIF('Fin Statment SA'!$6:$6,'Annual Financial Statement'!Q$2,'Fin Statment SA'!14:14) -> 0 | R9: =SUMIF('Fin Statment SA'!$6:$6,'Annual Financial Statement'!R$2,'Fin Statment SA'!14:14) -> 0 | S9: =SUMIF('Fin Statment SA'!$6:$6,'Annual Financial Statement'!S$2,'Fin Statment SA'!14:14) -> 0 | T9: =SUMIF('Fin Statment SA'!$6:$6,'Annual Financial Statement'!T$2,'Fin Statment SA'!14:14) -> 0 | U9: =SUMIF('Fin Statment SA'!$6:$6,'Annual Financial Statement'!U$2,'Fin Statment SA'!14:14) -> 0 | V9: =SUMIF('Fin Statment SA'!$6:$6,'Annual Financial Statement'!V$2,'Fin Statment SA'!14:14) -> 0 | W9: =SUMIF('Fin Statment SA'!$6:$6,'Annual Financial Statement'!W$2,'Fin Statment SA'!14:14) -> 0 | X9: =SUMIF('Fin Statment SA'!$6:$6,'Annual Financial Statement'!X$2,'Fin Statment SA'!14:14) -> 0 | Y9: =SUMIF('Fin Statment SA'!$6:$6,'Annual Financial Statement'!Y$2,'Fin Statment SA'!14:14) -> 0 | Z9: =SUMIF('Fin Statment SA'!$6:$6,'Annual Financial Statement'!Z$2,'Fin Statment SA'!14:14) -> 0 | AA9: =SUMIF('Fin Statment SA'!$6:$6,'Annual Financial Statement'!AA$2,'Fin Statment SA'!14:14) -> 0 | AB9: =SUMIF('Fin Statment SA'!$6:$6,'Annual Financial Statement'!AB$2,'Fin Statment SA'!14:14) -> 0 | AC9: =SUMIF('Fin Statment SA'!$6:$6,'Annual Financial Statement'!AC$2,'Fin Statment SA'!14:14) -> 0 | AD9: =SUMIF('Fin Statment SA'!$6:$6,'Annual Financial Statement'!AD$2,'Fin Statment SA'!14:14) -> 0 | AE9: =SUMIF('Fin Statment SA'!$6:$6,'Annual Financial Statement'!AE$2,'Fin Statment SA'!14:14) -> 0 | AF9: =SUMIF('Fin Statment SA'!$6:$6,'Annual Financial Statement'!AF$2,'Fin Statment SA'!14:14) -> 0 | AG9: =SUMIF('Fin Statment SA'!$6:$6,'Annual Financial Statement'!AG$2,'Fin Statment SA'!14:14) -> 0 | AH9: =SUMIF('Fin Statment SA'!$6:$6,'Annual Financial Statement'!AH$2,'Fin Statment SA'!14:14) -> 0 | AI9: =SUMIF('Fin Statment SA'!$6:$6,'Annual Financial Statement'!AI$2,'Fin Statment SA'!14:14) -> 0 | AJ9: =SUMIF('Fin Statment SA'!$6:$6,'Annual Financial Statement'!AJ$2,'Fin Statment SA'!14:14) -> 0 | AK9: =SUMIF('Fin Statment SA'!$6:$6,'Annual Financial Statement'!AK$2,'Fin Statment SA'!14:14) -> 0 | AL9: =SUMIF('Fin Statment SA'!$6:$6,'Annual Financial Statement'!AL$2,'Fin Statment SA'!14:14) -> 0 | AM9: =SUMIF('Fin Statment SA'!$6:$6,'Annual Financial Statement'!AM$2,'Fin Statment SA'!14:14) -> 0 | AN9: =SUMIF('Fin Statment SA'!$6:$6,'Annual Financial Statement'!AN$2,'Fin Statment SA'!14:14) -> 0 | AO9: =SUMIF('Fin Statment SA'!$6:$6,'Annual Financial Statement'!AO$2,'Fin Statment SA'!14:14) -> 0 | AP9: =SUMIF('Fin Statment SA'!$6:$6,'Annual Financial Statement'!AP$2,'Fin Statment SA'!14:14) -> 0 | AQ9: =SUMIF('Fin Statment SA'!$6:$6,'Annual Financial Statement'!AQ$2,'Fin Statment SA'!14:14) -> 0 | AR9: =SUMIF('Fin Statment SA'!$6:$6,'Annual Financial Statement'!AR$2,'Fin Statment SA'!14:14) -> 0 | AS9: =SUMIF('Fin Statment SA'!$6:$6,'Annual Financial Statement'!AS$2,'Fin Statment SA'!14:14) -> 0 | AT9: =SUMIF('Fin Statment SA'!$6:$6,'Annual Financial Statement'!AT$2,'Fin Statment SA'!14:14) -> 0 | AU9: =SUMIF('Fin Statment SA'!$6:$6,'Annual Financial Statement'!AU$2,'Fin Statment SA'!14:14) -> 0 | AV9: =SUMIF('Fin Statment SA'!$6:$6,'Annual Financial Statement'!AV$2,'Fin Statment SA'!14:14) -> 0
D10: EBIT | I10: =SUMIF('Fin Statment SA'!$6:$6,'Annual Financial Statement'!I$2,'Fin Statment SA'!15:15) -> -7717243.901 | J10: =SUMIF('Fin Statment SA'!$6:$6,'Annual Financial Statement'!J$2,'Fin Statment SA'!15:15) -> -14519637.09 | K10: =SUMIF('Fin Statment SA'!$6:$6,'Annual Financial Statement'!K$2,'Fin Statment SA'!15:15) -> -14450022.18 | L10: =SUMIF('Fin Statment SA'!$6:$6,'Annual Financial Statement'!L$2,'Fin Statment SA'!15:15) -> -14379722.5 | M10: =SUMIF('Fin Statment SA'!$6:$6,'Annual Financial Statement'!M$2,'Fin Statment SA'!15:15) -> -14308731.4 | N10: =SUMIF('Fin Statment SA'!$6:$6,'Annual Financial Statement'!N$2,'Fin Statment SA'!15:15) -> -3610088.04 | O10: =SUMIF('Fin Statment SA'!$6:$6,'Annual Financial Statement'!O$2,'Fin Statment SA'!15:15) -> 7088971.053 | P10: =SUMIF('Fin Statment SA'!$6:$6,'Annual Financial Statement'!P$2,'Fin Statment SA'!15:15) -> 7162087.407 | Q10: =SUMIF('Fin Statment SA'!$6:$6,'Annual Financial Statement'!Q$2,'Fin Statment SA'!15:15) -> 7235922.532 | R10: =SUMIF('Fin Statment SA'!$6:$6,'Annual Financial Statement'!R$2,'Fin Statment SA'!15:15) -> 7310793.001 | S10: =SUMIF('Fin Statment SA'!$6:$6,'Annual Financial Statement'!S$2,'Fin Statment SA'!15:15) -> 7386089.624 | T10: =SUMIF('Fin Statment SA'!$6:$6,'Annual Financial Statement'!T$2,'Fin Statment SA'!15:15) -> 7462126.082 | U10: =SUMIF('Fin Statment SA'!$6:$6,'Annual Financial Statement'!U$2,'Fin Statment SA'!15:15) -> 7538909.514 | V10: =SUMIF('Fin Statment SA'!$6:$6,'Annual Financial Statement'!V$2,'Fin Statment SA'!15:15) -> 7616769.164 | W10: =SUMIF('Fin Statment SA'!$6:$6,'Annual Financial Statement'!W$2,'Fin Statment SA'!15:15) -> 7695071.408 | X10: =SUMIF('Fin Statment SA'!$6:$6,'Annual Financial Statement'!X$2,'Fin Statment SA'!15:15) -> 7774142.477 | Y10: =SUMIF('Fin Statment SA'!$6:$6,'Annual Financial Statement'!Y$2,'Fin Statment SA'!15:15) -> 7853989.779 | Z10: =SUMIF('Fin Statment SA'!$6:$6,'Annual Financial Statement'!Z$2,'Fin Statment SA'!15:15) -> 7934955.726 | AA10: =SUMIF('Fin Statment SA'!$6:$6,'Annual Financial Statement'!AA$2,'Fin Statment SA'!15:15) -> 8016381.288 | AB10: =SUMIF('Fin Statment SA'!$6:$6,'Annual Financial Statement'!AB$2,'Fin Statment SA'!15:15) -> 8098605.745 | AC10: =SUMIF('Fin Statment SA'!$6:$6,'Annual Financial Statement'!AC$2,'Fin Statment SA'!15:15) -> 8181636.781 | AD10: =SUMIF('Fin Statment SA'!$6:$6,'Annual Financial Statement'!AD$2,'Fin Statment SA'!15:15) -> 8265830.494 | AE10: =SUMIF('Fin Statment SA'!$6:$6,'Annual Financial Statement'!AE$2,'Fin Statment SA'!15:15) -> 8350501.442 | AF10: =SUMIF('Fin Statment SA'!$6:$6,'Annual Financial Statement'!AF$2,'Fin Statment SA'!15:15) -> 8436002.469 | AG10: =SUMIF('Fin Statment SA'!$6:$6,'Annual Financial Statement'!AG$2,'Fin Statment SA'!15:15) -> 8522341.54 | AH10: =SUMIF('Fin Statment SA'!$6:$6,'Annual Financial Statement'!AH$2,'Fin Statment SA'!15:15) -> 8609888.981 | AI10: =SUMIF('Fin Statment SA'!$6:$6,'Annual Financial Statement'!AI$2,'Fin Statment SA'!15:15) -> 8697931.89 | AJ10: =SUMIF('Fin Statment SA'!$6:$6,'Annual Financial Statement'!AJ$2,'Fin Statment SA'!15:15) -> 8786837.208 | AK10: =SUMIF('Fin Statment SA'!$6:$6,'Annual Financial Statement'!AK$2,'Fin Statment SA'!15:15) -> 8876613.191 | AL10: =SUMIF('Fin Statment SA'!$6:$6,'Annual Financial Statement'!AL$2,'Fin Statment SA'!15:15) -> 8967644.95 | AM10: =SUMIF('Fin Statment SA'!$6:$6,'Annual Financial Statement'!AM$2,'Fin Statment SA'!15:15) -> 9059191.039 | AN10: =SUMIF('Fin Statment SA'!$6:$6,'Annual Financial Statement'!AN$2,'Fin Statment SA'!15:15) -> 9151633.048 | AO10: =SUMIF('Fin Statment SA'!$6:$6,'Annual Financial Statement'!AO$2,'Fin Statment SA'!15:15) -> 9244979.535 | AP10: =SUMIF('Fin Statment SA'!$6:$6,'Annual Financial Statement'!AP$2,'Fin Statment SA'!15:15) -> 9339630.971 | AQ10: =SUMIF('Fin Statment SA'!$6:$6,'Annual Financial Statement'!AQ$2,'Fin Statment SA'!15:15) -> 9434816.243 | AR10: =SUMIF('Fin Statment SA'!$6:$6,'Annual Financial Statement'!AR$2,'Fin Statment SA'!15:15) -> 5363410.8 | AS10: =SUMIF('Fin Statment SA'!$6:$6,'Annual Financial Statement'!AS$2,'Fin Statment SA'!15:15) -> 0 | AT10: =SUMIF('Fin Statment SA'!$6:$6,'Annual Financial Statement'!AT$2,'Fin Statment SA'!15:15) -> 0 | AU10: =SUMIF('Fin Statment SA'!$6:$6,'Annual Financial Statement'!AU$2,'Fin Statment SA'!15:15) -> 0 | AV10: =SUMIF('Fin Statment SA'!$6:$6,'Annual Financial Statement'!AV$2,'Fin Statment SA'!15:15) -> 0
C11: Less: Interest on Senior | I11: =SUMIF('Fin Statment SA'!$6:$6,'Annual Financial Statement'!I$2,'Fin Statment SA'!16:16) -> 1062650.604 | J11: =SUMIF('Fin Statment SA'!$6:$6,'Annual Financial Statement'!J$2,'Fin Statment SA'!16:16) -> 2107481.943 | K11: =SUMIF('Fin Statment SA'!$6:$6,'Annual Financial Statement'!K$2,'Fin Statment SA'!16:16) -> 2050278.788 | L11: =SUMIF('Fin Statment SA'!$6:$6,'Annual Financial Statement'!L$2,'Fin Statment SA'!16:16) -> 1990496.816 | M11: =SUMIF('Fin Statment SA'!$6:$6,'Annual Financial Statement'!M$2,'Fin Statment SA'!16:16) -> 1928060.258 | N11: =SUMIF('Fin Statment SA'!$6:$6,'Annual Financial Statement'!N$2,'Fin Statment SA'!16:16) -> 1862890.243 | O11: =SUMIF('Fin Statment SA'!$6:$6,'Annual Financial Statement'!O$2,'Fin Statment SA'!16:16) -> 1794900.712 | P11: =SUMIF('Fin Statment SA'!$6:$6,'Annual Financial Statement'!P$2,'Fin Statment SA'!16:16) -> 1724013.318 | Q11: =SUMIF('Fin Statment SA'!$6:$6,'Annual Financial Statement'!Q$2,'Fin Statment SA'!16:16) -> 1650145.863 | R11: =SUMIF('Fin Statment SA'!$6:$6,'Annual Financial Statement'!R$2,'Fin Statment SA'!16:16) -> 1573210.808 | S11: =SUMIF('Fin Statment SA'!$6:$6,'Annual Financial Statement'!S$2,'Fin Statment SA'!16:16) -> 1493115.988 | T11: =SUMIF('Fin Statment SA'!$6:$6,'Annual Financial Statement'!T$2,'Fin Statment SA'!16:16) -> 1409773.459 | U11: =SUMIF('Fin Statment SA'!$6:$6,'Annual Financial Statement'!U$2,'Fin Statment SA'!16:16) -> 1323089.748 | V11: =SUMIF('Fin Statment SA'!$6:$6,'Annual Financial Statement'!V$2,'Fin Statment SA'!16:16) -> 1232967.737 | W11: =SUMIF('Fin Statment SA'!$6:$6,'Annual Financial Statement'!W$2,'Fin Statment SA'!16:16) -> 1139305.345 | X11: =SUMIF('Fin Statment SA'!$6:$6,'Annual Financial Statement'!X$2,'Fin Statment SA'!16:16) -> 1042004.725 | Y11: =SUMIF('Fin Statment SA'!$6:$6,'Annual Financial Statement'!Y$2,'Fin Statment SA'!16:16) -> 940962.1177 | Z11: =SUMIF('Fin Statment SA'!$6:$6,'Annual Financial Statement'!Z$2,'Fin Statment SA'!16:16) -> 836069.8117 | AA11: =SUMIF('Fin Statment SA'!$6:$6,'Annual Financial Statement'!AA$2,'Fin Statment SA'!16:16) -> 727214.7627 | AB11: =SUMIF('Fin Statment SA'!$6:$6,'Annual Financial Statement'!AB$2,'Fin Statment SA'!16:16) -> 625107.0245 | AC11: =SUMIF('Fin Statment SA'!$6:$6,'Annual Financial Statement'!AC$2,'Fin Statment SA'!16:16) -> 532859.5473 | AD11: =SUMIF('Fin Statment SA'!$6:$6,'Annual Financial Statement'!AD$2,'Fin Statment SA'!16:16) -> 437508.3277 | AE11: =SUMIF('Fin Statment SA'!$6:$6,'Annual Financial Statement'!AE$2,'Fin Statment SA'!16:16) -> 338971.8468 | AF11: =SUMIF('Fin Statment SA'!$6:$6,'Annual Financial Statement'!AF$2,'Fin Statment SA'!16:16) -> 237172.8605 | AG11: =SUMIF('Fin Statment SA'!$6:$6,'Annual Financial Statement'!AG$2,'Fin Statment SA'!16:16) -> 132029.5478 | AH11: =SUMIF('Fin Statment SA'!$6:$6,'Annual Financial Statement'!AH$2,'Fin Statment SA'!16:16) -> 23457.20178 | AI11: =SUMIF('Fin Statment SA'!$6:$6,'Annual Financial Statement'!AI$2,'Fin Statment SA'!16:16) -> 2.953319381e-09 | AJ11: =SUMIF('Fin Statment SA'!$6:$6,'Annual Financial Statement'!AJ$2,'Fin Statment SA'!16:16) -> 3.027613822e-09 | AK11: =SUMIF('Fin Statment SA'!$6:$6,'Annual Financial Statement'!AK$2,'Fin Statment SA'!16:16) -> 3.103777232e-09 | AL11: =SUMIF('Fin Statment SA'!$6:$6,'Annual Financial Statement'!AL$2,'Fin Statment SA'!16:16) -> 3.181856628e-09 | AM11: =SUMIF('Fin Statment SA'!$6:$6,'Annual Financial Statement'!AM$2,'Fin Statment SA'!16:16) -> 3.261900209e-09 | AN11: =SUMIF('Fin Statment SA'!$6:$6,'Annual Financial Statement'!AN$2,'Fin Statment SA'!16:16) -> 3.343957386e-09 | AO11: =SUMIF('Fin Statment SA'!$6:$6,'Annual Financial Statement'!AO$2,'Fin Statment SA'!16:16) -> 3.428078814e-09 | AP11: =SUMIF('Fin Statment SA'!$6:$6,'Annual Financial Statement'!AP$2,'Fin Statment SA'!16:16) -> 3.514316421e-09 | AQ11: =SUMIF('Fin Statment SA'!$6:$6,'Annual Financial Statement'!AQ$2,'Fin Statment SA'!16:16) -> 3.602723444e-09 | AR11: =SUMIF('Fin Statment SA'!$6:$6,'Annual Financial Statement'!AR$2,'Fin Statment SA'!16:16) -> 3.693354456e-09 | AS11: =SUMIF('Fin Statment SA'!$6:$6,'Annual Financial Statement'!AS$2,'Fin Statment SA'!16:16) -> 3.786265404e-09 | AT11: =SUMIF('Fin Statment SA'!$6:$6,'Annual Financial Statement'!AT$2,'Fin Statment SA'!16:16) -> 3.881513643e-09 | AU11: =SUMIF('Fin Statment SA'!$6:$6,'Annual Financial Statement'!AU$2,'Fin Statment SA'!16:16) -> 3.97915797e-09 | AV11: =SUMIF('Fin Statment SA'!$6:$6,'Annual Financial Statement'!AV$2,'Fin Statment SA'!16:16) -> 4.079258663e-09
C12: Less: Shareholder Debt Interest | I12: =SUMIF('Fin Statment SA'!$6:$6,'Annual Financial Statement'!I$2,'Fin Statment SA'!17:17) -> 0 | J12: =SUMIF('Fin Statment SA'!$6:$6,'Annual Financial Statement'!J$2,'Fin Statment SA'!17:17) -> 0 | K12: =SUMIF('Fin Statment SA'!$6:$6,'Annual Financial Statement'!K$2,'Fin Statment SA'!17:17) -> 0 | L12: =SUMIF('Fin Statment SA'!$6:$6,'Annual Financial Statement'!L$2,'Fin Statment SA'!17:17) -> 0 | M12: =SUMIF('Fin Statment SA'!$6:$6,'Annual Financial Statement'!M$2,'Fin Statment SA'!17:17) -> 0 | N12: =SUMIF('Fin Statment SA'!$6:$6,'Annual Financial Statement'!N$2,'Fin Statment SA'!17:17) -> 0 | O12: =SUMIF('Fin Statment SA'!$6:$6,'Annual Financial Statement'!O$2,'Fin Statment SA'!17:17) -> 0 | P12: =SUMIF('Fin Statment SA'!$6:$6,'Annual Financial Statement'!P$2,'Fin Statment SA'!17:17) -> 0 | Q12: =SUMIF('Fin Statment SA'!$6:$6,'Annual Financial Statement'!Q$2,'Fin Statment SA'!17:17) -> 0 | R12: =SUMIF('Fin Statment SA'!$6:$6,'Annual Financial Statement'!R$2,'Fin Statment SA'!17:17) -> 0 | S12: =SUMIF('Fin Statment SA'!$6:$6,'Annual Financial Statement'!S$2,'Fin Statment SA'!17:17) -> 0 | T12: =SUMIF('Fin Statment SA'!$6:$6,'Annual Financial Statement'!T$2,'Fin Statment SA'!17:17) -> 0 | U12: =SUMIF('Fin Statment SA'!$6:$6,'Annual Financial Statement'!U$2,'Fin Statment SA'!17:17) -> 0 | V12: =SUMIF('Fin Statment SA'!$6:$6,'Annual Financial Statement'!V$2,'Fin Statment SA'!17:17) -> 0 | W12: =SUMIF('Fin Statment SA'!$6:$6,'Annual Financial Statement'!W$2,'Fin Statment SA'!17:17) -> 0 | X12: =SUMIF('Fin Statment SA'!$6:$6,'Annual Financial Statement'!X$2,'Fin Statment SA'!17:17) -> 0 | Y12: =SUMIF('Fin Statment SA'!$6:$6,'Annual Financial Statement'!Y$2,'Fin Statment SA'!17:17) -> 0 | Z12: =SUMIF('Fin Statment SA'!$6:$6,'Annual Financial Statement'!Z$2,'Fin Statment SA'!17:17) -> 0 | AA12: =SUMIF('Fin Statment SA'!$6:$6,'Annual Financial Statement'!AA$2,'Fin Statment SA'!17:17) -> 0 | AB12: =SUMIF('Fin Statment SA'!$6:$6,'Annual Financial Statement'!AB$2,'Fin Statment SA'!17:17) -> 0 | AC12: =SUMIF('Fin Statment SA'!$6:$6,'Annual Financial Statement'!AC$2,'Fin Statment SA'!17:17) -> 0 | AD12: =SUMIF('Fin Statment SA'!$6:$6,'Annual Financial Statement'!AD$2,'Fin Statment SA'!17:17) -> 0 | AE12: =SUMIF('Fin Statment SA'!$6:$6,'Annual Financial Statement'!AE$2,'Fin Statment SA'!17:17) -> 0 | AF12: =SUMIF('Fin Statment SA'!$6:$6,'Annual Financial Statement'!AF$2,'Fin Statment SA'!17:17) -> 0 | AG12: =SUMIF('Fin Statment SA'!$6:$6,'Annual Financial Statement'!AG$2,'Fin Statment SA'!17:17) -> 0 | AH12: =SUMIF('Fin Statment SA'!$6:$6,'Annual Financial Statement'!AH$2,'Fin Statment SA'!17:17) -> 0 | AI12: =SUMIF('Fin Statment SA'!$6:$6,'Annual Financial Statement'!AI$2,'Fin Statment SA'!17:17) -> 0 | AJ12: =SUMIF('Fin Statment SA'!$6:$6,'Annual Financial Statement'!AJ$2,'Fin Statment SA'!17:17) -> 0 | AK12: =SUMIF('Fin Statment SA'!$6:$6,'Annual Financial Statement'!AK$2,'Fin Statment SA'!17:17) -> 0 | AL12: =SUMIF('Fin Statment SA'!$6:$6,'Annual Financial Statement'!AL$2,'Fin Statment SA'!17:17) -> 0 | AM12: =SUMIF('Fin Statment SA'!$6:$6,'Annual Financial Statement'!AM$2,'Fin Statment SA'!17:17) -> 0 | AN12: =SUMIF('Fin Statment SA'!$6:$6,'Annual Financial Statement'!AN$2,'Fin Statment SA'!17:17) -> 0 | AO12: =SUMIF('Fin Statment SA'!$6:$6,'Annual Financial Statement'!AO$2,'Fin Statment SA'!17:17) -> 0 | AP12: =SUMIF('Fin Statment SA'!$6:$6,'Annual Financial Statement'!AP$2,'Fin Statment SA'!17:17) -> 0 | AQ12: =SUMIF('Fin Statment SA'!$6:$6,'Annual Financial Statement'!AQ$2,'Fin Statment SA'!17:17) -> 0 | AR12: =SUMIF('Fin Statment SA'!$6:$6,'Annual Financial Statement'!AR$2,'Fin Statment SA'!17:17) -> 0 | AS12: =SUMIF('Fin Statment SA'!$6:$6,'Annual Financial Statement'!AS$2,'Fin Statment SA'!17:17) -> 0 | AT12: =SUMIF('Fin Statment SA'!$6:$6,'Annual Financial Statement'!AT$2,'Fin Statment SA'!17:17) -> 0 | AU12: =SUMIF('Fin Statment SA'!$6:$6,'Annual Financial Statement'!AU$2,'Fin Statment SA'!17:17) -> 0 | AV12: =SUMIF('Fin Statment SA'!$6:$6,'Annual Financial Statement'!AV$2,'Fin Statment SA'!17:17) -> 0
D13: EBT | I13: =SUMIF('Fin Statment SA'!$6:$6,'Annual Financial Statement'!I$2,'Fin Statment SA'!18:18) -> -8779894.505 | J13: =SUMIF('Fin Statment SA'!$6:$6,'Annual Financial Statement'!J$2,'Fin Statment SA'!18:18) -> -16627119.03 | K13: =SUMIF('Fin Statment SA'!$6:$6,'Annual Financial Statement'!K$2,'Fin Statment SA'!18:18) -> -16500300.97 | L13: =SUMIF('Fin Statment SA'!$6:$6,'Annual Financial Statement'!L$2,'Fin Statment SA'!18:18) -> -16370219.31 | M13: =SUMIF('Fin Statment SA'!$6:$6,'Annual Financial Statement'!M$2,'Fin Statment SA'!18:18) -> -16236791.65 | N13: =SUMIF('Fin Statment SA'!$6:$6,'Annual Financial Statement'!N$2,'Fin Statment SA'!18:18) -> -5472978.282 | O13: =SUMIF('Fin Statment SA'!$6:$6,'Annual Financial Statement'!O$2,'Fin Statment SA'!18:18) -> 5294070.341 | P13: =SUMIF('Fin Statment SA'!$6:$6,'Annual Financial Statement'!P$2,'Fin Statment SA'!18:18) -> 5438074.09 | Q13: =SUMIF('Fin Statment SA'!$6:$6,'Annual Financial Statement'!Q$2,'Fin Statment SA'!18:18) -> 5585776.669 | R13: =SUMIF('Fin Statment SA'!$6:$6,'Annual Financial Statement'!R$2,'Fin Statment SA'!18:18) -> 5737582.193 | S13: =SUMIF('Fin Statment SA'!$6:$6,'Annual Financial Statement'!S$2,'Fin Statment SA'!18:18) -> 5892973.636 | T13: =SUMIF('Fin Statment SA'!$6:$6,'Annual Financial Statement'!T$2,'Fin Statment SA'!18:18) -> 6052352.623 | U13: =SUMIF('Fin Statment SA'!$6:$6,'Annual Financial Statement'!U$2,'Fin Statment SA'!18:18) -> 6215819.766 | V13: =SUMIF('Fin Statment SA'!$6:$6,'Annual Financial Statement'!V$2,'Fin Statment SA'!18:18) -> 6383801.427 | W13: =SUMIF('Fin Statment SA'!$6:$6,'Annual Financial Statement'!W$2,'Fin Statment SA'!18:18) -> 6555766.063 | X13: =SUMIF('Fin Statment SA'!$6:$6,'Annual Financial Statement'!X$2,'Fin Statment SA'!18:18) -> 6732137.752 | Y13: =SUMIF('Fin Statment SA'!$6:$6,'Annual Financial Statement'!Y$2,'Fin Statment SA'!18:18) -> 6913027.661 | Z13: =SUMIF('Fin Statment SA'!$6:$6,'Annual Financial Statement'!Z$2,'Fin Statment SA'!18:18) -> 7098885.914 | AA13: =SUMIF('Fin Statment SA'!$6:$6,'Annual Financial Statement'!AA$2,'Fin Statment SA'!18:18) -> 7289166.525 | AB13: =SUMIF('Fin Statment SA'!$6:$6,'Annual Financial Statement'!AB$2,'Fin Statment SA'!18:18) -> 7473498.721 | AC13: =SUMIF('Fin Statment SA'!$6:$6,'Annual Financial Statement'!AC$2,'Fin Statment SA'!18:18) -> 7648777.233 | AD13: =SUMIF('Fin Statment SA'!$6:$6,'Annual Financial Statement'!AD$2,'Fin Statment SA'!18:18) -> 7828322.166 | AE13: =SUMIF('Fin Statment SA'!$6:$6,'Annual Financial Statement'!AE$2,'Fin Statment SA'!18:18) -> 8011529.596 | AF13: =SUMIF('Fin Statment SA'!$6:$6,'Annual Financial Statement'!AF$2,'Fin Statment SA'!18:18) -> 8198829.609 | AG13: =SUMIF('Fin Statment SA'!$6:$6,'Annual Financial Statement'!AG$2,'Fin Statment SA'!18:18) -> 8390311.993 | AH13: =SUMIF('Fin Statment SA'!$6:$6,'Annual Financial Statement'!AH$2,'Fin Statment SA'!18:18) -> 8586431.779 | AI13: =SUMIF('Fin Statment SA'!$6:$6,'Annual Financial Statement'!AI$2,'Fin Statment SA'!18:18) -> 8697931.89 | AJ13: =SUMIF('Fin Statment SA'!$6:$6,'Annual Financial Statement'!AJ$2,'Fin Statment SA'!18:18) -> 8786837.208 | AK13: =SUMIF('Fin Statment SA'!$6:$6,'Annual Financial Statement'!AK$2,'Fin Statment SA'!18:18) -> 8876613.191 | AL13: =SUMIF('Fin Statment SA'!$6:$6,'Annual Financial Statement'!AL$2,'Fin Statment SA'!18:18) -> 8967644.95 | AM13: =SUMIF('Fin Statment SA'!$6:$6,'Annual Financial Statement'!AM$2,'Fin Statment SA'!18:18) -> 9059191.039 | AN13: =SUMIF('Fin Statment SA'!$6:$6,'Annual Financial Statement'!AN$2,'Fin Statment SA'!18:18) -> 9151633.048 | AO13: =SUMIF('Fin Statment SA'!$6:$6,'Annual Financial Statement'!AO$2,'Fin Statment SA'!18:18) -> 9244979.535 | AP13: =SUMIF('Fin Statment SA'!$6:$6,'Annual Financial Statement'!AP$2,'Fin Statment SA'!18:18) -> 9339630.971 | AQ13: =SUMIF('Fin Statment SA'!$6:$6,'Annual Financial Statement'!AQ$2,'Fin Statment SA'!18:18) -> 9434816.243 | AR13: =SUMIF('Fin Statment SA'!$6:$6,'Annual Financial Statement'!AR$2,'Fin Statment SA'!18:18) -> 5363410.8 | AS13: =SUMIF('Fin Statment SA'!$6:$6,'Annual Financial Statement'!AS$2,'Fin Statment SA'!18:18) -> -3.786265404e-09 | AT13: =SUMIF('Fin Statment SA'!$6:$6,'Annual Financial Statement'!AT$2,'Fin Statment SA'!18:18) -> -3.881513643e-09 | AU13: =SUMIF('Fin Statment SA'!$6:$6,'Annual Financial Statement'!AU$2,'Fin Statment SA'!18:18) -> -3.97915797e-09 | AV13: =SUMIF('Fin Statment SA'!$6:$6,'Annual Financial Statement'!AV$2,'Fin Statment SA'!18:18) -> -4.079258663e-09
C14: Less: Taxes | I14: =SUMIF('Fin Statment SA'!$6:$6,'Annual Financial Statement'!I$2,'Fin Statment SA'!19:19) -> 0 | J14: =SUMIF('Fin Statment SA'!$6:$6,'Annual Financial Statement'!J$2,'Fin Statment SA'!19:19) -> 0 | K14: =SUMIF('Fin Statment SA'!$6:$6,'Annual Financial Statement'!K$2,'Fin Statment SA'!19:19) -> 0 | L14: =SUMIF('Fin Statment SA'!$6:$6,'Annual Financial Statement'!L$2,'Fin Statment SA'!19:19) -> 0 | M14: =SUMIF('Fin Statment SA'!$6:$6,'Annual Financial Statement'!M$2,'Fin Statment SA'!19:19) -> 0 | N14: =SUMIF('Fin Statment SA'!$6:$6,'Annual Financial Statement'!N$2,'Fin Statment SA'!19:19) -> 0 | O14: =SUMIF('Fin Statment SA'!$6:$6,'Annual Financial Statement'!O$2,'Fin Statment SA'!19:19) -> 0 | P14: =SUMIF('Fin Statment SA'!$6:$6,'Annual Financial Statement'!P$2,'Fin Statment SA'!19:19) -> 0 | Q14: =SUMIF('Fin Statment SA'!$6:$6,'Annual Financial Statement'!Q$2,'Fin Statment SA'!19:19) -> 0 | R14: =SUMIF('Fin Statment SA'!$6:$6,'Annual Financial Statement'!R$2,'Fin Statment SA'!19:19) -> 0 | S14: =SUMIF('Fin Statment SA'!$6:$6,'Annual Financial Statement'!S$2,'Fin Statment SA'!19:19) -> 0 | T14: =SUMIF('Fin Statment SA'!$6:$6,'Annual Financial Statement'!T$2,'Fin Statment SA'!19:19) -> 0 | U14: =SUMIF('Fin Statment SA'!$6:$6,'Annual Financial Statement'!U$2,'Fin Statment SA'!19:19) -> 0 | V14: =SUMIF('Fin Statment SA'!$6:$6,'Annual Financial Statement'!V$2,'Fin Statment SA'!19:19) -> 0 | W14: =SUMIF('Fin Statment SA'!$6:$6,'Annual Financial Statement'!W$2,'Fin Statment SA'!19:19) -> 0 | X14: =SUMIF('Fin Statment SA'!$6:$6,'Annual Financial Statement'!X$2,'Fin Statment SA'!19:19) -> 0 | Y14: =SUMIF('Fin Statment SA'!$6:$6,'Annual Financial Statement'!Y$2,'Fin Statment SA'!19:19) -> 0 | Z14: =SUMIF('Fin Statment SA'!$6:$6,'Annual Financial Statement'!Z$2,'Fin Statment SA'!19:19) -> 0 | AA14: =SUMIF('Fin Statment SA'!$6:$6,'Annual Financial Statement'!AA$2,'Fin Statment SA'!19:19) -> 240426.1805 | AB14: =SUMIF('Fin Statment SA'!$6:$6,'Annual Financial Statement'!AB$2,'Fin Statment SA'!19:19) -> 1494699.744 | AC14: =SUMIF('Fin Statment SA'!$6:$6,'Annual Financial Statement'!AC$2,'Fin Statment SA'!19:19) -> 1529755.447 | AD14: =SUMIF('Fin Statment SA'!$6:$6,'Annual Financial Statement'!AD$2,'Fin Statment SA'!19:19) -> 1565664.433 | AE14: =SUMIF('Fin Statment SA'!$6:$6,'Annual Financial Statement'!AE$2,'Fin Statment SA'!19:19) -> 1602305.919 | AF14: =SUMIF('Fin Statment SA'!$6:$6,'Annual Financial Statement'!AF$2,'Fin Statment SA'!19:19) -> 1639765.922 | AG14: =SUMIF('Fin Statment SA'!$6:$6,'Annual Financial Statement'!AG$2,'Fin Statment SA'!19:19) -> 1678062.399 | AH14: =SUMIF('Fin Statment SA'!$6:$6,'Annual Financial Statement'!AH$2,'Fin Statment SA'!19:19) -> 1717286.356 | AI14: =SUMIF('Fin Statment SA'!$6:$6,'Annual Financial Statement'!AI$2,'Fin Statment SA'!19:19) -> 1739586.378 | AJ14: =SUMIF('Fin Statment SA'!$6:$6,'Annual Financial Statement'!AJ$2,'Fin Statment SA'!19:19) -> 1757367.442 | AK14: =SUMIF('Fin Statment SA'!$6:$6,'Annual Financial Statement'!AK$2,'Fin Statment SA'!19:19) -> 1775322.638 | AL14: =SUMIF('Fin Statment SA'!$6:$6,'Annual Financial Statement'!AL$2,'Fin Statment SA'!19:19) -> 1793528.99 | AM14: =SUMIF('Fin Statment SA'!$6:$6,'Annual Financial Statement'!AM$2,'Fin Statment SA'!19:19) -> 1811838.208 | AN14: =SUMIF('Fin Statment SA'!$6:$6,'Annual Financial Statement'!AN$2,'Fin Statment SA'!19:19) -> 1830326.61 | AO14: =SUMIF('Fin Statment SA'!$6:$6,'Annual Financial Statement'!AO$2,'Fin Statment SA'!19:19) -> 1848995.907 | AP14: =SUMIF('Fin Statment SA'!$6:$6,'Annual Financial Statement'!AP$2,'Fin Statment SA'!19:19) -> 1867926.194 | AQ14: =SUMIF('Fin Statment SA'!$6:$6,'Annual Financial Statement'!AQ$2,'Fin Statment SA'!19:19) -> 1886963.249 | AR14: =SUMIF('Fin Statment SA'!$6:$6,'Annual Financial Statement'!AR$2,'Fin Statment SA'!19:19) -> 1072682.16 | AS14: =SUMIF('Fin Statment SA'!$6:$6,'Annual Financial Statement'!AS$2,'Fin Statment SA'!19:19) -> 0 | AT14: =SUMIF('Fin Statment SA'!$6:$6,'Annual Financial Statement'!AT$2,'Fin Statment SA'!19:19) -> 0 | AU14: =SUMIF('Fin Statment SA'!$6:$6,'Annual Financial Statement'!AU$2,'Fin Statment SA'!19:19) -> 0 | AV14: =SUMIF('Fin Statment SA'!$6:$6,'Annual Financial Statement'!AV$2,'Fin Statment SA'!19:19) -> 0
D15: Profit After Tax | I15: =SUMIF('Fin Statment SA'!$6:$6,'Annual Financial Statement'!I$2,'Fin Statment SA'!20:20) -> -8779894.505 | J15: =SUMIF('Fin Statment SA'!$6:$6,'Annual Financial Statement'!J$2,'Fin Statment SA'!20:20) -> -16627119.03 | K15: =SUMIF('Fin Statment SA'!$6:$6,'Annual Financial Statement'!K$2,'Fin Statment SA'!20:20) -> -16500300.97 | L15: =SUMIF('Fin Statment SA'!$6:$6,'Annual Financial Statement'!L$2,'Fin Statment SA'!20:20) -> -16370219.31 | M15: =SUMIF('Fin Statment SA'!$6:$6,'Annual Financial Statement'!M$2,'Fin Statment SA'!20:20) -> -16236791.65 | N15: =SUMIF('Fin Statment SA'!$6:$6,'Annual Financial Statement'!N$2,'Fin Statment SA'!20:20) -> -5472978.282 | O15: =SUMIF('Fin Statment SA'!$6:$6,'Annual Financial Statement'!O$2,'Fin Statment SA'!20:20) -> 5294070.341 | P15: =SUMIF('Fin Statment SA'!$6:$6,'Annual Financial Statement'!P$2,'Fin Statment SA'!20:20) -> 5438074.09 | Q15: =SUMIF('Fin Statment SA'!$6:$6,'Annual Financial Statement'!Q$2,'Fin Statment SA'!20:20) -> 5585776.669 | R15: =SUMIF('Fin Statment SA'!$6:$6,'Annual Financial Statement'!R$2,'Fin Statment SA'!20:20) -> 5737582.193 | S15: =SUMIF('Fin Statment SA'!$6:$6,'Annual Financial Statement'!S$2,'Fin Statment SA'!20:20) -> 5892973.636 | T15: =SUMIF('Fin Statment SA'!$6:$6,'Annual Financial Statement'!T$2,'Fin Statment SA'!20:20) -> 6052352.623 | U15: =SUMIF('Fin Statment SA'!$6:$6,'Annual Financial Statement'!U$2,'Fin Statment SA'!20:20) -> 6215819.766 | V15: =SUMIF('Fin Statment SA'!$6:$6,'Annual Financial Statement'!V$2,'Fin Statment SA'!20:20) -> 6383801.427 | W15: =SUMIF('Fin Statment SA'!$6:$6,'Annual Financial Statement'!W$2,'Fin Statment SA'!20:20) -> 6555766.063 | X15: =SUMIF('Fin Statment SA'!$6:$6,'Annual Financial Statement'!X$2,'Fin Statment SA'!20:20) -> 6732137.752 | Y15: =SUMIF('Fin Statment SA'!$6:$6,'Annual Financial Statement'!Y$2,'Fin Statment SA'!20:20) -> 6913027.661 | Z15: =SUMIF('Fin Statment SA'!$6:$6,'Annual Financial Statement'!Z$2,'Fin Statment SA'!20:20) -> 7098885.914 | AA15: =SUMIF('Fin Statment SA'!$6:$6,'Annual Financial Statement'!AA$2,'Fin Statment SA'!20:20) -> 7048740.345 | AB15: =SUMIF('Fin Statment SA'!$6:$6,'Annual Financial Statement'!AB$2,'Fin Statment SA'!20:20) -> 5978798.977 | AC15: =SUMIF('Fin Statment SA'!$6:$6,'Annual Financial Statement'!AC$2,'Fin Statment SA'!20:20) -> 6119021.787 | AD15: =SUMIF('Fin Statment SA'!$6:$6,'Annual Financial Statement'!AD$2,'Fin Statment SA'!20:20) -> 6262657.733 | AE15: =SUMIF('Fin Statment SA'!$6:$6,'Annual Financial Statement'!AE$2,'Fin Statment SA'!20:20) -> 6409223.677 | AF15: =SUMIF('Fin Statment SA'!$6:$6,'Annual Financial Statement'!AF$2,'Fin Statment SA'!20:20) -> 6559063.687 | AG15: =SUMIF('Fin Statment SA'!$6:$6,'Annual Financial Statement'!AG$2,'Fin Statment SA'!20:20) -> 6712249.594 | AH15: =SUMIF('Fin Statment SA'!$6:$6,'Annual Financial Statement'!AH$2,'Fin Statment SA'!20:20) -> 6869145.423 | AI15: =SUMIF('Fin Statment SA'!$6:$6,'Annual Financial Statement'!AI$2,'Fin Statment SA'!20:20) -> 6958345.512 | AJ15: =SUMIF('Fin Statment SA'!$6:$6,'Annual Financial Statement'!AJ$2,'Fin Statment SA'!20:20) -> 7029469.766 | AK15: =SUMIF('Fin Statment SA'!$6:$6,'Annual Financial Statement'!AK$2,'Fin Statment SA'!20:20) -> 7101290.553 | AL15: =SUMIF('Fin Statment SA'!$6:$6,'Annual Financial Statement'!AL$2,'Fin Statment SA'!20:20) -> 7174115.96 | AM15: =SUMIF('Fin Statment SA'!$6:$6,'Annual Financial Statement'!AM$2,'Fin Statment SA'!20:20) -> 7247352.831 | AN15: =SUMIF('Fin Statment SA'!$6:$6,'Annual Financial Statement'!AN$2,'Fin Statment SA'!20:20) -> 7321306.439 | AO15: =SUMIF('Fin Statment SA'!$6:$6,'Annual Financial Statement'!AO$2,'Fin Statment SA'!20:20) -> 7395983.628 | AP15: =SUMIF('Fin Statment SA'!$6:$6,'Annual Financial Statement'!AP$2,'Fin Statment SA'!20:20) -> 7471704.777 | AQ15: =SUMIF('Fin Statment SA'!$6:$6,'Annual Financial Statement'!AQ$2,'Fin Statment SA'!20:20) -> 7547852.995 | AR15: =SUMIF('Fin Statment SA'!$6:$6,'Annual Financial Statement'!AR$2,'Fin Statment SA'!20:20) -> 4290728.64 | AS15: =SUMIF('Fin Statment SA'!$6:$6,'Annual Financial Statement'!AS$2,'Fin Statment SA'!20:20) -> -3.786265404e-09 | AT15: =SUMIF('Fin Statment SA'!$6:$6,'Annual Financial Statement'!AT$2,'Fin Statment SA'!20:20) -> -3.881513643e-09 | AU15: =SUMIF('Fin Statment SA'!$6:$6,'Annual Financial Statement'!AU$2,'Fin Statment SA'!20:20) -> -3.97915797e-09 | AV15: =SUMIF('Fin Statment SA'!$6:$6,'Annual Financial Statement'!AV$2,'Fin Statment SA'!20:20) -> -4.079258663e-09
B17: Cash Flow Statement
C18: EBITDA | I18: =SUMIF('Fin Statment SA'!$6:$6,'Annual Financial Statement'!I$2,'Fin Statment SA'!23:23) -> 2909262.141 | J18: =SUMIF('Fin Statment SA'!$6:$6,'Annual Financial Statement'!J$2,'Fin Statment SA'!23:23) -> 6733374.994 | K18: =SUMIF('Fin Statment SA'!$6:$6,'Annual Financial Statement'!K$2,'Fin Statment SA'!23:23) -> 6802989.899 | L18: =SUMIF('Fin Statment SA'!$6:$6,'Annual Financial Statement'!L$2,'Fin Statment SA'!23:23) -> 6873289.587 | M18: =SUMIF('Fin Statment SA'!$6:$6,'Annual Financial Statement'!M$2,'Fin Statment SA'!23:23) -> 6944280.687 | N18: =SUMIF('Fin Statment SA'!$6:$6,'Annual Financial Statement'!N$2,'Fin Statment SA'!23:23) -> 7016418.002 | O18: =SUMIF('Fin Statment SA'!$6:$6,'Annual Financial Statement'!O$2,'Fin Statment SA'!23:23) -> 7088971.053 | P18: =SUMIF('Fin Statment SA'!$6:$6,'Annual Financial Statement'!P$2,'Fin Statment SA'!23:23) -> 7162087.407 | Q18: =SUMIF('Fin Statment SA'!$6:$6,'Annual Financial Statement'!Q$2,'Fin Statment SA'!23:23) -> 7235922.532 | R18: =SUMIF('Fin Statment SA'!$6:$6,'Annual Financial Statement'!R$2,'Fin Statment SA'!23:23) -> 7310793.001 | S18: =SUMIF('Fin Statment SA'!$6:$6,'Annual Financial Statement'!S$2,'Fin Statment SA'!23:23) -> 7386089.624 | T18: =SUMIF('Fin Statment SA'!$6:$6,'Annual Financial Statement'!T$2,'Fin Statment SA'!23:23) -> 7462126.082 | U18: =SUMIF('Fin Statment SA'!$6:$6,'Annual Financial Statement'!U$2,'Fin Statment SA'!23:23) -> 7538909.514 | V18: =SUMIF('Fin Statment SA'!$6:$6,'Annual Financial Statement'!V$2,'Fin Statment SA'!23:23) -> 7616769.164 | W18: =SUMIF('Fin Statment SA'!$6:$6,'Annual Financial Statement'!W$2,'Fin Statment SA'!23:23) -> 7695071.408 | X18: =SUMIF('Fin Statment SA'!$6:$6,'Annual Financial Statement'!X$2,'Fin Statment SA'!23:23) -> 7774142.477 | Y18: =SUMIF('Fin Statment SA'!$6:$6,'Annual Financial Statement'!Y$2,'Fin Statment SA'!23:23) -> 7853989.779 | Z18: =SUMIF('Fin Statment SA'!$6:$6,'Annual Financial Statement'!Z$2,'Fin Statment SA'!23:23) -> 7934955.726 | AA18: =SUMIF('Fin Statment SA'!$6:$6,'Annual Financial Statement'!AA$2,'Fin Statment SA'!23:23) -> 8016381.288 | AB18: =SUMIF('Fin Statment SA'!$6:$6,'Annual Financial Statement'!AB$2,'Fin Statment SA'!23:23) -> 8098605.745 | AC18: =SUMIF('Fin Statment SA'!$6:$6,'Annual Financial Statement'!AC$2,'Fin Statment SA'!23:23) -> 8181636.781 | AD18: =SUMIF('Fin Statment SA'!$6:$6,'Annual Financial Statement'!AD$2,'Fin Statment SA'!23:23) -> 8265830.494 | AE18: =SUMIF('Fin Statment SA'!$6:$6,'Annual Financial Statement'!AE$2,'Fin Statment SA'!23:23) -> 8350501.442 | AF18: =SUMIF('Fin Statment SA'!$6:$6,'Annual Financial Statement'!AF$2,'Fin Statment SA'!23:23) -> 8436002.469 | AG18: =SUMIF('Fin Statment SA'!$6:$6,'Annual Financial Statement'!AG$2,'Fin Statment SA'!23:23) -> 8522341.54 | AH18: =SUMIF('Fin Statment SA'!$6:$6,'Annual Financial Statement'!AH$2,'Fin Statment SA'!23:23) -> 8609888.981 | AI18: =SUMIF('Fin Statment SA'!$6:$6,'Annual Financial Statement'!AI$2,'Fin Statment SA'!23:23) -> 8697931.89 | AJ18: =SUMIF('Fin Statment SA'!$6:$6,'Annual Financial Statement'!AJ$2,'Fin Statment SA'!23:23) -> 8786837.208 | AK18: =SUMIF('Fin Statment SA'!$6:$6,'Annual Financial Statement'!AK$2,'Fin Statment SA'!23:23) -> 8876613.191 | AL18: =SUMIF('Fin Statment SA'!$6:$6,'Annual Financial Statement'!AL$2,'Fin Statment SA'!23:23) -> 8967644.95 | AM18: =SUMIF('Fin Statment SA'!$6:$6,'Annual Financial Statement'!AM$2,'Fin Statment SA'!23:23) -> 9059191.039 | AN18: =SUMIF('Fin Statment SA'!$6:$6,'Annual Financial Statement'!AN$2,'Fin Statment SA'!23:23) -> 9151633.048 | AO18: =SUMIF('Fin Statment SA'!$6:$6,'Annual Financial Statement'!AO$2,'Fin Statment SA'!23:23) -> 9244979.535 | AP18: =SUMIF('Fin Statment SA'!$6:$6,'Annual Financial Statement'!AP$2,'Fin Statment SA'!23:23) -> 9339630.971 | AQ18: =SUMIF('Fin Statment SA'!$6:$6,'Annual Financial Statement'!AQ$2,'Fin Statment SA'!23:23) -> 9434816.243 | AR18: =SUMIF('Fin Statment SA'!$6:$6,'Annual Financial Statement'!AR$2,'Fin Statment SA'!23:23) -> 5363410.8 | AS18: =SUMIF('Fin Statment SA'!$6:$6,'Annual Financial Statement'!AS$2,'Fin Statment SA'!23:23) -> 0 | AT18: =SUMIF('Fin Statment SA'!$6:$6,'Annual Financial Statement'!AT$2,'Fin Statment SA'!23:23) -> 0 | AU18: =SUMIF('Fin Statment SA'!$6:$6,'Annual Financial Statement'!AU$2,'Fin Statment SA'!23:23) -> 0 | AV18: =SUMIF('Fin Statment SA'!$6:$6,'Annual Financial Statement'!AV$2,'Fin Statment SA'!23:23) -> 0
C19: Less: Working Capital Change | I19: =SUMIF('Fin Statment SA'!$6:$6,'Annual Financial Statement'!I$2,'Fin Statment SA'!24:24) -> 881993.9768 | J19: =SUMIF('Fin Statment SA'!$6:$6,'Annual Financial Statement'!J$2,'Fin Statment SA'!24:24) -> 9254.014493 | K19: =SUMIF('Fin Statment SA'!$6:$6,'Annual Financial Statement'!K$2,'Fin Statment SA'!24:24) -> 9306.537355 | L19: =SUMIF('Fin Statment SA'!$6:$6,'Annual Financial Statement'!L$2,'Fin Statment SA'!24:24) -> 9397.838875 | M19: =SUMIF('Fin Statment SA'!$6:$6,'Annual Financial Statement'!M$2,'Fin Statment SA'!24:24) -> 9490.018119 | N19: =SUMIF('Fin Statment SA'!$6:$6,'Annual Financial Statement'!N$2,'Fin Statment SA'!24:24) -> 9673.253115 | O19: =SUMIF('Fin Statment SA'!$6:$6,'Annual Financial Statement'!O$2,'Fin Statment SA'!24:24) -> 9678.691903 | P19: =SUMIF('Fin Statment SA'!$6:$6,'Annual Financial Statement'!P$2,'Fin Statment SA'!24:24) -> 9773.587693 | Q19: =SUMIF('Fin Statment SA'!$6:$6,'Annual Financial Statement'!Q$2,'Fin Statment SA'!24:24) -> 9869.394323 | R19: =SUMIF('Fin Statment SA'!$6:$6,'Annual Financial Statement'!R$2,'Fin Statment SA'!24:24) -> 10007.5322 | S19: =SUMIF('Fin Statment SA'!$6:$6,'Annual Financial Statement'!S$2,'Fin Statment SA'!24:24) -> 10064.18085 | T19: =SUMIF('Fin Statment SA'!$6:$6,'Annual Financial Statement'!T$2,'Fin Statment SA'!24:24) -> 10162.77369 | U19: =SUMIF('Fin Statment SA'!$6:$6,'Annual Financial Statement'!U$2,'Fin Statment SA'!24:24) -> 10262.31076 | V19: =SUMIF('Fin Statment SA'!$6:$6,'Annual Financial Statement'!V$2,'Fin Statment SA'!24:24) -> 10405.86913 | W19: =SUMIF('Fin Statment SA'!$6:$6,'Annual Financial Statement'!W$2,'Fin Statment SA'!24:24) -> 10464.67542 | X19: =SUMIF('Fin Statment SA'!$6:$6,'Annual Financial Statement'!X$2,'Fin Statment SA'!24:24) -> 10567.10053 | Y19: =SUMIF('Fin Statment SA'!$6:$6,'Annual Financial Statement'!Y$2,'Fin Statment SA'!24:24) -> 10670.50426 | Z19: =SUMIF('Fin Statment SA'!$6:$6,'Annual Financial Statement'!Z$2,'Fin Statment SA'!24:24) -> 10819.68557 | AA19: =SUMIF('Fin Statment SA'!$6:$6,'Annual Financial Statement'!AA$2,'Fin Statment SA'!24:24) -> 10880.72309 | AB19: =SUMIF('Fin Statment SA'!$6:$6,'Annual Financial Statement'!AB$2,'Fin Statment SA'!24:24) -> 10987.11969 | AC19: =SUMIF('Fin Statment SA'!$6:$6,'Annual Financial Statement'!AC$2,'Fin Statment SA'!24:24) -> 11094.53031 | AD19: =SUMIF('Fin Statment SA'!$6:$6,'Annual Financial Statement'!AD$2,'Fin Statment SA'!24:24) -> 11249.54346 | AE19: =SUMIF('Fin Statment SA'!$6:$6,'Annual Financial Statement'!AE$2,'Fin Statment SA'!24:24) -> 11312.88738 | AF19: =SUMIF('Fin Statment SA'!$6:$6,'Annual Financial Statement'!AF$2,'Fin Statment SA'!24:24) -> 11423.39871 | AG19: =SUMIF('Fin Statment SA'!$6:$6,'Annual Financial Statement'!AG$2,'Fin Statment SA'!24:24) -> 11534.96045 | AH19: =SUMIF('Fin Statment SA'!$6:$6,'Annual Financial Statement'!AH$2,'Fin Statment SA'!24:24) -> 11696.02087 | AI19: =SUMIF('Fin Statment SA'!$6:$6,'Annual Financial Statement'!AI$2,'Fin Statment SA'!24:24) -> 11761.74787 | AJ19: =SUMIF('Fin Statment SA'!$6:$6,'Annual Financial Statement'!AJ$2,'Fin Statment SA'!24:24) -> 11876.52115 | AK19: =SUMIF('Fin Statment SA'!$6:$6,'Annual Financial Statement'!AK$2,'Fin Statment SA'!24:24) -> 11992.38223 | AL19: =SUMIF('Fin Statment SA'!$6:$6,'Annual Financial Statement'!AL$2,'Fin Statment SA'!24:24) -> 12159.712 | AM19: =SUMIF('Fin Statment SA'!$6:$6,'Annual Financial Statement'!AM$2,'Fin Statment SA'!24:24) -> 12227.9001 | AN19: =SUMIF('Fin Statment SA'!$6:$6,'Annual Financial Statement'!AN$2,'Fin Statment SA'!24:24) -> 12347.08655 | AO19: =SUMIF('Fin Statment SA'!$6:$6,'Annual Financial Statement'!AO$2,'Fin Statment SA'!24:24) -> 12467.39917 | AP19: =SUMIF('Fin Statment SA'!$6:$6,'Annual Financial Statement'!AP$2,'Fin Statment SA'!24:24) -> 12641.227 | AQ19: =SUMIF('Fin Statment SA'!$6:$6,'Annual Financial Statement'!AQ$2,'Fin Statment SA'!24:24) -> 12711.95553 | AR19: =SUMIF('Fin Statment SA'!$6:$6,'Annual Financial Statement'!AR$2,'Fin Statment SA'!24:24) -> -1252227.061 | AS19: =SUMIF('Fin Statment SA'!$6:$6,'Annual Financial Statement'!AS$2,'Fin Statment SA'!24:24) -> 0 | AT19: =SUMIF('Fin Statment SA'!$6:$6,'Annual Financial Statement'!AT$2,'Fin Statment SA'!24:24) -> 0 | AU19: =SUMIF('Fin Statment SA'!$6:$6,'Annual Financial Statement'!AU$2,'Fin Statment SA'!24:24) -> 0 | AV19: =SUMIF('Fin Statment SA'!$6:$6,'Annual Financial Statement'!AV$2,'Fin Statment SA'!24:24) -> 0
C20: Less: Taxes Paid | I20: =SUMIF('Fin Statment SA'!$6:$6,'Annual Financial Statement'!I$2,'Fin Statment SA'!25:25) -> 0 | J20: =SUMIF('Fin Statment SA'!$6:$6,'Annual Financial Statement'!J$2,'Fin Statment SA'!25:25) -> 0 | K20: =SUMIF('Fin Statment SA'!$6:$6,'Annual Financial Statement'!K$2,'Fin Statment SA'!25:25) -> 0 | L20: =SUMIF('Fin Statment SA'!$6:$6,'Annual Financial Statement'!L$2,'Fin Statment SA'!25:25) -> 0 | M20: =SUMIF('Fin Statment SA'!$6:$6,'Annual Financial Statement'!M$2,'Fin Statment SA'!25:25) -> 0 | N20: =SUMIF('Fin Statment SA'!$6:$6,'Annual Financial Statement'!N$2,'Fin Statment SA'!25:25) -> 0 | O20: =SUMIF('Fin Statment SA'!$6:$6,'Annual Financial Statement'!O$2,'Fin Statment SA'!25:25) -> 0 | P20: =SUMIF('Fin Statment SA'!$6:$6,'Annual Financial Statement'!P$2,'Fin Statment SA'!25:25) -> 0 | Q20: =SUMIF('Fin Statment SA'!$6:$6,'Annual Financial Statement'!Q$2,'Fin Statment SA'!25:25) -> 0 | R20: =SUMIF('Fin Statment SA'!$6:$6,'Annual Financial Statement'!R$2,'Fin Statment SA'!25:25) -> 0 | S20: =SUMIF('Fin Statment SA'!$6:$6,'Annual Financial Statement'!S$2,'Fin Statment SA'!25:25) -> 0 | T20: =SUMIF('Fin Statment SA'!$6:$6,'Annual Financial Statement'!T$2,'Fin Statment SA'!25:25) -> 0 | U20: =SUMIF('Fin Statment SA'!$6:$6,'Annual Financial Statement'!U$2,'Fin Statment SA'!25:25) -> 0 | V20: =SUMIF('Fin Statment SA'!$6:$6,'Annual Financial Statement'!V$2,'Fin Statment SA'!25:25) -> 0 | W20: =SUMIF('Fin Statment SA'!$6:$6,'Annual Financial Statement'!W$2,'Fin Statment SA'!25:25) -> 0 | X20: =SUMIF('Fin Statment SA'!$6:$6,'Annual Financial Statement'!X$2,'Fin Statment SA'!25:25) -> 0 | Y20: =SUMIF('Fin Statment SA'!$6:$6,'Annual Financial Statement'!Y$2,'Fin Statment SA'!25:25) -> 0 | Z20: =SUMIF('Fin Statment SA'!$6:$6,'Annual Financial Statement'!Z$2,'Fin Statment SA'!25:25) -> 0 | AA20: =SUMIF('Fin Statment SA'!$6:$6,'Annual Financial Statement'!AA$2,'Fin Statment SA'!25:25) -> 240426.1805 | AB20: =SUMIF('Fin Statment SA'!$6:$6,'Annual Financial Statement'!AB$2,'Fin Statment SA'!25:25) -> 1494699.744 | AC20: =SUMIF('Fin Statment SA'!$6:$6,'Annual Financial Statement'!AC$2,'Fin Statment SA'!25:25) -> 1529755.447 | AD20: =SUMIF('Fin Statment SA'!$6:$6,'Annual Financial Statement'!AD$2,'Fin Statment SA'!25:25) -> 1565664.433 | AE20: =SUMIF('Fin Statment SA'!$6:$6,'Annual Financial Statement'!AE$2,'Fin Statment SA'!25:25) -> 1602305.919 | AF20: =SUMIF('Fin Statment SA'!$6:$6,'Annual Financial Statement'!AF$2,'Fin Statment SA'!25:25) -> 1639765.922 | AG20: =SUMIF('Fin Statment SA'!$6:$6,'Annual Financial Statement'!AG$2,'Fin Statment SA'!25:25) -> 1678062.399 | AH20: =SUMIF('Fin Statment SA'!$6:$6,'Annual Financial Statement'!AH$2,'Fin Statment SA'!25:25) -> 1717286.356 | AI20: =SUMIF('Fin Statment SA'!$6:$6,'Annual Financial Statement'!AI$2,'Fin Statment SA'!25:25) -> 1739586.378 | AJ20: =SUMIF('Fin Statment SA'!$6:$6,'Annual Financial Statement'!AJ$2,'Fin Statment SA'!25:25) -> 1757367.442 | AK20: =SUMIF('Fin Statment SA'!$6:$6,'Annual Financial Statement'!AK$2,'Fin Statment SA'!25:25) -> 1775322.638 | AL20: =SUMIF('Fin Statment SA'!$6:$6,'Annual Financial Statement'!AL$2,'Fin Statment SA'!25:25) -> 1793528.99 | AM20: =SUMIF('Fin Statment SA'!$6:$6,'Annual Financial Statement'!AM$2,'Fin Statment SA'!25:25) -> 1811838.208 | AN20: =SUMIF('Fin Statment SA'!$6:$6,'Annual Financial Statement'!AN$2,'Fin Statment SA'!25:25) -> 1830326.61 | AO20: =SUMIF('Fin Statment SA'!$6:$6,'Annual Financial Statement'!AO$2,'Fin Statment SA'!25:25) -> 1848995.907 | AP20: =SUMIF('Fin Statment SA'!$6:$6,'Annual Financial Statement'!AP$2,'Fin Statment SA'!25:25) -> 1867926.194 | AQ20: =SUMIF('Fin Statment SA'!$6:$6,'Annual Financial Statement'!AQ$2,'Fin Statment SA'!25:25) -> 1886963.249 | AR20: =SUMIF('Fin Statment SA'!$6:$6,'Annual Financial Statement'!AR$2,'Fin Statment SA'!25:25) -> 1072682.16 | AS20: =SUMIF('Fin Statment SA'!$6:$6,'Annual Financial Statement'!AS$2,'Fin Statment SA'!25:25) -> 0 | AT20: =SUMIF('Fin Statment SA'!$6:$6,'Annual Financial Statement'!AT$2,'Fin Statment SA'!25:25) -> 0 | AU20: =SUMIF('Fin Statment SA'!$6:$6,'Annual Financial Statement'!AU$2,'Fin Statment SA'!25:25) -> 0 | AV20: =SUMIF('Fin Statment SA'!$6:$6,'Annual Financial Statement'!AV$2,'Fin Statment SA'!25:25) -> 0
D21: Operating Cash Flow | I21: =SUMIF('Fin Statment SA'!$6:$6,'Annual Financial Statement'!I$2,'Fin Statment SA'!26:26) -> 2027268.164 | J21: =SUMIF('Fin Statment SA'!$6:$6,'Annual Financial Statement'!J$2,'Fin Statment SA'!26:26) -> 6724120.98 | K21: =SUMIF('Fin Statment SA'!$6:$6,'Annual Financial Statement'!K$2,'Fin Statment SA'!26:26) -> 6793683.362 | L21: =SUMIF('Fin Statment SA'!$6:$6,'Annual Financial Statement'!L$2,'Fin Statment SA'!26:26) -> 6863891.748 | M21: =SUMIF('Fin Statment SA'!$6:$6,'Annual Financial Statement'!M$2,'Fin Statment SA'!26:26) -> 6934790.669 | N21: =SUMIF('Fin Statment SA'!$6:$6,'Annual Financial Statement'!N$2,'Fin Statment SA'!26:26) -> 7006744.749 | O21: =SUMIF('Fin Statment SA'!$6:$6,'Annual Financial Statement'!O$2,'Fin Statment SA'!26:26) -> 7079292.361 | P21: =SUMIF('Fin Statment SA'!$6:$6,'Annual Financial Statement'!P$2,'Fin Statment SA'!26:26) -> 7152313.82 | Q21: =SUMIF('Fin Statment SA'!$6:$6,'Annual Financial Statement'!Q$2,'Fin Statment SA'!26:26) -> 7226053.138 | R21: =SUMIF('Fin Statment SA'!$6:$6,'Annual Financial Statement'!R$2,'Fin Statment SA'!26:26) -> 7300785.468 | S21: =SUMIF('Fin Statment SA'!$6:$6,'Annual Financial Statement'!S$2,'Fin Statment SA'!26:26) -> 7376025.443 | T21: =SUMIF('Fin Statment SA'!$6:$6,'Annual Financial Statement'!T$2,'Fin Statment SA'!26:26) -> 7451963.308 | U21: =SUMIF('Fin Statment SA'!$6:$6,'Annual Financial Statement'!U$2,'Fin Statment SA'!26:26) -> 7528647.203 | V21: =SUMIF('Fin Statment SA'!$6:$6,'Annual Financial Statement'!V$2,'Fin Statment SA'!26:26) -> 7606363.295 | W21: =SUMIF('Fin Statment SA'!$6:$6,'Annual Financial Statement'!W$2,'Fin Statment SA'!26:26) -> 7684606.732 | X21: =SUMIF('Fin Statment SA'!$6:$6,'Annual Financial Statement'!X$2,'Fin Statment SA'!26:26) -> 7763575.376 | Y21: =SUMIF('Fin Statment SA'!$6:$6,'Annual Financial Statement'!Y$2,'Fin Statment SA'!26:26) -> 7843319.274 | Z21: =SUMIF('Fin Statment SA'!$6:$6,'Annual Financial Statement'!Z$2,'Fin Statment SA'!26:26) -> 7924136.04 | AA21: =SUMIF('Fin Statment SA'!$6:$6,'Annual Financial Statement'!AA$2,'Fin Statment SA'!26:26) -> 7765074.384 | AB21: =SUMIF('Fin Statment SA'!$6:$6,'Annual Financial Statement'!AB$2,'Fin Statment SA'!26:26) -> 6592918.882 | AC21: =SUMIF('Fin Statment SA'!$6:$6,'Annual Financial Statement'!AC$2,'Fin Statment SA'!26:26) -> 6640786.804 | AD21: =SUMIF('Fin Statment SA'!$6:$6,'Annual Financial Statement'!AD$2,'Fin Statment SA'!26:26) -> 6688916.517 | AE21: =SUMIF('Fin Statment SA'!$6:$6,'Annual Financial Statement'!AE$2,'Fin Statment SA'!26:26) -> 6736882.636 | AF21: =SUMIF('Fin Statment SA'!$6:$6,'Annual Financial Statement'!AF$2,'Fin Statment SA'!26:26) -> 6784813.149 | AG21: =SUMIF('Fin Statment SA'!$6:$6,'Annual Financial Statement'!AG$2,'Fin Statment SA'!26:26) -> 6832744.181 | AH21: =SUMIF('Fin Statment SA'!$6:$6,'Annual Financial Statement'!AH$2,'Fin Statment SA'!26:26) -> 6880906.604 | AI21: =SUMIF('Fin Statment SA'!$6:$6,'Annual Financial Statement'!AI$2,'Fin Statment SA'!26:26) -> 6946583.764 | AJ21: =SUMIF('Fin Statment SA'!$6:$6,'Annual Financial Statement'!AJ$2,'Fin Statment SA'!26:26) -> 7017593.245 | AK21: =SUMIF('Fin Statment SA'!$6:$6,'Annual Financial Statement'!AK$2,'Fin Statment SA'!26:26) -> 7089298.171 | AL21: =SUMIF('Fin Statment SA'!$6:$6,'Annual Financial Statement'!AL$2,'Fin Statment SA'!26:26) -> 7161956.248 | AM21: =SUMIF('Fin Statment SA'!$6:$6,'Annual Financial Statement'!AM$2,'Fin Statment SA'!26:26) -> 7235124.931 | AN21: =SUMIF('Fin Statment SA'!$6:$6,'Annual Financial Statement'!AN$2,'Fin Statment SA'!26:26) -> 7308959.352 | AO21: =SUMIF('Fin Statment SA'!$6:$6,'Annual Financial Statement'!AO$2,'Fin Statment SA'!26:26) -> 7383516.229 | AP21: =SUMIF('Fin Statment SA'!$6:$6,'Annual Financial Statement'!AP$2,'Fin Statment SA'!26:26) -> 7459063.55 | AQ21: =SUMIF('Fin Statment SA'!$6:$6,'Annual Financial Statement'!AQ$2,'Fin Statment SA'!26:26) -> 7535141.039 | AR21: =SUMIF('Fin Statment SA'!$6:$6,'Annual Financial Statement'!AR$2,'Fin Statment SA'!26:26) -> 5542955.7 | AS21: =SUMIF('Fin Statment SA'!$6:$6,'Annual Financial Statement'!AS$2,'Fin Statment SA'!26:26) -> 0 | AT21: =SUMIF('Fin Statment SA'!$6:$6,'Annual Financial Statement'!AT$2,'Fin Statment SA'!26:26) -> 0 | AU21: =SUMIF('Fin Statment SA'!$6:$6,'Annual Financial Statement'!AU$2,'Fin Statment SA'!26:26) -> 0 | AV21: =SUMIF('Fin Statment SA'!$6:$6,'Annual Financial Statement'!AV$2,'Fin Statment SA'!26:26) -> 0
C22: Less: Capital Expenditures | I22: =SUMIF('Fin Statment SA'!$6:$6,'Annual Financial Statement'!I$2,'Fin Statment SA'!27:27) -> 105540000 | J22: =SUMIF('Fin Statment SA'!$6:$6,'Annual Financial Statement'!J$2,'Fin Statment SA'!27:27) -> 0 | K22: =SUMIF('Fin Statment SA'!$6:$6,'Annual Financial Statement'!K$2,'Fin Statment SA'!27:27) -> 0 | L22: =SUMIF('Fin Statment SA'!$6:$6,'Annual Financial Statement'!L$2,'Fin Statment SA'!27:27) -> 0 | M22: =SUMIF('Fin Statment SA'!$6:$6,'Annual Financial Statement'!M$2,'Fin Statment SA'!27:27) -> 0 | N22: =SUMIF('Fin Statment SA'!$6:$6,'Annual Financial Statement'!N$2,'Fin Statment SA'!27:27) -> 0 | O22: =SUMIF('Fin Statment SA'!$6:$6,'Annual Financial Statement'!O$2,'Fin Statment SA'!27:27) -> 0 | P22: =SUMIF('Fin Statment SA'!$6:$6,'Annual Financial Statement'!P$2,'Fin Statment SA'!27:27) -> 0 | Q22: =SUMIF('Fin Statment SA'!$6:$6,'Annual Financial Statement'!Q$2,'Fin Statment SA'!27:27) -> 0 | R22: =SUMIF('Fin Statment SA'!$6:$6,'Annual Financial Statement'!R$2,'Fin Statment SA'!27:27) -> 0 | S22: =SUMIF('Fin Statment SA'!$6:$6,'Annual Financial Statement'!S$2,'Fin Statment SA'!27:27) -> 0 | T22: =SUMIF('Fin Statment SA'!$6:$6,'Annual Financial Statement'!T$2,'Fin Statment SA'!27:27) -> 0 | U22: =SUMIF('Fin Statment SA'!$6:$6,'Annual Financial Statement'!U$2,'Fin Statment SA'!27:27) -> 0 | V22: =SUMIF('Fin Statment SA'!$6:$6,'Annual Financial Statement'!V$2,'Fin Statment SA'!27:27) -> 0 | W22: =SUMIF('Fin Statment SA'!$6:$6,'Annual Financial Statement'!W$2,'Fin Statment SA'!27:27) -> 0 | X22: =SUMIF('Fin Statment SA'!$6:$6,'Annual Financial Statement'!X$2,'Fin Statment SA'!27:27) -> 0 | Y22: =SUMIF('Fin Statment SA'!$6:$6,'Annual Financial Statement'!Y$2,'Fin Statment SA'!27:27) -> 0 | Z22: =SUMIF('Fin Statment SA'!$6:$6,'Annual Financial Statement'!Z$2,'Fin Statment SA'!27:27) -> 0 | AA22: =SUMIF('Fin Statment SA'!$6:$6,'Annual Financial Statement'!AA$2,'Fin Statment SA'!27:27) -> 0 | AB22: =SUMIF('Fin Statment SA'!$6:$6,'Annual Financial Statement'!AB$2,'Fin Statment SA'!27:27) -> 0 | AC22: =SUMIF('Fin Statment SA'!$6:$6,'Annual Financial Statement'!AC$2,'Fin Statment SA'!27:27) -> 0 | AD22: =SUMIF('Fin Statment SA'!$6:$6,'Annual Financial Statement'!AD$2,'Fin Statment SA'!27:27) -> 0 | AE22: =SUMIF('Fin Statment SA'!$6:$6,'Annual Financial Statement'!AE$2,'Fin Statment SA'!27:27) -> 0 | AF22: =SUMIF('Fin Statment SA'!$6:$6,'Annual Financial Statement'!AF$2,'Fin Statment SA'!27:27) -> 0 | AG22: =SUMIF('Fin Statment SA'!$6:$6,'Annual Financial Statement'!AG$2,'Fin Statment SA'!27:27) -> 0 | AH22: =SUMIF('Fin Statment SA'!$6:$6,'Annual Financial Statement'!AH$2,'Fin Statment SA'!27:27) -> 0 | AI22: =SUMIF('Fin Statment SA'!$6:$6,'Annual Financial Statement'!AI$2,'Fin Statment SA'!27:27) -> 0 | AJ22: =SUMIF('Fin Statment SA'!$6:$6,'Annual Financial Statement'!AJ$2,'Fin Statment SA'!27:27) -> 0 | AK22: =SUMIF('Fin Statment SA'!$6:$6,'Annual Financial Statement'!AK$2,'Fin Statment SA'!27:27) -> 0 | AL22: =SUMIF('Fin Statment SA'!$6:$6,'Annual Financial Statement'!AL$2,'Fin Statment SA'!27:27) -> 0 | AM22: =SUMIF('Fin Statment SA'!$6:$6,'Annual Financial Statement'!AM$2,'Fin Statment SA'!27:27) -> 0 | AN22: =SUMIF('Fin Statment SA'!$6:$6,'Annual Financial Statement'!AN$2,'Fin Statment SA'!27:27) -> 0 | AO22: =SUMIF('Fin Statment SA'!$6:$6,'Annual Financial Statement'!AO$2,'Fin Statment SA'!27:27) -> 0 | AP22: =SUMIF('Fin Statment SA'!$6:$6,'Annual Financial Statement'!AP$2,'Fin Statment SA'!27:27) -> 0 | AQ22: =SUMIF('Fin Statment SA'!$6:$6,'Annual Financial Statement'!AQ$2,'Fin Statment SA'!27:27) -> 0 | AR22: =SUMIF('Fin Statment SA'!$6:$6,'Annual Financial Statement'!AR$2,'Fin Statment SA'!27:27) -> 0 | AS22: =SUMIF('Fin Statment SA'!$6:$6,'Annual Financial Statement'!AS$2,'Fin Statment SA'!27:27) -> 0 | AT22: =SUMIF('Fin Statment SA'!$6:$6,'Annual Financial Statement'!AT$2,'Fin Statment SA'!27:27) -> 0 | AU22: =SUMIF('Fin Statment SA'!$6:$6,'Annual Financial Statement'!AU$2,'Fin Statment SA'!27:27) -> 0 | AV22: =SUMIF('Fin Statment SA'!$6:$6,'Annual Financial Statement'!AV$2,'Fin Statment SA'!27:27) -> 0
D23: Cash Flow Before financing | I23: =SUMIF('Fin Statment SA'!$6:$6,'Annual Financial Statement'!I$2,'Fin Statment SA'!28:28) -> -103512731.8 | J23: =SUMIF('Fin Statment SA'!$6:$6,'Annual Financial Statement'!J$2,'Fin Statment SA'!28:28) -> 6724120.98 | K23: =SUMIF('Fin Statment SA'!$6:$6,'Annual Financial Statement'!K$2,'Fin Statment SA'!28:28) -> 6793683.362 | L23: =SUMIF('Fin Statment SA'!$6:$6,'Annual Financial Statement'!L$2,'Fin Statment SA'!28:28) -> 6863891.748 | M23: =SUMIF('Fin Statment SA'!$6:$6,'Annual Financial Statement'!M$2,'Fin Statment SA'!28:28) -> 6934790.669 | N23: =SUMIF('Fin Statment SA'!$6:$6,'Annual Financial Statement'!N$2,'Fin Statment SA'!28:28) -> 7006744.749 | O23: =SUMIF('Fin Statment SA'!$6:$6,'Annual Financial Statement'!O$2,'Fin Statment SA'!28:28) -> 7079292.361 | P23: =SUMIF('Fin Statment SA'!$6:$6,'Annual Financial Statement'!P$2,'Fin Statment SA'!28:28) -> 7152313.82 | Q23: =SUMIF('Fin Statment SA'!$6:$6,'Annual Financial Statement'!Q$2,'Fin Statment SA'!28:28) -> 7226053.138 | R23: =SUMIF('Fin Statment SA'!$6:$6,'Annual Financial Statement'!R$2,'Fin Statment SA'!28:28) -> 7300785.468 | S23: =SUMIF('Fin Statment SA'!$6:$6,'Annual Financial Statement'!S$2,'Fin Statment SA'!28:28) -> 7376025.443 | T23: =SUMIF('Fin Statment SA'!$6:$6,'Annual Financial Statement'!T$2,'Fin Statment SA'!28:28) -> 7451963.308 | U23: =SUMIF('Fin Statment SA'!$6:$6,'Annual Financial Statement'!U$2,'Fin Statment SA'!28:28) -> 7528647.203 | V23: =SUMIF('Fin Statment SA'!$6:$6,'Annual Financial Statement'!V$2,'Fin Statment SA'!28:28) -> 7606363.295 | W23: =SUMIF('Fin Statment SA'!$6:$6,'Annual Financial Statement'!W$2,'Fin Statment SA'!28:28) -> 7684606.732 | X23: =SUMIF('Fin Statment SA'!$6:$6,'Annual Financial Statement'!X$2,'Fin Statment SA'!28:28) -> 7763575.376 | Y23: =SUMIF('Fin Statment SA'!$6:$6,'Annual Financial Statement'!Y$2,'Fin Statment SA'!28:28) -> 7843319.274 | Z23: =SUMIF('Fin Statment SA'!$6:$6,'Annual Financial Statement'!Z$2,'Fin Statment SA'!28:28) -> 7924136.04 | AA23: =SUMIF('Fin Statment SA'!$6:$6,'Annual Financial Statement'!AA$2,'Fin Statment SA'!28:28) -> 7765074.384 | AB23: =SUMIF('Fin Statment SA'!$6:$6,'Annual Financial Statement'!AB$2,'Fin Statment SA'!28:28) -> 6592918.882 | AC23: =SUMIF('Fin Statment SA'!$6:$6,'Annual Financial Statement'!AC$2,'Fin Statment SA'!28:28) -> 6640786.804 | AD23: =SUMIF('Fin Statment SA'!$6:$6,'Annual Financial Statement'!AD$2,'Fin Statment SA'!28:28) -> 6688916.517 | AE23: =SUMIF('Fin Statment SA'!$6:$6,'Annual Financial Statement'!AE$2,'Fin Statment SA'!28:28) -> 6736882.636 | AF23: =SUMIF('Fin Statment SA'!$6:$6,'Annual Financial Statement'!AF$2,'Fin Statment SA'!28:28) -> 6784813.149 | AG23: =SUMIF('Fin Statment SA'!$6:$6,'Annual Financial Statement'!AG$2,'Fin Statment SA'!28:28) -> 6832744.181 | AH23: =SUMIF('Fin Statment SA'!$6:$6,'Annual Financial Statement'!AH$2,'Fin Statment SA'!28:28) -> 6880906.604 | AI23: =SUMIF('Fin Statment SA'!$6:$6,'Annual Financial Statement'!AI$2,'Fin Statment SA'!28:28) -> 6946583.764 | AJ23: =SUMIF('Fin Statment SA'!$6:$6,'Annual Financial Statement'!AJ$2,'Fin Statment SA'!28:28) -> 7017593.245 | AK23: =SUMIF('Fin Statment SA'!$6:$6,'Annual Financial Statement'!AK$2,'Fin Statment SA'!28:28) -> 7089298.171 | AL23: =SUMIF('Fin Statment SA'!$6:$6,'Annual Financial Statement'!AL$2,'Fin Statment SA'!28:28) -> 7161956.248 | AM23: =SUMIF('Fin Statment SA'!$6:$6,'Annual Financial Statement'!AM$2,'Fin Statment SA'!28:28) -> 7235124.931 | AN23: =SUMIF('Fin Statment SA'!$6:$6,'Annual Financial Statement'!AN$2,'Fin Statment SA'!28:28) -> 7308959.352 | AO23: =SUMIF('Fin Statment SA'!$6:$6,'Annual Financial Statement'!AO$2,'Fin Statment SA'!28:28) -> 7383516.229 | AP23: =SUMIF('Fin Statment SA'!$6:$6,'Annual Financial Statement'!AP$2,'Fin Statment SA'!28:28) -> 7459063.55 | AQ23: =SUMIF('Fin Statment SA'!$6:$6,'Annual Financial Statement'!AQ$2,'Fin Statment SA'!28:28) -> 7535141.039 | AR23: =SUMIF('Fin Statment SA'!$6:$6,'Annual Financial Statement'!AR$2,'Fin Statment SA'!28:28) -> 5542955.7 | AS23: =SUMIF('Fin Statment SA'!$6:$6,'Annual Financial Statement'!AS$2,'Fin Statment SA'!28:28) -> 0 | AT23: =SUMIF('Fin Statment SA'!$6:$6,'Annual Financial Statement'!AT$2,'Fin Statment SA'!28:28) -> 0 | AU23: =SUMIF('Fin Statment SA'!$6:$6,'Annual Financial Statement'!AU$2,'Fin Statment SA'!28:28) -> 0 | AV23: =SUMIF('Fin Statment SA'!$6:$6,'Annual Financial Statement'!AV$2,'Fin Statment SA'!28:28) -> 0
C24: Less: Interest Paid During Construction - Senior | I24: =SUMIF('Fin Statment SA'!$6:$6,'Annual Financial Statement'!I$2,'Fin Statment SA'!29:29) -> 725060.4148 | J24: =SUMIF('Fin Statment SA'!$6:$6,'Annual Financial Statement'!J$2,'Fin Statment SA'!29:29) -> 0 | K24: =SUMIF('Fin Statment SA'!$6:$6,'Annual Financial Statement'!K$2,'Fin Statment SA'!29:29) -> 0 | L24: =SUMIF('Fin Statment SA'!$6:$6,'Annual Financial Statement'!L$2,'Fin Statment SA'!29:29) -> 0 | M24: =SUMIF('Fin Statment SA'!$6:$6,'Annual Financial Statement'!M$2,'Fin Statment SA'!29:29) -> 0 | N24: =SUMIF('Fin Statment SA'!$6:$6,'Annual Financial Statement'!N$2,'Fin Statment SA'!29:29) -> 0 | O24: =SUMIF('Fin Statment SA'!$6:$6,'Annual Financial Statement'!O$2,'Fin Statment SA'!29:29) -> 0 | P24: =SUMIF('Fin Statment SA'!$6:$6,'Annual Financial Statement'!P$2,'Fin Statment SA'!29:29) -> 0 | Q24: =SUMIF('Fin Statment SA'!$6:$6,'Annual Financial Statement'!Q$2,'Fin Statment SA'!29:29) -> 0 | R24: =SUMIF('Fin Statment SA'!$6:$6,'Annual Financial Statement'!R$2,'Fin Statment SA'!29:29) -> 0 | S24: =SUMIF('Fin Statment SA'!$6:$6,'Annual Financial Statement'!S$2,'Fin Statment SA'!29:29) -> 0 | T24: =SUMIF('Fin Statment SA'!$6:$6,'Annual Financial Statement'!T$2,'Fin Statment SA'!29:29) -> 0 | U24: =SUMIF('Fin Statment SA'!$6:$6,'Annual Financial Statement'!U$2,'Fin Statment SA'!29:29) -> 0 | V24: =SUMIF('Fin Statment SA'!$6:$6,'Annual Financial Statement'!V$2,'Fin Statment SA'!29:29) -> 0 | W24: =SUMIF('Fin Statment SA'!$6:$6,'Annual Financial Statement'!W$2,'Fin Statment SA'!29:29) -> 0 | X24: =SUMIF('Fin Statment SA'!$6:$6,'Annual Financial Statement'!X$2,'Fin Statment SA'!29:29) -> 0 | Y24: =SUMIF('Fin Statment SA'!$6:$6,'Annual Financial Statement'!Y$2,'Fin Statment SA'!29:29) -> 0 | Z24: =SUMIF('Fin Statment SA'!$6:$6,'Annual Financial Statement'!Z$2,'Fin Statment SA'!29:29) -> 0 | AA24: =SUMIF('Fin Statment SA'!$6:$6,'Annual Financial Statement'!AA$2,'Fin Statment SA'!29:29) -> 0 | AB24: =SUMIF('Fin Statment SA'!$6:$6,'Annual Financial Statement'!AB$2,'Fin Statment SA'!29:29) -> 0 | AC24: =SUMIF('Fin Statment SA'!$6:$6,'Annual Financial Statement'!AC$2,'Fin Statment SA'!29:29) -> 0 | AD24: =SUMIF('Fin Statment SA'!$6:$6,'Annual Financial Statement'!AD$2,'Fin Statment SA'!29:29) -> 0 | AE24: =SUMIF('Fin Statment SA'!$6:$6,'Annual Financial Statement'!AE$2,'Fin Statment SA'!29:29) -> 0 | AF24: =SUMIF('Fin Statment SA'!$6:$6,'Annual Financial Statement'!AF$2,'Fin Statment SA'!29:29) -> 0 | AG24: =SUMIF('Fin Statment SA'!$6:$6,'Annual Financial Statement'!AG$2,'Fin Statment SA'!29:29) -> 0 | AH24: =SUMIF('Fin Statment SA'!$6:$6,'Annual Financial Statement'!AH$2,'Fin Statment SA'!29:29) -> 0 | AI24: =SUMIF('Fin Statment SA'!$6:$6,'Annual Financial Statement'!AI$2,'Fin Statment SA'!29:29) -> 0 | AJ24: =SUMIF('Fin Statment SA'!$6:$6,'Annual Financial Statement'!AJ$2,'Fin Statment SA'!29:29) -> 0 | AK24: =SUMIF('Fin Statment SA'!$6:$6,'Annual Financial Statement'!AK$2,'Fin Statment SA'!29:29) -> 0 | AL24: =SUMIF('Fin Statment SA'!$6:$6,'Annual Financial Statement'!AL$2,'Fin Statment SA'!29:29) -> 0 | AM24: =SUMIF('Fin Statment SA'!$6:$6,'Annual Financial Statement'!AM$2,'Fin Statment SA'!29:29) -> 0 | AN24: =SUMIF('Fin Statment SA'!$6:$6,'Annual Financial Statement'!AN$2,'Fin Statment SA'!29:29) -> 0 | AO24: =SUMIF('Fin Statment SA'!$6:$6,'Annual Financial Statement'!AO$2,'Fin Statment SA'!29:29) -> 0 | AP24: =SUMIF('Fin Statment SA'!$6:$6,'Annual Financial Statement'!AP$2,'Fin Statment SA'!29:29) -> 0 | AQ24: =SUMIF('Fin Statment SA'!$6:$6,'Annual Financial Statement'!AQ$2,'Fin Statment SA'!29:29) -> 0 | AR24: =SUMIF('Fin Statment SA'!$6:$6,'Annual Financial Statement'!AR$2,'Fin Statment SA'!29:29) -> 0 | AS24: =SUMIF('Fin Statment SA'!$6:$6,'Annual Financial Statement'!AS$2,'Fin Statment SA'!29:29) -> 0 | AT24: =SUMIF('Fin Statment SA'!$6:$6,'Annual Financial Statement'!AT$2,'Fin Statment SA'!29:29) -> 0 | AU24: =SUMIF('Fin Statment SA'!$6:$6,'Annual Financial Statement'!AU$2,'Fin Statment SA'!29:29) -> 0 | AV24: =SUMIF('Fin Statment SA'!$6:$6,'Annual Financial Statement'!AV$2,'Fin Statment SA'!29:29) -> 0
C25: Less: Interest Paid During Operation - Senior | I25: =SUMIF('Fin Statment SA'!$6:$6,'Annual Financial Statement'!I$2,'Fin Statment SA'!30:30) -> 1062650.604 | J25: =SUMIF('Fin Statment SA'!$6:$6,'Annual Financial Statement'!J$2,'Fin Statment SA'!30:30) -> 2107481.943 | K25: =SUMIF('Fin Statment SA'!$6:$6,'Annual Financial Statement'!K$2,'Fin Statment SA'!30:30) -> 2050278.788 | L25: =SUMIF('Fin Statment SA'!$6:$6,'Annual Financial Statement'!L$2,'Fin Statment SA'!30:30) -> 1990496.816 | M25: =SUMIF('Fin Statment SA'!$6:$6,'Annual Financial Statement'!M$2,'Fin Statment SA'!30:30) -> 1928060.258 | N25: =SUMIF('Fin Statment SA'!$6:$6,'Annual Financial Statement'!N$2,'Fin Statment SA'!30:30) -> 1862890.243 | O25: =SUMIF('Fin Statment SA'!$6:$6,'Annual Financial Statement'!O$2,'Fin Statment SA'!30:30) -> 1794900.712 | P25: =SUMIF('Fin Statment SA'!$6:$6,'Annual Financial Statement'!P$2,'Fin Statment SA'!30:30) -> 1724013.318 | Q25: =SUMIF('Fin Statment SA'!$6:$6,'Annual Financial Statement'!Q$2,'Fin Statment SA'!30:30) -> 1650145.863 | R25: =SUMIF('Fin Statment SA'!$6:$6,'Annual Financial Statement'!R$2,'Fin Statment SA'!30:30) -> 1573210.808 | S25: =SUMIF('Fin Statment SA'!$6:$6,'Annual Financial Statement'!S$2,'Fin Statment SA'!30:30) -> 1493115.988 | T25: =SUMIF('Fin Statment SA'!$6:$6,'Annual Financial Statement'!T$2,'Fin Statment SA'!30:30) -> 1409773.459 | U25: =SUMIF('Fin Statment SA'!$6:$6,'Annual Financial Statement'!U$2,'Fin Statment SA'!30:30) -> 1323089.748 | V25: =SUMIF('Fin Statment SA'!$6:$6,'Annual Financial Statement'!V$2,'Fin Statment SA'!30:30) -> 1232967.737 | W25: =SUMIF('Fin Statment SA'!$6:$6,'Annual Financial Statement'!W$2,'Fin Statment SA'!30:30) -> 1139305.345 | X25: =SUMIF('Fin Statment SA'!$6:$6,'Annual Financial Statement'!X$2,'Fin Statment SA'!30:30) -> 1042004.725 | Y25: =SUMIF('Fin Statment SA'!$6:$6,'Annual Financial Statement'!Y$2,'Fin Statment SA'!30:30) -> 940962.1177 | Z25: =SUMIF('Fin Statment SA'!$6:$6,'Annual Financial Statement'!Z$2,'Fin Statment SA'!30:30) -> 836069.8117 | AA25: =SUMIF('Fin Statment SA'!$6:$6,'Annual Financial Statement'!AA$2,'Fin Statment SA'!30:30) -> 727214.7627 | AB25: =SUMIF('Fin Statment SA'!$6:$6,'Annual Financial Statement'!AB$2,'Fin Statment SA'!30:30) -> 625107.0245 | AC25: =SUMIF('Fin Statment SA'!$6:$6,'Annual Financial Statement'!AC$2,'Fin Statment SA'!30:30) -> 532859.5473 | AD25: =SUMIF('Fin Statment SA'!$6:$6,'Annual Financial Statement'!AD$2,'Fin Statment SA'!30:30) -> 437508.3277 | AE25: =SUMIF('Fin Statment SA'!$6:$6,'Annual Financial Statement'!AE$2,'Fin Statment SA'!30:30) -> 338971.8468 | AF25: =SUMIF('Fin Statment SA'!$6:$6,'Annual Financial Statement'!AF$2,'Fin Statment SA'!30:30) -> 237172.8605 | AG25: =SUMIF('Fin Statment SA'!$6:$6,'Annual Financial Statement'!AG$2,'Fin Statment SA'!30:30) -> 132029.5478 | AH25: =SUMIF('Fin Statment SA'!$6:$6,'Annual Financial Statement'!AH$2,'Fin Statment SA'!30:30) -> 23457.20178 | AI25: =SUMIF('Fin Statment SA'!$6:$6,'Annual Financial Statement'!AI$2,'Fin Statment SA'!30:30) -> 2.953319381e-09 | AJ25: =SUMIF('Fin Statment SA'!$6:$6,'Annual Financial Statement'!AJ$2,'Fin Statment SA'!30:30) -> 3.027613822e-09 | AK25: =SUMIF('Fin Statment SA'!$6:$6,'Annual Financial Statement'!AK$2,'Fin Statment SA'!30:30) -> 3.103777232e-09 | AL25: =SUMIF('Fin Statment SA'!$6:$6,'Annual Financial Statement'!AL$2,'Fin Statment SA'!30:30) -> 3.181856628e-09 | AM25: =SUMIF('Fin Statment SA'!$6:$6,'Annual Financial Statement'!AM$2,'Fin Statment SA'!30:30) -> 3.261900209e-09 | AN25: =SUMIF('Fin Statment SA'!$6:$6,'Annual Financial Statement'!AN$2,'Fin Statment SA'!30:30) -> 3.343957386e-09 | AO25: =SUMIF('Fin Statment SA'!$6:$6,'Annual Financial Statement'!AO$2,'Fin Statment SA'!30:30) -> 3.428078814e-09 | AP25: =SUMIF('Fin Statment SA'!$6:$6,'Annual Financial Statement'!AP$2,'Fin Statment SA'!30:30) -> 3.514316421e-09 | AQ25: =SUMIF('Fin Statment SA'!$6:$6,'Annual Financial Statement'!AQ$2,'Fin Statment SA'!30:30) -> 3.602723444e-09 | AR25: =SUMIF('Fin Statment SA'!$6:$6,'Annual Financial Statement'!AR$2,'Fin Statment SA'!30:30) -> 3.693354456e-09 | AS25: =SUMIF('Fin Statment SA'!$6:$6,'Annual Financial Statement'!AS$2,'Fin Statment SA'!30:30) -> 3.786265404e-09 | AT25: =SUMIF('Fin Statment SA'!$6:$6,'Annual Financial Statement'!AT$2,'Fin Statment SA'!30:30) -> 3.881513643e-09 | AU25: =SUMIF('Fin Statment SA'!$6:$6,'Annual Financial Statement'!AU$2,'Fin Statment SA'!30:30) -> 3.97915797e-09 | AV25: =SUMIF('Fin Statment SA'!$6:$6,'Annual Financial Statement'!AV$2,'Fin Statment SA'!30:30) -> 4.079258663e-09
C26: Less: Repayment of Senior Debt | I26: =SUMIF('Fin Statment SA'!$6:$6,'Annual Financial Statement'!I$2,'Fin Statment SA'!31:31) -> 255229.9706 | J26: =SUMIF('Fin Statment SA'!$6:$6,'Annual Financial Statement'!J$2,'Fin Statment SA'!31:31) -> 2263715.01 | K26: =SUMIF('Fin Statment SA'!$6:$6,'Annual Financial Statement'!K$2,'Fin Statment SA'!31:31) -> 2366139.077 | L26: =SUMIF('Fin Statment SA'!$6:$6,'Annual Financial Statement'!L$2,'Fin Statment SA'!31:31) -> 2471561.911 | M26: =SUMIF('Fin Statment SA'!$6:$6,'Annual Financial Statement'!M$2,'Fin Statment SA'!31:31) -> 2580088.233 | N26: =SUMIF('Fin Statment SA'!$6:$6,'Annual Financial Statement'!N$2,'Fin Statment SA'!31:31) -> 2692033.946 | O26: =SUMIF('Fin Statment SA'!$6:$6,'Annual Financial Statement'!O$2,'Fin Statment SA'!31:31) -> 2807185.017 | P26: =SUMIF('Fin Statment SA'!$6:$6,'Annual Financial Statement'!P$2,'Fin Statment SA'!31:31) -> 2925541.988 | Q26: =SUMIF('Fin Statment SA'!$6:$6,'Annual Financial Statement'!Q$2,'Fin Statment SA'!31:31) -> 3047345.684 | R26: =SUMIF('Fin Statment SA'!$6:$6,'Annual Financial Statement'!R$2,'Fin Statment SA'!31:31) -> 3172862.515 | S26: =SUMIF('Fin Statment SA'!$6:$6,'Annual Financial Statement'!S$2,'Fin Statment SA'!31:31) -> 3301869.118 | T26: =SUMIF('Fin Statment SA'!$6:$6,'Annual Financial Statement'!T$2,'Fin Statment SA'!31:31) -> 3434577.112 | U26: =SUMIF('Fin Statment SA'!$6:$6,'Annual Financial Statement'!U$2,'Fin Statment SA'!31:31) -> 3571111.267 | V26: =SUMIF('Fin Statment SA'!$6:$6,'Annual Financial Statement'!V$2,'Fin Statment SA'!31:31) -> 3711754.728 | W26: =SUMIF('Fin Statment SA'!$6:$6,'Annual Financial Statement'!W$2,'Fin Statment SA'!31:31) -> 3856281.385 | X26: =SUMIF('Fin Statment SA'!$6:$6,'Annual Financial Statement'!X$2,'Fin Statment SA'!31:31) -> 4004917.711 | Y26: =SUMIF('Fin Statment SA'!$6:$6,'Annual Financial Statement'!Y$2,'Fin Statment SA'!31:31) -> 4157799.999 | Z26: =SUMIF('Fin Statment SA'!$6:$6,'Annual Financial Statement'!Z$2,'Fin Statment SA'!31:31) -> 4315229.432 | AA26: =SUMIF('Fin Statment SA'!$6:$6,'Annual Financial Statement'!AA$2,'Fin Statment SA'!31:31) -> 4320682.144 | AB26: =SUMIF('Fin Statment SA'!$6:$6,'Annual Financial Statement'!AB$2,'Fin Statment SA'!31:31) -> 3660798.452 | AC26: =SUMIF('Fin Statment SA'!$6:$6,'Annual Financial Statement'!AC$2,'Fin Statment SA'!31:31) -> 3784163.768 | AD26: =SUMIF('Fin Statment SA'!$6:$6,'Annual Financial Statement'!AD$2,'Fin Statment SA'!31:31) -> 3910803.012 | AE26: =SUMIF('Fin Statment SA'!$6:$6,'Annual Financial Statement'!AE$2,'Fin Statment SA'!31:31) -> 4040521.167 | AF26: =SUMIF('Fin Statment SA'!$6:$6,'Annual Financial Statement'!AF$2,'Fin Statment SA'!31:31) -> 4173478.682 | AG26: =SUMIF('Fin Statment SA'!$6:$6,'Annual Financial Statement'!AG$2,'Fin Statment SA'!31:31) -> 4309780.86 | AH26: =SUMIF('Fin Statment SA'!$6:$6,'Annual Financial Statement'!AH$2,'Fin Statment SA'!31:31) -> 1876576.143 | AI26: =SUMIF('Fin Statment SA'!$6:$6,'Annual Financial Statement'!AI$2,'Fin Statment SA'!31:31) -> -2.953319381e-09 | AJ26: =SUMIF('Fin Statment SA'!$6:$6,'Annual Financial Statement'!AJ$2,'Fin Statment SA'!31:31) -> -3.027613822e-09 | AK26: =SUMIF('Fin Statment SA'!$6:$6,'Annual Financial Statement'!AK$2,'Fin Statment SA'!31:31) -> -3.103777232e-09 | AL26: =SUMIF('Fin Statment SA'!$6:$6,'Annual Financial Statement'!AL$2,'Fin Statment SA'!31:31) -> -3.181856628e-09 | AM26: =SUMIF('Fin Statment SA'!$6:$6,'Annual Financial Statement'!AM$2,'Fin Statment SA'!31:31) -> -3.261900209e-09 | AN26: =SUMIF('Fin Statment SA'!$6:$6,'Annual Financial Statement'!AN$2,'Fin Statment SA'!31:31) -> -3.343957386e-09 | AO26: =SUMIF('Fin Statment SA'!$6:$6,'Annual Financial Statement'!AO$2,'Fin Statment SA'!31:31) -> -3.428078814e-09 | AP26: =SUMIF('Fin Statment SA'!$6:$6,'Annual Financial Statement'!AP$2,'Fin Statment SA'!31:31) -> -3.514316421e-09 | AQ26: =SUMIF('Fin Statment SA'!$6:$6,'Annual Financial Statement'!AQ$2,'Fin Statment SA'!31:31) -> -3.602723444e-09 | AR26: =SUMIF('Fin Statment SA'!$6:$6,'Annual Financial Statement'!AR$2,'Fin Statment SA'!31:31) -> -3.693354456e-09 | AS26: =SUMIF('Fin Statment SA'!$6:$6,'Annual Financial Statement'!AS$2,'Fin Statment SA'!31:31) -> -3.786265404e-09 | AT26: =SUMIF('Fin Statment SA'!$6:$6,'Annual Financial Statement'!AT$2,'Fin Statment SA'!31:31) -> -3.881513643e-09 | AU26: =SUMIF('Fin Statment SA'!$6:$6,'Annual Financial Statement'!AU$2,'Fin Statment SA'!31:31) -> -3.97915797e-09 | AV26: =SUMIF('Fin Statment SA'!$6:$6,'Annual Financial Statement'!AV$2,'Fin Statment SA'!31:31) -> -4.079258663e-09
C27: Add: Issuance of Debt | I27: =SUMIF('Fin Statment SA'!$6:$6,'Annual Financial Statement'!I$2,'Fin Statment SA'!32:32) -> 85012048.33 | J27: =SUMIF('Fin Statment SA'!$6:$6,'Annual Financial Statement'!J$2,'Fin Statment SA'!32:32) -> 0 | K27: =SUMIF('Fin Statment SA'!$6:$6,'Annual Financial Statement'!K$2,'Fin Statment SA'!32:32) -> 0 | L27: =SUMIF('Fin Statment SA'!$6:$6,'Annual Financial Statement'!L$2,'Fin Statment SA'!32:32) -> 0 | M27: =SUMIF('Fin Statment SA'!$6:$6,'Annual Financial Statement'!M$2,'Fin Statment SA'!32:32) -> 0 | N27: =SUMIF('Fin Statment SA'!$6:$6,'Annual Financial Statement'!N$2,'Fin Statment SA'!32:32) -> 0 | O27: =SUMIF('Fin Statment SA'!$6:$6,'Annual Financial Statement'!O$2,'Fin Statment SA'!32:32) -> 0 | P27: =SUMIF('Fin Statment SA'!$6:$6,'Annual Financial Statement'!P$2,'Fin Statment SA'!32:32) -> 0 | Q27: =SUMIF('Fin Statment SA'!$6:$6,'Annual Financial Statement'!Q$2,'Fin Statment SA'!32:32) -> 0 | R27: =SUMIF('Fin Statment SA'!$6:$6,'Annual Financial Statement'!R$2,'Fin Statment SA'!32:32) -> 0 | S27: =SUMIF('Fin Statment SA'!$6:$6,'Annual Financial Statement'!S$2,'Fin Statment SA'!32:32) -> 0 | T27: =SUMIF('Fin Statment SA'!$6:$6,'Annual Financial Statement'!T$2,'Fin Statment SA'!32:32) -> 0 | U27: =SUMIF('Fin Statment SA'!$6:$6,'Annual Financial Statement'!U$2,'Fin Statment SA'!32:32) -> 0 | V27: =SUMIF('Fin Statment SA'!$6:$6,'Annual Financial Statement'!V$2,'Fin Statment SA'!32:32) -> 0 | W27: =SUMIF('Fin Statment SA'!$6:$6,'Annual Financial Statement'!W$2,'Fin Statment SA'!32:32) -> 0 | X27: =SUMIF('Fin Statment SA'!$6:$6,'Annual Financial Statement'!X$2,'Fin Statment SA'!32:32) -> 0 | Y27: =SUMIF('Fin Statment SA'!$6:$6,'Annual Financial Statement'!Y$2,'Fin Statment SA'!32:32) -> 0 | Z27: =SUMIF('Fin Statment SA'!$6:$6,'Annual Financial Statement'!Z$2,'Fin Statment SA'!32:32) -> 0 | AA27: =SUMIF('Fin Statment SA'!$6:$6,'Annual Financial Statement'!AA$2,'Fin Statment SA'!32:32) -> 0 | AB27: =SUMIF('Fin Statment SA'!$6:$6,'Annual Financial Statement'!AB$2,'Fin Statment SA'!32:32) -> 0 | AC27: =SUMIF('Fin Statment SA'!$6:$6,'Annual Financial Statement'!AC$2,'Fin Statment SA'!32:32) -> 0 | AD27: =SUMIF('Fin Statment SA'!$6:$6,'Annual Financial Statement'!AD$2,'Fin Statment SA'!32:32) -> 0 | AE27: =SUMIF('Fin Statment SA'!$6:$6,'Annual Financial Statement'!AE$2,'Fin Statment SA'!32:32) -> 0 | AF27: =SUMIF('Fin Statment SA'!$6:$6,'Annual Financial Statement'!AF$2,'Fin Statment SA'!32:32) -> 0 | AG27: =SUMIF('Fin Statment SA'!$6:$6,'Annual Financial Statement'!AG$2,'Fin Statment SA'!32:32) -> 0 | AH27: =SUMIF('Fin Statment SA'!$6:$6,'Annual Financial Statement'!AH$2,'Fin Statment SA'!32:32) -> 0 | AI27: =SUMIF('Fin Statment SA'!$6:$6,'Annual Financial Statement'!AI$2,'Fin Statment SA'!32:32) -> 0 | AJ27: =SUMIF('Fin Statment SA'!$6:$6,'Annual Financial Statement'!AJ$2,'Fin Statment SA'!32:32) -> 0 | AK27: =SUMIF('Fin Statment SA'!$6:$6,'Annual Financial Statement'!AK$2,'Fin Statment SA'!32:32) -> 0 | AL27: =SUMIF('Fin Statment SA'!$6:$6,'Annual Financial Statement'!AL$2,'Fin Statment SA'!32:32) -> 0 | AM27: =SUMIF('Fin Statment SA'!$6:$6,'Annual Financial Statement'!AM$2,'Fin Statment SA'!32:32) -> 0 | AN27: =SUMIF('Fin Statment SA'!$6:$6,'Annual Financial Statement'!AN$2,'Fin Statment SA'!32:32) -> 0 | AO27: =SUMIF('Fin Statment SA'!$6:$6,'Annual Financial Statement'!AO$2,'Fin Statment SA'!32:32) -> 0 | AP27: =SUMIF('Fin Statment SA'!$6:$6,'Annual Financial Statement'!AP$2,'Fin Statment SA'!32:32) -> 0 | AQ27: =SUMIF('Fin Statment SA'!$6:$6,'Annual Financial Statement'!AQ$2,'Fin Statment SA'!32:32) -> 0 | AR27: =SUMIF('Fin Statment SA'!$6:$6,'Annual Financial Statement'!AR$2,'Fin Statment SA'!32:32) -> 0 | AS27: =SUMIF('Fin Statment SA'!$6:$6,'Annual Financial Statement'!AS$2,'Fin Statment SA'!32:32) -> 0 | AT27: =SUMIF('Fin Statment SA'!$6:$6,'Annual Financial Statement'!AT$2,'Fin Statment SA'!32:32) -> 0 | AU27: =SUMIF('Fin Statment SA'!$6:$6,'Annual Financial Statement'!AU$2,'Fin Statment SA'!32:32) -> 0 | AV27: =SUMIF('Fin Statment SA'!$6:$6,'Annual Financial Statement'!AV$2,'Fin Statment SA'!32:32) -> 0
D28: Cash Flow to All Equity | I28: =SUMIF('Fin Statment SA'!$6:$6,'Annual Financial Statement'!I$2,'Fin Statment SA'!33:33) -> -20543624.49 | J28: =SUMIF('Fin Statment SA'!$6:$6,'Annual Financial Statement'!J$2,'Fin Statment SA'!33:33) -> 2352924.026 | K28: =SUMIF('Fin Statment SA'!$6:$6,'Annual Financial Statement'!K$2,'Fin Statment SA'!33:33) -> 2377265.498 | L28: =SUMIF('Fin Statment SA'!$6:$6,'Annual Financial Statement'!L$2,'Fin Statment SA'!33:33) -> 2401833.021 | M28: =SUMIF('Fin Statment SA'!$6:$6,'Annual Financial Statement'!M$2,'Fin Statment SA'!33:33) -> 2426642.178 | N28: =SUMIF('Fin Statment SA'!$6:$6,'Annual Financial Statement'!N$2,'Fin Statment SA'!33:33) -> 2451820.56 | O28: =SUMIF('Fin Statment SA'!$6:$6,'Annual Financial Statement'!O$2,'Fin Statment SA'!33:33) -> 2477206.632 | P28: =SUMIF('Fin Statment SA'!$6:$6,'Annual Financial Statement'!P$2,'Fin Statment SA'!33:33) -> 2502758.514 | Q28: =SUMIF('Fin Statment SA'!$6:$6,'Annual Financial Statement'!Q$2,'Fin Statment SA'!33:33) -> 2528561.591 | R28: =SUMIF('Fin Statment SA'!$6:$6,'Annual Financial Statement'!R$2,'Fin Statment SA'!33:33) -> 2554712.146 | S28: =SUMIF('Fin Statment SA'!$6:$6,'Annual Financial Statement'!S$2,'Fin Statment SA'!33:33) -> 2581040.337 | T28: =SUMIF('Fin Statment SA'!$6:$6,'Annual Financial Statement'!T$2,'Fin Statment SA'!33:33) -> 2607612.736 | U28: =SUMIF('Fin Statment SA'!$6:$6,'Annual Financial Statement'!U$2,'Fin Statment SA'!33:33) -> 2634446.189 | V28: =SUMIF('Fin Statment SA'!$6:$6,'Annual Financial Statement'!V$2,'Fin Statment SA'!33:33) -> 2661640.83 | W28: =SUMIF('Fin Statment SA'!$6:$6,'Annual Financial Statement'!W$2,'Fin Statment SA'!33:33) -> 2689020.002 | X28: =SUMIF('Fin Statment SA'!$6:$6,'Annual Financial Statement'!X$2,'Fin Statment SA'!33:33) -> 2716652.94 | Y28: =SUMIF('Fin Statment SA'!$6:$6,'Annual Financial Statement'!Y$2,'Fin Statment SA'!33:33) -> 2744557.158 | Z28: =SUMIF('Fin Statment SA'!$6:$6,'Annual Financial Statement'!Z$2,'Fin Statment SA'!33:33) -> 2772836.796 | AA28: =SUMIF('Fin Statment SA'!$6:$6,'Annual Financial Statement'!AA$2,'Fin Statment SA'!33:33) -> 2717177.478 | AB28: =SUMIF('Fin Statment SA'!$6:$6,'Annual Financial Statement'!AB$2,'Fin Statment SA'!33:33) -> 2307013.405 | AC28: =SUMIF('Fin Statment SA'!$6:$6,'Annual Financial Statement'!AC$2,'Fin Statment SA'!33:33) -> 2323763.488 | AD28: =SUMIF('Fin Statment SA'!$6:$6,'Annual Financial Statement'!AD$2,'Fin Statment SA'!33:33) -> 2340605.178 | AE28: =SUMIF('Fin Statment SA'!$6:$6,'Annual Financial Statement'!AE$2,'Fin Statment SA'!33:33) -> 2357389.622 | AF28: =SUMIF('Fin Statment SA'!$6:$6,'Annual Financial Statement'!AF$2,'Fin Statment SA'!33:33) -> 2374161.607 | AG28: =SUMIF('Fin Statment SA'!$6:$6,'Annual Financial Statement'!AG$2,'Fin Statment SA'!33:33) -> 2390933.774 | AH28: =SUMIF('Fin Statment SA'!$6:$6,'Annual Financial Statement'!AH$2,'Fin Statment SA'!33:33) -> 4980873.26 | AI28: =SUMIF('Fin Statment SA'!$6:$6,'Annual Financial Statement'!AI$2,'Fin Statment SA'!33:33) -> 6946583.764 | AJ28: =SUMIF('Fin Statment SA'!$6:$6,'Annual Financial Statement'!AJ$2,'Fin Statment SA'!33:33) -> 7017593.245 | AK28: =SUMIF('Fin Statment SA'!$6:$6,'Annual Financial Statement'!AK$2,'Fin Statment SA'!33:33) -> 7089298.171 | AL28: =SUMIF('Fin Statment SA'!$6:$6,'Annual Financial Statement'!AL$2,'Fin Statment SA'!33:33) -> 7161956.248 | AM28: =SUMIF('Fin Statment SA'!$6:$6,'Annual Financial Statement'!AM$2,'Fin Statment SA'!33:33) -> 7235124.931 | AN28: =SUMIF('Fin Statment SA'!$6:$6,'Annual Financial Statement'!AN$2,'Fin Statment SA'!33:33) -> 7308959.352 | AO28: =SUMIF('Fin Statment SA'!$6:$6,'Annual Financial Statement'!AO$2,'Fin Statment SA'!33:33) -> 7383516.229 | AP28: =SUMIF('Fin Statment SA'!$6:$6,'Annual Financial Statement'!AP$2,'Fin Statment SA'!33:33) -> 7459063.55 | AQ28: =SUMIF('Fin Statment SA'!$6:$6,'Annual Financial Statement'!AQ$2,'Fin Statment SA'!33:33) -> 7535141.039 | AR28: =SUMIF('Fin Statment SA'!$6:$6,'Annual Financial Statement'!AR$2,'Fin Statment SA'!33:33) -> 5542955.7 | AS28: =SUMIF('Fin Statment SA'!$6:$6,'Annual Financial Statement'!AS$2,'Fin Statment SA'!33:33) -> 0 | AT28: =SUMIF('Fin Statment SA'!$6:$6,'Annual Financial Statement'!AT$2,'Fin Statment SA'!33:33) -> 0 | AU28: =SUMIF('Fin Statment SA'!$6:$6,'Annual Financial Statement'!AU$2,'Fin Statment SA'!33:33) -> 0 | AV28: =SUMIF('Fin Statment SA'!$6:$6,'Annual Financial Statement'!AV$2,'Fin Statment SA'!33:33) -> 0
C29: Less: Repayment of Shareholder Debt | I29: =SUMIF('Fin Statment SA'!$6:$6,'Annual Financial Statement'!I$2,'Fin Statment SA'!34:34) -> 0 | J29: =SUMIF('Fin Statment SA'!$6:$6,'Annual Financial Statement'!J$2,'Fin Statment SA'!34:34) -> 0 | K29: =SUMIF('Fin Statment SA'!$6:$6,'Annual Financial Statement'!K$2,'Fin Statment SA'!34:34) -> 0 | L29: =SUMIF('Fin Statment SA'!$6:$6,'Annual Financial Statement'!L$2,'Fin Statment SA'!34:34) -> 0 | M29: =SUMIF('Fin Statment SA'!$6:$6,'Annual Financial Statement'!M$2,'Fin Statment SA'!34:34) -> 0 | N29: =SUMIF('Fin Statment SA'!$6:$6,'Annual Financial Statement'!N$2,'Fin Statment SA'!34:34) -> 0 | O29: =SUMIF('Fin Statment SA'!$6:$6,'Annual Financial Statement'!O$2,'Fin Statment SA'!34:34) -> 0 | P29: =SUMIF('Fin Statment SA'!$6:$6,'Annual Financial Statement'!P$2,'Fin Statment SA'!34:34) -> 0 | Q29: =SUMIF('Fin Statment SA'!$6:$6,'Annual Financial Statement'!Q$2,'Fin Statment SA'!34:34) -> 0 | R29: =SUMIF('Fin Statment SA'!$6:$6,'Annual Financial Statement'!R$2,'Fin Statment SA'!34:34) -> 0 | S29: =SUMIF('Fin Statment SA'!$6:$6,'Annual Financial Statement'!S$2,'Fin Statment SA'!34:34) -> 0 | T29: =SUMIF('Fin Statment SA'!$6:$6,'Annual Financial Statement'!T$2,'Fin Statment SA'!34:34) -> 0 | U29: =SUMIF('Fin Statment SA'!$6:$6,'Annual Financial Statement'!U$2,'Fin Statment SA'!34:34) -> 0 | V29: =SUMIF('Fin Statment SA'!$6:$6,'Annual Financial Statement'!V$2,'Fin Statment SA'!34:34) -> 0 | W29: =SUMIF('Fin Statment SA'!$6:$6,'Annual Financial Statement'!W$2,'Fin Statment SA'!34:34) -> 0 | X29: =SUMIF('Fin Statment SA'!$6:$6,'Annual Financial Statement'!X$2,'Fin Statment SA'!34:34) -> 0 | Y29: =SUMIF('Fin Statment SA'!$6:$6,'Annual Financial Statement'!Y$2,'Fin Statment SA'!34:34) -> 0 | Z29: =SUMIF('Fin Statment SA'!$6:$6,'Annual Financial Statement'!Z$2,'Fin Statment SA'!34:34) -> 0 | AA29: =SUMIF('Fin Statment SA'!$6:$6,'Annual Financial Statement'!AA$2,'Fin Statment SA'!34:34) -> 0 | AB29: =SUMIF('Fin Statment SA'!$6:$6,'Annual Financial Statement'!AB$2,'Fin Statment SA'!34:34) -> 0 | AC29: =SUMIF('Fin Statment SA'!$6:$6,'Annual Financial Statement'!AC$2,'Fin Statment SA'!34:34) -> 0 | AD29: =SUMIF('Fin Statment SA'!$6:$6,'Annual Financial Statement'!AD$2,'Fin Statment SA'!34:34) -> 0 | AE29: =SUMIF('Fin Statment SA'!$6:$6,'Annual Financial Statement'!AE$2,'Fin Statment SA'!34:34) -> 0 | AF29: =SUMIF('Fin Statment SA'!$6:$6,'Annual Financial Statement'!AF$2,'Fin Statment SA'!34:34) -> 0 | AG29: =SUMIF('Fin Statment SA'!$6:$6,'Annual Financial Statement'!AG$2,'Fin Statment SA'!34:34) -> 0 | AH29: =SUMIF('Fin Statment SA'!$6:$6,'Annual Financial Statement'!AH$2,'Fin Statment SA'!34:34) -> 0 | AI29: =SUMIF('Fin Statment SA'!$6:$6,'Annual Financial Statement'!AI$2,'Fin Statment SA'!34:34) -> 0 | AJ29: =SUMIF('Fin Statment SA'!$6:$6,'Annual Financial Statement'!AJ$2,'Fin Statment SA'!34:34) -> 0 | AK29: =SUMIF('Fin Statment SA'!$6:$6,'Annual Financial Statement'!AK$2,'Fin Statment SA'!34:34) -> 0 | AL29: =SUMIF('Fin Statment SA'!$6:$6,'Annual Financial Statement'!AL$2,'Fin Statment SA'!34:34) -> 0 | AM29: =SUMIF('Fin Statment SA'!$6:$6,'Annual Financial Statement'!AM$2,'Fin Statment SA'!34:34) -> 0 | AN29: =SUMIF('Fin Statment SA'!$6:$6,'Annual Financial Statement'!AN$2,'Fin Statment SA'!34:34) -> 0 | AO29: =SUMIF('Fin Statment SA'!$6:$6,'Annual Financial Statement'!AO$2,'Fin Statment SA'!34:34) -> 0 | AP29: =SUMIF('Fin Statment SA'!$6:$6,'Annual Financial Statement'!AP$2,'Fin Statment SA'!34:34) -> 0 | AQ29: =SUMIF('Fin Statment SA'!$6:$6,'Annual Financial Statement'!AQ$2,'Fin Statment SA'!34:34) -> 0 | AR29: =SUMIF('Fin Statment SA'!$6:$6,'Annual Financial Statement'!AR$2,'Fin Statment SA'!34:34) -> 0 | AS29: =SUMIF('Fin Statment SA'!$6:$6,'Annual Financial Statement'!AS$2,'Fin Statment SA'!34:34) -> 0 | AT29: =SUMIF('Fin Statment SA'!$6:$6,'Annual Financial Statement'!AT$2,'Fin Statment SA'!34:34) -> 0 | AU29: =SUMIF('Fin Statment SA'!$6:$6,'Annual Financial Statement'!AU$2,'Fin Statment SA'!34:34) -> 0 | AV29: =SUMIF('Fin Statment SA'!$6:$6,'Annual Financial Statement'!AV$2,'Fin Statment SA'!34:34) -> 0
C30: Less: Cash Interest on Shareholder Debt | I30: =SUMIF('Fin Statment SA'!$6:$6,'Annual Financial Statement'!I$2,'Fin Statment SA'!35:35) -> 0 | J30: =SUMIF('Fin Statment SA'!$6:$6,'Annual Financial Statement'!J$2,'Fin Statment SA'!35:35) -> 0 | K30: =SUMIF('Fin Statment SA'!$6:$6,'Annual Financial Statement'!K$2,'Fin Statment SA'!35:35) -> 0 | L30: =SUMIF('Fin Statment SA'!$6:$6,'Annual Financial Statement'!L$2,'Fin Statment SA'!35:35) -> 0 | M30: =SUMIF('Fin Statment SA'!$6:$6,'Annual Financial Statement'!M$2,'Fin Statment SA'!35:35) -> 0 | N30: =SUMIF('Fin Statment SA'!$6:$6,'Annual Financial Statement'!N$2,'Fin Statment SA'!35:35) -> 0 | O30: =SUMIF('Fin Statment SA'!$6:$6,'Annual Financial Statement'!O$2,'Fin Statment SA'!35:35) -> 0 | P30: =SUMIF('Fin Statment SA'!$6:$6,'Annual Financial Statement'!P$2,'Fin Statment SA'!35:35) -> 0 | Q30: =SUMIF('Fin Statment SA'!$6:$6,'Annual Financial Statement'!Q$2,'Fin Statment SA'!35:35) -> 0 | R30: =SUMIF('Fin Statment SA'!$6:$6,'Annual Financial Statement'!R$2,'Fin Statment SA'!35:35) -> 0 | S30: =SUMIF('Fin Statment SA'!$6:$6,'Annual Financial Statement'!S$2,'Fin Statment SA'!35:35) -> 0 | T30: =SUMIF('Fin Statment SA'!$6:$6,'Annual Financial Statement'!T$2,'Fin Statment SA'!35:35) -> 0 | U30: =SUMIF('Fin Statment SA'!$6:$6,'Annual Financial Statement'!U$2,'Fin Statment SA'!35:35) -> 0 | V30: =SUMIF('Fin Statment SA'!$6:$6,'Annual Financial Statement'!V$2,'Fin Statment SA'!35:35) -> 0 | W30: =SUMIF('Fin Statment SA'!$6:$6,'Annual Financial Statement'!W$2,'Fin Statment SA'!35:35) -> 0 | X30: =SUMIF('Fin Statment SA'!$6:$6,'Annual Financial Statement'!X$2,'Fin Statment SA'!35:35) -> 0 | Y30: =SUMIF('Fin Statment SA'!$6:$6,'Annual Financial Statement'!Y$2,'Fin Statment SA'!35:35) -> 0 | Z30: =SUMIF('Fin Statment SA'!$6:$6,'Annual Financial Statement'!Z$2,'Fin Statment SA'!35:35) -> 0 | AA30: =SUMIF('Fin Statment SA'!$6:$6,'Annual Financial Statement'!AA$2,'Fin Statment SA'!35:35) -> 0 | AB30: =SUMIF('Fin Statment SA'!$6:$6,'Annual Financial Statement'!AB$2,'Fin Statment SA'!35:35) -> 0 | AC30: =SUMIF('Fin Statment SA'!$6:$6,'Annual Financial Statement'!AC$2,'Fin Statment SA'!35:35) -> 0 | AD30: =SUMIF('Fin Statment SA'!$6:$6,'Annual Financial Statement'!AD$2,'Fin Statment SA'!35:35) -> 0 | AE30: =SUMIF('Fin Statment SA'!$6:$6,'Annual Financial Statement'!AE$2,'Fin Statment SA'!35:35) -> 0 | AF30: =SUMIF('Fin Statment SA'!$6:$6,'Annual Financial Statement'!AF$2,'Fin Statment SA'!35:35) -> 0 | AG30: =SUMIF('Fin Statment SA'!$6:$6,'Annual Financial Statement'!AG$2,'Fin Statment SA'!35:35) -> 0 | AH30: =SUMIF('Fin Statment SA'!$6:$6,'Annual Financial Statement'!AH$2,'Fin Statment SA'!35:35) -> 0 | AI30: =SUMIF('Fin Statment SA'!$6:$6,'Annual Financial Statement'!AI$2,'Fin Statment SA'!35:35) -> 0 | AJ30: =SUMIF('Fin Statment SA'!$6:$6,'Annual Financial Statement'!AJ$2,'Fin Statment SA'!35:35) -> 0 | AK30: =SUMIF('Fin Statment SA'!$6:$6,'Annual Financial Statement'!AK$2,'Fin Statment SA'!35:35) -> 0 | AL30: =SUMIF('Fin Statment SA'!$6:$6,'Annual Financial Statement'!AL$2,'Fin Statment SA'!35:35) -> 0 | AM30: =SUMIF('Fin Statment SA'!$6:$6,'Annual Financial Statement'!AM$2,'Fin Statment SA'!35:35) -> 0 | AN30: =SUMIF('Fin Statment SA'!$6:$6,'Annual Financial Statement'!AN$2,'Fin Statment SA'!35:35) -> 0 | AO30: =SUMIF('Fin Statment SA'!$6:$6,'Annual Financial Statement'!AO$2,'Fin Statment SA'!35:35) -> 0 | AP30: =SUMIF('Fin Statment SA'!$6:$6,'Annual Financial Statement'!AP$2,'Fin Statment SA'!35:35) -> 0 | AQ30: =SUMIF('Fin Statment SA'!$6:$6,'Annual Financial Statement'!AQ$2,'Fin Statment SA'!35:35) -> 0 | AR30: =SUMIF('Fin Statment SA'!$6:$6,'Annual Financial Statement'!AR$2,'Fin Statment SA'!35:35) -> 0 | AS30: =SUMIF('Fin Statment SA'!$6:$6,'Annual Financial Statement'!AS$2,'Fin Statment SA'!35:35) -> 0 | AT30: =SUMIF('Fin Statment SA'!$6:$6,'Annual Financial Statement'!AT$2,'Fin Statment SA'!35:35) -> 0 | AU30: =SUMIF('Fin Statment SA'!$6:$6,'Annual Financial Statement'!AU$2,'Fin Statment SA'!35:35) -> 0 | AV30: =SUMIF('Fin Statment SA'!$6:$6,'Annual Financial Statement'!AV$2,'Fin Statment SA'!35:35) -> 0
C31: Less: Dividends | I31: =SUMIF('Fin Statment SA'!$6:$6,'Annual Financial Statement'!I$2,'Fin Statment SA'!36:36) -> 709387.5889 | J31: =SUMIF('Fin Statment SA'!$6:$6,'Annual Financial Statement'!J$2,'Fin Statment SA'!36:36) -> 2352924.026 | K31: =SUMIF('Fin Statment SA'!$6:$6,'Annual Financial Statement'!K$2,'Fin Statment SA'!36:36) -> 2377265.498 | L31: =SUMIF('Fin Statment SA'!$6:$6,'Annual Financial Statement'!L$2,'Fin Statment SA'!36:36) -> 2401833.021 | M31: =SUMIF('Fin Statment SA'!$6:$6,'Annual Financial Statement'!M$2,'Fin Statment SA'!36:36) -> 2426642.178 | N31: =SUMIF('Fin Statment SA'!$6:$6,'Annual Financial Statement'!N$2,'Fin Statment SA'!36:36) -> 2451820.56 | O31: =SUMIF('Fin Statment SA'!$6:$6,'Annual Financial Statement'!O$2,'Fin Statment SA'!36:36) -> 2477206.632 | P31: =SUMIF('Fin Statment SA'!$6:$6,'Annual Financial Statement'!P$2,'Fin Statment SA'!36:36) -> 2502758.514 | Q31: =SUMIF('Fin Statment SA'!$6:$6,'Annual Financial Statement'!Q$2,'Fin Statment SA'!36:36) -> 2528561.591 | R31: =SUMIF('Fin Statment SA'!$6:$6,'Annual Financial Statement'!R$2,'Fin Statment SA'!36:36) -> 2554712.146 | S31: =SUMIF('Fin Statment SA'!$6:$6,'Annual Financial Statement'!S$2,'Fin Statment SA'!36:36) -> 2581040.337 | T31: =SUMIF('Fin Statment SA'!$6:$6,'Annual Financial Statement'!T$2,'Fin Statment SA'!36:36) -> 2607612.736 | U31: =SUMIF('Fin Statment SA'!$6:$6,'Annual Financial Statement'!U$2,'Fin Statment SA'!36:36) -> 2634446.189 | V31: =SUMIF('Fin Statment SA'!$6:$6,'Annual Financial Statement'!V$2,'Fin Statment SA'!36:36) -> 2661640.83 | W31: =SUMIF('Fin Statment SA'!$6:$6,'Annual Financial Statement'!W$2,'Fin Statment SA'!36:36) -> 2689020.002 | X31: =SUMIF('Fin Statment SA'!$6:$6,'Annual Financial Statement'!X$2,'Fin Statment SA'!36:36) -> 2716652.94 | Y31: =SUMIF('Fin Statment SA'!$6:$6,'Annual Financial Statement'!Y$2,'Fin Statment SA'!36:36) -> 2744557.158 | Z31: =SUMIF('Fin Statment SA'!$6:$6,'Annual Financial Statement'!Z$2,'Fin Statment SA'!36:36) -> 2772836.796 | AA31: =SUMIF('Fin Statment SA'!$6:$6,'Annual Financial Statement'!AA$2,'Fin Statment SA'!36:36) -> 2717177.478 | AB31: =SUMIF('Fin Statment SA'!$6:$6,'Annual Financial Statement'!AB$2,'Fin Statment SA'!36:36) -> 2307013.405 | AC31: =SUMIF('Fin Statment SA'!$6:$6,'Annual Financial Statement'!AC$2,'Fin Statment SA'!36:36) -> 2323763.488 | AD31: =SUMIF('Fin Statment SA'!$6:$6,'Annual Financial Statement'!AD$2,'Fin Statment SA'!36:36) -> 2340605.178 | AE31: =SUMIF('Fin Statment SA'!$6:$6,'Annual Financial Statement'!AE$2,'Fin Statment SA'!36:36) -> 2357389.622 | AF31: =SUMIF('Fin Statment SA'!$6:$6,'Annual Financial Statement'!AF$2,'Fin Statment SA'!36:36) -> 2374161.607 | AG31: =SUMIF('Fin Statment SA'!$6:$6,'Annual Financial Statement'!AG$2,'Fin Statment SA'!36:36) -> 2390933.774 | AH31: =SUMIF('Fin Statment SA'!$6:$6,'Annual Financial Statement'!AH$2,'Fin Statment SA'!36:36) -> 4980873.26 | AI31: =SUMIF('Fin Statment SA'!$6:$6,'Annual Financial Statement'!AI$2,'Fin Statment SA'!36:36) -> 6946583.764 | AJ31: =SUMIF('Fin Statment SA'!$6:$6,'Annual Financial Statement'!AJ$2,'Fin Statment SA'!36:36) -> 7017593.245 | AK31: =SUMIF('Fin Statment SA'!$6:$6,'Annual Financial Statement'!AK$2,'Fin Statment SA'!36:36) -> 7089298.171 | AL31: =SUMIF('Fin Statment SA'!$6:$6,'Annual Financial Statement'!AL$2,'Fin Statment SA'!36:36) -> 7161956.248 | AM31: =SUMIF('Fin Statment SA'!$6:$6,'Annual Financial Statement'!AM$2,'Fin Statment SA'!36:36) -> 7235124.931 | AN31: =SUMIF('Fin Statment SA'!$6:$6,'Annual Financial Statement'!AN$2,'Fin Statment SA'!36:36) -> 7308959.352 | AO31: =SUMIF('Fin Statment SA'!$6:$6,'Annual Financial Statement'!AO$2,'Fin Statment SA'!36:36) -> 7383516.229 | AP31: =SUMIF('Fin Statment SA'!$6:$6,'Annual Financial Statement'!AP$2,'Fin Statment SA'!36:36) -> 7459063.55 | AQ31: =SUMIF('Fin Statment SA'!$6:$6,'Annual Financial Statement'!AQ$2,'Fin Statment SA'!36:36) -> 7535141.039 | AR31: =SUMIF('Fin Statment SA'!$6:$6,'Annual Financial Statement'!AR$2,'Fin Statment SA'!36:36) -> 5542955.7 | AS31: =SUMIF('Fin Statment SA'!$6:$6,'Annual Financial Statement'!AS$2,'Fin Statment SA'!36:36) -> 0 | AT31: =SUMIF('Fin Statment SA'!$6:$6,'Annual Financial Statement'!AT$2,'Fin Statment SA'!36:36) -> 0 | AU31: =SUMIF('Fin Statment SA'!$6:$6,'Annual Financial Statement'!AU$2,'Fin Statment SA'!36:36) -> 0 | AV31: =SUMIF('Fin Statment SA'!$6:$6,'Annual Financial Statement'!AV$2,'Fin Statment SA'!36:36) -> 0
C32: Add: Equity Contributions | I32: =SUMIF('Fin Statment SA'!$6:$6,'Annual Financial Statement'!I$2,'Fin Statment SA'!37:37) -> 21253012.08 | J32: =SUMIF('Fin Statment SA'!$6:$6,'Annual Financial Statement'!J$2,'Fin Statment SA'!37:37) -> 0 | K32: =SUMIF('Fin Statment SA'!$6:$6,'Annual Financial Statement'!K$2,'Fin Statment SA'!37:37) -> 0 | L32: =SUMIF('Fin Statment SA'!$6:$6,'Annual Financial Statement'!L$2,'Fin Statment SA'!37:37) -> 0 | M32: =SUMIF('Fin Statment SA'!$6:$6,'Annual Financial Statement'!M$2,'Fin Statment SA'!37:37) -> 0 | N32: =SUMIF('Fin Statment SA'!$6:$6,'Annual Financial Statement'!N$2,'Fin Statment SA'!37:37) -> 0 | O32: =SUMIF('Fin Statment SA'!$6:$6,'Annual Financial Statement'!O$2,'Fin Statment SA'!37:37) -> 0 | P32: =SUMIF('Fin Statment SA'!$6:$6,'Annual Financial Statement'!P$2,'Fin Statment SA'!37:37) -> 0 | Q32: =SUMIF('Fin Statment SA'!$6:$6,'Annual Financial Statement'!Q$2,'Fin Statment SA'!37:37) -> 0 | R32: =SUMIF('Fin Statment SA'!$6:$6,'Annual Financial Statement'!R$2,'Fin Statment SA'!37:37) -> 0 | S32: =SUMIF('Fin Statment SA'!$6:$6,'Annual Financial Statement'!S$2,'Fin Statment SA'!37:37) -> 0 | T32: =SUMIF('Fin Statment SA'!$6:$6,'Annual Financial Statement'!T$2,'Fin Statment SA'!37:37) -> 0 | U32: =SUMIF('Fin Statment SA'!$6:$6,'Annual Financial Statement'!U$2,'Fin Statment SA'!37:37) -> 0 | V32: =SUMIF('Fin Statment SA'!$6:$6,'Annual Financial Statement'!V$2,'Fin Statment SA'!37:37) -> 0 | W32: =SUMIF('Fin Statment SA'!$6:$6,'Annual Financial Statement'!W$2,'Fin Statment SA'!37:37) -> 0 | X32: =SUMIF('Fin Statment SA'!$6:$6,'Annual Financial Statement'!X$2,'Fin Statment SA'!37:37) -> 0 | Y32: =SUMIF('Fin Statment SA'!$6:$6,'Annual Financial Statement'!Y$2,'Fin Statment SA'!37:37) -> 0 | Z32: =SUMIF('Fin Statment SA'!$6:$6,'Annual Financial Statement'!Z$2,'Fin Statment SA'!37:37) -> 0 | AA32: =SUMIF('Fin Statment SA'!$6:$6,'Annual Financial Statement'!AA$2,'Fin Statment SA'!37:37) -> 0 | AB32: =SUMIF('Fin Statment SA'!$6:$6,'Annual Financial Statement'!AB$2,'Fin Statment SA'!37:37) -> 0 | AC32: =SUMIF('Fin Statment SA'!$6:$6,'Annual Financial Statement'!AC$2,'Fin Statment SA'!37:37) -> 0 | AD32: =SUMIF('Fin Statment SA'!$6:$6,'Annual Financial Statement'!AD$2,'Fin Statment SA'!37:37) -> 0 | AE32: =SUMIF('Fin Statment SA'!$6:$6,'Annual Financial Statement'!AE$2,'Fin Statment SA'!37:37) -> 0 | AF32: =SUMIF('Fin Statment SA'!$6:$6,'Annual Financial Statement'!AF$2,'Fin Statment SA'!37:37) -> 0 | AG32: =SUMIF('Fin Statment SA'!$6:$6,'Annual Financial Statement'!AG$2,'Fin Statment SA'!37:37) -> 0 | AH32: =SUMIF('Fin Statment SA'!$6:$6,'Annual Financial Statement'!AH$2,'Fin Statment SA'!37:37) -> 0 | AI32: =SUMIF('Fin Statment SA'!$6:$6,'Annual Financial Statement'!AI$2,'Fin Statment SA'!37:37) -> 0 | AJ32: =SUMIF('Fin Statment SA'!$6:$6,'Annual Financial Statement'!AJ$2,'Fin Statment SA'!37:37) -> 0 | AK32: =SUMIF('Fin Statment SA'!$6:$6,'Annual Financial Statement'!AK$2,'Fin Statment SA'!37:37) -> 0 | AL32: =SUMIF('Fin Statment SA'!$6:$6,'Annual Financial Statement'!AL$2,'Fin Statment SA'!37:37) -> 0 | AM32: =SUMIF('Fin Statment SA'!$6:$6,'Annual Financial Statement'!AM$2,'Fin Statment SA'!37:37) -> 0 | AN32: =SUMIF('Fin Statment SA'!$6:$6,'Annual Financial Statement'!AN$2,'Fin Statment SA'!37:37) -> 0 | AO32: =SUMIF('Fin Statment SA'!$6:$6,'Annual Financial Statement'!AO$2,'Fin Statment SA'!37:37) -> 0 | AP32: =SUMIF('Fin Statment SA'!$6:$6,'Annual Financial Statement'!AP$2,'Fin Statment SA'!37:37) -> 0 | AQ32: =SUMIF('Fin Statment SA'!$6:$6,'Annual Financial Statement'!AQ$2,'Fin Statment SA'!37:37) -> 0 | AR32: =SUMIF('Fin Statment SA'!$6:$6,'Annual Financial Statement'!AR$2,'Fin Statment SA'!37:37) -> 0 | AS32: =SUMIF('Fin Statment SA'!$6:$6,'Annual Financial Statement'!AS$2,'Fin Statment SA'!37:37) -> 0 | AT32: =SUMIF('Fin Statment SA'!$6:$6,'Annual Financial Statement'!AT$2,'Fin Statment SA'!37:37) -> 0 | AU32: =SUMIF('Fin Statment SA'!$6:$6,'Annual Financial Statement'!AU$2,'Fin Statment SA'!37:37) -> 0 | AV32: =SUMIF('Fin Statment SA'!$6:$6,'Annual Financial Statement'!AV$2,'Fin Statment SA'!37:37) -> 0
D33: Net Cash Flow | I33: =SUMIF('Fin Statment SA'!$6:$6,'Annual Financial Statement'!I$2,'Fin Statment SA'!38:38) -> 0 | J33: =SUMIF('Fin Statment SA'!$6:$6,'Annual Financial Statement'!J$2,'Fin Statment SA'!38:38) -> -4.656612873e-10 | K33: =SUMIF('Fin Statment SA'!$6:$6,'Annual Financial Statement'!K$2,'Fin Statment SA'!38:38) -> -4.656612873e-10 | L33: =SUMIF('Fin Statment SA'!$6:$6,'Annual Financial Statement'!L$2,'Fin Statment SA'!38:38) -> 0 | M33: =SUMIF('Fin Statment SA'!$6:$6,'Annual Financial Statement'!M$2,'Fin Statment SA'!38:38) -> -4.656612873e-10 | N33: =SUMIF('Fin Statment SA'!$6:$6,'Annual Financial Statement'!N$2,'Fin Statment SA'!38:38) -> 4.656612873e-10 | O33: =SUMIF('Fin Statment SA'!$6:$6,'Annual Financial Statement'!O$2,'Fin Statment SA'!38:38) -> 0 | P33: =SUMIF('Fin Statment SA'!$6:$6,'Annual Financial Statement'!P$2,'Fin Statment SA'!38:38) -> 1.396983862e-09 | Q33: =SUMIF('Fin Statment SA'!$6:$6,'Annual Financial Statement'!Q$2,'Fin Statment SA'!38:38) -> -4.656612873e-10 | R33: =SUMIF('Fin Statment SA'!$6:$6,'Annual Financial Statement'!R$2,'Fin Statment SA'!38:38) -> 0 | S33: =SUMIF('Fin Statment SA'!$6:$6,'Annual Financial Statement'!S$2,'Fin Statment SA'!38:38) -> 0 | T33: =SUMIF('Fin Statment SA'!$6:$6,'Annual Financial Statement'!T$2,'Fin Statment SA'!38:38) -> 9.313225746e-10 | U33: =SUMIF('Fin Statment SA'!$6:$6,'Annual Financial Statement'!U$2,'Fin Statment SA'!38:38) -> -9.313225746e-10 | V33: =SUMIF('Fin Statment SA'!$6:$6,'Annual Financial Statement'!V$2,'Fin Statment SA'!38:38) -> 0 | W33: =SUMIF('Fin Statment SA'!$6:$6,'Annual Financial Statement'!W$2,'Fin Statment SA'!38:38) -> 0 | X33: =SUMIF('Fin Statment SA'!$6:$6,'Annual Financial Statement'!X$2,'Fin Statment SA'!38:38) -> 0 | Y33: =SUMIF('Fin Statment SA'!$6:$6,'Annual Financial Statement'!Y$2,'Fin Statment SA'!38:38) -> 0 | Z33: =SUMIF('Fin Statment SA'!$6:$6,'Annual Financial Statement'!Z$2,'Fin Statment SA'!38:38) -> 0 | AA33: =SUMIF('Fin Statment SA'!$6:$6,'Annual Financial Statement'!AA$2,'Fin Statment SA'!38:38) -> 0 | AB33: =SUMIF('Fin Statment SA'!$6:$6,'Annual Financial Statement'!AB$2,'Fin Statment SA'!38:38) -> 0 | AC33: =SUMIF('Fin Statment SA'!$6:$6,'Annual Financial Statement'!AC$2,'Fin Statment SA'!38:38) -> -9.313225746e-10 | AD33: =SUMIF('Fin Statment SA'!$6:$6,'Annual Financial Statement'!AD$2,'Fin Statment SA'!38:38) -> 0 | AE33: =SUMIF('Fin Statment SA'!$6:$6,'Annual Financial Statement'!AE$2,'Fin Statment SA'!38:38) -> 9.313225746e-10 | AF33: =SUMIF('Fin Statment SA'!$6:$6,'Annual Financial Statement'!AF$2,'Fin Statment SA'!38:38) -> 0 | AG33: =SUMIF('Fin Statment SA'!$6:$6,'Annual Financial Statement'!AG$2,'Fin Statment SA'!38:38) -> -9.313225746e-10 | AH33: =SUMIF('Fin Statment SA'!$6:$6,'Annual Financial Statement'!AH$2,'Fin Statment SA'!38:38) -> 0 | AI33: =SUMIF('Fin Statment SA'!$6:$6,'Annual Financial Statement'!AI$2,'Fin Statment SA'!38:38) -> 0 | AJ33: =SUMIF('Fin Statment SA'!$6:$6,'Annual Financial Statement'!AJ$2,'Fin Statment SA'!38:38) -> 0 | AK33: =SUMIF('Fin Statment SA'!$6:$6,'Annual Financial Statement'!AK$2,'Fin Statment SA'!38:38) -> -9.313225746e-10 | AL33: =SUMIF('Fin Statment SA'!$6:$6,'Annual Financial Statement'!AL$2,'Fin Statment SA'!38:38) -> 0 | AM33: =SUMIF('Fin Statment SA'!$6:$6,'Annual Financial Statement'!AM$2,'Fin Statment SA'!38:38) -> -9.313225746e-10 | AN33: =SUMIF('Fin Statment SA'!$6:$6,'Annual Financial Statement'!AN$2,'Fin Statment SA'!38:38) -> -9.313225746e-10 | AO33: =SUMIF('Fin Statment SA'!$6:$6,'Annual Financial Statement'!AO$2,'Fin Statment SA'!38:38) -> -9.313225746e-10 | AP33: =SUMIF('Fin Statment SA'!$6:$6,'Annual Financial Statement'!AP$2,'Fin Statment SA'!38:38) -> 9.313225746e-10 | AQ33: =SUMIF('Fin Statment SA'!$6:$6,'Annual Financial Statement'!AQ$2,'Fin Statment SA'!38:38) -> 0 | AR33: =SUMIF('Fin Statment SA'!$6:$6,'Annual Financial Statement'!AR$2,'Fin Statment SA'!38:38) -> 0 | AS33: =SUMIF('Fin Statment SA'!$6:$6,'Annual Financial Statement'!AS$2,'Fin Statment SA'!38:38) -> 0 | AT33: =SUMIF('Fin Statment SA'!$6:$6,'Annual Financial Statement'!AT$2,'Fin Statment SA'!38:38) -> 0 | AU33: =SUMIF('Fin Statment SA'!$6:$6,'Annual Financial Statement'!AU$2,'Fin Statment SA'!38:38) -> 0 | AV33: =SUMIF('Fin Statment SA'!$6:$6,'Annual Financial Statement'!AV$2,'Fin Statment SA'!38:38) -> 0
B35: Balance Sheet
C36: Assets
D37: Cash
D38: Accounts Receivable | I38: =SUMIFS('Fin Statment SA'!58:58,'Fin Statment SA'!$6:$6,'Annual Financial Statement'!I$2,'Fin Statment SA'!$7:$7,1) -> 0 | J38: =SUMIFS('Fin Statment SA'!58:58,'Fin Statment SA'!$6:$6,'Annual Financial Statement'!J$2,'Fin Statment SA'!$7:$7,1) -> 1691436.297 | K38: =SUMIFS('Fin Statment SA'!58:58,'Fin Statment SA'!$6:$6,'Annual Financial Statement'!K$2,'Fin Statment SA'!$7:$7,1) -> 1708245.558 | L38: =SUMIFS('Fin Statment SA'!58:58,'Fin Statment SA'!$6:$6,'Annual Financial Statement'!L$2,'Fin Statment SA'!$7:$7,1) -> 1725221.867 | M38: =SUMIFS('Fin Statment SA'!58:58,'Fin Statment SA'!$6:$6,'Annual Financial Statement'!M$2,'Fin Statment SA'!$7:$7,1) -> 1742366.884 | N38: =SUMIFS('Fin Statment SA'!58:58,'Fin Statment SA'!$6:$6,'Annual Financial Statement'!N$2,'Fin Statment SA'!$7:$7,1) -> 1759754.018 | O38: =SUMIFS('Fin Statment SA'!58:58,'Fin Statment SA'!$6:$6,'Annual Financial Statement'!O$2,'Fin Statment SA'!$7:$7,1) -> 1777242.211 | P38: =SUMIFS('Fin Statment SA'!58:58,'Fin Statment SA'!$6:$6,'Annual Financial Statement'!P$2,'Fin Statment SA'!$7:$7,1) -> 1794904.199 | Q38: =SUMIFS('Fin Statment SA'!58:58,'Fin Statment SA'!$6:$6,'Annual Financial Statement'!Q$2,'Fin Statment SA'!$7:$7,1) -> 1812741.71 | R38: =SUMIFS('Fin Statment SA'!58:58,'Fin Statment SA'!$6:$6,'Annual Financial Statement'!R$2,'Fin Statment SA'!$7:$7,1) -> 1830831.115 | S38: =SUMIFS('Fin Statment SA'!58:58,'Fin Statment SA'!$6:$6,'Annual Financial Statement'!S$2,'Fin Statment SA'!$7:$7,1) -> 1849025.663 | T38: =SUMIFS('Fin Statment SA'!58:58,'Fin Statment SA'!$6:$6,'Annual Financial Statement'!T$2,'Fin Statment SA'!$7:$7,1) -> 1867401.025 | U38: =SUMIFS('Fin Statment SA'!58:58,'Fin Statment SA'!$6:$6,'Annual Financial Statement'!U$2,'Fin Statment SA'!$7:$7,1) -> 1885958.999 | V38: =SUMIFS('Fin Statment SA'!58:58,'Fin Statment SA'!$6:$6,'Annual Financial Statement'!V$2,'Fin Statment SA'!$7:$7,1) -> 1904779.043 | W38: =SUMIFS('Fin Statment SA'!58:58,'Fin Statment SA'!$6:$6,'Annual Financial Statement'!W$2,'Fin Statment SA'!$7:$7,1) -> 1923708.475 | X38: =SUMIFS('Fin Statment SA'!58:58,'Fin Statment SA'!$6:$6,'Annual Financial Statement'!X$2,'Fin Statment SA'!$7:$7,1) -> 1942826.024 | Y38: =SUMIFS('Fin Statment SA'!58:58,'Fin Statment SA'!$6:$6,'Annual Financial Statement'!Y$2,'Fin Statment SA'!$7:$7,1) -> 1962133.562 | Z38: =SUMIFS('Fin Statment SA'!58:58,'Fin Statment SA'!$6:$6,'Annual Financial Statement'!Z$2,'Fin Statment SA'!$7:$7,1) -> 1981713.753 | AA38: =SUMIFS('Fin Statment SA'!58:58,'Fin Statment SA'!$6:$6,'Annual Financial Statement'!AA$2,'Fin Statment SA'!$7:$7,1) -> 2001407.752 | AB38: =SUMIFS('Fin Statment SA'!58:58,'Fin Statment SA'!$6:$6,'Annual Financial Statement'!AB$2,'Fin Statment SA'!$7:$7,1) -> 2021297.466 | AC38: =SUMIFS('Fin Statment SA'!58:58,'Fin Statment SA'!$6:$6,'Annual Financial Statement'!AC$2,'Fin Statment SA'!$7:$7,1) -> 2041384.842 | AD38: =SUMIFS('Fin Statment SA'!58:58,'Fin Statment SA'!$6:$6,'Annual Financial Statement'!AD$2,'Fin Statment SA'!$7:$7,1) -> 2061755.885 | AE38: =SUMIFS('Fin Statment SA'!58:58,'Fin Statment SA'!$6:$6,'Annual Financial Statement'!AE$2,'Fin Statment SA'!$7:$7,1) -> 2082245.331 | AF38: =SUMIFS('Fin Statment SA'!58:58,'Fin Statment SA'!$6:$6,'Annual Financial Statement'!AF$2,'Fin Statment SA'!$7:$7,1) -> 2102938.398 | AG38: =SUMIFS('Fin Statment SA'!58:58,'Fin Statment SA'!$6:$6,'Annual Financial Statement'!AG$2,'Fin Statment SA'!$7:$7,1) -> 2123837.11 | AH38: =SUMIFS('Fin Statment SA'!58:58,'Fin Statment SA'!$6:$6,'Annual Financial Statement'!AH$2,'Fin Statment SA'!$7:$7,1) -> 2145030.947 | AI38: =SUMIFS('Fin Statment SA'!58:58,'Fin Statment SA'!$6:$6,'Annual Financial Statement'!AI$2,'Fin Statment SA'!$7:$7,1) -> 2166347.969 | AJ38: =SUMIFS('Fin Statment SA'!58:58,'Fin Statment SA'!$6:$6,'Annual Financial Statement'!AJ$2,'Fin Statment SA'!$7:$7,1) -> 2187876.837 | AK38: =SUMIFS('Fin Statment SA'!58:58,'Fin Statment SA'!$6:$6,'Annual Financial Statement'!AK$2,'Fin Statment SA'!$7:$7,1) -> 2209619.655 | AL38: =SUMIFS('Fin Statment SA'!58:58,'Fin Statment SA'!$6:$6,'Annual Financial Statement'!AL$2,'Fin Statment SA'!$7:$7,1) -> 2231669.518 | AM38: =SUMIFS('Fin Statment SA'!58:58,'Fin Statment SA'!$6:$6,'Annual Financial Statement'!AM$2,'Fin Statment SA'!$7:$7,1) -> 2253847.543 | AN38: =SUMIFS('Fin Statment SA'!58:58,'Fin Statment SA'!$6:$6,'Annual Financial Statement'!AN$2,'Fin Statment SA'!$7:$7,1) -> 2276245.969 | AO38: =SUMIFS('Fin Statment SA'!58:58,'Fin Statment SA'!$6:$6,'Annual Financial Statement'!AO$2,'Fin Statment SA'!$7:$7,1) -> 2298866.988 | AP38: =SUMIFS('Fin Statment SA'!58:58,'Fin Statment SA'!$6:$6,'Annual Financial Statement'!AP$2,'Fin Statment SA'!$7:$7,1) -> 2321807.453 | AQ38: =SUMIFS('Fin Statment SA'!58:58,'Fin Statment SA'!$6:$6,'Annual Financial Statement'!AQ$2,'Fin Statment SA'!$7:$7,1) -> 2344881.256 | AR38: =SUMIFS('Fin Statment SA'!58:58,'Fin Statment SA'!$6:$6,'Annual Financial Statement'!AR$2,'Fin Statment SA'!$7:$7,1) -> 2368184.363 | AS38: =SUMIFS('Fin Statment SA'!58:58,'Fin Statment SA'!$6:$6,'Annual Financial Statement'!AS$2,'Fin Statment SA'!$7:$7,1) -> 0 | AT38: =SUMIFS('Fin Statment SA'!58:58,'Fin Statment SA'!$6:$6,'Annual Financial Statement'!AT$2,'Fin Statment SA'!$7:$7,1) -> 0 | AU38: =SUMIFS('Fin Statment SA'!58:58,'Fin Statment SA'!$6:$6,'Annual Financial Statement'!AU$2,'Fin Statment SA'!$7:$7,1) -> 0 | AV38: =SUMIFS('Fin Statment SA'!58:58,'Fin Statment SA'!$6:$6,'Annual Financial Statement'!AV$2,'Fin Statment SA'!$7:$7,1) -> 0
I39: =SUMIF('Fin Statment SA'!$6:$6,'Annual Financial Statement'!I$2,'Fin Statment SA'!59:59) -> 0 | J39: =SUMIF('Fin Statment SA'!$6:$6,'Annual Financial Statement'!J$2,'Fin Statment SA'!59:59) -> 0 | K39: =SUMIF('Fin Statment SA'!$6:$6,'Annual Financial Statement'!K$2,'Fin Statment SA'!59:59) -> 0 | L39: =SUMIF('Fin Statment SA'!$6:$6,'Annual Financial Statement'!L$2,'Fin Statment SA'!59:59) -> 0 | M39: =SUMIF('Fin Statment SA'!$6:$6,'Annual Financial Statement'!M$2,'Fin Statment SA'!59:59) -> 0 | N39: =SUMIF('Fin Statment SA'!$6:$6,'Annual Financial Statement'!N$2,'Fin Statment SA'!59:59) -> 0 | O39: =SUMIF('Fin Statment SA'!$6:$6,'Annual Financial Statement'!O$2,'Fin Statment SA'!59:59) -> 0 | P39: =SUMIF('Fin Statment SA'!$6:$6,'Annual Financial Statement'!P$2,'Fin Statment SA'!59:59) -> 0 | Q39: =SUMIF('Fin Statment SA'!$6:$6,'Annual Financial Statement'!Q$2,'Fin Statment SA'!59:59) -> 0 | R39: =SUMIF('Fin Statment SA'!$6:$6,'Annual Financial Statement'!R$2,'Fin Statment SA'!59:59) -> 0 | S39: =SUMIF('Fin Statment SA'!$6:$6,'Annual Financial Statement'!S$2,'Fin Statment SA'!59:59) -> 0 | T39: =SUMIF('Fin Statment SA'!$6:$6,'Annual Financial Statement'!T$2,'Fin Statment SA'!59:59) -> 0 | U39: =SUMIF('Fin Statment SA'!$6:$6,'Annual Financial Statement'!U$2,'Fin Statment SA'!59:59) -> 0 | V39: =SUMIF('Fin Statment SA'!$6:$6,'Annual Financial Statement'!V$2,'Fin Statment SA'!59:59) -> 0 | W39: =SUMIF('Fin Statment SA'!$6:$6,'Annual Financial Statement'!W$2,'Fin Statment SA'!59:59) -> 0 | X39: =SUMIF('Fin Statment SA'!$6:$6,'Annual Financial Statement'!X$2,'Fin Statment SA'!59:59) -> 0 | Y39: =SUMIF('Fin Statment SA'!$6:$6,'Annual Financial Statement'!Y$2,'Fin Statment SA'!59:59) -> 0 | Z39: =SUMIF('Fin Statment SA'!$6:$6,'Annual Financial Statement'!Z$2,'Fin Statment SA'!59:59) -> 0 | AA39: =SUMIF('Fin Statment SA'!$6:$6,'Annual Financial Statement'!AA$2,'Fin Statment SA'!59:59) -> 0 | AB39: =SUMIF('Fin Statment SA'!$6:$6,'Annual Financial Statement'!AB$2,'Fin Statment SA'!59:59) -> 0 | AC39: =SUMIF('Fin Statment SA'!$6:$6,'Annual Financial Statement'!AC$2,'Fin Statment SA'!59:59) -> 0 | AD39: =SUMIF('Fin Statment SA'!$6:$6,'Annual Financial Statement'!AD$2,'Fin Statment SA'!59:59) -> 0 | AE39: =SUMIF('Fin Statment SA'!$6:$6,'Annual Financial Statement'!AE$2,'Fin Statment SA'!59:59) -> 0 | AF39: =SUMIF('Fin Statment SA'!$6:$6,'Annual Financial Statement'!AF$2,'Fin Statment SA'!59:59) -> 0 | AG39: =SUMIF('Fin Statment SA'!$6:$6,'Annual Financial Statement'!AG$2,'Fin Statment SA'!59:59) -> 0 | AH39: =SUMIF('Fin Statment SA'!$6:$6,'Annual Financial Statement'!AH$2,'Fin Statment SA'!59:59) -> 0 | AI39: =SUMIF('Fin Statment SA'!$6:$6,'Annual Financial Statement'!AI$2,'Fin Statment SA'!59:59) -> 0 | AJ39: =SUMIF('Fin Statment SA'!$6:$6,'Annual Financial Statement'!AJ$2,'Fin Statment SA'!59:59) -> 0 | AK39: =SUMIF('Fin Statment SA'!$6:$6,'Annual Financial Statement'!AK$2,'Fin Statment SA'!59:59) -> 0 | AL39: =SUMIF('Fin Statment SA'!$6:$6,'Annual Financial Statement'!AL$2,'Fin Statment SA'!59:59) -> 0 | AM39: =SUMIF('Fin Statment SA'!$6:$6,'Annual Financial Statement'!AM$2,'Fin Statment SA'!59:59) -> 0 | AN39: =SUMIF('Fin Statment SA'!$6:$6,'Annual Financial Statement'!AN$2,'Fin Statment SA'!59:59) -> 0 | AO39: =SUMIF('Fin Statment SA'!$6:$6,'Annual Financial Statement'!AO$2,'Fin Statment SA'!59:59) -> 0 | AP39: =SUMIF('Fin Statment SA'!$6:$6,'Annual Financial Statement'!AP$2,'Fin Statment SA'!59:59) -> 0 | AQ39: =SUMIF('Fin Statment SA'!$6:$6,'Annual Financial Statement'!AQ$2,'Fin Statment SA'!59:59) -> 0 | AR39: =SUMIF('Fin Statment SA'!$6:$6,'Annual Financial Statement'!AR$2,'Fin Statment SA'!59:59) -> 0 | AS39: =SUMIF('Fin Statment SA'!$6:$6,'Annual Financial Statement'!AS$2,'Fin Statment SA'!59:59) -> 0 | AT39: =SUMIF('Fin Statment SA'!$6:$6,'Annual Financial Statement'!AT$2,'Fin Statment SA'!59:59) -> 0 | AU39: =SUMIF('Fin Statment SA'!$6:$6,'Annual Financial Statement'!AU$2,'Fin Statment SA'!59:59) -> 0 | AV39: =SUMIF('Fin Statment SA'!$6:$6,'Annual Financial Statement'!AV$2,'Fin Statment SA'!59:59) -> 0
D40: Solar Asset Balance | I40: =SUMIF('Fin Statment SA'!$6:$6,'Annual Financial Statement'!I$2,'Fin Statment SA'!60:60) -> 644805000 | J40: =SUMIF('Fin Statment SA'!$6:$6,'Annual Financial Statement'!J$2,'Fin Statment SA'!60:60) -> 211080000 | K40: =SUMIF('Fin Statment SA'!$6:$6,'Annual Financial Statement'!K$2,'Fin Statment SA'!60:60) -> 211080000 | L40: =SUMIF('Fin Statment SA'!$6:$6,'Annual Financial Statement'!L$2,'Fin Statment SA'!60:60) -> 211080000 | M40: =SUMIF('Fin Statment SA'!$6:$6,'Annual Financial Statement'!M$2,'Fin Statment SA'!60:60) -> 211080000 | N40: =SUMIF('Fin Statment SA'!$6:$6,'Annual Financial Statement'!N$2,'Fin Statment SA'!60:60) -> 211080000 | O40: =SUMIF('Fin Statment SA'!$6:$6,'Annual Financial Statement'!O$2,'Fin Statment SA'!60:60) -> 211080000 | P40: =SUMIF('Fin Statment SA'!$6:$6,'Annual Financial Statement'!P$2,'Fin Statment SA'!60:60) -> 211080000 | Q40: =SUMIF('Fin Statment SA'!$6:$6,'Annual Financial Statement'!Q$2,'Fin Statment SA'!60:60) -> 211080000 | R40: =SUMIF('Fin Statment SA'!$6:$6,'Annual Financial Statement'!R$2,'Fin Statment SA'!60:60) -> 211080000 | S40: =SUMIF('Fin Statment SA'!$6:$6,'Annual Financial Statement'!S$2,'Fin Statment SA'!60:60) -> 211080000 | T40: =SUMIF('Fin Statment SA'!$6:$6,'Annual Financial Statement'!T$2,'Fin Statment SA'!60:60) -> 211080000 | U40: =SUMIF('Fin Statment SA'!$6:$6,'Annual Financial Statement'!U$2,'Fin Statment SA'!60:60) -> 211080000 | V40: =SUMIF('Fin Statment SA'!$6:$6,'Annual Financial Statement'!V$2,'Fin Statment SA'!60:60) -> 211080000 | W40: =SUMIF('Fin Statment SA'!$6:$6,'Annual Financial Statement'!W$2,'Fin Statment SA'!60:60) -> 211080000 | X40: =SUMIF('Fin Statment SA'!$6:$6,'Annual Financial Statement'!X$2,'Fin Statment SA'!60:60) -> 211080000 | Y40: =SUMIF('Fin Statment SA'!$6:$6,'Annual Financial Statement'!Y$2,'Fin Statment SA'!60:60) -> 211080000 | Z40: =SUMIF('Fin Statment SA'!$6:$6,'Annual Financial Statement'!Z$2,'Fin Statment SA'!60:60) -> 211080000 | AA40: =SUMIF('Fin Statment SA'!$6:$6,'Annual Financial Statement'!AA$2,'Fin Statment SA'!60:60) -> 211080000 | AB40: =SUMIF('Fin Statment SA'!$6:$6,'Annual Financial Statement'!AB$2,'Fin Statment SA'!60:60) -> 211080000 | AC40: =SUMIF('Fin Statment SA'!$6:$6,'Annual Financial Statement'!AC$2,'Fin Statment SA'!60:60) -> 211080000 | AD40: =SUMIF('Fin Statment SA'!$6:$6,'Annual Financial Statement'!AD$2,'Fin Statment SA'!60:60) -> 211080000 | AE40: =SUMIF('Fin Statment SA'!$6:$6,'Annual Financial Statement'!AE$2,'Fin Statment SA'!60:60) -> 211080000 | AF40: =SUMIF('Fin Statment SA'!$6:$6,'Annual Financial Statement'!AF$2,'Fin Statment SA'!60:60) -> 211080000 | AG40: =SUMIF('Fin Statment SA'!$6:$6,'Annual Financial Statement'!AG$2,'Fin Statment SA'!60:60) -> 211080000 | AH40: =SUMIF('Fin Statment SA'!$6:$6,'Annual Financial Statement'!AH$2,'Fin Statment SA'!60:60) -> 211080000 | AI40: =SUMIF('Fin Statment SA'!$6:$6,'Annual Financial Statement'!AI$2,'Fin Statment SA'!60:60) -> 211080000 | AJ40: =SUMIF('Fin Statment SA'!$6:$6,'Annual Financial Statement'!AJ$2,'Fin Statment SA'!60:60) -> 211080000 | AK40: =SUMIF('Fin Statment SA'!$6:$6,'Annual Financial Statement'!AK$2,'Fin Statment SA'!60:60) -> 211080000 | AL40: =SUMIF('Fin Statment SA'!$6:$6,'Annual Financial Statement'!AL$2,'Fin Statment SA'!60:60) -> 211080000 | AM40: =SUMIF('Fin Statment SA'!$6:$6,'Annual Financial Statement'!AM$2,'Fin Statment SA'!60:60) -> 211080000 | AN40: =SUMIF('Fin Statment SA'!$6:$6,'Annual Financial Statement'!AN$2,'Fin Statment SA'!60:60) -> 211080000 | AO40: =SUMIF('Fin Statment SA'!$6:$6,'Annual Financial Statement'!AO$2,'Fin Statment SA'!60:60) -> 211080000 | AP40: =SUMIF('Fin Statment SA'!$6:$6,'Annual Financial Statement'!AP$2,'Fin Statment SA'!60:60) -> 211080000 | AQ40: =SUMIF('Fin Statment SA'!$6:$6,'Annual Financial Statement'!AQ$2,'Fin Statment SA'!60:60) -> 211080000 | AR40: =SUMIF('Fin Statment SA'!$6:$6,'Annual Financial Statement'!AR$2,'Fin Statment SA'!60:60) -> 211080000 | AS40: =SUMIF('Fin Statment SA'!$6:$6,'Annual Financial Statement'!AS$2,'Fin Statment SA'!60:60) -> 211080000 | AT40: =SUMIF('Fin Statment SA'!$6:$6,'Annual Financial Statement'!AT$2,'Fin Statment SA'!60:60) -> 211080000 | AU40: =SUMIF('Fin Statment SA'!$6:$6,'Annual Financial Statement'!AU$2,'Fin Statment SA'!60:60) -> 211080000 | AV40: =SUMIF('Fin Statment SA'!$6:$6,'Annual Financial Statement'!AV$2,'Fin Statment SA'!60:60) -> 211080000
D41: IDC Asset Balance | I41: =SUMIF('Fin Statment SA'!$6:$6,'Annual Financial Statement'!I$2,'Fin Statment SA'!61:61) -> 2761369.699 | J41: =SUMIF('Fin Statment SA'!$6:$6,'Annual Financial Statement'!J$2,'Fin Statment SA'!61:61) -> 1450120.83 | K41: =SUMIF('Fin Statment SA'!$6:$6,'Annual Financial Statement'!K$2,'Fin Statment SA'!61:61) -> 1450120.83 | L41: =SUMIF('Fin Statment SA'!$6:$6,'Annual Financial Statement'!L$2,'Fin Statment SA'!61:61) -> 1450120.83 | M41: =SUMIF('Fin Statment SA'!$6:$6,'Annual Financial Statement'!M$2,'Fin Statment SA'!61:61) -> 1450120.83 | N41: =SUMIF('Fin Statment SA'!$6:$6,'Annual Financial Statement'!N$2,'Fin Statment SA'!61:61) -> 1450120.83 | O41: =SUMIF('Fin Statment SA'!$6:$6,'Annual Financial Statement'!O$2,'Fin Statment SA'!61:61) -> 1450120.83 | P41: =SUMIF('Fin Statment SA'!$6:$6,'Annual Financial Statement'!P$2,'Fin Statment SA'!61:61) -> 1450120.83 | Q41: =SUMIF('Fin Statment SA'!$6:$6,'Annual Financial Statement'!Q$2,'Fin Statment SA'!61:61) -> 1450120.83 | R41: =SUMIF('Fin Statment SA'!$6:$6,'Annual Financial Statement'!R$2,'Fin Statment SA'!61:61) -> 1450120.83 | S41: =SUMIF('Fin Statment SA'!$6:$6,'Annual Financial Statement'!S$2,'Fin Statment SA'!61:61) -> 1450120.83 | T41: =SUMIF('Fin Statment SA'!$6:$6,'Annual Financial Statement'!T$2,'Fin Statment SA'!61:61) -> 1450120.83 | U41: =SUMIF('Fin Statment SA'!$6:$6,'Annual Financial Statement'!U$2,'Fin Statment SA'!61:61) -> 1450120.83 | V41: =SUMIF('Fin Statment SA'!$6:$6,'Annual Financial Statement'!V$2,'Fin Statment SA'!61:61) -> 1450120.83 | W41: =SUMIF('Fin Statment SA'!$6:$6,'Annual Financial Statement'!W$2,'Fin Statment SA'!61:61) -> 1450120.83 | X41: =SUMIF('Fin Statment SA'!$6:$6,'Annual Financial Statement'!X$2,'Fin Statment SA'!61:61) -> 1450120.83 | Y41: =SUMIF('Fin Statment SA'!$6:$6,'Annual Financial Statement'!Y$2,'Fin Statment SA'!61:61) -> 1450120.83 | Z41: =SUMIF('Fin Statment SA'!$6:$6,'Annual Financial Statement'!Z$2,'Fin Statment SA'!61:61) -> 1450120.83 | AA41: =SUMIF('Fin Statment SA'!$6:$6,'Annual Financial Statement'!AA$2,'Fin Statment SA'!61:61) -> 1450120.83 | AB41: =SUMIF('Fin Statment SA'!$6:$6,'Annual Financial Statement'!AB$2,'Fin Statment SA'!61:61) -> 1450120.83 | AC41: =SUMIF('Fin Statment SA'!$6:$6,'Annual Financial Statement'!AC$2,'Fin Statment SA'!61:61) -> 1450120.83 | AD41: =SUMIF('Fin Statment SA'!$6:$6,'Annual Financial Statement'!AD$2,'Fin Statment SA'!61:61) -> 1450120.83 | AE41: =SUMIF('Fin Statment SA'!$6:$6,'Annual Financial Statement'!AE$2,'Fin Statment SA'!61:61) -> 1450120.83 | AF41: =SUMIF('Fin Statment SA'!$6:$6,'Annual Financial Statement'!AF$2,'Fin Statment SA'!61:61) -> 1450120.83 | AG41: =SUMIF('Fin Statment SA'!$6:$6,'Annual Financial Statement'!AG$2,'Fin Statment SA'!61:61) -> 1450120.83 | AH41: =SUMIF('Fin Statment SA'!$6:$6,'Annual Financial Statement'!AH$2,'Fin Statment SA'!61:61) -> 1450120.83 | AI41: =SUMIF('Fin Statment SA'!$6:$6,'Annual Financial Statement'!AI$2,'Fin Statment SA'!61:61) -> 1450120.83 | AJ41: =SUMIF('Fin Statment SA'!$6:$6,'Annual Financial Statement'!AJ$2,'Fin Statment SA'!61:61) -> 1450120.83 | AK41: =SUMIF('Fin Statment SA'!$6:$6,'Annual Financial Statement'!AK$2,'Fin Statment SA'!61:61) -> 1450120.83 | AL41: =SUMIF('Fin Statment SA'!$6:$6,'Annual Financial Statement'!AL$2,'Fin Statment SA'!61:61) -> 1450120.83 | AM41: =SUMIF('Fin Statment SA'!$6:$6,'Annual Financial Statement'!AM$2,'Fin Statment SA'!61:61) -> 1450120.83 | AN41: =SUMIF('Fin Statment SA'!$6:$6,'Annual Financial Statement'!AN$2,'Fin Statment SA'!61:61) -> 1450120.83 | AO41: =SUMIF('Fin Statment SA'!$6:$6,'Annual Financial Statement'!AO$2,'Fin Statment SA'!61:61) -> 1450120.83 | AP41: =SUMIF('Fin Statment SA'!$6:$6,'Annual Financial Statement'!AP$2,'Fin Statment SA'!61:61) -> 1450120.83 | AQ41: =SUMIF('Fin Statment SA'!$6:$6,'Annual Financial Statement'!AQ$2,'Fin Statment SA'!61:61) -> 1450120.83 | AR41: =SUMIF('Fin Statment SA'!$6:$6,'Annual Financial Statement'!AR$2,'Fin Statment SA'!61:61) -> 1450120.83 | AS41: =SUMIF('Fin Statment SA'!$6:$6,'Annual Financial Statement'!AS$2,'Fin Statment SA'!61:61) -> 1450120.83 | AT41: =SUMIF('Fin Statment SA'!$6:$6,'Annual Financial Statement'!AT$2,'Fin Statment SA'!61:61) -> 1450120.83 | AU41: =SUMIF('Fin Statment SA'!$6:$6,'Annual Financial Statement'!AU$2,'Fin Statment SA'!61:61) -> 1450120.83 | AV41: =SUMIF('Fin Statment SA'!$6:$6,'Annual Financial Statement'!AV$2,'Fin Statment SA'!61:61) -> 1450120.83
D42: Less: Accumulated Depreciation | I42: =SUMIF('Fin Statment SA'!$6:$6,'Annual Financial Statement'!I$2,'Fin Statment SA'!62:62) -> 10626506.04 | J42: =SUMIF('Fin Statment SA'!$6:$6,'Annual Financial Statement'!J$2,'Fin Statment SA'!62:62) -> 53132530.21 | K42: =SUMIF('Fin Statment SA'!$6:$6,'Annual Financial Statement'!K$2,'Fin Statment SA'!62:62) -> 95638554.37 | L42: =SUMIF('Fin Statment SA'!$6:$6,'Annual Financial Statement'!L$2,'Fin Statment SA'!62:62) -> 138144578.5 | M42: =SUMIF('Fin Statment SA'!$6:$6,'Annual Financial Statement'!M$2,'Fin Statment SA'!62:62) -> 180650602.7 | N42: =SUMIF('Fin Statment SA'!$6:$6,'Annual Financial Statement'!N$2,'Fin Statment SA'!62:62) -> 212530120.8 | O42: =SUMIF('Fin Statment SA'!$6:$6,'Annual Financial Statement'!O$2,'Fin Statment SA'!62:62) -> 212530120.8 | P42: =SUMIF('Fin Statment SA'!$6:$6,'Annual Financial Statement'!P$2,'Fin Statment SA'!62:62) -> 212530120.8 | Q42: =SUMIF('Fin Statment SA'!$6:$6,'Annual Financial Statement'!Q$2,'Fin Statment SA'!62:62) -> 212530120.8 | R42: =SUMIF('Fin Statment SA'!$6:$6,'Annual Financial Statement'!R$2,'Fin Statment SA'!62:62) -> 212530120.8 | S42: =SUMIF('Fin Statment SA'!$6:$6,'Annual Financial Statement'!S$2,'Fin Statment SA'!62:62) -> 212530120.8 | T42: =SUMIF('Fin Statment SA'!$6:$6,'Annual Financial Statement'!T$2,'Fin Statment SA'!62:62) -> 212530120.8 | U42: =SUMIF('Fin Statment SA'!$6:$6,'Annual Financial Statement'!U$2,'Fin Statment SA'!62:62) -> 212530120.8 | V42: =SUMIF('Fin Statment SA'!$6:$6,'Annual Financial Statement'!V$2,'Fin Statment SA'!62:62) -> 212530120.8 | W42: =SUMIF('Fin Statment SA'!$6:$6,'Annual Financial Statement'!W$2,'Fin Statment SA'!62:62) -> 212530120.8 | X42: =SUMIF('Fin Statment SA'!$6:$6,'Annual Financial Statement'!X$2,'Fin Statment SA'!62:62) -> 212530120.8 | Y42: =SUMIF('Fin Statment SA'!$6:$6,'Annual Financial Statement'!Y$2,'Fin Statment SA'!62:62) -> 212530120.8 | Z42: =SUMIF('Fin Statment SA'!$6:$6,'Annual Financial Statement'!Z$2,'Fin Statment SA'!62:62) -> 212530120.8 | AA42: =SUMIF('Fin Statment SA'!$6:$6,'Annual Financial Statement'!AA$2,'Fin Statment SA'!62:62) -> 212530120.8 | AB42: =SUMIF('Fin Statment SA'!$6:$6,'Annual Financial Statement'!AB$2,'Fin Statment SA'!62:62) -> 212530120.8 | AC42: =SUMIF('Fin Statment SA'!$6:$6,'Annual Financial Statement'!AC$2,'Fin Statment SA'!62:62) -> 212530120.8 | AD42: =SUMIF('Fin Statment SA'!$6:$6,'Annual Financial Statement'!AD$2,'Fin Statment SA'!62:62) -> 212530120.8 | AE42: =SUMIF('Fin Statment SA'!$6:$6,'Annual Financial Statement'!AE$2,'Fin Statment SA'!62:62) -> 212530120.8 | AF42: =SUMIF('Fin Statment SA'!$6:$6,'Annual Financial Statement'!AF$2,'Fin Statment SA'!62:62) -> 212530120.8 | AG42: =SUMIF('Fin Statment SA'!$6:$6,'Annual Financial Statement'!AG$2,'Fin Statment SA'!62:62) -> 212530120.8 | AH42: =SUMIF('Fin Statment SA'!$6:$6,'Annual Financial Statement'!AH$2,'Fin Statment SA'!62:62) -> 212530120.8 | AI42: =SUMIF('Fin Statment SA'!$6:$6,'Annual Financial Statement'!AI$2,'Fin Statment SA'!62:62) -> 212530120.8 | AJ42: =SUMIF('Fin Statment SA'!$6:$6,'Annual Financial Statement'!AJ$2,'Fin Statment SA'!62:62) -> 212530120.8 | AK42: =SUMIF('Fin Statment SA'!$6:$6,'Annual Financial Statement'!AK$2,'Fin Statment SA'!62:62) -> 212530120.8 | AL42: =SUMIF('Fin Statment SA'!$6:$6,'Annual Financial Statement'!AL$2,'Fin Statment SA'!62:62) -> 212530120.8 | AM42: =SUMIF('Fin Statment SA'!$6:$6,'Annual Financial Statement'!AM$2,'Fin Statment SA'!62:62) -> 212530120.8 | AN42: =SUMIF('Fin Statment SA'!$6:$6,'Annual Financial Statement'!AN$2,'Fin Statment SA'!62:62) -> 212530120.8 | AO42: =SUMIF('Fin Statment SA'!$6:$6,'Annual Financial Statement'!AO$2,'Fin Statment SA'!62:62) -> 212530120.8 | AP42: =SUMIF('Fin Statment SA'!$6:$6,'Annual Financial Statement'!AP$2,'Fin Statment SA'!62:62) -> 212530120.8 | AQ42: =SUMIF('Fin Statment SA'!$6:$6,'Annual Financial Statement'!AQ$2,'Fin Statment SA'!62:62) -> 212530120.8 | AR42: =SUMIF('Fin Statment SA'!$6:$6,'Annual Financial Statement'!AR$2,'Fin Statment SA'!62:62) -> 212530120.8 | AS42: =SUMIF('Fin Statment SA'!$6:$6,'Annual Financial Statement'!AS$2,'Fin Statment SA'!62:62) -> 212530120.8 | AT42: =SUMIF('Fin Statment SA'!$6:$6,'Annual Financial Statement'!AT$2,'Fin Statment SA'!62:62) -> 212530120.8 | AU42: =SUMIF('Fin Statment SA'!$6:$6,'Annual Financial Statement'!AU$2,'Fin Statment SA'!62:62) -> 212530120.8 | AV42: =SUMIF('Fin Statment SA'!$6:$6,'Annual Financial Statement'!AV$2,'Fin Statment SA'!62:62) -> 212530120.8
D43: Net Assets | I43: =SUMIF('Fin Statment SA'!$6:$6,'Annual Financial Statement'!I$2,'Fin Statment SA'!63:63) -> 637874934.8 | J43: =SUMIF('Fin Statment SA'!$6:$6,'Annual Financial Statement'!J$2,'Fin Statment SA'!63:63) -> 162033429.2 | K43: =SUMIF('Fin Statment SA'!$6:$6,'Annual Financial Statement'!K$2,'Fin Statment SA'!63:63) -> 119553599.6 | L43: =SUMIF('Fin Statment SA'!$6:$6,'Annual Financial Statement'!L$2,'Fin Statment SA'!63:63) -> 77074030.38 | M43: =SUMIF('Fin Statment SA'!$6:$6,'Annual Financial Statement'!M$2,'Fin Statment SA'!63:63) -> 34594724.04 | N43: =SUMIF('Fin Statment SA'!$6:$6,'Annual Financial Statement'!N$2,'Fin Statment SA'!63:63) -> 2742301.036 | O43: =SUMIF('Fin Statment SA'!$6:$6,'Annual Financial Statement'!O$2,'Fin Statment SA'!63:63) -> 2769553.646 | P43: =SUMIF('Fin Statment SA'!$6:$6,'Annual Financial Statement'!P$2,'Fin Statment SA'!63:63) -> 2797077.088 | Q43: =SUMIF('Fin Statment SA'!$6:$6,'Annual Financial Statement'!Q$2,'Fin Statment SA'!63:63) -> 2824874.055 | R43: =SUMIF('Fin Statment SA'!$6:$6,'Annual Financial Statement'!R$2,'Fin Statment SA'!63:63) -> 2853063.561 | S43: =SUMIF('Fin Statment SA'!$6:$6,'Annual Financial Statement'!S$2,'Fin Statment SA'!63:63) -> 2881416.914 | T43: =SUMIF('Fin Statment SA'!$6:$6,'Annual Financial Statement'!T$2,'Fin Statment SA'!63:63) -> 2910052.038 | U43: =SUMIF('Fin Statment SA'!$6:$6,'Annual Financial Statement'!U$2,'Fin Statment SA'!63:63) -> 2938971.734 | V43: =SUMIF('Fin Statment SA'!$6:$6,'Annual Financial Statement'!V$2,'Fin Statment SA'!63:63) -> 2968299.824 | W43: =SUMIF('Fin Statment SA'!$6:$6,'Annual Financial Statement'!W$2,'Fin Statment SA'!63:63) -> 2997798.379 | X43: =SUMIF('Fin Statment SA'!$6:$6,'Annual Financial Statement'!X$2,'Fin Statment SA'!63:63) -> 3027590.087 | Y43: =SUMIF('Fin Statment SA'!$6:$6,'Annual Financial Statement'!Y$2,'Fin Statment SA'!63:63) -> 3057677.86 | Z43: =SUMIF('Fin Statment SA'!$6:$6,'Annual Financial Statement'!Z$2,'Fin Statment SA'!63:63) -> 3088190.522 | AA43: =SUMIF('Fin Statment SA'!$6:$6,'Annual Financial Statement'!AA$2,'Fin Statment SA'!63:63) -> 3118880.534 | AB43: =SUMIF('Fin Statment SA'!$6:$6,'Annual Financial Statement'!AB$2,'Fin Statment SA'!63:63) -> 3149875.539 | AC43: =SUMIF('Fin Statment SA'!$6:$6,'Annual Financial Statement'!AC$2,'Fin Statment SA'!63:63) -> 3181178.569 | AD43: =SUMIF('Fin Statment SA'!$6:$6,'Annual Financial Statement'!AD$2,'Fin Statment SA'!63:63) -> 3212923.648 | AE43: =SUMIF('Fin Statment SA'!$6:$6,'Annual Financial Statement'!AE$2,'Fin Statment SA'!63:63) -> 3244853.241 | AF43: =SUMIF('Fin Statment SA'!$6:$6,'Annual Financial Statement'!AF$2,'Fin Statment SA'!63:63) -> 3277100.146 | AG43: =SUMIF('Fin Statment SA'!$6:$6,'Annual Financial Statement'!AG$2,'Fin Statment SA'!63:63) -> 3309667.515 | AH43: =SUMIF('Fin Statment SA'!$6:$6,'Annual Financial Statement'!AH$2,'Fin Statment SA'!63:63) -> 3342694.79 | AI43: =SUMIF('Fin Statment SA'!$6:$6,'Annual Financial Statement'!AI$2,'Fin Statment SA'!63:63) -> 3375914.031 | AJ43: =SUMIF('Fin Statment SA'!$6:$6,'Annual Financial Statement'!AJ$2,'Fin Statment SA'!63:63) -> 3409463.399 | AK43: =SUMIF('Fin Statment SA'!$6:$6,'Annual Financial Statement'!AK$2,'Fin Statment SA'!63:63) -> 3443346.177 | AL43: =SUMIF('Fin Statment SA'!$6:$6,'Annual Financial Statement'!AL$2,'Fin Statment SA'!63:63) -> 3477707.435 | AM43: =SUMIF('Fin Statment SA'!$6:$6,'Annual Financial Statement'!AM$2,'Fin Statment SA'!63:63) -> 3512268.413 | AN43: =SUMIF('Fin Statment SA'!$6:$6,'Annual Financial Statement'!AN$2,'Fin Statment SA'!63:63) -> 3547172.853 | AO43: =SUMIF('Fin Statment SA'!$6:$6,'Annual Financial Statement'!AO$2,'Fin Statment SA'!63:63) -> 3582424.168 | AP43: =SUMIF('Fin Statment SA'!$6:$6,'Annual Financial Statement'!AP$2,'Fin Statment SA'!63:63) -> 3618173.29 | AQ43: =SUMIF('Fin Statment SA'!$6:$6,'Annual Financial Statement'!AQ$2,'Fin Statment SA'!63:63) -> 3654130.197 | AR43: =SUMIF('Fin Statment SA'!$6:$6,'Annual Financial Statement'!AR$2,'Fin Statment SA'!63:63) -> 2368184.363 | AS43: =SUMIF('Fin Statment SA'!$6:$6,'Annual Financial Statement'!AS$2,'Fin Statment SA'!63:63) -> -7.450580597e-09 | AT43: =SUMIF('Fin Statment SA'!$6:$6,'Annual Financial Statement'!AT$2,'Fin Statment SA'!63:63) -> -7.450580597e-09 | AU43: =SUMIF('Fin Statment SA'!$6:$6,'Annual Financial Statement'!AU$2,'Fin Statment SA'!63:63) -> -7.450580597e-09 | AV43: =SUMIF('Fin Statment SA'!$6:$6,'Annual Financial Statement'!AV$2,'Fin Statment SA'!63:63) -> -7.450580597e-09
I44: =SUMIF('Fin Statment SA'!$6:$6,'Annual Financial Statement'!I$2,'Fin Statment SA'!64:64) -> 0 | J44: =SUMIF('Fin Statment SA'!$6:$6,'Annual Financial Statement'!J$2,'Fin Statment SA'!64:64) -> 0 | K44: =SUMIF('Fin Statment SA'!$6:$6,'Annual Financial Statement'!K$2,'Fin Statment SA'!64:64) -> 0 | L44: =SUMIF('Fin Statment SA'!$6:$6,'Annual Financial Statement'!L$2,'Fin Statment SA'!64:64) -> 0 | M44: =SUMIF('Fin Statment SA'!$6:$6,'Annual Financial Statement'!M$2,'Fin Statment SA'!64:64) -> 0 | N44: =SUMIF('Fin Statment SA'!$6:$6,'Annual Financial Statement'!N$2,'Fin Statment SA'!64:64) -> 0 | O44: =SUMIF('Fin Statment SA'!$6:$6,'Annual Financial Statement'!O$2,'Fin Statment SA'!64:64) -> 0 | P44: =SUMIF('Fin Statment SA'!$6:$6,'Annual Financial Statement'!P$2,'Fin Statment SA'!64:64) -> 0 | Q44: =SUMIF('Fin Statment SA'!$6:$6,'Annual Financial Statement'!Q$2,'Fin Statment SA'!64:64) -> 0 | R44: =SUMIF('Fin Statment SA'!$6:$6,'Annual Financial Statement'!R$2,'Fin Statment SA'!64:64) -> 0 | S44: =SUMIF('Fin Statment SA'!$6:$6,'Annual Financial Statement'!S$2,'Fin Statment SA'!64:64) -> 0 | T44: =SUMIF('Fin Statment SA'!$6:$6,'Annual Financial Statement'!T$2,'Fin Statment SA'!64:64) -> 0 | U44: =SUMIF('Fin Statment SA'!$6:$6,'Annual Financial Statement'!U$2,'Fin Statment SA'!64:64) -> 0 | V44: =SUMIF('Fin Statment SA'!$6:$6,'Annual Financial Statement'!V$2,'Fin Statment SA'!64:64) -> 0 | W44: =SUMIF('Fin Statment SA'!$6:$6,'Annual Financial Statement'!W$2,'Fin Statment SA'!64:64) -> 0 | X44: =SUMIF('Fin Statment SA'!$6:$6,'Annual Financial Statement'!X$2,'Fin Statment SA'!64:64) -> 0 | Y44: =SUMIF('Fin Statment SA'!$6:$6,'Annual Financial Statement'!Y$2,'Fin Statment SA'!64:64) -> 0 | Z44: =SUMIF('Fin Statment SA'!$6:$6,'Annual Financial Statement'!Z$2,'Fin Statment SA'!64:64) -> 0 | AA44: =SUMIF('Fin Statment SA'!$6:$6,'Annual Financial Statement'!AA$2,'Fin Statment SA'!64:64) -> 0 | AB44: =SUMIF('Fin Statment SA'!$6:$6,'Annual Financial Statement'!AB$2,'Fin Statment SA'!64:64) -> 0 | AC44: =SUMIF('Fin Statment SA'!$6:$6,'Annual Financial Statement'!AC$2,'Fin Statment SA'!64:64) -> 0 | AD44: =SUMIF('Fin Statment SA'!$6:$6,'Annual Financial Statement'!AD$2,'Fin Statment SA'!64:64) -> 0 | AE44: =SUMIF('Fin Statment SA'!$6:$6,'Annual Financial Statement'!AE$2,'Fin Statment SA'!64:64) -> 0 | AF44: =SUMIF('Fin Statment SA'!$6:$6,'Annual Financial Statement'!AF$2,'Fin Statment SA'!64:64) -> 0 | AG44: =SUMIF('Fin Statment SA'!$6:$6,'Annual Financial Statement'!AG$2,'Fin Statment SA'!64:64) -> 0 | AH44: =SUMIF('Fin Statment SA'!$6:$6,'Annual Financial Statement'!AH$2,'Fin Statment SA'!64:64) -> 0 | AI44: =SUMIF('Fin Statment SA'!$6:$6,'Annual Financial Statement'!AI$2,'Fin Statment SA'!64:64) -> 0 | AJ44: =SUMIF('Fin Statment SA'!$6:$6,'Annual Financial Statement'!AJ$2,'Fin Statment SA'!64:64) -> 0 | AK44: =SUMIF('Fin Statment SA'!$6:$6,'Annual Financial Statement'!AK$2,'Fin Statment SA'!64:64) -> 0 | AL44: =SUMIF('Fin Statment SA'!$6:$6,'Annual Financial Statement'!AL$2,'Fin Statment SA'!64:64) -> 0 | AM44: =SUMIF('Fin Statment SA'!$6:$6,'Annual Financial Statement'!AM$2,'Fin Statment SA'!64:64) -> 0 | AN44: =SUMIF('Fin Statment SA'!$6:$6,'Annual Financial Statement'!AN$2,'Fin Statment SA'!64:64) -> 0 | AO44: =SUMIF('Fin Statment SA'!$6:$6,'Annual Financial Statement'!AO$2,'Fin Statment SA'!64:64) -> 0 | AP44: =SUMIF('Fin Statment SA'!$6:$6,'Annual Financial Statement'!AP$2,'Fin Statment SA'!64:64) -> 0 | AQ44: =SUMIF('Fin Statment SA'!$6:$6,'Annual Financial Statement'!AQ$2,'Fin Statment SA'!64:64) -> 0 | AR44: =SUMIF('Fin Statment SA'!$6:$6,'Annual Financial Statement'!AR$2,'Fin Statment SA'!64:64) -> 0 | AS44: =SUMIF('Fin Statment SA'!$6:$6,'Annual Financial Statement'!AS$2,'Fin Statment SA'!64:64) -> 0 | AT44: =SUMIF('Fin Statment SA'!$6:$6,'Annual Financial Statement'!AT$2,'Fin Statment SA'!64:64) -> 0 | AU44: =SUMIF('Fin Statment SA'!$6:$6,'Annual Financial Statement'!AU$2,'Fin Statment SA'!64:64) -> 0 | AV44: =SUMIF('Fin Statment SA'!$6:$6,'Annual Financial Statement'!AV$2,'Fin Statment SA'!64:64) -> 0
C45: Liabilites and Capital | I45: =SUMIF('Fin Statment SA'!$6:$6,'Annual Financial Statement'!I$2,'Fin Statment SA'!65:65) -> 0 | J45: =SUMIF('Fin Statment SA'!$6:$6,'Annual Financial Statement'!J$2,'Fin Statment SA'!65:65) -> 0 | K45: =SUMIF('Fin Statment SA'!$6:$6,'Annual Financial Statement'!K$2,'Fin Statment SA'!65:65) -> 0 | L45: =SUMIF('Fin Statment SA'!$6:$6,'Annual Financial Statement'!L$2,'Fin Statment SA'!65:65) -> 0 | M45: =SUMIF('Fin Statment SA'!$6:$6,'Annual Financial Statement'!M$2,'Fin Statment SA'!65:65) -> 0 | N45: =SUMIF('Fin Statment SA'!$6:$6,'Annual Financial Statement'!N$2,'Fin Statment SA'!65:65) -> 0 | O45: =SUMIF('Fin Statment SA'!$6:$6,'Annual Financial Statement'!O$2,'Fin Statment SA'!65:65) -> 0 | P45: =SUMIF('Fin Statment SA'!$6:$6,'Annual Financial Statement'!P$2,'Fin Statment SA'!65:65) -> 0 | Q45: =SUMIF('Fin Statment SA'!$6:$6,'Annual Financial Statement'!Q$2,'Fin Statment SA'!65:65) -> 0 | R45: =SUMIF('Fin Statment SA'!$6:$6,'Annual Financial Statement'!R$2,'Fin Statment SA'!65:65) -> 0 | S45: =SUMIF('Fin Statment SA'!$6:$6,'Annual Financial Statement'!S$2,'Fin Statment SA'!65:65) -> 0 | T45: =SUMIF('Fin Statment SA'!$6:$6,'Annual Financial Statement'!T$2,'Fin Statment SA'!65:65) -> 0 | U45: =SUMIF('Fin Statment SA'!$6:$6,'Annual Financial Statement'!U$2,'Fin Statment SA'!65:65) -> 0 | V45: =SUMIF('Fin Statment SA'!$6:$6,'Annual Financial Statement'!V$2,'Fin Statment SA'!65:65) -> 0 | W45: =SUMIF('Fin Statment SA'!$6:$6,'Annual Financial Statement'!W$2,'Fin Statment SA'!65:65) -> 0 | X45: =SUMIF('Fin Statment SA'!$6:$6,'Annual Financial Statement'!X$2,'Fin Statment SA'!65:65) -> 0 | Y45: =SUMIF('Fin Statment SA'!$6:$6,'Annual Financial Statement'!Y$2,'Fin Statment SA'!65:65) -> 0 | Z45: =SUMIF('Fin Statment SA'!$6:$6,'Annual Financial Statement'!Z$2,'Fin Statment SA'!65:65) -> 0 | AA45: =SUMIF('Fin Statment SA'!$6:$6,'Annual Financial Statement'!AA$2,'Fin Statment SA'!65:65) -> 0 | AB45: =SUMIF('Fin Statment SA'!$6:$6,'Annual Financial Statement'!AB$2,'Fin Statment SA'!65:65) -> 0 | AC45: =SUMIF('Fin Statment SA'!$6:$6,'Annual Financial Statement'!AC$2,'Fin Statment SA'!65:65) -> 0 | AD45: =SUMIF('Fin Statment SA'!$6:$6,'Annual Financial Statement'!AD$2,'Fin Statment SA'!65:65) -> 0 | AE45: =SUMIF('Fin Statment SA'!$6:$6,'Annual Financial Statement'!AE$2,'Fin Statment SA'!65:65) -> 0 | AF45: =SUMIF('Fin Statment SA'!$6:$6,'Annual Financial Statement'!AF$2,'Fin Statment SA'!65:65) -> 0 | AG45: =SUMIF('Fin Statment SA'!$6:$6,'Annual Financial Statement'!AG$2,'Fin Statment SA'!65:65) -> 0 | AH45: =SUMIF('Fin Statment SA'!$6:$6,'Annual Financial Statement'!AH$2,'Fin Statment SA'!65:65) -> 0 | AI45: =SUMIF('Fin Statment SA'!$6:$6,'Annual Financial Statement'!AI$2,'Fin Statment SA'!65:65) -> 0 | AJ45: =SUMIF('Fin Statment SA'!$6:$6,'Annual Financial Statement'!AJ$2,'Fin Statment SA'!65:65) -> 0 | AK45: =SUMIF('Fin Statment SA'!$6:$6,'Annual Financial Statement'!AK$2,'Fin Statment SA'!65:65) -> 0 | AL45: =SUMIF('Fin Statment SA'!$6:$6,'Annual Financial Statement'!AL$2,'Fin Statment SA'!65:65) -> 0 | AM45: =SUMIF('Fin Statment SA'!$6:$6,'Annual Financial Statement'!AM$2,'Fin Statment SA'!65:65) -> 0 | AN45: =SUMIF('Fin Statment SA'!$6:$6,'Annual Financial Statement'!AN$2,'Fin Statment SA'!65:65) -> 0 | AO45: =SUMIF('Fin Statment SA'!$6:$6,'Annual Financial Statement'!AO$2,'Fin Statment SA'!65:65) -> 0 | AP45: =SUMIF('Fin Statment SA'!$6:$6,'Annual Financial Statement'!AP$2,'Fin Statment SA'!65:65) -> 0 | AQ45: =SUMIF('Fin Statment SA'!$6:$6,'Annual Financial Statement'!AQ$2,'Fin Statment SA'!65:65) -> 0 | AR45: =SUMIF('Fin Statment SA'!$6:$6,'Annual Financial Statement'!AR$2,'Fin Statment SA'!65:65) -> 0 | AS45: =SUMIF('Fin Statment SA'!$6:$6,'Annual Financial Statement'!AS$2,'Fin Statment SA'!65:65) -> 0 | AT45: =SUMIF('Fin Statment SA'!$6:$6,'Annual Financial Statement'!AT$2,'Fin Statment SA'!65:65) -> 0 | AU45: =SUMIF('Fin Statment SA'!$6:$6,'Annual Financial Statement'!AU$2,'Fin Statment SA'!65:65) -> 0 | AV45: =SUMIF('Fin Statment SA'!$6:$6,'Annual Financial Statement'!AV$2,'Fin Statment SA'!65:65) -> 0
D46: Accounts Payable | I46: =SUMIF('Fin Statment SA'!$6:$6,'Annual Financial Statement'!I$2,'Fin Statment SA'!66:66) -> 53077.18957 | J46: =SUMIF('Fin Statment SA'!$6:$6,'Annual Financial Statement'!J$2,'Fin Statment SA'!66:66) -> 106269.5646 | K46: =SUMIF('Fin Statment SA'!$6:$6,'Annual Financial Statement'!K$2,'Fin Statment SA'!66:66) -> 106426.1951 | L46: =SUMIF('Fin Statment SA'!$6:$6,'Annual Financial Statement'!L$2,'Fin Statment SA'!66:66) -> 106586.7387 | M46: =SUMIF('Fin Statment SA'!$6:$6,'Annual Financial Statement'!M$2,'Fin Statment SA'!66:66) -> 106751.293 | N46: =SUMIF('Fin Statment SA'!$6:$6,'Annual Financial Statement'!N$2,'Fin Statment SA'!66:66) -> 106870.0714 | O46: =SUMIF('Fin Statment SA'!$6:$6,'Annual Financial Statement'!O$2,'Fin Statment SA'!66:66) -> 106990.7293 | P46: =SUMIF('Fin Statment SA'!$6:$6,'Annual Financial Statement'!P$2,'Fin Statment SA'!66:66) -> 107165.3764 | Q46: =SUMIF('Fin Statment SA'!$6:$6,'Annual Financial Statement'!Q$2,'Fin Statment SA'!66:66) -> 107344.3867 | R46: =SUMIF('Fin Statment SA'!$6:$6,'Annual Financial Statement'!R$2,'Fin Statment SA'!66:66) -> 107528.3781 | S46: =SUMIF('Fin Statment SA'!$6:$6,'Annual Financial Statement'!S$2,'Fin Statment SA'!66:66) -> 107716.4571 | T46: =SUMIF('Fin Statment SA'!$6:$6,'Annual Financial Statement'!T$2,'Fin Statment SA'!66:66) -> 107909.2349 | U46: =SUMIF('Fin Statment SA'!$6:$6,'Annual Financial Statement'!U$2,'Fin Statment SA'!66:66) -> 108106.8287 | V46: =SUMIF('Fin Statment SA'!$6:$6,'Annual Financial Statement'!V$2,'Fin Statment SA'!66:66) -> 108309.9208 | W46: =SUMIF('Fin Statment SA'!$6:$6,'Annual Financial Statement'!W$2,'Fin Statment SA'!66:66) -> 108517.5248 | X46: =SUMIF('Fin Statment SA'!$6:$6,'Annual Financial Statement'!X$2,'Fin Statment SA'!66:66) -> 108730.3154 | Y46: =SUMIF('Fin Statment SA'!$6:$6,'Annual Financial Statement'!Y$2,'Fin Statment SA'!66:66) -> 108948.4221 | Z46: =SUMIF('Fin Statment SA'!$6:$6,'Annual Financial Statement'!Z$2,'Fin Statment SA'!66:66) -> 109172.5977 | AA46: =SUMIF('Fin Statment SA'!$6:$6,'Annual Financial Statement'!AA$2,'Fin Statment SA'!66:66) -> 109401.7537 | AB46: =SUMIF('Fin Statment SA'!$6:$6,'Annual Financial Statement'!AB$2,'Fin Statment SA'!66:66) -> 109636.6347 | AC46: =SUMIF('Fin Statment SA'!$6:$6,'Annual Financial Statement'!AC$2,'Fin Statment SA'!66:66) -> 109877.3836 | AD46: =SUMIF('Fin Statment SA'!$6:$6,'Annual Financial Statement'!AD$2,'Fin Statment SA'!66:66) -> 110124.8316 | AE46: =SUMIF('Fin Statment SA'!$6:$6,'Annual Financial Statement'!AE$2,'Fin Statment SA'!66:66) -> 110377.7769 | AF46: =SUMIF('Fin Statment SA'!$6:$6,'Annual Financial Statement'!AF$2,'Fin Statment SA'!66:66) -> 110637.0416 | AG46: =SUMIF('Fin Statment SA'!$6:$6,'Annual Financial Statement'!AG$2,'Fin Statment SA'!66:66) -> 110902.7834 | AH46: =SUMIF('Fin Statment SA'!$6:$6,'Annual Financial Statement'!AH$2,'Fin Statment SA'!66:66) -> 111175.9196 | AI46: =SUMIF('Fin Statment SA'!$6:$6,'Annual Financial Statement'!AI$2,'Fin Statment SA'!66:66) -> 111455.124 | AJ46: =SUMIF('Fin Statment SA'!$6:$6,'Annual Financial Statement'!AJ$2,'Fin Statment SA'!66:66) -> 111741.3036 | AK46: =SUMIF('Fin Statment SA'!$6:$6,'Annual Financial Statement'!AK$2,'Fin Statment SA'!66:66) -> 112034.6328 | AL46: =SUMIF('Fin Statment SA'!$6:$6,'Annual Financial Statement'!AL$2,'Fin Statment SA'!66:66) -> 112336.1241 | AM46: =SUMIF('Fin Statment SA'!$6:$6,'Annual Financial Statement'!AM$2,'Fin Statment SA'!66:66) -> 112644.3135 | AN46: =SUMIF('Fin Statment SA'!$6:$6,'Annual Financial Statement'!AN$2,'Fin Statment SA'!66:66) -> 112960.2023 | AO46: =SUMIF('Fin Statment SA'!$6:$6,'Annual Financial Statement'!AO$2,'Fin Statment SA'!66:66) -> 113283.9828 | AP46: =SUMIF('Fin Statment SA'!$6:$6,'Annual Financial Statement'!AP$2,'Fin Statment SA'!66:66) -> 113616.7728 | AQ46: =SUMIF('Fin Statment SA'!$6:$6,'Annual Financial Statement'!AQ$2,'Fin Statment SA'!66:66) -> 113956.9562 | AR46: =SUMIF('Fin Statment SA'!$6:$6,'Annual Financial Statement'!AR$2,'Fin Statment SA'!66:66) -> 57108.33186 | AS46: =SUMIF('Fin Statment SA'!$6:$6,'Annual Financial Statement'!AS$2,'Fin Statment SA'!66:66) -> 0 | AT46: =SUMIF('Fin Statment SA'!$6:$6,'Annual Financial Statement'!AT$2,'Fin Statment SA'!66:66) -> 0 | AU46: =SUMIF('Fin Statment SA'!$6:$6,'Annual Financial Statement'!AU$2,'Fin Statment SA'!66:66) -> 0 | AV46: =SUMIF('Fin Statment SA'!$6:$6,'Annual Financial Statement'!AV$2,'Fin Statment SA'!66:66) -> 0
I47: =SUMIF('Fin Statment SA'!$6:$6,'Annual Financial Statement'!I$2,'Fin Statment SA'!67:67) -> 0 | J47: =SUMIF('Fin Statment SA'!$6:$6,'Annual Financial Statement'!J$2,'Fin Statment SA'!67:67) -> 0 | K47: =SUMIF('Fin Statment SA'!$6:$6,'Annual Financial Statement'!K$2,'Fin Statment SA'!67:67) -> 0 | L47: =SUMIF('Fin Statment SA'!$6:$6,'Annual Financial Statement'!L$2,'Fin Statment SA'!67:67) -> 0 | M47: =SUMIF('Fin Statment SA'!$6:$6,'Annual Financial Statement'!M$2,'Fin Statment SA'!67:67) -> 0 | N47: =SUMIF('Fin Statment SA'!$6:$6,'Annual Financial Statement'!N$2,'Fin Statment SA'!67:67) -> 0 | O47: =SUMIF('Fin Statment SA'!$6:$6,'Annual Financial Statement'!O$2,'Fin Statment SA'!67:67) -> 0 | P47: =SUMIF('Fin Statment SA'!$6:$6,'Annual Financial Statement'!P$2,'Fin Statment SA'!67:67) -> 0 | Q47: =SUMIF('Fin Statment SA'!$6:$6,'Annual Financial Statement'!Q$2,'Fin Statment SA'!67:67) -> 0 | R47: =SUMIF('Fin Statment SA'!$6:$6,'Annual Financial Statement'!R$2,'Fin Statment SA'!67:67) -> 0 | S47: =SUMIF('Fin Statment SA'!$6:$6,'Annual Financial Statement'!S$2,'Fin Statment SA'!67:67) -> 0 | T47: =SUMIF('Fin Statment SA'!$6:$6,'Annual Financial Statement'!T$2,'Fin Statment SA'!67:67) -> 0 | U47: =SUMIF('Fin Statment SA'!$6:$6,'Annual Financial Statement'!U$2,'Fin Statment SA'!67:67) -> 0 | V47: =SUMIF('Fin Statment SA'!$6:$6,'Annual Financial Statement'!V$2,'Fin Statment SA'!67:67) -> 0 | W47: =SUMIF('Fin Statment SA'!$6:$6,'Annual Financial Statement'!W$2,'Fin Statment SA'!67:67) -> 0 | X47: =SUMIF('Fin Statment SA'!$6:$6,'Annual Financial Statement'!X$2,'Fin Statment SA'!67:67) -> 0 | Y47: =SUMIF('Fin Statment SA'!$6:$6,'Annual Financial Statement'!Y$2,'Fin Statment SA'!67:67) -> 0 | Z47: =SUMIF('Fin Statment SA'!$6:$6,'Annual Financial Statement'!Z$2,'Fin Statment SA'!67:67) -> 0 | AA47: =SUMIF('Fin Statment SA'!$6:$6,'Annual Financial Statement'!AA$2,'Fin Statment SA'!67:67) -> 0 | AB47: =SUMIF('Fin Statment SA'!$6:$6,'Annual Financial Statement'!AB$2,'Fin Statment SA'!67:67) -> 0 | AC47: =SUMIF('Fin Statment SA'!$6:$6,'Annual Financial Statement'!AC$2,'Fin Statment SA'!67:67) -> 0 | AD47: =SUMIF('Fin Statment SA'!$6:$6,'Annual Financial Statement'!AD$2,'Fin Statment SA'!67:67) -> 0 | AE47: =SUMIF('Fin Statment SA'!$6:$6,'Annual Financial Statement'!AE$2,'Fin Statment SA'!67:67) -> 0 | AF47: =SUMIF('Fin Statment SA'!$6:$6,'Annual Financial Statement'!AF$2,'Fin Statment SA'!67:67) -> 0 | AG47: =SUMIF('Fin Statment SA'!$6:$6,'Annual Financial Statement'!AG$2,'Fin Statment SA'!67:67) -> 0 | AH47: =SUMIF('Fin Statment SA'!$6:$6,'Annual Financial Statement'!AH$2,'Fin Statment SA'!67:67) -> 0 | AI47: =SUMIF('Fin Statment SA'!$6:$6,'Annual Financial Statement'!AI$2,'Fin Statment SA'!67:67) -> 0 | AJ47: =SUMIF('Fin Statment SA'!$6:$6,'Annual Financial Statement'!AJ$2,'Fin Statment SA'!67:67) -> 0 | AK47: =SUMIF('Fin Statment SA'!$6:$6,'Annual Financial Statement'!AK$2,'Fin Statment SA'!67:67) -> 0 | AL47: =SUMIF('Fin Statment SA'!$6:$6,'Annual Financial Statement'!AL$2,'Fin Statment SA'!67:67) -> 0 | AM47: =SUMIF('Fin Statment SA'!$6:$6,'Annual Financial Statement'!AM$2,'Fin Statment SA'!67:67) -> 0 | AN47: =SUMIF('Fin Statment SA'!$6:$6,'Annual Financial Statement'!AN$2,'Fin Statment SA'!67:67) -> 0 | AO47: =SUMIF('Fin Statment SA'!$6:$6,'Annual Financial Statement'!AO$2,'Fin Statment SA'!67:67) -> 0 | AP47: =SUMIF('Fin Statment SA'!$6:$6,'Annual Financial Statement'!AP$2,'Fin Statment SA'!67:67) -> 0 | AQ47: =SUMIF('Fin Statment SA'!$6:$6,'Annual Financial Statement'!AQ$2,'Fin Statment SA'!67:67) -> 0 | AR47: =SUMIF('Fin Statment SA'!$6:$6,'Annual Financial Statement'!AR$2,'Fin Statment SA'!67:67) -> 0 | AS47: =SUMIF('Fin Statment SA'!$6:$6,'Annual Financial Statement'!AS$2,'Fin Statment SA'!67:67) -> 0 | AT47: =SUMIF('Fin Statment SA'!$6:$6,'Annual Financial Statement'!AT$2,'Fin Statment SA'!67:67) -> 0 | AU47: =SUMIF('Fin Statment SA'!$6:$6,'Annual Financial Statement'!AU$2,'Fin Statment SA'!67:67) -> 0 | AV47: =SUMIF('Fin Statment SA'!$6:$6,'Annual Financial Statement'!AV$2,'Fin Statment SA'!67:67) -> 0
D48: Senior Debt Balance | I48: =SUMIF('Fin Statment SA'!$6:$6,'Annual Financial Statement'!I$2,'Fin Statment SA'!68:68) -> 517797865.8 | J48: =SUMIF('Fin Statment SA'!$6:$6,'Annual Financial Statement'!J$2,'Fin Statment SA'!68:68) -> 166334840.5 | K48: =SUMIF('Fin Statment SA'!$6:$6,'Annual Financial Statement'!K$2,'Fin Statment SA'!68:68) -> 161656163.9 | L48: =SUMIF('Fin Statment SA'!$6:$6,'Annual Financial Statement'!L$2,'Fin Statment SA'!68:68) -> 156768183.4 | M48: =SUMIF('Fin Statment SA'!$6:$6,'Annual Financial Statement'!M$2,'Fin Statment SA'!68:68) -> 151664732.4 | N48: =SUMIF('Fin Statment SA'!$6:$6,'Annual Financial Statement'!N$2,'Fin Statment SA'!68:68) -> 146339185.5 | O48: =SUMIF('Fin Statment SA'!$6:$6,'Annual Financial Statement'!O$2,'Fin Statment SA'!68:68) -> 140784872 | P48: =SUMIF('Fin Statment SA'!$6:$6,'Annual Financial Statement'!P$2,'Fin Statment SA'!68:68) -> 134995523.4 | Q48: =SUMIF('Fin Statment SA'!$6:$6,'Annual Financial Statement'!Q$2,'Fin Statment SA'!68:68) -> 128964323.3 | R48: =SUMIF('Fin Statment SA'!$6:$6,'Annual Financial Statement'!R$2,'Fin Statment SA'!68:68) -> 122684002.1 | S48: =SUMIF('Fin Statment SA'!$6:$6,'Annual Financial Statement'!S$2,'Fin Statment SA'!68:68) -> 116147409.9 | T48: =SUMIF('Fin Statment SA'!$6:$6,'Annual Financial Statement'!T$2,'Fin Statment SA'!68:68) -> 109347299.6 | U48: =SUMIF('Fin Statment SA'!$6:$6,'Annual Financial Statement'!U$2,'Fin Statment SA'!68:68) -> 102276068.5 | V48: =SUMIF('Fin Statment SA'!$6:$6,'Annual Financial Statement'!V$2,'Fin Statment SA'!68:68) -> 94925664.23 | W48: =SUMIF('Fin Statment SA'!$6:$6,'Annual Financial Statement'!W$2,'Fin Statment SA'!68:68) -> 87288146.23 | X48: =SUMIF('Fin Statment SA'!$6:$6,'Annual Financial Statement'!X$2,'Fin Statment SA'!68:68) -> 79355460.26 | Y48: =SUMIF('Fin Statment SA'!$6:$6,'Annual Financial Statement'!Y$2,'Fin Statment SA'!68:68) -> 71119169.42 | Z48: =SUMIF('Fin Statment SA'!$6:$6,'Annual Financial Statement'!Z$2,'Fin Statment SA'!68:68) -> 62570355.5 | AA48: =SUMIF('Fin Statment SA'!$6:$6,'Annual Financial Statement'!AA$2,'Fin Statment SA'!68:68) -> 53856498.87 | AB48: =SUMIF('Fin Statment SA'!$6:$6,'Annual Financial Statement'!AB$2,'Fin Statment SA'!68:68) -> 46347763.51 | AC48: =SUMIF('Fin Statment SA'!$6:$6,'Annual Financial Statement'!AC$2,'Fin Statment SA'!68:68) -> 38844600.02 | AD48: =SUMIF('Fin Statment SA'!$6:$6,'Annual Financial Statement'!AD$2,'Fin Statment SA'!68:68) -> 31089863.21 | AE48: =SUMIF('Fin Statment SA'!$6:$6,'Annual Financial Statement'!AE$2,'Fin Statment SA'!68:68) -> 23077226.58 | AF48: =SUMIF('Fin Statment SA'!$6:$6,'Annual Financial Statement'!AF$2,'Fin Statment SA'!68:68) -> 14800350.16 | AG48: =SUMIF('Fin Statment SA'!$6:$6,'Annual Financial Statement'!AG$2,'Fin Statment SA'!68:68) -> 6252582.966 | AH48: =SUMIF('Fin Statment SA'!$6:$6,'Annual Financial Statement'!AH$2,'Fin Statment SA'!68:68) -> 2.333486918e-07 | AI48: =SUMIF('Fin Statment SA'!$6:$6,'Annual Financial Statement'!AI$2,'Fin Statment SA'!68:68) -> 2.392188699e-07 | AJ48: =SUMIF('Fin Statment SA'!$6:$6,'Annual Financial Statement'!AJ$2,'Fin Statment SA'!68:68) -> 2.452367196e-07 | AK48: =SUMIF('Fin Statment SA'!$6:$6,'Annual Financial Statement'!AK$2,'Fin Statment SA'!68:68) -> 2.514059558e-07 | AL48: =SUMIF('Fin Statment SA'!$6:$6,'Annual Financial Statement'!AL$2,'Fin Statment SA'!68:68) -> 2.577303869e-07 | AM48: =SUMIF('Fin Statment SA'!$6:$6,'Annual Financial Statement'!AM$2,'Fin Statment SA'!68:68) -> 2.642139169e-07 | AN48: =SUMIF('Fin Statment SA'!$6:$6,'Annual Financial Statement'!AN$2,'Fin Statment SA'!68:68) -> 2.708605483e-07 | AO48: =SUMIF('Fin Statment SA'!$6:$6,'Annual Financial Statement'!AO$2,'Fin Statment SA'!68:68) -> 2.776743839e-07 | AP48: =SUMIF('Fin Statment SA'!$6:$6,'Annual Financial Statement'!AP$2,'Fin Statment SA'!68:68) -> 2.846596301e-07 | AQ48: =SUMIF('Fin Statment SA'!$6:$6,'Annual Financial Statement'!AQ$2,'Fin Statment SA'!68:68) -> 2.91820599e-07 | AR48: =SUMIF('Fin Statment SA'!$6:$6,'Annual Financial Statement'!AR$2,'Fin Statment SA'!68:68) -> 2.991617109e-07 | AS48: =SUMIF('Fin Statment SA'!$6:$6,'Annual Financial Statement'!AS$2,'Fin Statment SA'!68:68) -> 3.066874977e-07 | AT48: =SUMIF('Fin Statment SA'!$6:$6,'Annual Financial Statement'!AT$2,'Fin Statment SA'!68:68) -> 3.144026051e-07 | AU48: =SUMIF('Fin Statment SA'!$6:$6,'Annual Financial Statement'!AU$2,'Fin Statment SA'!68:68) -> 3.223117956e-07 | AV48: =SUMIF('Fin Statment SA'!$6:$6,'Annual Financial Statement'!AV$2,'Fin Statment SA'!68:68) -> 3.304199517e-07
D49: Shareholder Loan Balance | I49: =SUMIF('Fin Statment SA'!$6:$6,'Annual Financial Statement'!I$2,'Fin Statment SA'!69:69) -> 0 | J49: =SUMIF('Fin Statment SA'!$6:$6,'Annual Financial Statement'!J$2,'Fin Statment SA'!69:69) -> 0 | K49: =SUMIF('Fin Statment SA'!$6:$6,'Annual Financial Statement'!K$2,'Fin Statment SA'!69:69) -> 0 | L49: =SUMIF('Fin Statment SA'!$6:$6,'Annual Financial Statement'!L$2,'Fin Statment SA'!69:69) -> 0 | M49: =SUMIF('Fin Statment SA'!$6:$6,'Annual Financial Statement'!M$2,'Fin Statment SA'!69:69) -> 0 | N49: =SUMIF('Fin Statment SA'!$6:$6,'Annual Financial Statement'!N$2,'Fin Statment SA'!69:69) -> 0 | O49: =SUMIF('Fin Statment SA'!$6:$6,'Annual Financial Statement'!O$2,'Fin Statment SA'!69:69) -> 0 | P49: =SUMIF('Fin Statment SA'!$6:$6,'Annual Financial Statement'!P$2,'Fin Statment SA'!69:69) -> 0 | Q49: =SUMIF('Fin Statment SA'!$6:$6,'Annual Financial Statement'!Q$2,'Fin Statment SA'!69:69) -> 0 | R49: =SUMIF('Fin Statment SA'!$6:$6,'Annual Financial Statement'!R$2,'Fin Statment SA'!69:69) -> 0 | S49: =SUMIF('Fin Statment SA'!$6:$6,'Annual Financial Statement'!S$2,'Fin Statment SA'!69:69) -> 0 | T49: =SUMIF('Fin Statment SA'!$6:$6,'Annual Financial Statement'!T$2,'Fin Statment SA'!69:69) -> 0 | U49: =SUMIF('Fin Statment SA'!$6:$6,'Annual Financial Statement'!U$2,'Fin Statment SA'!69:69) -> 0 | V49: =SUMIF('Fin Statment SA'!$6:$6,'Annual Financial Statement'!V$2,'Fin Statment SA'!69:69) -> 0 | W49: =SUMIF('Fin Statment SA'!$6:$6,'Annual Financial Statement'!W$2,'Fin Statment SA'!69:69) -> 0 | X49: =SUMIF('Fin Statment SA'!$6:$6,'Annual Financial Statement'!X$2,'Fin Statment SA'!69:69) -> 0 | Y49: =SUMIF('Fin Statment SA'!$6:$6,'Annual Financial Statement'!Y$2,'Fin Statment SA'!69:69) -> 0 | Z49: =SUMIF('Fin Statment SA'!$6:$6,'Annual Financial Statement'!Z$2,'Fin Statment SA'!69:69) -> 0 | AA49: =SUMIF('Fin Statment SA'!$6:$6,'Annual Financial Statement'!AA$2,'Fin Statment SA'!69:69) -> 0 | AB49: =SUMIF('Fin Statment SA'!$6:$6,'Annual Financial Statement'!AB$2,'Fin Statment SA'!69:69) -> 0 | AC49: =SUMIF('Fin Statment SA'!$6:$6,'Annual Financial Statement'!AC$2,'Fin Statment SA'!69:69) -> 0 | AD49: =SUMIF('Fin Statment SA'!$6:$6,'Annual Financial Statement'!AD$2,'Fin Statment SA'!69:69) -> 0 | AE49: =SUMIF('Fin Statment SA'!$6:$6,'Annual Financial Statement'!AE$2,'Fin Statment SA'!69:69) -> 0 | AF49: =SUMIF('Fin Statment SA'!$6:$6,'Annual Financial Statement'!AF$2,'Fin Statment SA'!69:69) -> 0 | AG49: =SUMIF('Fin Statment SA'!$6:$6,'Annual Financial Statement'!AG$2,'Fin Statment SA'!69:69) -> 0 | AH49: =SUMIF('Fin Statment SA'!$6:$6,'Annual Financial Statement'!AH$2,'Fin Statment SA'!69:69) -> 0 | AI49: =SUMIF('Fin Statment SA'!$6:$6,'Annual Financial Statement'!AI$2,'Fin Statment SA'!69:69) -> 0 | AJ49: =SUMIF('Fin Statment SA'!$6:$6,'Annual Financial Statement'!AJ$2,'Fin Statment SA'!69:69) -> 0 | AK49: =SUMIF('Fin Statment SA'!$6:$6,'Annual Financial Statement'!AK$2,'Fin Statment SA'!69:69) -> 0 | AL49: =SUMIF('Fin Statment SA'!$6:$6,'Annual Financial Statement'!AL$2,'Fin Statment SA'!69:69) -> 0 | AM49: =SUMIF('Fin Statment SA'!$6:$6,'Annual Financial Statement'!AM$2,'Fin Statment SA'!69:69) -> 0 | AN49: =SUMIF('Fin Statment SA'!$6:$6,'Annual Financial Statement'!AN$2,'Fin Statment SA'!69:69) -> 0 | AO49: =SUMIF('Fin Statment SA'!$6:$6,'Annual Financial Statement'!AO$2,'Fin Statment SA'!69:69) -> 0 | AP49: =SUMIF('Fin Statment SA'!$6:$6,'Annual Financial Statement'!AP$2,'Fin Statment SA'!69:69) -> 0 | AQ49: =SUMIF('Fin Statment SA'!$6:$6,'Annual Financial Statement'!AQ$2,'Fin Statment SA'!69:69) -> 0 | AR49: =SUMIF('Fin Statment SA'!$6:$6,'Annual Financial Statement'!AR$2,'Fin Statment SA'!69:69) -> 0 | AS49: =SUMIF('Fin Statment SA'!$6:$6,'Annual Financial Statement'!AS$2,'Fin Statment SA'!69:69) -> 0 | AT49: =SUMIF('Fin Statment SA'!$6:$6,'Annual Financial Statement'!AT$2,'Fin Statment SA'!69:69) -> 0 | AU49: =SUMIF('Fin Statment SA'!$6:$6,'Annual Financial Statement'!AU$2,'Fin Statment SA'!69:69) -> 0 | AV49: =SUMIF('Fin Statment SA'!$6:$6,'Annual Financial Statement'!AV$2,'Fin Statment SA'!69:69) -> 0
D50: Common Equity | I50: =SUMIF('Fin Statment SA'!$6:$6,'Annual Financial Statement'!I$2,'Fin Statment SA'!70:70) -> 120023991.8 | J50: =SUMIF('Fin Statment SA'!$6:$6,'Annual Financial Statement'!J$2,'Fin Statment SA'!70:70) -> -4407680.837 | K50: =SUMIF('Fin Statment SA'!$6:$6,'Annual Financial Statement'!K$2,'Fin Statment SA'!70:70) -> -42208990.5 | L50: =SUMIF('Fin Statment SA'!$6:$6,'Annual Financial Statement'!L$2,'Fin Statment SA'!70:70) -> -79800739.73 | M50: =SUMIF('Fin Statment SA'!$6:$6,'Annual Financial Statement'!M$2,'Fin Statment SA'!70:70) -> -117176759.7 | N50: =SUMIF('Fin Statment SA'!$6:$6,'Annual Financial Statement'!N$2,'Fin Statment SA'!70:70) -> -143703754.5 | O50: =SUMIF('Fin Statment SA'!$6:$6,'Annual Financial Statement'!O$2,'Fin Statment SA'!70:70) -> -138122309.1 | P50: =SUMIF('Fin Statment SA'!$6:$6,'Annual Financial Statement'!P$2,'Fin Statment SA'!70:70) -> -132305611.7 | Q50: =SUMIF('Fin Statment SA'!$6:$6,'Annual Financial Statement'!Q$2,'Fin Statment SA'!70:70) -> -126246793.7 | R50: =SUMIF('Fin Statment SA'!$6:$6,'Annual Financial Statement'!R$2,'Fin Statment SA'!70:70) -> -119938466.9 | S50: =SUMIF('Fin Statment SA'!$6:$6,'Annual Financial Statement'!S$2,'Fin Statment SA'!70:70) -> -113373709.5 | T50: =SUMIF('Fin Statment SA'!$6:$6,'Annual Financial Statement'!T$2,'Fin Statment SA'!70:70) -> -106545156.8 | U50: =SUMIF('Fin Statment SA'!$6:$6,'Annual Financial Statement'!U$2,'Fin Statment SA'!70:70) -> -99445203.64 | V50: =SUMIF('Fin Statment SA'!$6:$6,'Annual Financial Statement'!V$2,'Fin Statment SA'!70:70) -> -92065674.32 | W50: =SUMIF('Fin Statment SA'!$6:$6,'Annual Financial Statement'!W$2,'Fin Statment SA'!70:70) -> -84398865.38 | X50: =SUMIF('Fin Statment SA'!$6:$6,'Annual Financial Statement'!X$2,'Fin Statment SA'!70:70) -> -76436600.49 | Y50: =SUMIF('Fin Statment SA'!$6:$6,'Annual Financial Statement'!Y$2,'Fin Statment SA'!70:70) -> -68170439.98 | Z50: =SUMIF('Fin Statment SA'!$6:$6,'Annual Financial Statement'!Z$2,'Fin Statment SA'!70:70) -> -59591337.58 | AA50: =SUMIF('Fin Statment SA'!$6:$6,'Annual Financial Statement'!AA$2,'Fin Statment SA'!70:70) -> -50847020.09 | AB50: =SUMIF('Fin Statment SA'!$6:$6,'Annual Financial Statement'!AB$2,'Fin Statment SA'!70:70) -> -43307524.6 | AC50: =SUMIF('Fin Statment SA'!$6:$6,'Annual Financial Statement'!AC$2,'Fin Statment SA'!70:70) -> -35773298.83 | AD50: =SUMIF('Fin Statment SA'!$6:$6,'Annual Financial Statement'!AD$2,'Fin Statment SA'!70:70) -> -27987064.39 | AE50: =SUMIF('Fin Statment SA'!$6:$6,'Annual Financial Statement'!AE$2,'Fin Statment SA'!70:70) -> -19942751.11 | AF50: =SUMIF('Fin Statment SA'!$6:$6,'Annual Financial Statement'!AF$2,'Fin Statment SA'!70:70) -> -11633887.05 | AG50: =SUMIF('Fin Statment SA'!$6:$6,'Annual Financial Statement'!AG$2,'Fin Statment SA'!70:70) -> -3053818.233 | AH50: =SUMIF('Fin Statment SA'!$6:$6,'Annual Financial Statement'!AH$2,'Fin Statment SA'!70:70) -> 3231518.871 | AI50: =SUMIF('Fin Statment SA'!$6:$6,'Annual Financial Statement'!AI$2,'Fin Statment SA'!70:70) -> 3264458.907 | AJ50: =SUMIF('Fin Statment SA'!$6:$6,'Annual Financial Statement'!AJ$2,'Fin Statment SA'!70:70) -> 3297722.096 | AK50: =SUMIF('Fin Statment SA'!$6:$6,'Annual Financial Statement'!AK$2,'Fin Statment SA'!70:70) -> 3331311.544 | AL50: =SUMIF('Fin Statment SA'!$6:$6,'Annual Financial Statement'!AL$2,'Fin Statment SA'!70:70) -> 3365371.311 | AM50: =SUMIF('Fin Statment SA'!$6:$6,'Annual Financial Statement'!AM$2,'Fin Statment SA'!70:70) -> 3399624.099 | AN50: =SUMIF('Fin Statment SA'!$6:$6,'Annual Financial Statement'!AN$2,'Fin Statment SA'!70:70) -> 3434212.65 | AO50: =SUMIF('Fin Statment SA'!$6:$6,'Annual Financial Statement'!AO$2,'Fin Statment SA'!70:70) -> 3469140.185 | AP50: =SUMIF('Fin Statment SA'!$6:$6,'Annual Financial Statement'!AP$2,'Fin Statment SA'!70:70) -> 3504556.517 | AQ50: =SUMIF('Fin Statment SA'!$6:$6,'Annual Financial Statement'!AQ$2,'Fin Statment SA'!70:70) -> 3540173.241 | AR50: =SUMIF('Fin Statment SA'!$6:$6,'Annual Financial Statement'!AR$2,'Fin Statment SA'!70:70) -> 2311076.031 | AS50: =SUMIF('Fin Statment SA'!$6:$6,'Annual Financial Statement'!AS$2,'Fin Statment SA'!70:70) -> -4.527024753e-07 | AT50: =SUMIF('Fin Statment SA'!$6:$6,'Annual Financial Statement'!AT$2,'Fin Statment SA'!70:70) -> -4.604175827e-07 | AU50: =SUMIF('Fin Statment SA'!$6:$6,'Annual Financial Statement'!AU$2,'Fin Statment SA'!70:70) -> -4.683267732e-07 | AV50: =SUMIF('Fin Statment SA'!$6:$6,'Annual Financial Statement'!AV$2,'Fin Statment SA'!70:70) -> -4.764349293e-07
I51: =SUMIF('Fin Statment SA'!$6:$6,'Annual Financial Statement'!I$2,'Fin Statment SA'!71:71) -> 0 | J51: =SUMIF('Fin Statment SA'!$6:$6,'Annual Financial Statement'!J$2,'Fin Statment SA'!71:71) -> 0 | K51: =SUMIF('Fin Statment SA'!$6:$6,'Annual Financial Statement'!K$2,'Fin Statment SA'!71:71) -> 0 | L51: =SUMIF('Fin Statment SA'!$6:$6,'Annual Financial Statement'!L$2,'Fin Statment SA'!71:71) -> 0 | M51: =SUMIF('Fin Statment SA'!$6:$6,'Annual Financial Statement'!M$2,'Fin Statment SA'!71:71) -> 0 | N51: =SUMIF('Fin Statment SA'!$6:$6,'Annual Financial Statement'!N$2,'Fin Statment SA'!71:71) -> 0 | O51: =SUMIF('Fin Statment SA'!$6:$6,'Annual Financial Statement'!O$2,'Fin Statment SA'!71:71) -> 0 | P51: =SUMIF('Fin Statment SA'!$6:$6,'Annual Financial Statement'!P$2,'Fin Statment SA'!71:71) -> 0 | Q51: =SUMIF('Fin Statment SA'!$6:$6,'Annual Financial Statement'!Q$2,'Fin Statment SA'!71:71) -> 0 | R51: =SUMIF('Fin Statment SA'!$6:$6,'Annual Financial Statement'!R$2,'Fin Statment SA'!71:71) -> 0 | S51: =SUMIF('Fin Statment SA'!$6:$6,'Annual Financial Statement'!S$2,'Fin Statment SA'!71:71) -> 0 | T51: =SUMIF('Fin Statment SA'!$6:$6,'Annual Financial Statement'!T$2,'Fin Statment SA'!71:71) -> 0 | U51: =SUMIF('Fin Statment SA'!$6:$6,'Annual Financial Statement'!U$2,'Fin Statment SA'!71:71) -> 0 | V51: =SUMIF('Fin Statment SA'!$6:$6,'Annual Financial Statement'!V$2,'Fin Statment SA'!71:71) -> 0 | W51: =SUMIF('Fin Statment SA'!$6:$6,'Annual Financial Statement'!W$2,'Fin Statment SA'!71:71) -> 0 | X51: =SUMIF('Fin Statment SA'!$6:$6,'Annual Financial Statement'!X$2,'Fin Statment SA'!71:71) -> 0 | Y51: =SUMIF('Fin Statment SA'!$6:$6,'Annual Financial Statement'!Y$2,'Fin Statment SA'!71:71) -> 0 | Z51: =SUMIF('Fin Statment SA'!$6:$6,'Annual Financial Statement'!Z$2,'Fin Statment SA'!71:71) -> 0 | AA51: =SUMIF('Fin Statment SA'!$6:$6,'Annual Financial Statement'!AA$2,'Fin Statment SA'!71:71) -> 0 | AB51: =SUMIF('Fin Statment SA'!$6:$6,'Annual Financial Statement'!AB$2,'Fin Statment SA'!71:71) -> 0 | AC51: =SUMIF('Fin Statment SA'!$6:$6,'Annual Financial Statement'!AC$2,'Fin Statment SA'!71:71) -> 0 | AD51: =SUMIF('Fin Statment SA'!$6:$6,'Annual Financial Statement'!AD$2,'Fin Statment SA'!71:71) -> 0 | AE51: =SUMIF('Fin Statment SA'!$6:$6,'Annual Financial Statement'!AE$2,'Fin Statment SA'!71:71) -> 0 | AF51: =SUMIF('Fin Statment SA'!$6:$6,'Annual Financial Statement'!AF$2,'Fin Statment SA'!71:71) -> 0 | AG51: =SUMIF('Fin Statment SA'!$6:$6,'Annual Financial Statement'!AG$2,'Fin Statment SA'!71:71) -> 0 | AH51: =SUMIF('Fin Statment SA'!$6:$6,'Annual Financial Statement'!AH$2,'Fin Statment SA'!71:71) -> 0 | AI51: =SUMIF('Fin Statment SA'!$6:$6,'Annual Financial Statement'!AI$2,'Fin Statment SA'!71:71) -> 0 | AJ51: =SUMIF('Fin Statment SA'!$6:$6,'Annual Financial Statement'!AJ$2,'Fin Statment SA'!71:71) -> 0 | AK51: =SUMIF('Fin Statment SA'!$6:$6,'Annual Financial Statement'!AK$2,'Fin Statment SA'!71:71) -> 0 | AL51: =SUMIF('Fin Statment SA'!$6:$6,'Annual Financial Statement'!AL$2,'Fin Statment SA'!71:71) -> 0 | AM51: =SUMIF('Fin Statment SA'!$6:$6,'Annual Financial Statement'!AM$2,'Fin Statment SA'!71:71) -> 0 | AN51: =SUMIF('Fin Statment SA'!$6:$6,'Annual Financial Statement'!AN$2,'Fin Statment SA'!71:71) -> 0 | AO51: =SUMIF('Fin Statment SA'!$6:$6,'Annual Financial Statement'!AO$2,'Fin Statment SA'!71:71) -> 0 | AP51: =SUMIF('Fin Statment SA'!$6:$6,'Annual Financial Statement'!AP$2,'Fin Statment SA'!71:71) -> 0 | AQ51: =SUMIF('Fin Statment SA'!$6:$6,'Annual Financial Statement'!AQ$2,'Fin Statment SA'!71:71) -> 0 | AR51: =SUMIF('Fin Statment SA'!$6:$6,'Annual Financial Statement'!AR$2,'Fin Statment SA'!71:71) -> 0 | AS51: =SUMIF('Fin Statment SA'!$6:$6,'Annual Financial Statement'!AS$2,'Fin Statment SA'!71:71) -> 0 | AT51: =SUMIF('Fin Statment SA'!$6:$6,'Annual Financial Statement'!AT$2,'Fin Statment SA'!71:71) -> 0 | AU51: =SUMIF('Fin Statment SA'!$6:$6,'Annual Financial Statement'!AU$2,'Fin Statment SA'!71:71) -> 0 | AV51: =SUMIF('Fin Statment SA'!$6:$6,'Annual Financial Statement'!AV$2,'Fin Statment SA'!71:71) -> 0
D52: Total Liabilities and Capital | I52: =SUMIF('Fin Statment SA'!$6:$6,'Annual Financial Statement'!I$2,'Fin Statment SA'!72:72) -> 637874934.8 | J52: =SUMIF('Fin Statment SA'!$6:$6,'Annual Financial Statement'!J$2,'Fin Statment SA'!72:72) -> 162033429.2 | K52: =SUMIF('Fin Statment SA'!$6:$6,'Annual Financial Statement'!K$2,'Fin Statment SA'!72:72) -> 119553599.6 | L52: =SUMIF('Fin Statment SA'!$6:$6,'Annual Financial Statement'!L$2,'Fin Statment SA'!72:72) -> 77074030.38 | M52: =SUMIF('Fin Statment SA'!$6:$6,'Annual Financial Statement'!M$2,'Fin Statment SA'!72:72) -> 34594724.04 | N52: =SUMIF('Fin Statment SA'!$6:$6,'Annual Financial Statement'!N$2,'Fin Statment SA'!72:72) -> 2742301.036 | O52: =SUMIF('Fin Statment SA'!$6:$6,'Annual Financial Statement'!O$2,'Fin Statment SA'!72:72) -> 2769553.646 | P52: =SUMIF('Fin Statment SA'!$6:$6,'Annual Financial Statement'!P$2,'Fin Statment SA'!72:72) -> 2797077.088 | Q52: =SUMIF('Fin Statment SA'!$6:$6,'Annual Financial Statement'!Q$2,'Fin Statment SA'!72:72) -> 2824874.055 | R52: =SUMIF('Fin Statment SA'!$6:$6,'Annual Financial Statement'!R$2,'Fin Statment SA'!72:72) -> 2853063.561 | S52: =SUMIF('Fin Statment SA'!$6:$6,'Annual Financial Statement'!S$2,'Fin Statment SA'!72:72) -> 2881416.914 | T52: =SUMIF('Fin Statment SA'!$6:$6,'Annual Financial Statement'!T$2,'Fin Statment SA'!72:72) -> 2910052.038 | U52: =SUMIF('Fin Statment SA'!$6:$6,'Annual Financial Statement'!U$2,'Fin Statment SA'!72:72) -> 2938971.734 | V52: =SUMIF('Fin Statment SA'!$6:$6,'Annual Financial Statement'!V$2,'Fin Statment SA'!72:72) -> 2968299.824 | W52: =SUMIF('Fin Statment SA'!$6:$6,'Annual Financial Statement'!W$2,'Fin Statment SA'!72:72) -> 2997798.379 | X52: =SUMIF('Fin Statment SA'!$6:$6,'Annual Financial Statement'!X$2,'Fin Statment SA'!72:72) -> 3027590.087 | Y52: =SUMIF('Fin Statment SA'!$6:$6,'Annual Financial Statement'!Y$2,'Fin Statment SA'!72:72) -> 3057677.86 | Z52: =SUMIF('Fin Statment SA'!$6:$6,'Annual Financial Statement'!Z$2,'Fin Statment SA'!72:72) -> 3088190.522 | AA52: =SUMIF('Fin Statment SA'!$6:$6,'Annual Financial Statement'!AA$2,'Fin Statment SA'!72:72) -> 3118880.534 | AB52: =SUMIF('Fin Statment SA'!$6:$6,'Annual Financial Statement'!AB$2,'Fin Statment SA'!72:72) -> 3149875.539 | AC52: =SUMIF('Fin Statment SA'!$6:$6,'Annual Financial Statement'!AC$2,'Fin Statment SA'!72:72) -> 3181178.569 | AD52: =SUMIF('Fin Statment SA'!$6:$6,'Annual Financial Statement'!AD$2,'Fin Statment SA'!72:72) -> 3212923.648 | AE52: =SUMIF('Fin Statment SA'!$6:$6,'Annual Financial Statement'!AE$2,'Fin Statment SA'!72:72) -> 3244853.241 | AF52: =SUMIF('Fin Statment SA'!$6:$6,'Annual Financial Statement'!AF$2,'Fin Statment SA'!72:72) -> 3277100.146 | AG52: =SUMIF('Fin Statment SA'!$6:$6,'Annual Financial Statement'!AG$2,'Fin Statment SA'!72:72) -> 3309667.515 | AH52: =SUMIF('Fin Statment SA'!$6:$6,'Annual Financial Statement'!AH$2,'Fin Statment SA'!72:72) -> 3342694.79 | AI52: =SUMIF('Fin Statment SA'!$6:$6,'Annual Financial Statement'!AI$2,'Fin Statment SA'!72:72) -> 3375914.031 | AJ52: =SUMIF('Fin Statment SA'!$6:$6,'Annual Financial Statement'!AJ$2,'Fin Statment SA'!72:72) -> 3409463.399 | AK52: =SUMIF('Fin Statment SA'!$6:$6,'Annual Financial Statement'!AK$2,'Fin Statment SA'!72:72) -> 3443346.177 | AL52: =SUMIF('Fin Statment SA'!$6:$6,'Annual Financial Statement'!AL$2,'Fin Statment SA'!72:72) -> 3477707.435 | AM52: =SUMIF('Fin Statment SA'!$6:$6,'Annual Financial Statement'!AM$2,'Fin Statment SA'!72:72) -> 3512268.413 | AN52: =SUMIF('Fin Statment SA'!$6:$6,'Annual Financial Statement'!AN$2,'Fin Statment SA'!72:72) -> 3547172.853 | AO52: =SUMIF('Fin Statment SA'!$6:$6,'Annual Financial Statement'!AO$2,'Fin Statment SA'!72:72) -> 3582424.168 | AP52: =SUMIF('Fin Statment SA'!$6:$6,'Annual Financial Statement'!AP$2,'Fin Statment SA'!72:72) -> 3618173.29 | AQ52: =SUMIF('Fin Statment SA'!$6:$6,'Annual Financial Statement'!AQ$2,'Fin Statment SA'!72:72) -> 3654130.197 | AR52: =SUMIF('Fin Statment SA'!$6:$6,'Annual Financial Statement'!AR$2,'Fin Statment SA'!72:72) -> 2368184.363 | AS52: =SUMIF('Fin Statment SA'!$6:$6,'Annual Financial Statement'!AS$2,'Fin Statment SA'!72:72) -> -1.460149776e-07 | AT52: =SUMIF('Fin Statment SA'!$6:$6,'Annual Financial Statement'!AT$2,'Fin Statment SA'!72:72) -> -1.460149776e-07 | AU52: =SUMIF('Fin Statment SA'!$6:$6,'Annual Financial Statement'!AU$2,'Fin Statment SA'!72:72) -> -1.460149776e-07 | AV52: =SUMIF('Fin Statment SA'!$6:$6,'Annual Financial Statement'!AV$2,'Fin Statment SA'!72:72) -> -1.460149776e-07

Sheet Charts
I2: Equity IRR | K2: =Summary!J6 -> 0.1193835199 | M2: Poject IRR | O2: =Summary!J10 -> 0.04492143691

Sheet InputC
F1: Project IRR | G1: ='Returns and Ratios'!H28 -> 0.04492143691 | K1: =Checks!E12 -> Model Ok
F2: Equity IRR | G2: ='Returns and Ratios'!H33 -> 0.1193835199
F3: =_xlfn.XLOOKUP(active_scenario,K4:Q4,K3:Q3,0,0) -> Base Case | K3: Base Case | L3: No PPA Inflation | M3: P90 and No Inflation | N3: Lower P90 | O3: Higher EPC | P3: Lower PPA | Q3: Shareholder Loan
E4: Active Scenario | F4: 1 | G4: Scenario | I4: =MATCH(active_scenario,K4:Q4) -> 1 | K4: 1 | L4: 2 | M4: 3 | N4: 4 | O4: 5 | P4: 6 | Q4: 7
E6: =INDEX(K3:Q3,F6) -> Base Case | F6: =INDEX(K4:Q4,I4) -> 1
B8: Model Timeline
E9: Financial Close Date | F9: =INDEX(K9:Q9,active_scenario) -> 2023-01-01 | G9: Date | K9: 2023-01-01 | L9: 2023-01-01 | M9: 2023-01-01 | N9: 2023-01-01 | O9: 2023-01-01 | P9: 2023-01-01 | Q9: 2023-01-01
E10: First Draw Date | F10: =INDEX(K10:Q10,active_scenario) -> 2023-01-01 | G10: Date | K10: =K9 -> 2023-01-01 | L10: =L9 -> 2023-01-01 | M10: 2023-01-01 | N10: 2023-01-01 | O10: 2023-01-01 | P10: 2023-01-01 | Q10: 2023-01-01
E11: Construction Start | F11: =INDEX(K11:Q11,active_scenario) -> 2023-01-01 | G11: Date | K11: =K9 -> 2023-01-01 | L11: =L9 -> 2023-01-01 | M11: 2023-01-01 | N11: 2023-01-01 | O11: 2023-01-01 | P11: 2023-01-01 | Q11: 2023-01-01
E12: Construction Period | F12: =INDEX(K12:S12,$F$4) -> 7 | G12: Month | K12: 7 | L12: 7 | M12: 7 | N12: 7 | O12: 7 | P12: 7 | Q12: 7
E13: Construction Period End | F13: =EDATE(F11,F12-1) -> 2023-07-01 | G13: Date
E14: Commerical Operation Date | F14: =EDATE(F11,F12) -> 2023-08-01 | G14: Date
E15: Operating Life | F15: =INDEX(K15:S15,$F$4) -> 35 | G15: Years | K15: 35 | L15: 35 | M15: 35 | N15: 35 | O15: 35 | P15: 35 | Q15: 35
E16: Decomission Date | F16: =EDATE(F14,F15*Months) -> 2058-08-01 | G16: Date
E17: Operation End Date | F17: =EDATE(F16,-1) -> 2058-07-01 | G17: Date
E19: Months in Period for Semi-Annual | F19: =INDEX(K19:S19,$F$4) -> 6 | G19: Months | K19: 6 | L19: 6 | M19: 6 | N19: 6 | O19: 6 | P19: 6 | Q19: 6
E20: Months in Period pre-COD | F20: =INDEX(K20:S20,$F$4) -> 1 | G20: Months | K20: 1 | L20: 1 | M20: 1 | N20: 1 | O20: 1 | P20: 1 | Q20: 1
B22: Solar Plant Details
E23: Capacity of Plant | F23: =INDEX(K23:S23,$F$4) -> 132 | G23: MWp | K23: 132 | L23: 132 | M23: 132 | N23: 132 | O23: 132 | P23: 132 | Q23: 132
E25: Apply P50 (1-yes) | F25: 0 | G25: Flag | H25: 1 =P50; 0 =P90 | K25: 1 | L25: 1 | M25: 0 | N25: 0 | O25: 0 | P25: 0 | Q25: 0
E27: P50 Plant Yield - Annual | F27: =INDEX(K27:S27,$F$4) -> 2040 | G27: MWh/MWp | K27: 2040 | L27: 2040 | M27: 2040 | N27: 2040 | O27: 2040 | P27: 2040 | Q27: 2040
E28: P90 Plant Yield - Annual | F28: =INDEX(K28:S28,$F$4) -> 1713.6 | G28: MWh/MWp | K28: =K27*0.84 -> 1713.6 | L28: =L27*0.84 -> 1713.6 | M28: 1713.6 | N28: 1713.6 | O28: 1713.6 | P28: 1713.6 | Q28: 1713.6
E29: P90 vs P50 | F29: =F28/F27 -> 0.84 | G29: %
E31: Plant Availability Factor | F31: =INDEX(K31:S31,$F$4) -> 0.99 | G31: % | H31: Energy generated to the grid | K31: 0.99 | L31: 0.99 | M31: 0.99 | N31: 0.99 | O31: 0.99 | P31: 0.99 | Q31: 0.99
E32: Degradation | F32: 0.005 | G32: % p.a. | H32: Solar Cells Degradation | K32: 0.5 | L32: 0.5 | M32: 0.5 | N32: 0.5 | O32: 0.5 | P32: 0.5 | Q32: 0.5
B34: Revenues
E35: PPA Term Contract | F35: =INDEX(K35:S35,$F$4) -> 35 | G35: Years | K35: =K15 -> 35 | L35: =L15 -> 35 | M35: 35 | N35: 35 | O35: 35 | P35: 35 | Q35: 35
E36: Offtake Amount | F36: =INDEX(K36:S36,$F$4) -> 1 | G36: % | H36: Of Total Production | K36: 1 | L36: 1 | M36: 1 | N36: 1 | O36: 1 | P36: 1 | Q36: 1
E37: Power Price for Offtake (USD 2021) | F37: =INDEX(K37:S37,$F$4) -> 30 | G37: USD/MWh | H37: Real Terms - 2021 | K37: 30 | L37: 30 | M37: 30 | N37: 30 | O37: 30 | P37: 30 | Q37: 30
E38: Apply PPA Inflation | F38: =INDEX(K38:Q38,active_scenario) -> 1 | G38: Flag | H38: 1 =Yes; 0 - No | K38: 1 | L38: 0 | M38: 0 | N38: 0 | O38: 0 | P38: 0 | Q38: 0
E39: Start Date for Infaltion | F39: =INDEX(K39:S39,$F$4) -> 2021-01-01 | G39: Date | K39: 2021-01-01 | L39: 2021-01-01 | M39: 2021-01-01 | N39: 2021-01-01 | O39: 2021-01-01 | P39: 2021-01-01 | Q39: 2021-01-01
E40: PPA Inflation Rate from COD | F40: =INDEX(K40:S40,$F$4) -> 0.015 | G40: % p.a. | H40: On costs and Revenues | K40: 0.015 | L40: 0.015 | M40: 0.015 | N40: 0.015 | O40: 0.015 | P40: 0.015 | Q40: 0.015
E42: Revenues Arrear Collection | F42: =INDEX(K42:S42,$F$4) -> 2 | G42: Months | H42: Received in Arrears | K42: 2 | L42: 2 | M42: 2 | N42: 2 | O42: 2 | P42: 2 | Q42: 2
B44: Operation and Maintenance
E45: Land Lease | F45: =INDEX(K45:S45,$F$4) -> 300 | G45: KUSD/Yr | H45: Payable Through Construction | K45: 300 | L45: 300 | M45: 300 | N45: 300 | O45: 300 | P45: 300 | Q45: 300
E46: Land Lease Inflated Switch | F46: 0 | G46: 1 =yes; 0 - No | K46: 0 | L46: 0 | M46: 0 | N46: 0 | O46: 0 | P46: 0 | Q46: 0
E47: Land Lease Infaltion Start | F47: =INDEX(K47:Q47,active_scenario) -> 2023-01-01 | K47: 2023-01-01 | L47: 2023-01-01 | M47: 2023-01-01 | N47: 2023-01-01 | O47: 2023-01-01 | P47: 2023-01-01 | Q47: 2023-01-01
E48: Land Lease Inflation if Applied | F48: =INDEX(K48:S48,$F$4) -> 0.025 | G48: % p.a. | H48: On costs and Revenues | K48: 0.025 | L48: 0.025 | M48: 0.025 | N48: 0.025 | O48: 0.025 | P48: 0.025 | Q48: 0.025
E50: Land Lease Infaltion Start | F50: =F14 -> 2023-08-01 | K50: 2023-01-01
E51: O&M Inflation | F51: =INDEX(K51:S51,$F$4) -> 0.025 | G51: % p.a. | H51: On costs and Revenues | K51: 0.025 | L51: 0.025 | M51: 0.025 | N51: 0.025 | O51: 0.025 | P51: 0.025 | Q51: 0.025
E53: O&M per Year - Initial | F53: =INDEX(K53:S53,$F$4) -> 6.5 | G53: kUSD/MWp-yr | H53: Starting OpEx | K53: 6.5 | L53: 6.5 | M53: 6.5 | N53: 6.5 | O53: 6.5 | P53: 6.5 | Q53: 6.5
E54: Initial Period | F54: =INDEX(K54:S54,$F$4) -> 5 | G54: Years | K54: 5 | L54: 5 | M54: 5 | N54: 5 | O54: 5 | P54: 5 | Q54: 5
E55: O&M per Year after Initial Period | F55: =INDEX(K55:S55,$F$4) -> 4.5 | G55: kUSD/MWp | H55: Due to Economies of Scale | K55: 4.5 | L55: 4.5 | M55: 4.5 | N55: 4.5 | O55: 4.5 | P55: 4.5 | Q55: 4.5
E57: Insurance During Operation | F57: =INDEX(K57:S57,$F$4) -> 3 | G57: kUSD/MWp-yr | H57: Yearly Estimate | K57: 3 | L57: 3 | M57: 3 | N57: 3 | O57: 3 | P57: 3 | Q57: 3
E58: Asset Management Charge | F58: =INDEX(K58:S58,$F$4) -> 5 | G58: kUSD/Yr | H58: Charged to the Plant | K58: 5 | L58: 5 | M58: 5 | N58: 5 | O58: 5 | P58: 5 | Q58: 5
E59: Security Services | F59: =INDEX(K59:S59,$F$4) -> 10 | G59: kUSD/Yr | H59: Protection Against Vandalism | K59: 10 | L59: 10 | M59: 10 | N59: 10 | O59: 10 | P59: 10 | Q59: 10
E60: Additional OpEx | F60: =INDEX(K60:S60,$F$4) -> 2 | G60: kUSD/Yr | H60: Grass Cutting & Cleaning | K60: 2 | L60: 2 | M60: 2 | N60: 2 | O60: 2 | P60: 2 | Q60: 2
E62: Operation and Maintenance Payment Arrears | F62: =INDEX(K62:S62,$F$4) -> 2 | G62: Months | K62: 2 | L62: 2 | M62: 2 | N62: 2 | O62: 2 | P62: 2 | Q62: 2
B64: Capital Expenditures | H64: Paid at Financial Close
E65: Developer Bonus | F65: =INDEX(K65:S65,$F$4) -> 3.6 | G65: mnUSD | H65: Paid to Developer | K65: 3.6 | L65: 3.6 | M65: 3.6 | N65: 3.6 | O65: 3.6 | P65: 3.6 | Q65: 3.6
E66: Period of Developer Bonus | F66: =F9 -> 2023-01-01 | G66: Date | H66: Assume paid in Fin Close (up-front)
E67: EPC Contractor | F67: =INDEX(K67:S67,$F$4) -> 750 | G67: kUSD/MWp | H67: Detailed in Input-S | K67: 750 | L67: 750 | M67: 750 | N67: 750 | O67: 900 | P67: 750 | Q67: 750
E68: Contingency | F68: =INDEX(K68:S68,$F$4) -> 0.005 | G68: % | H68: On base EPC Cost | K68: 0.005 | L68: 0.005 | M68: 0.005 | N68: 0.005 | O68: 0.005 | P68: 0.005 | Q68: 0.005
E69: Additional Costs | F69: =INDEX(K69:S69,$F$4) -> 1.5 | G69: mnUSD | H69: Grid Connection | K69: 1.5 | L69: 1.5 | M69: 1.5 | N69: 1.5 | O69: 1.5 | P69: 1.5 | Q69: 1.5
E70: Insurance | F70: =INDEX(K70:S70,$F$4) -> 10 | G70: kUSD/MW p.a. | H70: Against Delays for Shipping | K70: 10 | L70: 10 | M70: 10 | N70: 10 | O70: 10 | P70: 10 | Q70: 10
B72: Taxes and Capital Allowance
E73: Capital Allowance | F73: =INDEX(K73:S73,$F$4) -> 0.2 | G73: % p.a. | H73: Construction are 100% eligible for capital allowance | K73: 0.2 | L73: 0.2 | M73: 0.2 | N73: 0.2 | O73: 0.2 | P73: 0.2 | Q73: 0.2
E74: Tax Rate | F74: =INDEX(K74:S74,$F$4) -> 0.2 | G74: % | K74: 0.2 | L74: 0.2 | M74: 0.2 | N74: 0.2 | O74: 0.2 | P74: 0.2 | Q74: 0.2
B77: Funding
D78: Senior Debt
E79: Debt | F79: =INDEX(K79:S79,$F$4) -> 0.8 | G79: % | H79: From third Party | K79: 0.8 | L79: 0.8 | M79: 0.8 | N79: 0.8 | O79: 0.8 | P79: 0.8 | Q79: 0.8
E80: Equity | F80: =INDEX(K80:S80,$F$4) -> 0.2 | G80: % | K80: =1-K79 -> 0.2 | L80: =1-L79 -> 0.2 | M80: =1-M79 -> 0.2 | N80: =1-N79 -> 0.2 | O80: =1-O79 -> 0.2 | P80: 0.2 | Q80: 0.2
E81: Maximum Debt Sizing | F81: =INDEX(K81:S81,$F$4) -> 0.8 | G81: % | H81: Tested through DSCR | K81: 0.8 | L81: 0.8 | M81: 0.8 | N81: 0.8 | O81: 0.8 | P81: 0.8 | Q81: 0.8
E82: DSCR Target | F82: 1.25 | K82: 1.25 | L82: 1.25 | M82: 1.25 | N82: 1.25 | O82: 1.25 | P82: 1.25 | Q82: 1.25
E84: Debt Tenor | F84: =INDEX(K84:S84,$F$4) -> 25 | G84: Years | K84: 25 | L84: 25 | M84: 25 | N84: 25 | O84: 25 | P84: 25 | Q84: 25
E85: End of Debt Repayment | F85: =EDATE(F14,F84*Months-1) -> 2048-07-01
E86: Interest and Principal Repayments Timing | F86: =INDEX(K86:S86,$F$4) -> 6 | G86: Months | H86: Every 6 Months | K86: 6 | L86: 6 | M86: 6 | N86: 6 | O86: 6 | P86: 6 | Q86: 6
E88: Annual Interest Rate | F88: =INDEX(K88:S88,$F$4) -> 0.025 | G88: % p.a. | H88: Annual Rate | K88: 0.025 | L88: 0.025 | M88: 0.025 | N88: 0.025 | O88: 0.025 | P88: 0.025 | Q88: 0.025
D90: Shareholder Loan
E91: Shareholder Loan as Percent of Equity | F91: =INDEX(K91:S91,$F$4) -> 0 | K91: 0 | L91: 0 | M91: 0 | N91: 0 | O91: 0 | P91: 0 | Q91: 0.9
E92: Shareholder Loan Interest Rate | F92: =INDEX(K92:S92,$F$4) -> 0.08 | G92: % p.a. | K92: 0.08 | L92: 0.08 | M92: 0.08 | N92: 0.08 | O92: 0.08 | P92: 0.08 | Q92: 0.08
E93: Capitalise Interest on Shareholder Loan | F93: 1 | G93: 1=yes;0=no
E94: Allow SHL Interest Deduction in Taxes | F94: 0 | G94: 1=yes;0=no
E95: Cash Flow Sweep Percent | F95: =INDEX(K95:S95,$F$4) -> 0 | G95: % | K95: =K91 -> 0 | L95: =L91 -> 0 | M95: 0 | N95: 0 | O95: 0 | P95: 0 | Q95: 0.9
B97: Constants
E98: Months in Year | F98: 12 | G98: Months
E99: Inflation Days in Year | F99: 365.25 | G99: Days Inflation
E100: Semi-Annual Periods | F100: 2 | G100: Semi

Sheet InputS
A1: =RIGHT(CELL("filename",A1),LEN(CELL("filename",A1))- SEARCH("]",CELL("filename",A1))) -> InputS
B4: Construction Timeline
E5: Start Period | G5: Date | J5: =TimeM!J2 -> 2023-01-01 | K5: =TimeM!K2 -> 2023-02-01 | L5: =TimeM!L2 -> 2023-03-01 | M5: =TimeM!M2 -> 2023-04-01 | N5: =TimeM!N2 -> 2023-05-01 | O5: =TimeM!O2 -> 2023-06-01 | P5: =TimeM!P2 -> 2023-07-01 | Q5: =TimeM!Q2 -> 2023-08-01 | R5: =TimeM!R2 -> 2023-09-01 | S5: =TimeM!S2 -> 2023-10-01 | T5: =TimeM!T2 -> 2023-11-01 | U5: =TimeM!U2 -> 2023-12-01 | V5: =TimeM!V2 -> 2024-01-01 | W5: =TimeM!W2 -> 2024-02-01 | X5: =TimeM!X2 -> 2024-03-01 | Y5: =TimeM!Y2 -> 2024-04-01 | Z5: =TimeM!Z2 -> 2024-05-01 | AA5: =TimeM!AA2 -> 2024-06-01 | AB5: =TimeM!AB2 -> 2024-07-01 | AC5: =TimeM!AC2 -> 2024-08-01 | AD5: =TimeM!AD2 -> 2024-09-01 | AE5: =TimeM!AE2 -> 2024-10-01 | AF5: =TimeM!AF2 -> 2024-11-01 | AG5: =TimeM!AG2 -> 2024-12-01 | AH5: =TimeM!AH2 -> 2025-01-01
E6: End Period | G6: Date | J6: =TimeM!J3 -> 2023-01-31 | K6: =TimeM!K3 -> 2023-02-28 | L6: =TimeM!L3 -> 2023-03-31 | M6: =TimeM!M3 -> 2023-04-30 | N6: =TimeM!N3 -> 2023-05-31 | O6: =TimeM!O3 -> 2023-06-30 | P6: =TimeM!P3 -> 2023-07-31 | Q6: =TimeM!Q3 -> 2023-08-31 | R6: =TimeM!R3 -> 2023-09-30 | S6: =TimeM!S3 -> 2023-10-31 | T6: =TimeM!T3 -> 2023-11-30 | U6: =TimeM!U3 -> 2023-12-31 | V6: =TimeM!V3 -> 2024-01-31 | W6: =TimeM!W3 -> 2024-02-29 | X6: =TimeM!X3 -> 2024-03-31 | Y6: =TimeM!Y3 -> 2024-04-30 | Z6: =TimeM!Z3 -> 2024-05-31 | AA6: =TimeM!AA3 -> 2024-06-30 | AB6: =TimeM!AB3 -> 2024-07-31 | AC6: =TimeM!AC3 -> 2024-08-31 | AD6: =TimeM!AD3 -> 2024-09-30 | AE6: =TimeM!AE3 -> 2024-10-31 | AF6: =TimeM!AF3 -> 2024-11-30 | AG6: =TimeM!AG3 -> 2024-12-31 | AH6: =TimeM!AH3 -> 2025-01-31
E7: Time Label | G7: Label | J7: =TimeM!J4 -> FC/Const. | K7: =TimeM!K4 -> Const | L7: =TimeM!L4 -> Const | M7: =TimeM!M4 -> Const | N7: =TimeM!N4 -> Const | O7: =TimeM!O4 -> Const | P7: =TimeM!P4 -> Const | Q7: =TimeM!Q4 -> Ops | R7: =TimeM!R4 -> Ops | S7: =TimeM!S4 -> Ops | T7: =TimeM!T4 -> Ops | U7: =TimeM!U4 -> Ops | V7: =TimeM!V4 -> Ops | W7: =TimeM!W4 -> Ops | X7: =TimeM!X4 -> Ops | Y7: =TimeM!Y4 -> Ops | Z7: =TimeM!Z4 -> Ops | AA7: =TimeM!AA4 -> Ops | AB7: =TimeM!AB4 -> Ops | AC7: =TimeM!AC4 -> Ops | AD7: =TimeM!AD4 -> Ops | AE7: =TimeM!AE4 -> Ops | AF7: =TimeM!AF4 -> Ops | AG7: =TimeM!AG4 -> Ops | AH7: =TimeM!AH4 -> Ops
B9: EPC - Expenses | G9: Year | H9: Month
E10: Upfront Payment | F10: 1 | G10: 0.25 | H10: =G10 -> 0.25
E11: 1 Yr Milestone Payment | F11: 3 | G11: 0.5 | H11: =G11 -> 0.5
E12: End of Construction Payment | F12: 5 | G12: 0.25 | H12: =G12 -> 0.25
D14: Construction Period | I14: 0 | J14: 1 | K14: 2 | L14: 3 | M14: 4 | N14: 5 | O14: 6 | P14: 7 | Q14: 8 | R14: 9 | S14: 10 | T14: 11 | U14: 12 | V14: 13 | W14: 14 | X14: 15 | Y14: 16 | Z14: 17 | AA14: 18 | AB14: 19 | AC14: 20 | AD14: 21 | AE14: 22 | AF14: 23 | AG14: 24 | AH14: 25 | AI14: 26 | AJ14: 27 | AK14: 28 | AL14: 29 | AM14: 30 | AN14: 31 | AO14: 32 | AP14: 33 | AQ14: 34 | AR14: 35 | AS14: 36 | AT14: 37 | AU14: 38 | AV14: 39 | AW14: 40 | AX14: 41 | AY14: 42 | AZ14: 43 | BA14: 44 | BB14: 45 | BC14: 46 | BD14: 47 | BE14: 48 | BF14: 49 | BG14: 50
D15: Construction Year | J15: =ROUNDUP(J14/12,0) -> 1 | K15: =ROUNDUP(K14/12,0) -> 1 | L15: 1 | M15: 1 | N15: 1 | O15: 1 | P15: 1 | Q15: 1 | R15: 1 | S15: 1 | T15: 1 | U15: 1 | V15: 2 | W15: 2 | X15: 2 | Y15: 2 | Z15: 2 | AA15: 2 | AB15: 2 | AC15: 2 | AD15: 2 | AE15: 2 | AF15: 2 | AG15: 2 | AH15: 3 | AI15: 3 | AJ15: 3 | AK15: 3 | AL15: 3 | AM15: 3 | AN15: 3 | AO15: 3 | AP15: 3 | AQ15: 3 | AR15: 3 | AS15: 3 | AT15: 4 | AU15: 4 | AV15: 4 | AW15: 4 | AX15: 4 | AY15: 4 | AZ15: 4 | BA15: 4 | BB15: 4 | BC15: 4 | BD15: 4 | BE15: 4 | BF15: 5 | BG15: 5
D16: Construction Months | G16: =InputC!F12 -> 7 | J16: =J14<=$G$16 -> TRUE | K16: =K14<=$G$16 -> TRUE | L16: TRUE | M16: TRUE | N16: TRUE | O16: TRUE | P16: TRUE | Q16: FALSE | R16: FALSE | S16: FALSE | T16: FALSE | U16: FALSE | V16: FALSE | W16: FALSE | X16: FALSE | Y16: FALSE | Z16: FALSE | AA16: FALSE | AB16: FALSE | AC16: FALSE | AD16: FALSE | AE16: FALSE | AF16: FALSE | AG16: FALSE | AH16: FALSE | AI16: FALSE | AJ16: FALSE | AK16: FALSE | AL16: FALSE | AM16: FALSE | AN16: FALSE | AO16: FALSE | AP16: FALSE | AQ16: FALSE | AR16: FALSE | AS16: FALSE | AT16: FALSE | AU16: FALSE | AV16: FALSE | AW16: FALSE | AX16: FALSE | AY16: FALSE | AZ16: FALSE | BA16: FALSE | BB16: FALSE | BC16: FALSE | BD16: FALSE | BE16: FALSE | BF16: FALSE | BG16: FALSE
D17: S-Curve | H17: =SUM(J17:BG17) -> 1 | J17: =_xlfn.XLOOKUP(J14,$F$10:$F$12,$H$10:$H$12,0,0) -> 0.25 | K17: =_xlfn.XLOOKUP(K14,$F$10:$F$12,$H$10:$H$12,0,0) -> 0 | L17: 0.5 | M17: 0 | N17: 0.25 | O17: 0 | P17: 0 | Q17: 0 | R17: 0 | S17: 0 | T17: 0 | U17: 0 | V17: 0 | W17: 0 | X17: 0 | Y17: 0 | Z17: 0 | AA17: 0 | AB17: 0 | AC17: 0 | AD17: 0 | AE17: 0 | AF17: 0 | AG17: 0 | AH17: 0 | AI17: 0 | AJ17: 0 | AK17: 0 | AL17: 0 | AM17: 0 | AN17: 0 | AO17: 0 | AP17: 0 | AQ17: 0 | AR17: 0 | AS17: 0 | AT17: 0 | AU17: 0 | AV17: 0 | AW17: 0 | AX17: 0 | AY17: 0 | AZ17: 0 | BA17: 0 | BB17: 0 | BC17: 0 | BD17: 0 | BE17: 0 | BF17: 0 | BG17: 0
B19: Solar Seasonality
E20: Month Name | G20: Month | H20: 1 | J20: Jan | K20: Feb | L20: March | M20: April | N20: May | O20: June | P20: July | Q20: August | R20: Sept | S20: October | T20: Nov | U20: Dec
E21: Month Number | J21: 1 | K21: 2 | L21: 3 | M21: 4 | N21: 5 | O21: 6 | P21: 7 | Q21: 8 | R21: 9 | S21: 10 | T21: 11 | U21: 12
E22: Resource Availability | G22: % | H22: =SUM(J22:U22) -> 1 | J22: =INDEX(J23:J24,$H$20) -> 0.06666666667 | K22: =INDEX(K23:K24,$H$20) -> 0.06666666667 | L22: =INDEX(L23:L24,$H$20) -> 0.08 | M22: =INDEX(M23:M24,$H$20) -> 0.085 | N22: =INDEX(N23:N24,$H$20) -> 0.09 | O22: =INDEX(O23:O24,$H$20) -> 0.12 | P22: =INDEX(P23:P24,$H$20) -> 0.12 | Q22: =INDEX(Q23:Q24,$H$20) -> 0.09 | R22: =INDEX(R23:R24,$H$20) -> 0.08 | S22: =INDEX(S23:S24,$H$20) -> 0.07 | T22: =INDEX(T23:T24,$H$20) -> 0.065 | U22: =INDEX(U23:U24,$H$20) -> 0.06666666667
E23: Resource Availability | G23: % | H23: =SUM(J23:U23) -> 1 | J23: =1/15 -> 0.06666666667 | K23: =1/15 -> 0.06666666667 | L23: 0.08 | M23: 0.085 | N23: 0.09 | O23: 0.12 | P23: 0.12 | Q23: 0.09 | R23: 0.08 | S23: 0.07 | T23: 0.065 | U23: 0.06666666667
E24: Resource Availability | G24: % | H24: 1.0001 | J24: 0.1242 | K24: 0.1037 | L24: 0.0975 | M24: 0.0714 | N24: 0.0518 | O24: 0.0419 | P24: 0.048 | Q24: 0.0596 | R24: 0.0753 | S24: 0.0986 | T24: 0.1122 | U24: 0.1159

Sheet TimeM
A1: =MID(CELL("filename"),FIND("]",CELL("filename"),1)+1,250) -> InputC
E2: Model period start date - monthly - header | J2: =J9 -> 2023-01-01 | K2: =K9 -> 2023-02-01 | L2: 2023-03-01 | M2: 2023-04-01 | N2: 2023-05-01 | O2: 2023-06-01 | P2: 2023-07-01 | Q2: 2023-08-01 | R2: 2023-09-01 | S2: 2023-10-01 | T2: 2023-11-01 | U2: 2023-12-01 | V2: 2024-01-01 | W2: 2024-02-01 | X2: 2024-03-01 | Y2: 2024-04-01 | Z2: 2024-05-01 | AA2: 2024-06-01 | AB2: 2024-07-01 | AC2: 2024-08-01 | AD2: 2024-09-01 | AE2: 2024-10-01 | AF2: 2024-11-01 | AG2: 2024-12-01 | AH2: 2025-01-01 | AI2: 2025-02-01 | AJ2: 2025-03-01 | AK2: 2025-04-01 | AL2: 2025-05-01 | AM2: 2025-06-01 | AN2: 2025-07-01 | AO2: 2025-08-01 | AP2: 2025-09-01 | AQ2: 2025-10-01 | AR2: 2025-11-01 | AS2: 2025-12-01 | AT2: 2026-01-01 | AU2: 2026-02-01 | AV2: 2026-03-01 | AW2: 2026-04-01 | AX2: 2026-05-01 | AY2: 2026-06-01 | AZ2: 2026-07-01 | BA2: 2026-08-01 | BB2: 2026-09-01 | BC2: 2026-10-01 | BD2: 2026-11-01 | BE2: 2026-12-01 | BF2: 2027-01-01 | BG2: 2027-02-01 | BH2: 2027-03-01 | BI2: 2027-04-01 | BJ2: 2027-05-01 | BK2: 2027-06-01 | BL2: 2027-07-01 | BM2: 2027-08-01 | BN2: 2027-09-01 | BO2: 2027-10-01 | BP2: 2027-11-01 | BQ2: 2027-12-01 | BR2: 2028-01-01 | BS2: 2028-02-01 | BT2: 2028-03-01 | BU2: 2028-04-01 | BV2: 2028-05-01 | BW2: =BW9 -> 2028-06-01 | BX2: 2028-07-01 | BY2: 2028-08-01 | BZ2: 2028-09-01 | CA2: 2028-10-01 | CB2: 2028-11-01 | CC2: 2028-12-01 | CD2: 2029-01-01 | CE2: 2029-02-01 | CF2: 2029-03-01 | CG2: 2029-04-01 | CH2: 2029-05-01 | CI2: 2029-06-01 | CJ2: 2029-07-01 | CK2: 2029-08-01 | CL2: 2029-09-01 | CM2: 2029-10-01 | CN2: 2029-11-01 | CO2: 2029-12-01 | CP2: 2030-01-01 | CQ2: 2030-02-01 | CR2: 2030-03-01 | CS2: 2030-04-01 | CT2: 2030-05-01 | CU2: 2030-06-01 | CV2: 2030-07-01 | CW2: 2030-08-01 | CX2: 2030-09-01 | CY2: 2030-10-01 | CZ2: 2030-11-01 | DA2: 2030-12-01 | DB2: 2031-01-01 | DC2: 2031-02-01 | DD2: 2031-03-01 | DE2: 2031-04-01 | DF2: 2031-05-01 | DG2: 2031-06-01 | DH2: 2031-07-01 | DI2: 2031-08-01 | DJ2: 2031-09-01 | DK2: 2031-10-01 | DL2: 2031-11-01 | DM2: 2031-12-01 | DN2: 2032-01-01 | DO2: 2032-02-01 | DP2: 2032-03-01 | DQ2: 2032-04-01 | DR2: 2032-05-01 | DS2: 2032-06-01 | DT2: 2032-07-01 | DU2: 2032-08-01 | DV2: 2032-09-01 | DW2: 2032-10-01 | DX2: 2032-11-01 | DY2: 2032-12-01 | DZ2: 2033-01-01 | EA2: 2033-02-01 | EB2: 2033-03-01 | EC2: 2033-04-01 | ED2: 2033-05-01 | EE2: 2033-06-01 | EF2: 2033-07-01 | EG2: 2033-08-01 | EH2: 2033-09-01 | EI2: =EI9 -> 2033-10-01 | EJ2: 2033-11-01 | EK2: 2033-12-01 | EL2: 2034-01-01 | EM2: 2034-02-01 | EN2: 2034-03-01 | EO2: 2034-04-01 | EP2: 2034-05-01 | EQ2: 2034-06-01 | ER2: 2034-07-01 | ES2: 2034-08-01 | ET2: 2034-09-01 | EU2: 2034-10-01 | EV2: 2034-11-01 | EW2: 2034-12-01 | EX2: 2035-01-01 | EY2: 2035-02-01 | EZ2: 2035-03-01 | FA2: 2035-04-01 | FB2: 2035-05-01 | FC2: 2035-06-01 | FD2: 2035-07-01 | FE2: 2035-08-01 | FF2: 2035-09-01 | FG2: 2035-10-01 | FH2: 2035-11-01 | FI2: 2035-12-01 | FJ2: 2036-01-01 | FK2: 2036-02-01 | FL2: 2036-03-01 | FM2: 2036-04-01 | FN2: 2036-05-01 | FO2: 2036-06-01 | FP2: 2036-07-01 | FQ2: 2036-08-01 | FR2: 2036-09-01 | FS2: 2036-10-01 | FT2: 2036-11-01 | FU2: 2036-12-01 | FV2: 2037-01-01 | FW2: 2037-02-01 | FX2: 2037-03-01 | FY2: 2037-04-01 | FZ2: 2037-05-01 | GA2: 2037-06-01 | GB2: 2037-07-01 | GC2: 2037-08-01 | GD2: 2037-09-01 | GE2: 2037-10-01 | GF2: 2037-11-01 | GG2: 2037-12-01 | GH2: 2038-01-01 | GI2: 2038-02-01 | GJ2: 2038-03-01 | GK2: 2038-04-01 | GL2: 2038-05-01 | GM2: 2038-06-01 | GN2: 2038-07-01 | GO2: 2038-08-01 | GP2: 2038-09-01 | GQ2: 2038-10-01 | GR2: 2038-11-01 | GS2: 2038-12-01 | GT2: 2039-01-01 | GU2: =GU9 -> 2039-02-01 | GV2: 2039-03-01 | GW2: 2039-04-01 | GX2: 2039-05-01 | GY2: 2039-06-01 | GZ2: 2039-07-01 | HA2: 2039-08-01 | HB2: 2039-09-01 | HC2: 2039-10-01 | HD2: 2039-11-01 | HE2: 2039-12-01 | HF2: 2040-01-01 | HG2: 2040-02-01 | HH2: 2040-03-01 | HI2: 2040-04-01 | HJ2: 2040-05-01 | HK2: 2040-06-01 | HL2: 2040-07-01 | HM2: 2040-08-01 | HN2: 2040-09-01 | HO2: 2040-10-01 | HP2: 2040-11-01 | HQ2: 2040-12-01 | HR2: 2041-01-01 | HS2: 2041-02-01 | HT2: 2041-03-01 | HU2: 2041-04-01 | HV2: 2041-05-01 | HW2: 2041-06-01 | HX2: 2041-07-01 | HY2: 2041-08-01 | HZ2: 2041-09-01 | IA2: 2041-10-01 | IB2: 2041-11-01 | IC2: 2041-12-01 | ID2: 2042-01-01 | IE2: 2042-02-01 | IF2: 2042-03-01 | IG2: 2042-04-01 | IH2: 2042-05-01 | II2: 2042-06-01 | IJ2: 2042-07-01 | IK2: 2042-08-01 | IL2: 2042-09-01 | IM2: 2042-10-01 | IN2: 2042-11-01 | IO2: 2042-12-01 | IP2: 2043-01-01 | IQ2: 2043-02-01 | IR2: 2043-03-01 | IS2: 2043-04-01 | IT2: 2043-05-01 | IU2: 2043-06-01 | IV2: 2043-07-01 | IW2: 2043-08-01 | IX2: 2043-09-01 | IY2: 2043-10-01 | IZ2: 2043-11-01 | JA2: 2043-12-01 | JB2: 2044-01-01 | JC2: 2044-02-01 | JD2: 2044-03-01 | JE2: 2044-04-01 | JF2: 2044-05-01 | JG2: =JG9 -> 2044-06-01 | JH2: 2044-07-01 | JI2: 2044-08-01 | JJ2: 2044-09-01 | JK2: 2044-10-01 | JL2: 2044-11-01 | JM2: 2044-12-01 | JN2: 2045-01-01 | JO2: 2045-02-01 | JP2: 2045-03-01 | JQ2: 2045-04-01 | JR2: 2045-05-01 | JS2: 2045-06-01 | JT2: 2045-07-01 | JU2: 2045-08-01 | JV2: 2045-09-01 | JW2: 2045-10-01 | JX2: 2045-11-01 | JY2: 2045-12-01 | JZ2: 2046-01-01 | KA2: 2046-02-01 | KB2: 2046-03-01 | KC2: 2046-04-01 | KD2: 2046-05-01 | KE2: 2046-06-01 | KF2: 2046-07-01 | KG2: 2046-08-01 | KH2: 2046-09-01 | KI2: 2046-10-01 | KJ2: 2046-11-01 | KK2: 2046-12-01 | KL2: 2047-01-01 | KM2: 2047-02-01 | KN2: 2047-03-01 | KO2: 2047-04-01 | KP2: 2047-05-01 | KQ2: 2047-06-01 | KR2: 2047-07-01 | KS2: 2047-08-01 | KT2: 2047-09-01 | KU2: 2047-10-01 | KV2: 2047-11-01 | KW2: 2047-12-01 | KX2: 2048-01-01 | KY2: 2048-02-01 | KZ2: 2048-03-01 | LA2: 2048-04-01 | LB2: 2048-05-01 | LC2: 2048-06-01 | LD2: 2048-07-01 | LE2: 2048-08-01 | LF2: 2048-09-01 | LG2: 2048-10-01 | LH2: 2048-11-01 | LI2: 2048-12-01 | LJ2: 2049-01-01 | LK2: 2049-02-01 | LL2: 2049-03-01 | LM2: 2049-04-01 | LN2: 2049-05-01 | LO2: 2049-06-01 | LP2: 2049-07-01 | LQ2: 2049-08-01 | LR2: 2049-09-01 | LS2: =LS9 -> 2049-10-01 | LT2: 2049-11-01 | LU2: 2049-12-01 | LV2: 2050-01-01 | LW2: 2050-02-01 | LX2: 2050-03-01 | LY2: 2050-04-01 | LZ2: 2050-05-01 | MA2: 2050-06-01 | MB2: 2050-07-01 | MC2: 2050-08-01 | MD2: 2050-09-01 | ME2: 2050-10-01 | MF2: 2050-11-01 | MG2: 2050-12-01 | MH2: 2051-01-01 | MI2: 2051-02-01 | MJ2: 2051-03-01 | MK2: 2051-04-01 | ML2: 2051-05-01 | MM2: 2051-06-01 | MN2: 2051-07-01 | MO2: 2051-08-01 | MP2: 2051-09-01 | MQ2: 2051-10-01 | MR2: 2051-11-01 | MS2: 2051-12-01 | MT2: 2052-01-01 | MU2: 2052-02-01 | MV2: 2052-03-01 | MW2: 2052-04-01 | MX2: 2052-05-01 | MY2: 2052-06-01 | MZ2: 2052-07-01 | NA2: 2052-08-01 | NB2: 2052-09-01 | NC2: 2052-10-01 | ND2: 2052-11-01 | NE2: 2052-12-01 | NF2: 2053-01-01 | NG2: 2053-02-01 | NH2: 2053-03-01 | NI2: 2053-04-01 | NJ2: 2053-05-01 | NK2: 2053-06-01 | NL2: 2053-07-01 | NM2: 2053-08-01 | NN2: 2053-09-01 | NO2: 2053-10-01 | NP2: 2053-11-01 | NQ2: 2053-12-01 | NR2: 2054-01-01 | NS2: 2054-02-01 | NT2: 2054-03-01 | NU2: 2054-04-01 | NV2: 2054-05-01 | NW2: 2054-06-01 | NX2: 2054-07-01 | NY2: 2054-08-01 | NZ2: 2054-09-01 | OA2: 2054-10-01 | OB2: 2054-11-01 | OC2: 2054-12-01 | OD2: 2055-01-01 | OE2: =OE9 -> 2055-02-01 | OF2: 2055-03-01 | OG2: 2055-04-01 | OH2: 2055-05-01 | OI2: 2055-06-01 | OJ2: 2055-07-01 | OK2: 2055-08-01 | OL2: 2055-09-01 | OM2: 2055-10-01 | ON2: 2055-11-01 | OO2: 2055-12-01 | OP2: 2056-01-01 | OQ2: 2056-02-01 | OR2: 2056-03-01 | OS2: 2056-04-01 | OT2: 2056-05-01 | OU2: 2056-06-01 | OV2: 2056-07-01 | OW2: 2056-08-01 | OX2: 2056-09-01 | OY2: 2056-10-01 | OZ2: 2056-11-01 | PA2: 2056-12-01 | PB2: 2057-01-01 | PC2: 2057-02-01 | PD2: 2057-03-01 | PE2: 2057-04-01 | PF2: 2057-05-01 | PG2: 2057-06-01 | PH2: 2057-07-01 | PI2: 2057-08-01 | PJ2: 2057-09-01 | PK2: 2057-10-01 | PL2: 2057-11-01 | PM2: 2057-12-01 | PN2: 2058-01-01 | PO2: 2058-02-01 | PP2: 2058-03-01 | PQ2: 2058-04-01 | PR2: 2058-05-01 | PS2: 2058-06-01 | PT2: 2058-07-01 | PU2: 2058-08-01 | PV2: 2058-09-01 | PW2: 2058-10-01 | PX2: 2058-11-01 | PY2: 2058-12-01 | PZ2: 2059-01-01 | QA2: 2059-02-01 | QB2: 2059-03-01 | QC2: 2059-04-01 | QD2: 2059-05-01 | QE2: 2059-06-01 | QF2: 2059-07-01 | QG2: 2059-08-01 | QH2: 2059-09-01 | QI2: 2059-10-01 | QJ2: 2059-11-01 | QK2: 2059-12-01 | QL2: 2060-01-01 | QM2: 2060-02-01 | QN2: 2060-03-01 | QO2: 2060-04-01 | QP2: 2060-05-01 | QQ2: =QQ9 -> 2060-06-01 | QR2: 2060-07-01 | QS2: 2060-08-01 | QT2: 2060-09-01 | QU2: 2060-10-01 | QV2: 2060-11-01 | QW2: 2060-12-01 | QX2: 2061-01-01 | QY2: 2061-02-01 | QZ2: 2061-03-01 | RA2: 2061-04-01 | RB2: 2061-05-01 | RC2: 2061-06-01 | RD2: 2061-07-01 | RE2: 2061-08-01 | RF2: 2061-09-01 | RG2: 2061-10-01 | RH2: 2061-11-01 | RI2: 2061-12-01 | RJ2: 2062-01-01 | RK2: 2062-02-01 | RL2: 2062-03-01 | RM2: 2062-04-01 | RN2: 2062-05-01 | RO2: 2062-06-01 | RP2: 2062-07-01 | RQ2: 2062-08-01 | RR2: 2062-09-01 | RS2: 2062-10-01 | RT2: 2062-11-01 | RU2: 2062-12-01 | RV2: 2063-01-01 | RW2: 2063-02-01 | RX2: 2063-03-01 | RY2: 2063-04-01 | RZ2: 2063-05-01 | SA2: 2063-06-01 | SB2: 2063-07-01 | SC2: 2063-08-01 | SD2: 2063-09-01 | SE2: 2063-10-01 | SF2: 2063-11-01 | SG2: 2063-12-01 | SH2: 2064-01-01 | SI2: 2064-02-01 | SJ2: 2064-03-01 | SK2: 2064-04-01 | SL2: 2064-05-01 | SM2: 2064-06-01 | SN2: 2064-07-01 | SO2: 2064-08-01
E3: Model period end date - monthly - header | J3: =J10 -> 2023-01-31 | K3: =K10 -> 2023-02-28 | L3: 2023-03-31 | M3: 2023-04-30 | N3: 2023-05-31 | O3: 2023-06-30 | P3: 2023-07-31 | Q3: 2023-08-31 | R3: 2023-09-30 | S3: 2023-10-31 | T3: 2023-11-30 | U3: 2023-12-31 | V3: 2024-01-31 | W3: 2024-02-29 | X3: 2024-03-31 | Y3: 2024-04-30 | Z3: 2024-05-31 | AA3: 2024-06-30 | AB3: 2024-07-31 | AC3: 2024-08-31 | AD3: 2024-09-30 | AE3: 2024-10-31 | AF3: 2024-11-30 | AG3: 2024-12-31 | AH3: 2025-01-31 | AI3: 2025-02-28 | AJ3: 2025-03-31 | AK3: 2025-04-30 | AL3: 2025-05-31 | AM3: 2025-06-30 | AN3: 2025-07-31 | AO3: 2025-08-31 | AP3: 2025-09-30 | AQ3: 2025-10-31 | AR3: 2025-11-30 | AS3: 2025-12-31 | AT3: 2026-01-31 | AU3: 2026-02-28 | AV3: 2026-03-31 | AW3: 2026-04-30 | AX3: 2026-05-31 | AY3: 2026-06-30 | AZ3: 2026-07-31 | BA3: 2026-08-31 | BB3: 2026-09-30 | BC3: 2026-10-31 | BD3: 2026-11-30 | BE3: 2026-12-31 | BF3: 2027-01-31 | BG3: 2027-02-28 | BH3: 2027-03-31 | BI3: 2027-04-30 | BJ3: 2027-05-31 | BK3: 2027-06-30 | BL3: 2027-07-31 | BM3: 2027-08-31 | BN3: 2027-09-30 | BO3: 2027-10-31 | BP3: 2027-11-30 | BQ3: 2027-12-31 | BR3: 2028-01-31 | BS3: 2028-02-29 | BT3: 2028-03-31 | BU3: 2028-04-30 | BV3: 2028-05-31 | BW3: =BW10 -> 2028-06-30 | BX3: 2028-07-31 | BY3: 2028-08-31 | BZ3: 2028-09-30 | CA3: 2028-10-31 | CB3: 2028-11-30 | CC3: 2028-12-31 | CD3: 2029-01-31 | CE3: 2029-02-28 | CF3: 2029-03-31 | CG3: 2029-04-30 | CH3: 2029-05-31 | CI3: 2029-06-30 | CJ3: 2029-07-31 | CK3: 2029-08-31 | CL3: 2029-09-30 | CM3: 2029-10-31 | CN3: 2029-11-30 | CO3: 2029-12-31 | CP3: 2030-01-31 | CQ3: 2030-02-28 | CR3: 2030-03-31 | CS3: 2030-04-30 | CT3: 2030-05-31 | CU3: 2030-06-30 | CV3: 2030-07-31 | CW3: 2030-08-31 | CX3: 2030-09-30 | CY3: 2030-10-31 | CZ3: 2030-11-30 | DA3: 2030-12-31 | DB3: 2031-01-31 | DC3: 2031-02-28 | DD3: 2031-03-31 | DE3: 2031-04-30 | DF3: 2031-05-31 | DG3: 2031-06-30 | DH3: 2031-07-31 | DI3: 2031-08-31 | DJ3: 2031-09-30 | DK3: 2031-10-31 | DL3: 2031-11-30 | DM3: 2031-12-31 | DN3: 2032-01-31 | DO3: 2032-02-29 | DP3: 2032-03-31 | DQ3: 2032-04-30 | DR3: 2032-05-31 | DS3: 2032-06-30 | DT3: 2032-07-31 | DU3: 2032-08-31 | DV3: 2032-09-30 | DW3: 2032-10-31 | DX3: 2032-11-30 | DY3: 2032-12-31 | DZ3: 2033-01-31 | EA3: 2033-02-28 | EB3: 2033-03-31 | EC3: 2033-04-30 | ED3: 2033-05-31 | EE3: 2033-06-30 | EF3: 2033-07-31 | EG3: 2033-08-31 | EH3: 2033-09-30 | EI3: =EI10 -> 2033-10-31 | EJ3: 2033-11-30 | EK3: 2033-12-31 | EL3: 2034-01-31 | EM3: 2034-02-28 | EN3: 2034-03-31 | EO3: 2034-04-30 | EP3: 2034-05-31 | EQ3: 2034-06-30 | ER3: 2034-07-31 | ES3: 2034-08-31 | ET3: 2034-09-30 | EU3: 2034-10-31 | EV3: 2034-11-30 | EW3: 2034-12-31 | EX3: 2035-01-31 | EY3: 2035-02-28 | EZ3: 2035-03-31 | FA3: 2035-04-30 | FB3: 2035-05-31 | FC3: 2035-06-30 | FD3: 2035-07-31 | FE3: 2035-08-31 | FF3: 2035-09-30 | FG3: 2035-10-31 | FH3: 2035-11-30 | FI3: 2035-12-31 | FJ3: 2036-01-31 | FK3: 2036-02-29 | FL3: 2036-03-31 | FM3: 2036-04-30 | FN3: 2036-05-31 | FO3: 2036-06-30 | FP3: 2036-07-31 | FQ3: 2036-08-31 | FR3: 2036-09-30 | FS3: 2036-10-31 | FT3: 2036-11-30 | FU3: 2036-12-31 | FV3: 2037-01-31 | FW3: 2037-02-28 | FX3: 2037-03-31 | FY3: 2037-04-30 | FZ3: 2037-05-31 | GA3: 2037-06-30 | GB3: 2037-07-31 | GC3: 2037-08-31 | GD3: 2037-09-30 | GE3: 2037-10-31 | GF3: 2037-11-30 | GG3: 2037-12-31 | GH3: 2038-01-31 | GI3: 2038-02-28 | GJ3: 2038-03-31 | GK3: 2038-04-30 | GL3: 2038-05-31 | GM3: 2038-06-30 | GN3: 2038-07-31 | GO3: 2038-08-31 | GP3: 2038-09-30 | GQ3: 2038-10-31 | GR3: 2038-11-30 | GS3: 2038-12-31 | GT3: 2039-01-31 | GU3: =GU10 -> 2039-02-28 | GV3: 2039-03-31 | GW3: 2039-04-30 | GX3: 2039-05-31 | GY3: 2039-06-30 | GZ3: 2039-07-31 | HA3: 2039-08-31 | HB3: 2039-09-30 | HC3: 2039-10-31 | HD3: 2039-11-30 | HE3: 2039-12-31 | HF3: 2040-01-31 | HG3: 2040-02-29 | HH3: 2040-03-31 | HI3: 2040-04-30 | HJ3: 2040-05-31 | HK3: 2040-06-30 | HL3: 2040-07-31 | HM3: 2040-08-31 | HN3: 2040-09-30 | HO3: 2040-10-31 | HP3: 2040-11-30 | HQ3: 2040-12-31 | HR3: 2041-01-31 | HS3: 2041-02-28 | HT3: 2041-03-31 | HU3: 2041-04-30 | HV3: 2041-05-31 | HW3: 2041-06-30 | HX3: 2041-07-31 | HY3: 2041-08-31 | HZ3: 2041-09-30 | IA3: 2041-10-31 | IB3: 2041-11-30 | IC3: 2041-12-31 | ID3: 2042-01-31 | IE3: 2042-02-28 | IF3: 2042-03-31 | IG3: 2042-04-30 | IH3: 2042-05-31 | II3: 2042-06-30 | IJ3: 2042-07-31 | IK3: 2042-08-31 | IL3: 2042-09-30 | IM3: 2042-10-31 | IN3: 2042-11-30 | IO3: 2042-12-31 | IP3: 2043-01-31 | IQ3: 2043-02-28 | IR3: 2043-03-31 | IS3: 2043-04-30 | IT3: 2043-05-31 | IU3: 2043-06-30 | IV3: 2043-07-31 | IW3: 2043-08-31 | IX3: 2043-09-30 | IY3: 2043-10-31 | IZ3: 2043-11-30 | JA3: 2043-12-31 | JB3: 2044-01-31 | JC3: 2044-02-29 | JD3: 2044-03-31 | JE3: 2044-04-30 | JF3: 2044-05-31 | JG3: =JG10 -> 2044-06-30 | JH3: 2044-07-31 | JI3: 2044-08-31 | JJ3: 2044-09-30 | JK3: 2044-10-31 | JL3: 2044-11-30 | JM3: 2044-12-31 | JN3: 2045-01-31 | JO3: 2045-02-28 | JP3: 2045-03-31 | JQ3: 2045-04-30 | JR3: 2045-05-31 | JS3: 2045-06-30 | JT3: 2045-07-31 | JU3: 2045-08-31 | JV3: 2045-09-30 | JW3: 2045-10-31 | JX3: 2045-11-30 | JY3: 2045-12-31 | JZ3: 2046-01-31 | KA3: 2046-02-28 | KB3: 2046-03-31 | KC3: 2046-04-30 | KD3: 2046-05-31 | KE3: 2046-06-30 | KF3: 2046-07-31 | KG3: 2046-08-31 | KH3: 2046-09-30 | KI3: 2046-10-31 | KJ3: 2046-11-30 | KK3: 2046-12-31 | KL3: 2047-01-31 | KM3: 2047-02-28 | KN3: 2047-03-31 | KO3: 2047-04-30 | KP3: 2047-05-31 | KQ3: 2047-06-30 | KR3: 2047-07-31 | KS3: 2047-08-31 | KT3: 2047-09-30 | KU3: 2047-10-31 | KV3: 2047-11-30 | KW3: 2047-12-31 | KX3: 2048-01-31 | KY3: 2048-02-29 | KZ3: 2048-03-31 | LA3: 2048-04-30 | LB3: 2048-05-31 | LC3: 2048-06-30 | LD3: 2048-07-31 | LE3: 2048-08-31 | LF3: 2048-09-30 | LG3: 2048-10-31 | LH3: 2048-11-30 | LI3: 2048-12-31 | LJ3: 2049-01-31 | LK3: 2049-02-28 | LL3: 2049-03-31 | LM3: 2049-04-30 | LN3: 2049-05-31 | LO3: 2049-06-30 | LP3: 2049-07-31 | LQ3: 2049-08-31 | LR3: 2049-09-30 | LS3: =LS10 -> 2049-10-31 | LT3: 2049-11-30 | LU3: 2049-12-31 | LV3: 2050-01-31 | LW3: 2050-02-28 | LX3: 2050-03-31 | LY3: 2050-04-30 | LZ3: 2050-05-31 | MA3: 2050-06-30 | MB3: 2050-07-31 | MC3: 2050-08-31 | MD3: 2050-09-30 | ME3: 2050-10-31 | MF3: 2050-11-30 | MG3: 2050-12-31 | MH3: 2051-01-31 | MI3: 2051-02-28 | MJ3: 2051-03-31 | MK3: 2051-04-30 | ML3: 2051-05-31 | MM3: 2051-06-30 | MN3: 2051-07-31 | MO3: 2051-08-31 | MP3: 2051-09-30 | MQ3: 2051-10-31 | MR3: 2051-11-30 | MS3: 2051-12-31 | MT3: 2052-01-31 | MU3: 2052-02-29 | MV3: 2052-03-31 | MW3: 2052-04-30 | MX3: 2052-05-31 | MY3: 2052-06-30 | MZ3: 2052-07-31 | NA3: 2052-08-31 | NB3: 2052-09-30 | NC3: 2052-10-31 | ND3: 2052-11-30 | NE3: 2052-12-31 | NF3: 2053-01-31 | NG3: 2053-02-28 | NH3: 2053-03-31 | NI3: 2053-04-30 | NJ3: 2053-05-31 | NK3: 2053-06-30 | NL3: 2053-07-31 | NM3: 2053-08-31 | NN3: 2053-09-30 | NO3: 2053-10-31 | NP3: 2053-11-30 | NQ3: 2053-12-31 | NR3: 2054-01-31 | NS3: 2054-02-28 | NT3: 2054-03-31 | NU3: 2054-04-30 | NV3: 2054-05-31 | NW3: 2054-06-30 | NX3: 2054-07-31 | NY3: 2054-08-31 | NZ3: 2054-09-30 | OA3: 2054-10-31 | OB3: 2054-11-30 | OC3: 2054-12-31 | OD3: 2055-01-31 | OE3: =OE10 -> 2055-02-28 | OF3: 2055-03-31 | OG3: 2055-04-30 | OH3: 2055-05-31 | OI3: 2055-06-30 | OJ3: 2055-07-31 | OK3: 2055-08-31 | OL3: 2055-09-30 | OM3: 2055-10-31 | ON3: 2055-11-30 | OO3: 2055-12-31 | OP3: 2056-01-31 | OQ3: 2056-02-29 | OR3: 2056-03-31 | OS3: 2056-04-30 | OT3: 2056-05-31 | OU3: 2056-06-30 | OV3: 2056-07-31 | OW3: 2056-08-31 | OX3: 2056-09-30 | OY3: 2056-10-31 | OZ3: 2056-11-30 | PA3: 2056-12-31 | PB3: 2057-01-31 | PC3: 2057-02-28 | PD3: 2057-03-31 | PE3: 2057-04-30 | PF3: 2057-05-31 | PG3: 2057-06-30 | PH3: 2057-07-31 | PI3: 2057-08-31 | PJ3: 2057-09-30 | PK3: 2057-10-31 | PL3: 2057-11-30 | PM3: 2057-12-31 | PN3: 2058-01-31 | PO3: 2058-02-28 | PP3: 2058-03-31 | PQ3: 2058-04-30 | PR3: 2058-05-31 | PS3: 2058-06-30 | PT3: 2058-07-31 | PU3: 2058-08-31 | PV3: 2058-09-30 | PW3: 2058-10-31 | PX3: 2058-11-30 | PY3: 2058-12-31 | PZ3: 2059-01-31 | QA3: 2059-02-28 | QB3: 2059-03-31 | QC3: 2059-04-30 | QD3: 2059-05-31 | QE3: 2059-06-30 | QF3: 2059-07-31 | QG3: 2059-08-31 | QH3: 2059-09-30 | QI3: 2059-10-31 | QJ3: 2059-11-30 | QK3: 2059-12-31 | QL3: 2060-01-31 | QM3: 2060-02-29 | QN3: 2060-03-31 | QO3: 2060-04-30 | QP3: 2060-05-31 | QQ3: =QQ10 -> 2060-06-30 | QR3: 2060-07-31 | QS3: 2060-08-31 | QT3: 2060-09-30 | QU3: 2060-10-31 | QV3: 2060-11-30 | QW3: 2060-12-31 | QX3: 2061-01-31 | QY3: 2061-02-28 | QZ3: 2061-03-31 | RA3: 2061-04-30 | RB3: 2061-05-31 | RC3: 2061-06-30 | RD3: 2061-07-31 | RE3: 2061-08-31 | RF3: 2061-09-30 | RG3: 2061-10-31 | RH3: 2061-11-30 | RI3: 2061-12-31 | RJ3: 2062-01-31 | RK3: 2062-02-28 | RL3: 2062-03-31 | RM3: 2062-04-30 | RN3: 2062-05-31 | RO3: 2062-06-30 | RP3: 2062-07-31 | RQ3: 2062-08-31 | RR3: 2062-09-30 | RS3: 2062-10-31 | RT3: 2062-11-30 | RU3: 2062-12-31 | RV3: 2063-01-31 | RW3: 2063-02-28 | RX3: 2063-03-31 | RY3: 2063-04-30 | RZ3: 2063-05-31 | SA3: 2063-06-30 | SB3: 2063-07-31 | SC3: 2063-08-31 | SD3: 2063-09-30 | SE3: 2063-10-31 | SF3: 2063-11-30 | SG3: 2063-12-31 | SH3: 2064-01-31 | SI3: 2064-02-29 | SJ3: 2064-03-31 | SK3: 2064-04-30 | SL3: 2064-05-31 | SM3: 2064-06-30 | SN3: 2064-07-31 | SO3: 2064-08-31
E4: Timeline label | J4: =J36 -> FC/Const. | K4: =K36 -> Const | L4: Const | M4: Const | N4: Const | O4: Const | P4: Const | Q4: Ops | R4: Ops | S4: Ops | T4: Ops | U4: Ops | V4: Ops | W4: Ops | X4: Ops | Y4: Ops | Z4: Ops | AA4: Ops | AB4: Ops | AC4: Ops | AD4: Ops | AE4: Ops | AF4: Ops | AG4: Ops | AH4: Ops | AI4: Ops | AJ4: Ops | AK4: Ops | AL4: Ops | AM4: Ops | AN4: Ops | AO4: Ops | AP4: Ops | AQ4: Ops | AR4: Ops | AS4: Ops | AT4: Ops | AU4: Ops | AV4: Ops | AW4: Ops | AX4: Ops | AY4: Ops | AZ4: Ops | BA4: Ops | BB4: Ops | BC4: Ops | BD4: Ops | BE4: Ops | BF4: Ops | BG4: Ops | BH4: Ops | BI4: Ops | BJ4: Ops | BK4: Ops | BL4: Ops | BM4: Ops | BN4: Ops | BO4: Ops | BP4: Ops | BQ4: Ops | BR4: Ops | BS4: Ops | BT4: Ops | BU4: Ops | BV4: Ops | BW4: =BW36 -> Ops | BX4: Ops | BY4: Ops | BZ4: Ops | CA4: Ops | CB4: Ops | CC4: Ops | CD4: Ops | CE4: Ops | CF4: Ops | CG4: Ops | CH4: Ops | CI4: Ops | CJ4: Ops | CK4: Ops | CL4: Ops | CM4: Ops | CN4: Ops | CO4: Ops | CP4: Ops | CQ4: Ops | CR4: Ops | CS4: Ops | CT4: Ops | CU4: Ops | CV4: Ops | CW4: Ops | CX4: Ops | CY4: Ops | CZ4: Ops | DA4: Ops | DB4: Ops | DC4: Ops | DD4: Ops | DE4: Ops | DF4: Ops | DG4: Ops | DH4: Ops | DI4: Ops | DJ4: Ops | DK4: Ops | DL4: Ops | DM4: Ops | DN4: Ops | DO4: Ops | DP4: Ops | DQ4: Ops | DR4: Ops | DS4: Ops | DT4: Ops | DU4: Ops | DV4: Ops | DW4: Ops | DX4: Ops | DY4: Ops | DZ4: Ops | EA4: Ops | EB4: Ops | EC4: Ops | ED4: Ops | EE4: Ops | EF4: Ops | EG4: Ops | EH4: Ops | EI4: =EI36 -> Ops | EJ4: Ops | EK4: Ops | EL4: Ops | EM4: Ops | EN4: Ops | EO4: Ops | EP4: Ops | EQ4: Ops | ER4: Ops | ES4: Ops | ET4: Ops | EU4: Ops | EV4: Ops | EW4: Ops | EX4: Ops | EY4: Ops | EZ4: Ops | FA4: Ops | FB4: Ops | FC4: Ops | FD4: Ops | FE4: Ops | FF4: Ops | FG4: Ops | FH4: Ops | FI4: Ops | FJ4: Ops | FK4: Ops | FL4: Ops | FM4: Ops | FN4: Ops | FO4: Ops | FP4: Ops | FQ4: Ops | FR4: Ops | FS4: Ops | FT4: Ops | FU4: Ops | FV4: Ops | FW4: Ops | FX4: Ops | FY4: Ops | FZ4: Ops | GA4: Ops | GB4: Ops | GC4: Ops | GD4: Ops | GE4: Ops | GF4: Ops | GG4: Ops | GH4: Ops | GI4: Ops | GJ4: Ops | GK4: Ops | GL4: Ops | GM4: Ops | GN4: Ops | GO4: Ops | GP4: Ops | GQ4: Ops | GR4: Ops | GS4: Ops | GT4: Ops | GU4: =GU36 -> Ops | GV4: Ops | GW4: Ops | GX4: Ops | GY4: Ops | GZ4: Ops | HA4: Ops | HB4: Ops | HC4: Ops | HD4: Ops | HE4: Ops | HF4: Ops | HG4: Ops | HH4: Ops | HI4: Ops | HJ4: Ops | HK4: Ops | HL4: Ops | HM4: Ops | HN4: Ops | HO4: Ops | HP4: Ops | HQ4: Ops | HR4: Ops | HS4: Ops | HT4: Ops | HU4: Ops | HV4: Ops | HW4: Ops | HX4: Ops | HY4: Ops | HZ4: Ops | IA4: Ops | IB4: Ops | IC4: Ops | ID4: Ops | IE4: Ops | IF4: Ops | IG4: Ops | IH4: Ops | II4: Ops | IJ4: Ops | IK4: Ops | IL4: Ops | IM4: Ops | IN4: Ops | IO4: Ops | IP4: Ops | IQ4: Ops | IR4: Ops | IS4: Ops | IT4: Ops | IU4: Ops | IV4: Ops | IW4: Ops | IX4: Ops | IY4: Ops | IZ4: Ops | JA4: Ops | JB4: Ops | JC4: Ops | JD4: Ops | JE4: Ops | JF4: Ops | JG4: =JG36 -> Ops | JH4: Ops | JI4: Ops | JJ4: Ops | JK4: Ops | JL4: Ops | JM4: Ops | JN4: Ops | JO4: Ops | JP4: Ops | JQ4: Ops | JR4: Ops | JS4: Ops | JT4: Ops | JU4: Ops | JV4: Ops | JW4: Ops | JX4: Ops | JY4: Ops | JZ4: Ops | KA4: Ops | KB4: Ops | KC4: Ops | KD4: Ops | KE4: Ops | KF4: Ops | KG4: Ops | KH4: Ops | KI4: Ops | KJ4: Ops | KK4: Ops | KL4: Ops | KM4: Ops | KN4: Ops | KO4: Ops | KP4: Ops | KQ4: Ops | KR4: Ops | KS4: Ops | KT4: Ops | KU4: Ops | KV4: Ops | KW4: Ops | KX4: Ops | KY4: Ops | KZ4: Ops | LA4: Ops | LB4: Ops | LC4: Ops | LD4: Ops | LE4: Ops | LF4: Ops | LG4: Ops | LH4: Ops | LI4: Ops | LJ4: Ops | LK4: Ops | LL4: Ops | LM4: Ops | LN4: Ops | LO4: Ops | LP4: Ops | LQ4: Ops | LR4: Ops | LS4: =LS36 -> Ops | LT4: Ops | LU4: Ops | LV4: Ops | LW4: Ops | LX4: Ops | LY4: Ops | LZ4: Ops | MA4: Ops | MB4: Ops | MC4: Ops | MD4: Ops | ME4: Ops | MF4: Ops | MG4: Ops | MH4: Ops | MI4: Ops | MJ4: Ops | MK4: Ops | ML4: Ops | MM4: Ops | MN4: Ops | MO4: Ops | MP4: Ops | MQ4: Ops | MR4: Ops | MS4: Ops | MT4: Ops | MU4: Ops | MV4: Ops | MW4: Ops | MX4: Ops | MY4: Ops | MZ4: Ops | NA4: Ops | NB4: Ops | NC4: Ops | ND4: Ops | NE4: Ops | NF4: Ops | NG4: Ops | NH4: Ops | NI4: Ops | NJ4: Ops | NK4: Ops | NL4: Ops | NM4: Ops | NN4: Ops | NO4: Ops | NP4: Ops | NQ4: Ops | NR4: Ops | NS4: Ops | NT4: Ops | NU4: Ops | NV4: Ops | NW4: Ops | NX4: Ops | NY4: Ops | NZ4: Ops | OA4: Ops | OB4: Ops | OC4: Ops | OD4: Ops | OE4: =OE36 -> Ops | OF4: Ops | OG4: Ops | OH4: Ops | OI4: Ops | OJ4: Ops | OK4: Ops | OL4: Ops | OM4: Ops | ON4: Ops | OO4: Ops | OP4: Ops | OQ4: Ops | OR4: Ops | OS4: Ops | OT4: Ops | OU4: Ops | OV4: Ops | OW4: Ops | OX4: Ops | OY4: Ops | OZ4: Ops | PA4: Ops | PB4: Ops | PC4: Ops | PD4: Ops | PE4: Ops | PF4: Ops | PG4: Ops | PH4: Ops | PI4: Ops | PJ4: Ops | PK4: Ops | PL4: Ops | PM4: Ops | PN4: Ops | PO4: Ops | PP4: Ops | PQ4: Ops | PR4: Ops | PS4: Ops | PT4: Ops | PU4: Ret | PV4: Ret | PW4: Ret | PX4: Ret | PY4: Ret | PZ4: Ret | QA4: Ret | QB4: Ret | QC4: Ret | QD4: Ret | QE4: Ret | QF4: Ret | QG4: Ret | QH4: Ret | QI4: Ret | QJ4: Ret | QK4: Ret | QL4: Ret | QM4: Ret | QN4: Ret | QO4: Ret | QP4: Ret | QQ4: =QQ36 -> Ret | QR4: Ret | QS4: Ret | QT4: Ret | QU4: Ret | QV4: Ret | QW4: Ret | QX4: Ret | QY4: Ret | QZ4: Ret | RA4: Ret | RB4: Ret | RC4: Ret | RD4: Ret | RE4: Ret | RF4: Ret | RG4: Ret | RH4: Ret | RI4: Ret | RJ4: Ret | RK4: Ret | RL4: Ret | RM4: Ret | RN4: Ret | RO4: Ret | RP4: Ret | RQ4: Ret | RR4: Ret | RS4: Ret | RT4: Ret | RU4: Ret | RV4: Ret | RW4: Ret | RX4: Ret | RY4: Ret | RZ4: Ret | SA4: Ret | SB4: Ret | SC4: Ret | SD4: Ret | SE4: Ret | SF4: Ret | SG4: Ret | SH4: Ret | SI4: Ret | SJ4: Ret | SK4: Ret | SL4: Ret | SM4: Ret | SN4: Ret | SO4: Ret
E5: =Checks!$E$12 -> Model Ok | F5: Constant | G5: Unit | H5: Total
E7: Model Counter | J7: =I7+1 -> 1 | K7: =J7+1 -> 2 | L7: 3 | M7: 4 | N7: 5 | O7: 6 | P7: 7 | Q7: 8 | R7: 9 | S7: 10 | T7: 11 | U7: 12 | V7: 13 | W7: 14 | X7: 15 | Y7: 16 | Z7: 17 | AA7: 18 | AB7: 19 | AC7: 20 | AD7: 21 | AE7: 22 | AF7: 23 | AG7: 24 | AH7: 25 | AI7: 26 | AJ7: 27 | AK7: 28 | AL7: 29 | AM7: 30 | AN7: 31 | AO7: 32 | AP7: 33 | AQ7: 34 | AR7: 35 | AS7: 36 | AT7: 37 | AU7: 38 | AV7: 39 | AW7: 40 | AX7: 41 | AY7: 42 | AZ7: 43 | BA7: 44 | BB7: 45 | BC7: 46 | BD7: 47 | BE7: 48 | BF7: 49 | BG7: 50 | BH7: 51 | BI7: 52 | BJ7: 53 | BK7: 54 | BL7: 55 | BM7: 56 | BN7: 57 | BO7: 58 | BP7: 59 | BQ7: 60 | BR7: 61 | BS7: 62 | BT7: 63 | BU7: 64 | BV7: 65 | BW7: =BV7+1 -> 66 | BX7: 67 | BY7: 68 | BZ7: 69 | CA7: 70 | CB7: 71 | CC7: 72 | CD7: 73 | CE7: 74 | CF7: 75 | CG7: 76 | CH7: 77 | CI7: 78 | CJ7: 79 | CK7: 80 | CL7: 81 | CM7: 82 | CN7: 83 | CO7: 84 | CP7: 85 | CQ7: 86 | CR7: 87 | CS7: 88 | CT7: 89 | CU7: 90 | CV7: 91 | CW7: 92 | CX7: 93 | CY7: 94 | CZ7: 95 | DA7: 96 | DB7: 97 | DC7: 98 | DD7: 99 | DE7: 100 | DF7: 101 | DG7: 102 | DH7: 103 | DI7: 104 | DJ7: 105 | DK7: 106 | DL7: 107 | DM7: 108 | DN7: 109 | DO7: 110 | DP7: 111 | DQ7: 112 | DR7: 113 | DS7: 114 | DT7: 115 | DU7: 116 | DV7: 117 | DW7: 118 | DX7: 119 | DY7: 120 | DZ7: 121 | EA7: 122 | EB7: 123 | EC7: 124 | ED7: 125 | EE7: 126 | EF7: 127 | EG7: 128 | EH7: 129 | EI7: =EH7+1 -> 130 | EJ7: 131 | EK7: 132 | EL7: 133 | EM7: 134 | EN7: 135 | EO7: 136 | EP7: 137 | EQ7: 138 | ER7: 139 | ES7: 140 | ET7: 141 | EU7: 142 | EV7: 143 | EW7: 144 | EX7: 145 | EY7: 146 | EZ7: 147 | FA7: 148 | FB7: 149 | FC7: 150 | FD7: 151 | FE7: 152 | FF7: 153 | FG7: 154 | FH7: 155 | FI7: 156 | FJ7: 157 | FK7: 158 | FL7: 159 | FM7: 160 | FN7: 161 | FO7: 162 | FP7: 163 | FQ7: 164 | FR7: 165 | FS7: 166 | FT7: 167 | FU7: 168 | FV7: 169 | FW7: 170 | FX7: 171 | FY7: 172 | FZ7: 173 | GA7: 174 | GB7: 175 | GC7: 176 | GD7: 177 | GE7: 178 | GF7: 179 | GG7: 180 | GH7: 181 | GI7: 182 | GJ7: 183 | GK7: 184 | GL7: 185 | GM7: 186 | GN7: 187 | GO7: 188 | GP7: 189 | GQ7: 190 | GR7: 191 | GS7: 192 | GT7: 193 | GU7: =GT7+1 -> 194 | GV7: 195 | GW7: 196 | GX7: 197 | GY7: 198 | GZ7: 199 | HA7: 200 | HB7: 201 | HC7: 202 | HD7: 203 | HE7: 204 | HF7: 205 | HG7: 206 | HH7: 207 | HI7: 208 | HJ7: 209 | HK7: 210 | HL7: 211 | HM7: 212 | HN7: 213 | HO7: 214 | HP7: 215 | HQ7: 216 | HR7: 217 | HS7: 218 | HT7: 219 | HU7: 220 | HV7: 221 | HW7: 222 | HX7: 223 | HY7: 224 | HZ7: 225 | IA7: 226 | IB7: 227 | IC7: 228 | ID7: 229 | IE7: 230 | IF7: 231 | IG7: 232 | IH7: 233 | II7: 234 | IJ7: 235 | IK7: 236 | IL7: 237 | IM7: 238 | IN7: 239 | IO7: 240 | IP7: 241 | IQ7: 242 | IR7: 243 | IS7: 244 | IT7: 245 | IU7: 246 | IV7: 247 | IW7: 248 | IX7: 249 | IY7: 250 | IZ7: 251 | JA7: 252 | JB7: 253 | JC7: 254 | JD7: 255 | JE7: 256 | JF7: 257 | JG7: =JF7+1 -> 258 | JH7: 259 | JI7: 260 | JJ7: 261 | JK7: 262 | JL7: 263 | JM7: 264 | JN7: 265 | JO7: 266 | JP7: 267 | JQ7: 268 | JR7: 269 | JS7: 270 | JT7: 271 | JU7: 272 | JV7: 273 | JW7: 274 | JX7: 275 | JY7: 276 | JZ7: 277 | KA7: 278 | KB7: 279 | KC7: 280 | KD7: 281 | KE7: 282 | KF7: 283 | KG7: 284 | KH7: 285 | KI7: 286 | KJ7: 287 | KK7: 288 | KL7: 289 | KM7: 290 | KN7: 291 | KO7: 292 | KP7: 293 | KQ7: 294 | KR7: 295 | KS7: 296 | KT7: 297 | KU7: 298 | KV7: 299 | KW7: 300 | KX7: 301 | KY7: 302 | KZ7: 303 | LA7: 304 | LB7: 305 | LC7: 306 | LD7: 307 | LE7: 308 | LF7: 309 | LG7: 310 | LH7: 311 | LI7: 312 | LJ7: 313 | LK7: 314 | LL7: 315 | LM7: 316 | LN7: 317 | LO7: 318 | LP7: 319 | LQ7: 320 | LR7: 321 | LS7: =LR7+1 -> 322 | LT7: 323 | LU7: 324 | LV7: 325 | LW7: 326 | LX7: 327 | LY7: 328 | LZ7: 329 | MA7: 330 | MB7: 331 | MC7: 332 | MD7: 333 | ME7: 334 | MF7: 335 | MG7: 336 | MH7: 337 | MI7: 338 | MJ7: 339 | MK7: 340 | ML7: 341 | MM7: 342 | MN7: 343 | MO7: 344 | MP7: 345 | MQ7: 346 | MR7: 347 | MS7: 348 | MT7: 349 | MU7: 350 | MV7: 351 | MW7: 352 | MX7: 353 | MY7: 354 | MZ7: 355 | NA7: 356 | NB7: 357 | NC7: 358 | ND7: 359 | NE7: 360 | NF7: 361 | NG7: 362 | NH7: 363 | NI7: 364 | NJ7: 365 | NK7: 366 | NL7: 367 | NM7: 368 | NN7: 369 | NO7: 370 | NP7: 371 | NQ7: 372 | NR7: 373 | NS7: 374 | NT7: 375 | NU7: 376 | NV7: 377 | NW7: 378 | NX7: 379 | NY7: 380 | NZ7: 381 | OA7: 382 | OB7: 383 | OC7: 384 | OD7: 385 | OE7: =OD7+1 -> 386 | OF7: 387 | OG7: 388 | OH7: 389 | OI7: 390 | OJ7: 391 | OK7: 392 | OL7: 393 | OM7: 394 | ON7: 395 | OO7: 396 | OP7: 397 | OQ7: 398 | OR7: 399 | OS7: 400 | OT7: 401 | OU7: 402 | OV7: 403 | OW7: 404 | OX7: 405 | OY7: 406 | OZ7: 407 | PA7: 408 | PB7: 409 | PC7: 410 | PD7: 411 | PE7: 412 | PF7: 413 | PG7: 414 | PH7: 415 | PI7: 416 | PJ7: 417 | PK7: 418 | PL7: 419 | PM7: 420 | PN7: 421 | PO7: 422 | PP7: 423 | PQ7: 424 | PR7: 425 | PS7: 426 | PT7: 427 | PU7: 428 | PV7: 429 | PW7: 430 | PX7: 431 | PY7: 432 | PZ7: 433 | QA7: 434 | QB7: 435 | QC7: 436 | QD7: 437 | QE7: 438 | QF7: 439 | QG7: 440 | QH7: 441 | QI7: 442 | QJ7: 443 | QK7: 444 | QL7: 445 | QM7: 446 | QN7: 447 | QO7: 448 | QP7: 449 | QQ7: =QP7+1 -> 450 | QR7: 451 | QS7: 452 | QT7: 453 | QU7: 454 | QV7: 455 | QW7: 456 | QX7: 457 | QY7: 458 | QZ7: 459 | RA7: 460 | RB7: 461 | RC7: 462 | RD7: 463 | RE7: 464 | RF7: 465 | RG7: 466 | RH7: 467 | RI7: 468 | RJ7: 469 | RK7: 470 | RL7: 471 | RM7: 472 | RN7: 473 | RO7: 474 | RP7: 475 | RQ7: 476 | RR7: 477 | RS7: 478 | RT7: 479 | RU7: 480 | RV7: 481 | RW7: 482 | RX7: 483 | RY7: 484 | RZ7: 485 | SA7: 486 | SB7: 487 | SC7: 488 | SD7: 489 | SE7: 490 | SF7: 491 | SG7: 492 | SH7: 493 | SI7: 494 | SJ7: 495 | SK7: 496 | SL7: 497 | SM7: 498 | SN7: 499 | SO7: 500
E8: Model Start Date | F8: =InputC!F9 -> 2023-01-01
E9: Start of Month | J9: =IF(J7=1,$F$8,EDATE(I9,1)) -> 2023-01-01 | K9: =IF(K7=1,$F$8,EDATE(J9,1)) -> 2023-02-01 | L9: 2023-03-01 | M9: 2023-04-01 | N9: 2023-05-01 | O9: 2023-06-01 | P9: 2023-07-01 | Q9: 2023-08-01 | R9: 2023-09-01 | S9: 2023-10-01 | T9: 2023-11-01 | U9: 2023-12-01 | V9: 2024-01-01 | W9: 2024-02-01 | X9: 2024-03-01 | Y9: 2024-04-01 | Z9: 2024-05-01 | AA9: 2024-06-01 | AB9: 2024-07-01 | AC9: 2024-08-01 | AD9: 2024-09-01 | AE9: 2024-10-01 | AF9: 2024-11-01 | AG9: 2024-12-01 | AH9: 2025-01-01 | AI9: 2025-02-01 | AJ9: 2025-03-01 | AK9: 2025-04-01 | AL9: 2025-05-01 | AM9: 2025-06-01 | AN9: 2025-07-01 | AO9: 2025-08-01 | AP9: 2025-09-01 | AQ9: 2025-10-01 | AR9: 2025-11-01 | AS9: 2025-12-01 | AT9: 2026-01-01 | AU9: 2026-02-01 | AV9: 2026-03-01 | AW9: 2026-04-01 | AX9: 2026-05-01 | AY9: 2026-06-01 | AZ9: 2026-07-01 | BA9: 2026-08-01 | BB9: 2026-09-01 | BC9: 2026-10-01 | BD9: 2026-11-01 | BE9: 2026-12-01 | BF9: 2027-01-01 | BG9: 2027-02-01 | BH9: 2027-03-01 | BI9: 2027-04-01 | BJ9: 2027-05-01 | BK9: 2027-06-01 | BL9: 2027-07-01 | BM9: 2027-08-01 | BN9: 2027-09-01 | BO9: 2027-10-01 | BP9: 2027-11-01 | BQ9: 2027-12-01 | BR9: 2028-01-01 | BS9: 2028-02-01 | BT9: 2028-03-01 | BU9: 2028-04-01 | BV9: 2028-05-01 | BW9: =IF(BW7=1,$F$8,EDATE(BV9,1)) -> 2028-06-01 | BX9: 2028-07-01 | BY9: 2028-08-01 | BZ9: 2028-09-01 | CA9: 2028-10-01 | CB9: 2028-11-01 | CC9: 2028-12-01 | CD9: 2029-01-01 | CE9: 2029-02-01 | CF9: 2029-03-01 | CG9: 2029-04-01 | CH9: 2029-05-01 | CI9: 2029-06-01 | CJ9: 2029-07-01 | CK9: 2029-08-01 | CL9: 2029-09-01 | CM9: 2029-10-01 | CN9: 2029-11-01 | CO9: 2029-12-01 | CP9: 2030-01-01 | CQ9: 2030-02-01 | CR9: 2030-03-01 | CS9: 2030-04-01 | CT9: 2030-05-01 | CU9: 2030-06-01 | CV9: 2030-07-01 | CW9: 2030-08-01 | CX9: 2030-09-01 | CY9: 2030-10-01 | CZ9: 2030-11-01 | DA9: 2030-12-01 | DB9: 2031-01-01 | DC9: 2031-02-01 | DD9: 2031-03-01 | DE9: 2031-04-01 | DF9: 2031-05-01 | DG9: 2031-06-01 | DH9: 2031-07-01 | DI9: 2031-08-01 | DJ9: 2031-09-01 | DK9: 2031-10-01 | DL9: 2031-11-01 | DM9: 2031-12-01 | DN9: 2032-01-01 | DO9: 2032-02-01 | DP9: 2032-03-01 | DQ9: 2032-04-01 | DR9: 2032-05-01 | DS9: 2032-06-01 | DT9: 2032-07-01 | DU9: 2032-08-01 | DV9: 2032-09-01 | DW9: 2032-10-01 | DX9: 2032-11-01 | DY9: 2032-12-01 | DZ9: 2033-01-01 | EA9: 2033-02-01 | EB9: 2033-03-01 | EC9: 2033-04-01 | ED9: 2033-05-01 | EE9: 2033-06-01 | EF9: 2033-07-01 | EG9: 2033-08-01 | EH9: 2033-09-01 | EI9: =IF(EI7=1,$F$8,EDATE(EH9,1)) -> 2033-10-01 | EJ9: 2033-11-01 | EK9: 2033-12-01 | EL9: 2034-01-01 | EM9: 2034-02-01 | EN9: 2034-03-01 | EO9: 2034-04-01 | EP9: 2034-05-01 | EQ9: 2034-06-01 | ER9: 2034-07-01 | ES9: 2034-08-01 | ET9: 2034-09-01 | EU9: 2034-10-01 | EV9: 2034-11-01 | EW9: 2034-12-01 | EX9: 2035-01-01 | EY9: 2035-02-01 | EZ9: 2035-03-01 | FA9: 2035-04-01 | FB9: 2035-05-01 | FC9: 2035-06-01 | FD9: 2035-07-01 | FE9: 2035-08-01 | FF9: 2035-09-01 | FG9: 2035-10-01 | FH9: 2035-11-01 | FI9: 2035-12-01 | FJ9: 2036-01-01 | FK9: 2036-02-01 | FL9: 2036-03-01 | FM9: 2036-04-01 | FN9: 2036-05-01 | FO9: 2036-06-01 | FP9: 2036-07-01 | FQ9: 2036-08-01 | FR9: 2036-09-01 | FS9: 2036-10-01 | FT9: 2036-11-01 | FU9: 2036-12-01 | FV9: 2037-01-01 | FW9: 2037-02-01 | FX9: 2037-03-01 | FY9: 2037-04-01 | FZ9: 2037-05-01 | GA9: 2037-06-01 | GB9: 2037-07-01 | GC9: 2037-08-01 | GD9: 2037-09-01 | GE9: 2037-10-01 | GF9: 2037-11-01 | GG9: 2037-12-01 | GH9: 2038-01-01 | GI9: 2038-02-01 | GJ9: 2038-03-01 | GK9: 2038-04-01 | GL9: 2038-05-01 | GM9: 2038-06-01 | GN9: 2038-07-01 | GO9: 2038-08-01 | GP9: 2038-09-01 | GQ9: 2038-10-01 | GR9: 2038-11-01 | GS9: 2038-12-01 | GT9: 2039-01-01 | GU9: =IF(GU7=1,$F$8,EDATE(GT9,1)) -> 2039-02-01 | GV9: 2039-03-01 | GW9: 2039-04-01 | GX9: 2039-05-01 | GY9: 2039-06-01 | GZ9: 2039-07-01 | HA9: 2039-08-01 | HB9: 2039-09-01 | HC9: 2039-10-01 | HD9: 2039-11-01 | HE9: 2039-12-01 | HF9: 2040-01-01 | HG9: 2040-02-01 | HH9: 2040-03-01 | HI9: 2040-04-01 | HJ9: 2040-05-01 | HK9: 2040-06-01 | HL9: 2040-07-01 | HM9: 2040-08-01 | HN9: 2040-09-01 | HO9: 2040-10-01 | HP9: 2040-11-01 | HQ9: 2040-12-01 | HR9: 2041-01-01 | HS9: 2041-02-01 | HT9: 2041-03-01 | HU9: 2041-04-01 | HV9: 2041-05-01 | HW9: 2041-06-01 | HX9: 2041-07-01 | HY9: 2041-08-01 | HZ9: 2041-09-01 | IA9: 2041-10-01 | IB9: 2041-11-01 | IC9: 2041-12-01 | ID9: 2042-01-01 | IE9: 2042-02-01 | IF9: 2042-03-01 | IG9: 2042-04-01 | IH9: 2042-05-01 | II9: 2042-06-01 | IJ9: 2042-07-01 | IK9: 2042-08-01 | IL9: 2042-09-01 | IM9: 2042-10-01 | IN9: 2042-11-01 | IO9: 2042-12-01 | IP9: 2043-01-01 | IQ9: 2043-02-01 | IR9: 2043-03-01 | IS9: 2043-04-01 | IT9: 2043-05-01 | IU9: 2043-06-01 | IV9: 2043-07-01 | IW9: 2043-08-01 | IX9: 2043-09-01 | IY9: 2043-10-01 | IZ9: 2043-11-01 | JA9: 2043-12-01 | JB9: 2044-01-01 | JC9: 2044-02-01 | JD9: 2044-03-01 | JE9: 2044-04-01 | JF9: 2044-05-01 | JG9: =IF(JG7=1,$F$8,EDATE(JF9,1)) -> 2044-06-01 | JH9: 2044-07-01 | JI9: 2044-08-01 | JJ9: 2044-09-01 | JK9: 2044-10-01 | JL9: 2044-11-01 | JM9: 2044-12-01 | JN9: 2045-01-01 | JO9: 2045-02-01 | JP9: 2045-03-01 | JQ9: 2045-04-01 | JR9: 2045-05-01 | JS9: 2045-06-01 | JT9: 2045-07-01 | JU9: 2045-08-01 | JV9: 2045-09-01 | JW9: 2045-10-01 | JX9: 2045-11-01 | JY9: 2045-12-01 | JZ9: 2046-01-01 | KA9: 2046-02-01 | KB9: 2046-03-01 | KC9: 2046-04-01 | KD9: 2046-05-01 | KE9: 2046-06-01 | KF9: 2046-07-01 | KG9: 2046-08-01 | KH9: 2046-09-01 | KI9: 2046-10-01 | KJ9: 2046-11-01 | KK9: 2046-12-01 | KL9: 2047-01-01 | KM9: 2047-02-01 | KN9: 2047-03-01 | KO9: 2047-04-01 | KP9: 2047-05-01 | KQ9: 2047-06-01 | KR9: 2047-07-01 | KS9: 2047-08-01 | KT9: 2047-09-01 | KU9: 2047-10-01 | KV9: 2047-11-01 | KW9: 2047-12-01 | KX9: 2048-01-01 | KY9: 2048-02-01 | KZ9: 2048-03-01 | LA9: 2048-04-01 | LB9: 2048-05-01 | LC9: 2048-06-01 | LD9: 2048-07-01 | LE9: 2048-08-01 | LF9: 2048-09-01 | LG9: 2048-10-01 | LH9: 2048-11-01 | LI9: 2048-12-01 | LJ9: 2049-01-01 | LK9: 2049-02-01 | LL9: 2049-03-01 | LM9: 2049-04-01 | LN9: 2049-05-01 | LO9: 2049-06-01 | LP9: 2049-07-01 | LQ9: 2049-08-01 | LR9: 2049-09-01 | LS9: =IF(LS7=1,$F$8,EDATE(LR9,1)) -> 2049-10-01 | LT9: 2049-11-01 | LU9: 2049-12-01 | LV9: 2050-01-01 | LW9: 2050-02-01 | LX9: 2050-03-01 | LY9: 2050-04-01 | LZ9: 2050-05-01 | MA9: 2050-06-01 | MB9: 2050-07-01 | MC9: 2050-08-01 | MD9: 2050-09-01 | ME9: 2050-10-01 | MF9: 2050-11-01 | MG9: 2050-12-01 | MH9: 2051-01-01 | MI9: 2051-02-01 | MJ9: 2051-03-01 | MK9: 2051-04-01 | ML9: 2051-05-01 | MM9: 2051-06-01 | MN9: 2051-07-01 | MO9: 2051-08-01 | MP9: 2051-09-01 | MQ9: 2051-10-01 | MR9: 2051-11-01 | MS9: 2051-12-01 | MT9: 2052-01-01 | MU9: 2052-02-01 | MV9: 2052-03-01 | MW9: 2052-04-01 | MX9: 2052-05-01 | MY9: 2052-06-01 | MZ9: 2052-07-01 | NA9: 2052-08-01 | NB9: 2052-09-01 | NC9: 2052-10-01 | ND9: 2052-11-01 | NE9: 2052-12-01 | NF9: 2053-01-01 | NG9: 2053-02-01 | NH9: 2053-03-01 | NI9: 2053-04-01 | NJ9: 2053-05-01 | NK9: 2053-06-01 | NL9: 2053-07-01 | NM9: 2053-08-01 | NN9: 2053-09-01 | NO9: 2053-10-01 | NP9: 2053-11-01 | NQ9: 2053-12-01 | NR9: 2054-01-01 | NS9: 2054-02-01 | NT9: 2054-03-01 | NU9: 2054-04-01 | NV9: 2054-05-01 | NW9: 2054-06-01 | NX9: 2054-07-01 | NY9: 2054-08-01 | NZ9: 2054-09-01 | OA9: 2054-10-01 | OB9: 2054-11-01 | OC9: 2054-12-01 | OD9: 2055-01-01 | OE9: =IF(OE7=1,$F$8,EDATE(OD9,1)) -> 2055-02-01 | OF9: 2055-03-01 | OG9: 2055-04-01 | OH9: 2055-05-01 | OI9: 2055-06-01 | OJ9: 2055-07-01 | OK9: 2055-08-01 | OL9: 2055-09-01 | OM9: 2055-10-01 | ON9: 2055-11-01 | OO9: 2055-12-01 | OP9: 2056-01-01 | OQ9: 2056-02-01 | OR9: 2056-03-01 | OS9: 2056-04-01 | OT9: 2056-05-01 | OU9: 2056-06-01 | OV9: 2056-07-01 | OW9: 2056-08-01 | OX9: 2056-09-01 | OY9: 2056-10-01 | OZ9: 2056-11-01 | PA9: 2056-12-01 | PB9: 2057-01-01 | PC9: 2057-02-01 | PD9: 2057-03-01 | PE9: 2057-04-01 | PF9: 2057-05-01 | PG9: 2057-06-01 | PH9: 2057-07-01 | PI9: 2057-08-01 | PJ9: 2057-09-01 | PK9: 2057-10-01 | PL9: 2057-11-01 | PM9: 2057-12-01 | PN9: 2058-01-01 | PO9: 2058-02-01 | PP9: 2058-03-01 | PQ9: 2058-04-01 | PR9: 2058-05-01 | PS9: 2058-06-01 | PT9: 2058-07-01 | PU9: 2058-08-01 | PV9: 2058-09-01 | PW9: 2058-10-01 | PX9: 2058-11-01 | PY9: 2058-12-01 | PZ9: 2059-01-01 | QA9: 2059-02-01 | QB9: 2059-03-01 | QC9: 2059-04-01 | QD9: 2059-05-01 | QE9: 2059-06-01 | QF9: 2059-07-01 | QG9: 2059-08-01 | QH9: 2059-09-01 | QI9: 2059-10-01 | QJ9: 2059-11-01 | QK9: 2059-12-01 | QL9: 2060-01-01 | QM9: 2060-02-01 | QN9: 2060-03-01 | QO9: 2060-04-01 | QP9: 2060-05-01 | QQ9: =IF(QQ7=1,$F$8,EDATE(QP9,1)) -> 2060-06-01 | QR9: 2060-07-01 | QS9: 2060-08-01 | QT9: 2060-09-01 | QU9: 2060-10-01 | QV9: 2060-11-01 | QW9: 2060-12-01 | QX9: 2061-01-01 | QY9: 2061-02-01 | QZ9: 2061-03-01 | RA9: 2061-04-01 | RB9: 2061-05-01 | RC9: 2061-06-01 | RD9: 2061-07-01 | RE9: 2061-08-01 | RF9: 2061-09-01 | RG9: 2061-10-01 | RH9: 2061-11-01 | RI9: 2061-12-01 | RJ9: 2062-01-01 | RK9: 2062-02-01 | RL9: 2062-03-01 | RM9: 2062-04-01 | RN9: 2062-05-01 | RO9: 2062-06-01 | RP9: 2062-07-01 | RQ9: 2062-08-01 | RR9: 2062-09-01 | RS9: 2062-10-01 | RT9: 2062-11-01 | RU9: 2062-12-01 | RV9: 2063-01-01 | RW9: 2063-02-01 | RX9: 2063-03-01 | RY9: 2063-04-01 | RZ9: 2063-05-01 | SA9: 2063-06-01 | SB9: 2063-07-01 | SC9: 2063-08-01 | SD9: 2063-09-01 | SE9: 2063-10-01 | SF9: 2063-11-01 | SG9: 2063-12-01 | SH9: 2064-01-01 | SI9: 2064-02-01 | SJ9: 2064-03-01 | SK9: 2064-04-01 | SL9: 2064-05-01 | SM9: 2064-06-01 | SN9: 2064-07-01 | SO9: 2064-08-01
E10: End of Month | J10: =EOMONTH(J9,0) -> 2023-01-31 | K10: =EOMONTH(K9,0) -> 2023-02-28 | L10: 2023-03-31 | M10: 2023-04-30 | N10: 2023-05-31 | O10: 2023-06-30 | P10: 2023-07-31 | Q10: 2023-08-31 | R10: 2023-09-30 | S10: 2023-10-31 | T10: 2023-11-30 | U10: 2023-12-31 | V10: 2024-01-31 | W10: 2024-02-29 | X10: 2024-03-31 | Y10: 2024-04-30 | Z10: 2024-05-31 | AA10: 2024-06-30 | AB10: 2024-07-31 | AC10: 2024-08-31 | AD10: 2024-09-30 | AE10: 2024-10-31 | AF10: 2024-11-30 | AG10: 2024-12-31 | AH10: 2025-01-31 | AI10: 2025-02-28 | AJ10: 2025-03-31 | AK10: 2025-04-30 | AL10: 2025-05-31 | AM10: 2025-06-30 | AN10: 2025-07-31 | AO10: 2025-08-31 | AP10: 2025-09-30 | AQ10: 2025-10-31 | AR10: 2025-11-30 | AS10: 2025-12-31 | AT10: 2026-01-31 | AU10: 2026-02-28 | AV10: 2026-03-31 | AW10: 2026-04-30 | AX10: 2026-05-31 | AY10: 2026-06-30 | AZ10: 2026-07-31 | BA10: 2026-08-31 | BB10: 2026-09-30 | BC10: 2026-10-31 | BD10: 2026-11-30 | BE10: 2026-12-31 | BF10: 2027-01-31 | BG10: 2027-02-28 | BH10: 2027-03-31 | BI10: 2027-04-30 | BJ10: 2027-05-31 | BK10: 2027-06-30 | BL10: 2027-07-31 | BM10: 2027-08-31 | BN10: 2027-09-30 | BO10: 2027-10-31 | BP10: 2027-11-30 | BQ10: 2027-12-31 | BR10: 2028-01-31 | BS10: 2028-02-29 | BT10: 2028-03-31 | BU10: 2028-04-30 | BV10: 2028-05-31 | BW10: =EOMONTH(BW9,0) -> 2028-06-30 | BX10: 2028-07-31 | BY10: 2028-08-31 | BZ10: 2028-09-30 | CA10: 2028-10-31 | CB10: 2028-11-30 | CC10: 2028-12-31 | CD10: 2029-01-31 | CE10: 2029-02-28 | CF10: 2029-03-31 | CG10: 2029-04-30 | CH10: 2029-05-31 | CI10: 2029-06-30 | CJ10: 2029-07-31 | CK10: 2029-08-31 | CL10: 2029-09-30 | CM10: 2029-10-31 | CN10: 2029-11-30 | CO10: 2029-12-31 | CP10: 2030-01-31 | CQ10: 2030-02-28 | CR10: 2030-03-31 | CS10: 2030-04-30 | CT10: 2030-05-31 | CU10: 2030-06-30 | CV10: 2030-07-31 | CW10: 2030-08-31 | CX10: 2030-09-30 | CY10: 2030-10-31 | CZ10: 2030-11-30 | DA10: 2030-12-31 | DB10: 2031-01-31 | DC10: 2031-02-28 | DD10: 2031-03-31 | DE10: 2031-04-30 | DF10: 2031-05-31 | DG10: 2031-06-30 | DH10: 2031-07-31 | DI10: 2031-08-31 | DJ10: 2031-09-30 | DK10: 2031-10-31 | DL10: 2031-11-30 | DM10: 2031-12-31 | DN10: 2032-01-31 | DO10: 2032-02-29 | DP10: 2032-03-31 | DQ10: 2032-04-30 | DR10: 2032-05-31 | DS10: 2032-06-30 | DT10: 2032-07-31 | DU10: 2032-08-31 | DV10: 2032-09-30 | DW10: 2032-10-31 | DX10: 2032-11-30 | DY10: 2032-12-31 | DZ10: 2033-01-31 | EA10: 2033-02-28 | EB10: 2033-03-31 | EC10: 2033-04-30 | ED10: 2033-05-31 | EE10: 2033-06-30 | EF10: 2033-07-31 | EG10: 2033-08-31 | EH10: 2033-09-30 | EI10: =EOMONTH(EI9,0) -> 2033-10-31 | EJ10: 2033-11-30 | EK10: 2033-12-31 | EL10: 2034-01-31 | EM10: 2034-02-28 | EN10: 2034-03-31 | EO10: 2034-04-30 | EP10: 2034-05-31 | EQ10: 2034-06-30 | ER10: 2034-07-31 | ES10: 2034-08-31 | ET10: 2034-09-30 | EU10: 2034-10-31 | EV10: 2034-11-30 | EW10: 2034-12-31 | EX10: 2035-01-31 | EY10: 2035-02-28 | EZ10: 2035-03-31 | FA10: 2035-04-30 | FB10: 2035-05-31 | FC10: 2035-06-30 | FD10: 2035-07-31 | FE10: 2035-08-31 | FF10: 2035-09-30 | FG10: 2035-10-31 | FH10: 2035-11-30 | FI10: 2035-12-31 | FJ10: 2036-01-31 | FK10: 2036-02-29 | FL10: 2036-03-31 | FM10: 2036-04-30 | FN10: 2036-05-31 | FO10: 2036-06-30 | FP10: 2036-07-31 | FQ10: 2036-08-31 | FR10: 2036-09-30 | FS10: 2036-10-31 | FT10: 2036-11-30 | FU10: 2036-12-31 | FV10: 2037-01-31 | FW10: 2037-02-28 | FX10: 2037-03-31 | FY10: 2037-04-30 | FZ10: 2037-05-31 | GA10: 2037-06-30 | GB10: 2037-07-31 | GC10: 2037-08-31 | GD10: 2037-09-30 | GE10: 2037-10-31 | GF10: 2037-11-30 | GG10: 2037-12-31 | GH10: 2038-01-31 | GI10: 2038-02-28 | GJ10: 2038-03-31 | GK10: 2038-04-30 | GL10: 2038-05-31 | GM10: 2038-06-30 | GN10: 2038-07-31 | GO10: 2038-08-31 | GP10: 2038-09-30 | GQ10: 2038-10-31 | GR10: 2038-11-30 | GS10: 2038-12-31 | GT10: 2039-01-31 | GU10: =EOMONTH(GU9,0) -> 2039-02-28 | GV10: 2039-03-31 | GW10: 2039-04-30 | GX10: 2039-05-31 | GY10: 2039-06-30 | GZ10: 2039-07-31 | HA10: 2039-08-31 | HB10: 2039-09-30 | HC10: 2039-10-31 | HD10: 2039-11-30 | HE10: 2039-12-31 | HF10: 2040-01-31 | HG10: 2040-02-29 | HH10: 2040-03-31 | HI10: 2040-04-30 | HJ10: 2040-05-31 | HK10: 2040-06-30 | HL10: 2040-07-31 | HM10: 2040-08-31 | HN10: 2040-09-30 | HO10: 2040-10-31 | HP10: 2040-11-30 | HQ10: 2040-12-31 | HR10: 2041-01-31 | HS10: 2041-02-28 | HT10: 2041-03-31 | HU10: 2041-04-30 | HV10: 2041-05-31 | HW10: 2041-06-30 | HX10: 2041-07-31 | HY10: 2041-08-31 | HZ10: 2041-09-30 | IA10: 2041-10-31 | IB10: 2041-11-30 | IC10: 2041-12-31 | ID10: 2042-01-31 | IE10: 2042-02-28 | IF10: 2042-03-31 | IG10: 2042-04-30 | IH10: 2042-05-31 | II10: 2042-06-30 | IJ10: 2042-07-31 | IK10: 2042-08-31 | IL10: 2042-09-30 | IM10: 2042-10-31 | IN10: 2042-11-30 | IO10: 2042-12-31 | IP10: 2043-01-31 | IQ10: 2043-02-28 | IR10: 2043-03-31 | IS10: 2043-04-30 | IT10: 2043-05-31 | IU10: 2043-06-30 | IV10: 2043-07-31 | IW10: 2043-08-31 | IX10: 2043-09-30 | IY10: 2043-10-31 | IZ10: 2043-11-30 | JA10: 2043-12-31 | JB10: 2044-01-31 | JC10: 2044-02-29 | JD10: 2044-03-31 | JE10: 2044-04-30 | JF10: 2044-05-31 | JG10: =EOMONTH(JG9,0) -> 2044-06-30 | JH10: 2044-07-31 | JI10: 2044-08-31 | JJ10: 2044-09-30 | JK10: 2044-10-31 | JL10: 2044-11-30 | JM10: 2044-12-31 | JN10: 2045-01-31 | JO10: 2045-02-28 | JP10: 2045-03-31 | JQ10: 2045-04-30 | JR10: 2045-05-31 | JS10: 2045-06-30 | JT10: 2045-07-31 | JU10: 2045-08-31 | JV10: 2045-09-30 | JW10: 2045-10-31 | JX10: 2045-11-30 | JY10: 2045-12-31 | JZ10: 2046-01-31 | KA10: 2046-02-28 | KB10: 2046-03-31 | KC10: 2046-04-30 | KD10: 2046-05-31 | KE10: 2046-06-30 | KF10: 2046-07-31 | KG10: 2046-08-31 | KH10: 2046-09-30 | KI10: 2046-10-31 | KJ10: 2046-11-30 | KK10: 2046-12-31 | KL10: 2047-01-31 | KM10: 2047-02-28 | KN10: 2047-03-31 | KO10: 2047-04-30 | KP10: 2047-05-31 | KQ10: 2047-06-30 | KR10: 2047-07-31 | KS10: 2047-08-31 | KT10: 2047-09-30 | KU10: 2047-10-31 | KV10: 2047-11-30 | KW10: 2047-12-31 | KX10: 2048-01-31 | KY10: 2048-02-29 | KZ10: 2048-03-31 | LA10: 2048-04-30 | LB10: 2048-05-31 | LC10: 2048-06-30 | LD10: 2048-07-31 | LE10: 2048-08-31 | LF10: 2048-09-30 | LG10: 2048-10-31 | LH10: 2048-11-30 | LI10: 2048-12-31 | LJ10: 2049-01-31 | LK10: 2049-02-28 | LL10: 2049-03-31 | LM10: 2049-04-30 | LN10: 2049-05-31 | LO10: 2049-06-30 | LP10: 2049-07-31 | LQ10: 2049-08-31 | LR10: 2049-09-30 | LS10: =EOMONTH(LS9,0) -> 2049-10-31 | LT10: 2049-11-30 | LU10: 2049-12-31 | LV10: 2050-01-31 | LW10: 2050-02-28 | LX10: 2050-03-31 | LY10: 2050-04-30 | LZ10: 2050-05-31 | MA10: 2050-06-30 | MB10: 2050-07-31 | MC10: 2050-08-31 | MD10: 2050-09-30 | ME10: 2050-10-31 | MF10: 2050-11-30 | MG10: 2050-12-31 | MH10: 2051-01-31 | MI10: 2051-02-28 | MJ10: 2051-03-31 | MK10: 2051-04-30 | ML10: 2051-05-31 | MM10: 2051-06-30 | MN10: 2051-07-31 | MO10: 2051-08-31 | MP10: 2051-09-30 | MQ10: 2051-10-31 | MR10: 2051-11-30 | MS10: 2051-12-31 | MT10: 2052-01-31 | MU10: 2052-02-29 | MV10: 2052-03-31 | MW10: 2052-04-30 | MX10: 2052-05-31 | MY10: 2052-06-30 | MZ10: 2052-07-31 | NA10: 2052-08-31 | NB10: 2052-09-30 | NC10: 2052-10-31 | ND10: 2052-11-30 | NE10: 2052-12-31 | NF10: 2053-01-31 | NG10: 2053-02-28 | NH10: 2053-03-31 | NI10: 2053-04-30 | NJ10: 2053-05-31 | NK10: 2053-06-30 | NL10: 2053-07-31 | NM10: 2053-08-31 | NN10: 2053-09-30 | NO10: 2053-10-31 | NP10: 2053-11-30 | NQ10: 2053-12-31 | NR10: 2054-01-31 | NS10: 2054-02-28 | NT10: 2054-03-31 | NU10: 2054-04-30 | NV10: 2054-05-31 | NW10: 2054-06-30 | NX10: 2054-07-31 | NY10: 2054-08-31 | NZ10: 2054-09-30 | OA10: 2054-10-31 | OB10: 2054-11-30 | OC10: 2054-12-31 | OD10: 2055-01-31 | OE10: =EOMONTH(OE9,0) -> 2055-02-28 | OF10: 2055-03-31 | OG10: 2055-04-30 | OH10: 2055-05-31 | OI10: 2055-06-30 | OJ10: 2055-07-31 | OK10: 2055-08-31 | OL10: 2055-09-30 | OM10: 2055-10-31 | ON10: 2055-11-30 | OO10: 2055-12-31 | OP10: 2056-01-31 | OQ10: 2056-02-29 | OR10: 2056-03-31 | OS10: 2056-04-30 | OT10: 2056-05-31 | OU10: 2056-06-30 | OV10: 2056-07-31 | OW10: 2056-08-31 | OX10: 2056-09-30 | OY10: 2056-10-31 | OZ10: 2056-11-30 | PA10: 2056-12-31 | PB10: 2057-01-31 | PC10: 2057-02-28 | PD10: 2057-03-31 | PE10: 2057-04-30 | PF10: 2057-05-31 | PG10: 2057-06-30 | PH10: 2057-07-31 | PI10: 2057-08-31 | PJ10: 2057-09-30 | PK10: 2057-10-31 | PL10: 2057-11-30 | PM10: 2057-12-31 | PN10: 2058-01-31 | PO10: 2058-02-28 | PP10: 2058-03-31 | PQ10: 2058-04-30 | PR10: 2058-05-31 | PS10: 2058-06-30 | PT10: 2058-07-31 | PU10: 2058-08-31 | PV10: 2058-09-30 | PW10: 2058-10-31 | PX10: 2058-11-30 | PY10: 2058-12-31 | PZ10: 2059-01-31 | QA10: 2059-02-28 | QB10: 2059-03-31 | QC10: 2059-04-30 | QD10: 2059-05-31 | QE10: 2059-06-30 | QF10: 2059-07-31 | QG10: 2059-08-31 | QH10: 2059-09-30 | QI10: 2059-10-31 | QJ10: 2059-11-30 | QK10: 2059-12-31 | QL10: 2060-01-31 | QM10: 2060-02-29 | QN10: 2060-03-31 | QO10: 2060-04-30 | QP10: 2060-05-31 | QQ10: =EOMONTH(QQ9,0) -> 2060-06-30 | QR10: 2060-07-31 | QS10: 2060-08-31 | QT10: 2060-09-30 | QU10: 2060-10-31 | QV10: 2060-11-30 | QW10: 2060-12-31 | QX10: 2061-01-31 | QY10: 2061-02-28 | QZ10: 2061-03-31 | RA10: 2061-04-30 | RB10: 2061-05-31 | RC10: 2061-06-30 | RD10: 2061-07-31 | RE10: 2061-08-31 | RF10: 2061-09-30 | RG10: 2061-10-31 | RH10: 2061-11-30 | RI10: 2061-12-31 | RJ10: 2062-01-31 | RK10: 2062-02-28 | RL10: 2062-03-31 | RM10: 2062-04-30 | RN10: 2062-05-31 | RO10: 2062-06-30 | RP10: 2062-07-31 | RQ10: 2062-08-31 | RR10: 2062-09-30 | RS10: 2062-10-31 | RT10: 2062-11-30 | RU10: 2062-12-31 | RV10: 2063-01-31 | RW10: 2063-02-28 | RX10: 2063-03-31 | RY10: 2063-04-30 | RZ10: 2063-05-31 | SA10: 2063-06-30 | SB10: 2063-07-31 | SC10: 2063-08-31 | SD10: 2063-09-30 | SE10: 2063-10-31 | SF10: 2063-11-30 | SG10: 2063-12-31 | SH10: 2064-01-31 | SI10: 2064-02-29 | SJ10: 2064-03-31 | SK10: 2064-04-30 | SL10: 2064-05-31 | SM10: 2064-06-30 | SN10: 2064-07-31 | SO10: 2064-08-31
E12: Financial Close Date | F12: =InputC!F9 -> 2023-01-01 | G12: Date
E13: Financial Close Flag | G13: Flag | H13: =SUM(J13:SO13) -> 1 | J13: =(J9=$F12)*1 -> 1 | K13: 0 | L13: 0 | M13: 0 | N13: 0 | O13: 0 | P13: 0 | Q13: 0 | R13: 0 | S13: 0 | T13: 0 | U13: 0 | V13: 0 | W13: 0 | X13: 0 | Y13: 0 | Z13: 0 | AA13: 0 | AB13: 0 | AC13: 0 | AD13: 0 | AE13: 0 | AF13: 0 | AG13: 0 | AH13: 0 | AI13: 0 | AJ13: 0 | AK13: 0 | AL13: 0 | AM13: 0 | AN13: 0 | AO13: 0 | AP13: 0 | AQ13: 0 | AR13: 0 | AS13: 0 | AT13: 0 | AU13: 0 | AV13: 0 | AW13: 0 | AX13: 0 | AY13: 0 | AZ13: 0 | BA13: 0 | BB13: 0 | BC13: 0 | BD13: 0 | BE13: 0 | BF13: 0 | BG13: 0 | BH13: 0 | BI13: 0 | BJ13: 0 | BK13: 0 | BL13: 0 | BM13: 0 | BN13: 0 | BO13: 0 | BP13: 0 | BQ13: 0 | BR13: 0 | BS13: 0 | BT13: 0 | BU13: 0 | BV13: =(BV9=$F12)*1 -> 0 | BW13: 0 | BX13: 0 | BY13: 0 | BZ13: 0 | CA13: 0 | CB13: 0 | CC13: 0 | CD13: 0 | CE13: 0 | CF13: 0 | CG13: 0 | CH13: 0 | CI13: 0 | CJ13: 0 | CK13: 0 | CL13: 0 | CM13: 0 | CN13: 0 | CO13: 0 | CP13: 0 | CQ13: 0 | CR13: 0 | CS13: 0 | CT13: 0 | CU13: 0 | CV13: 0 | CW13: 0 | CX13: 0 | CY13: 0 | CZ13: 0 | DA13: 0 | DB13: 0 | DC13: 0 | DD13: 0 | DE13: 0 | DF13: 0 | DG13: 0 | DH13: 0 | DI13: 0 | DJ13: 0 | DK13: 0 | DL13: 0 | DM13: 0 | DN13: 0 | DO13: 0 | DP13: 0 | DQ13: 0 | DR13: 0 | DS13: 0 | DT13: 0 | DU13: 0 | DV13: 0 | DW13: 0 | DX13: 0 | DY13: 0 | DZ13: 0 | EA13: 0 | EB13: 0 | EC13: 0 | ED13: 0 | EE13: 0 | EF13: 0 | EG13: 0 | EH13: =(EH9=$F12)*1 -> 0 | EI13: 0 | EJ13: 0 | EK13: 0 | EL13: 0 | EM13: 0 | EN13: 0 | EO13: 0 | EP13: 0 | EQ13: 0 | ER13: 0 | ES13: 0 | ET13: 0 | EU13: 0 | EV13: 0 | EW13: 0 | EX13: 0 | EY13: 0 | EZ13: 0 | FA13: 0 | FB13: 0 | FC13: 0 | FD13: 0 | FE13: 0 | FF13: 0 | FG13: 0 | FH13: 0 | FI13: 0 | FJ13: 0 | FK13: 0 | FL13: 0 | FM13: 0 | FN13: 0 | FO13: 0 | FP13: 0 | FQ13: 0 | FR13: 0 | FS13: 0 | FT13: 0 | FU13: 0 | FV13: 0 | FW13: 0 | FX13: 0 | FY13: 0 | FZ13: 0 | GA13: 0 | GB13: 0 | GC13: 0 | GD13: 0 | GE13: 0 | GF13: 0 | GG13: 0 | GH13: 0 | GI13: 0 | GJ13: 0 | GK13: 0 | GL13: 0 | GM13: 0 | GN13: 0 | GO13: 0 | GP13: 0 | GQ13: 0 | GR13: 0 | GS13: 0 | GT13: =(GT9=$F12)*1 -> 0 | GU13: 0 | GV13: 0 | GW13: 0 | GX13: 0 | GY13: 0 | GZ13: 0 | HA13: 0 | HB13: 0 | HC13: 0 | HD13: 0 | HE13: 0 | HF13: 0 | HG13: 0 | HH13: 0 | HI13: 0 | HJ13: 0 | HK13: 0 | HL13: 0 | HM13: 0 | HN13: 0 | HO13: 0 | HP13: 0 | HQ13: 0 | HR13: 0 | HS13: 0 | HT13: 0 | HU13: 0 | HV13: 0 | HW13: 0 | HX13: 0 | HY13: 0 | HZ13: 0 | IA13: 0 | IB13: 0 | IC13: 0 | ID13: 0 | IE13: 0 | IF13: 0 | IG13: 0 | IH13: 0 | II13: 0 | IJ13: 0 | IK13: 0 | IL13: 0 | IM13: 0 | IN13: 0 | IO13: 0 | IP13: 0 | IQ13: 0 | IR13: 0 | IS13: 0 | IT13: 0 | IU13: 0 | IV13: 0 | IW13: 0 | IX13: 0 | IY13: 0 | IZ13: 0 | JA13: 0 | JB13: 0 | JC13: 0 | JD13: 0 | JE13: 0 | JF13: =(JF9=$F12)*1 -> 0 | JG13: 0 | JH13: 0 | JI13: 0 | JJ13: 0 | JK13: 0 | JL13: 0 | JM13: 0 | JN13: 0 | JO13: 0 | JP13: 0 | JQ13: 0 | JR13: 0 | JS13: 0 | JT13: 0 | JU13: 0 | JV13: 0 | JW13: 0 | JX13: 0 | JY13: 0 | JZ13: 0 | KA13: 0 | KB13: 0 | KC13: 0 | KD13: 0 | KE13: 0 | KF13: 0 | KG13: 0 | KH13: 0 | KI13: 0 | KJ13: 0 | KK13: 0 | KL13: 0 | KM13: 0 | KN13: 0 | KO13: 0 | KP13: 0 | KQ13: 0 | KR13: 0 | KS13: 0 | KT13: 0 | KU13: 0 | KV13: 0 | KW13: 0 | KX13: 0 | KY13: 0 | KZ13: 0 | LA13: 0 | LB13: 0 | LC13: 0 | LD13: 0 | LE13: 0 | LF13: 0 | LG13: 0 | LH13: 0 | LI13: 0 | LJ13: 0 | LK13: 0 | LL13: 0 | LM13: 0 | LN13: 0 | LO13: 0 | LP13: 0 | LQ13: 0 | LR13: =(LR9=$F12)*1 -> 0 | LS13: 0 | LT13: 0 | LU13: 0 | LV13: 0 | LW13: 0 | LX13: 0 | LY13: 0 | LZ13: 0 | MA13: 0 | MB13: 0 | MC13: 0 | MD13: 0 | ME13: 0 | MF13: 0 | MG13: 0 | MH13: 0 | MI13: 0 | MJ13: 0 | MK13: 0 | ML13: 0 | MM13: 0 | MN13: 0 | MO13: 0 | MP13: 0 | MQ13: 0 | MR13: 0 | MS13: 0 | MT13: 0 | MU13: 0 | MV13: 0 | MW13: 0 | MX13: 0 | MY13: 0 | MZ13: 0 | NA13: 0 | NB13: 0 | NC13: 0 | ND13: 0 | NE13: 0 | NF13: 0 | NG13: 0 | NH13: 0 | NI13: 0 | NJ13: 0 | NK13: 0 | NL13: 0 | NM13: 0 | NN13: 0 | NO13: 0 | NP13: 0 | NQ13: 0 | NR13: 0 | NS13: 0 | NT13: 0 | NU13: 0 | NV13: 0 | NW13: 0 | NX13: 0 | NY13: 0 | NZ13: 0 | OA13: 0 | OB13: 0 | OC13: 0 | OD13: =(OD9=$F12)*1 -> 0 | OE13: 0 | OF13: 0 | OG13: 0 | OH13: 0 | OI13: 0 | OJ13: 0 | OK13: 0 | OL13: 0 | OM13: 0 | ON13: 0 | OO13: 0 | OP13: 0 | OQ13: 0 | OR13: 0 | OS13: 0 | OT13: 0 | OU13: 0 | OV13: 0 | OW13: 0 | OX13: 0 | OY13: 0 | OZ13: 0 | PA13: 0 | PB13: 0 | PC13: 0 | PD13: 0 | PE13: 0 | PF13: 0 | PG13: 0 | PH13: 0 | PI13: 0 | PJ13: 0 | PK13: 0 | PL13: 0 | PM13: 0 | PN13: 0 | PO13: 0 | PP13: 0 | PQ13: 0 | PR13: 0 | PS13: 0 | PT13: 0 | PU13: 0 | PV13: 0 | PW13: 0 | PX13: 0 | PY13: 0 | PZ13: 0 | QA13: 0 | QB13: 0 | QC13: 0 | QD13: 0 | QE13: 0 | QF13: 0 | QG13: 0 | QH13: 0 | QI13: 0 | QJ13: 0 | QK13: 0 | QL13: 0 | QM13: 0 | QN13: 0 | QO13: 0 | QP13: =(QP9=$F12)*1 -> 0 | QQ13: 0 | QR13: 0 | QS13: 0 | QT13: 0 | QU13: 0 | QV13: 0 | QW13: 0 | QX13: 0 | QY13: 0 | QZ13: 0 | RA13: 0 | RB13: 0 | RC13: 0 | RD13: 0 | RE13: 0 | RF13: 0 | RG13: 0 | RH13: 0 | RI13: 0 | RJ13: 0 | RK13: 0 | RL13: 0 | RM13: 0 | RN13: 0 | RO13: 0 | RP13: 0 | RQ13: 0 | RR13: 0 | RS13: 0 | RT13: 0 | RU13: 0 | RV13: 0 | RW13: 0 | RX13: 0 | RY13: 0 | RZ13: 0 | SA13: 0 | SB13: 0 | SC13: 0 | SD13: 0 | SE13: 0 | SF13: 0 | SG13: 0 | SH13: 0 | SI13: 0 | SJ13: 0 | SK13: 0 | SL13: 0 | SM13: 0 | SN13: 0 | SO13: 0
E14: Financial Close Counter | G14: Code | J14: =IF(J13,1,0) -> 1 | K14: =IF(K13,1,0) -> 0 | L14: 0 | M14: 0 | N14: 0 | O14: 0 | P14: 0 | Q14: 0 | R14: 0 | S14: 0 | T14: 0 | U14: 0 | V14: 0 | W14: 0 | X14: 0 | Y14: 0 | Z14: 0 | AA14: 0 | AB14: 0 | AC14: 0 | AD14: 0 | AE14: 0 | AF14: 0 | AG14: 0 | AH14: 0 | AI14: 0 | AJ14: 0 | AK14: 0 | AL14: 0 | AM14: 0 | AN14: 0 | AO14: 0 | AP14: 0 | AQ14: 0 | AR14: 0 | AS14: 0 | AT14: 0 | AU14: 0 | AV14: 0 | AW14: 0 | AX14: 0 | AY14: 0 | AZ14: 0 | BA14: 0 | BB14: 0 | BC14: 0 | BD14: 0 | BE14: 0 | BF14: 0 | BG14: 0 | BH14: 0 | BI14: 0 | BJ14: 0 | BK14: 0 | BL14: 0 | BM14: 0 | BN14: 0 | BO14: 0 | BP14: 0 | BQ14: 0 | BR14: 0 | BS14: 0 | BT14: 0 | BU14: 0 | BV14: 0 | BW14: =IF(BW13,1,0) -> 0 | BX14: 0 | BY14: 0 | BZ14: 0 | CA14: 0 | CB14: 0 | CC14: 0 | CD14: 0 | CE14: 0 | CF14: 0 | CG14: 0 | CH14: 0 | CI14: 0 | CJ14: 0 | CK14: 0 | CL14: 0 | CM14: 0 | CN14: 0 | CO14: 0 | CP14: 0 | CQ14: 0 | CR14: 0 | CS14: 0 | CT14: 0 | CU14: 0 | CV14: 0 | CW14: 0 | CX14: 0 | CY14: 0 | CZ14: 0 | DA14: 0 | DB14: 0 | DC14: 0 | DD14: 0 | DE14: 0 | DF14: 0 | DG14: 0 | DH14: 0 | DI14: 0 | DJ14: 0 | DK14: 0 | DL14: 0 | DM14: 0 | DN14: 0 | DO14: 0 | DP14: 0 | DQ14: 0 | DR14: 0 | DS14: 0 | DT14: 0 | DU14: 0 | DV14: 0 | DW14: 0 | DX14: 0 | DY14: 0 | DZ14: 0 | EA14: 0 | EB14: 0 | EC14: 0 | ED14: 0 | EE14: 0 | EF14: 0 | EG14: 0 | EH14: 0 | EI14: =IF(EI13,1,0) -> 0 | EJ14: 0 | EK14: 0 | EL14: 0 | EM14: 0 | EN14: 0 | EO14: 0 | EP14: 0 | EQ14: 0 | ER14: 0 | ES14: 0 | ET14: 0 | EU14: 0 | EV14: 0 | EW14: 0 | EX14: 0 | EY14: 0 | EZ14: 0 | FA14: 0 | FB14: 0 | FC14: 0 | FD14: 0 | FE14: 0 | FF14: 0 | FG14: 0 | FH14: 0 | FI14: 0 | FJ14: 0 | FK14: 0 | FL14: 0 | FM14: 0 | FN14: 0 | FO14: 0 | FP14: 0 | FQ14: 0 | FR14: 0 | FS14: 0 | FT14: 0 | FU14: 0 | FV14: 0 | FW14: 0 | FX14: 0 | FY14: 0 | FZ14: 0 | GA14: 0 | GB14: 0 | GC14: 0 | GD14: 0 | GE14: 0 | GF14: 0 | GG14: 0 | GH14: 0 | GI14: 0 | GJ14: 0 | GK14: 0 | GL14: 0 | GM14: 0 | GN14: 0 | GO14: 0 | GP14: 0 | GQ14: 0 | GR14: 0 | GS14: 0 | GT14: 0 | GU14: =IF(GU13,1,0) -> 0 | GV14: 0 | GW14: 0 | GX14: 0 | GY14: 0 | GZ14: 0 | HA14: 0 | HB14: 0 | HC14: 0 | HD14: 0 | HE14: 0 | HF14: 0 | HG14: 0 | HH14: 0 | HI14: 0 | HJ14: 0 | HK14: 0 | HL14: 0 | HM14: 0 | HN14: 0 | HO14: 0 | HP14: 0 | HQ14: 0 | HR14: 0 | HS14: 0 | HT14: 0 | HU14: 0 | HV14: 0 | HW14: 0 | HX14: 0 | HY14: 0 | HZ14: 0 | IA14: 0 | IB14: 0 | IC14: 0 | ID14: 0 | IE14: 0 | IF14: 0 | IG14: 0 | IH14: 0 | II14: 0 | IJ14: 0 | IK14: 0 | IL14: 0 | IM14: 0 | IN14: 0 | IO14: 0 | IP14: 0 | IQ14: 0 | IR14: 0 | IS14: 0 | IT14: 0 | IU14: 0 | IV14: 0 | IW14: 0 | IX14: 0 | IY14: 0 | IZ14: 0 | JA14: 0 | JB14: 0 | JC14: 0 | JD14: 0 | JE14: 0 | JF14: 0 | JG14: =IF(JG13,1,0) -> 0 | JH14: 0 | JI14: 0 | JJ14: 0 | JK14: 0 | JL14: 0 | JM14: 0 | JN14: 0 | JO14: 0 | JP14: 0 | JQ14: 0 | JR14: 0 | JS14: 0 | JT14: 0 | JU14: 0 | JV14: 0 | JW14: 0 | JX14: 0 | JY14: 0 | JZ14: 0 | KA14: 0 | KB14: 0 | KC14: 0 | KD14: 0 | KE14: 0 | KF14: 0 | KG14: 0 | KH14: 0 | KI14: 0 | KJ14: 0 | KK14: 0 | KL14: 0 | KM14: 0 | KN14: 0 | KO14: 0 | KP14: 0 | KQ14: 0 | KR14: 0 | KS14: 0 | KT14: 0 | KU14: 0 | KV14: 0 | KW14: 0 | KX14: 0 | KY14: 0 | KZ14: 0 | LA14: 0 | LB14: 0 | LC14: 0 | LD14: 0 | LE14: 0 | LF14: 0 | LG14: 0 | LH14: 0 | LI14: 0 | LJ14: 0 | LK14: 0 | LL14: 0 | LM14: 0 | LN14: 0 | LO14: 0 | LP14: 0 | LQ14: 0 | LR14: 0 | LS14: =IF(LS13,1,0) -> 0 | LT14: 0 | LU14: 0 | LV14: 0 | LW14: 0 | LX14: 0 | LY14: 0 | LZ14: 0 | MA14: 0 | MB14: 0 | MC14: 0 | MD14: 0 | ME14: 0 | MF14: 0 | MG14: 0 | MH14: 0 | MI14: 0 | MJ14: 0 | MK14: 0 | ML14: 0 | MM14: 0 | MN14: 0 | MO14: 0 | MP14: 0 | MQ14: 0 | MR14: 0 | MS14: 0 | MT14: 0 | MU14: 0 | MV14: 0 | MW14: 0 | MX14: 0 | MY14: 0 | MZ14: 0 | NA14: 0 | NB14: 0 | NC14: 0 | ND14: 0 | NE14: 0 | NF14: 0 | NG14: 0 | NH14: 0 | NI14: 0 | NJ14: 0 | NK14: 0 | NL14: 0 | NM14: 0 | NN14: 0 | NO14: 0 | NP14: 0 | NQ14: 0 | NR14: 0 | NS14: 0 | NT14: 0 | NU14: 0 | NV14: 0 | NW14: 0 | NX14: 0 | NY14: 0 | NZ14: 0 | OA14: 0 | OB14: 0 | OC14: 0 | OD14: 0 | OE14: =IF(OE13,1,0) -> 0 | OF14: 0 | OG14: 0 | OH14: 0 | OI14: 0 | OJ14: 0 | OK14: 0 | OL14: 0 | OM14: 0 | ON14: 0 | OO14: 0 | OP14: 0 | OQ14: 0 | OR14: 0 | OS14: 0 | OT14: 0 | OU14: 0 | OV14: 0 | OW14: 0 | OX14: 0 | OY14: 0 | OZ14: 0 | PA14: 0 | PB14: 0 | PC14: 0 | PD14: 0 | PE14: 0 | PF14: 0 | PG14: 0 | PH14: 0 | PI14: 0 | PJ14: 0 | PK14: 0 | PL14: 0 | PM14: 0 | PN14: 0 | PO14: 0 | PP14: 0 | PQ14: 0 | PR14: 0 | PS14: 0 | PT14: 0 | PU14: 0 | PV14: 0 | PW14: 0 | PX14: 0 | PY14: 0 | PZ14: 0 | QA14: 0 | QB14: 0 | QC14: 0 | QD14: 0 | QE14: 0 | QF14: 0 | QG14: 0 | QH14: 0 | QI14: 0 | QJ14: 0 | QK14: 0 | QL14: 0 | QM14: 0 | QN14: 0 | QO14: 0 | QP14: 0 | QQ14: =IF(QQ13,1,0) -> 0 | QR14: 0 | QS14: 0 | QT14: 0 | QU14: 0 | QV14: 0 | QW14: 0 | QX14: 0 | QY14: 0 | QZ14: 0 | RA14: 0 | RB14: 0 | RC14: 0 | RD14: 0 | RE14: 0 | RF14: 0 | RG14: 0 | RH14: 0 | RI14: 0 | RJ14: 0 | RK14: 0 | RL14: 0 | RM14: 0 | RN14: 0 | RO14: 0 | RP14: 0 | RQ14: 0 | RR14: 0 | RS14: 0 | RT14: 0 | RU14: 0 | RV14: 0 | RW14: 0 | RX14: 0 | RY14: 0 | RZ14: 0 | SA14: 0 | SB14: 0 | SC14: 0 | SD14: 0 | SE14: 0 | SF14: 0 | SG14: 0 | SH14: 0 | SI14: 0 | SJ14: 0 | SK14: 0 | SL14: 0 | SM14: 0 | SN14: 0 | SO14: 0
E16: Construction Period Start | F16: =InputC!F11 -> 2023-01-01 | G16: Date
E17: Construction Period End (BOM) | F17: =InputC!F13 -> 2023-07-01 | G17: Date
E18: Construction Period Flag | G18: Flag | H18: =SUM(J18:SO18) -> 7 | J18: =AND(J9>=$F16,J9<=$F$17)*1 -> 1 | K18: 1 | L18: 1 | M18: 1 | N18: 1 | O18: 1 | P18: 1 | Q18: 0 | R18: 0 | S18: 0 | T18: 0 | U18: 0 | V18: 0 | W18: 0 | X18: 0 | Y18: 0 | Z18: 0 | AA18: 0 | AB18: 0 | AC18: 0 | AD18: 0 | AE18: 0 | AF18: 0 | AG18: 0 | AH18: 0 | AI18: 0 | AJ18: 0 | AK18: 0 | AL18: 0 | AM18: 0 | AN18: 0 | AO18: 0 | AP18: 0 | AQ18: 0 | AR18: 0 | AS18: 0 | AT18: 0 | AU18: 0 | AV18: 0 | AW18: 0 | AX18: 0 | AY18: 0 | AZ18: 0 | BA18: 0 | BB18: 0 | BC18: 0 | BD18: 0 | BE18: 0 | BF18: 0 | BG18: 0 | BH18: 0 | BI18: 0 | BJ18: 0 | BK18: 0 | BL18: 0 | BM18: 0 | BN18: 0 | BO18: 0 | BP18: 0 | BQ18: 0 | BR18: 0 | BS18: 0 | BT18: 0 | BU18: 0 | BV18: =AND(BV9>=$F16,BV9<=$F$17)*1 -> 0 | BW18: 0 | BX18: 0 | BY18: 0 | BZ18: 0 | CA18: 0 | CB18: 0 | CC18: 0 | CD18: 0 | CE18: 0 | CF18: 0 | CG18: 0 | CH18: 0 | CI18: 0 | CJ18: 0 | CK18: 0 | CL18: 0 | CM18: 0 | CN18: 0 | CO18: 0 | CP18: 0 | CQ18: 0 | CR18: 0 | CS18: 0 | CT18: 0 | CU18: 0 | CV18: 0 | CW18: 0 | CX18: 0 | CY18: 0 | CZ18: 0 | DA18: 0 | DB18: 0 | DC18: 0 | DD18: 0 | DE18: 0 | DF18: 0 | DG18: 0 | DH18: 0 | DI18: 0 | DJ18: 0 | DK18: 0 | DL18: 0 | DM18: 0 | DN18: 0 | DO18: 0 | DP18: 0 | DQ18: 0 | DR18: 0 | DS18: 0 | DT18: 0 | DU18: 0 | DV18: 0 | DW18: 0 | DX18: 0 | DY18: 0 | DZ18: 0 | EA18: 0 | EB18: 0 | EC18: 0 | ED18: 0 | EE18: 0 | EF18: 0 | EG18: 0 | EH18: =AND(EH9>=$F16,EH9<=$F$17)*1 -> 0 | EI18: 0 | EJ18: 0 | EK18: 0 | EL18: 0 | EM18: 0 | EN18: 0 | EO18: 0 | EP18: 0 | EQ18: 0 | ER18: 0 | ES18: 0 | ET18: 0 | EU18: 0 | EV18: 0 | EW18: 0 | EX18: 0 | EY18: 0 | EZ18: 0 | FA18: 0 | FB18: 0 | FC18: 0 | FD18: 0 | FE18: 0 | FF18: 0 | FG18: 0 | FH18: 0 | FI18: 0 | FJ18: 0 | FK18: 0 | FL18: 0 | FM18: 0 | FN18: 0 | FO18: 0 | FP18: 0 | FQ18: 0 | FR18: 0 | FS18: 0 | FT18: 0 | FU18: 0 | FV18: 0 | FW18: 0 | FX18: 0 | FY18: 0 | FZ18: 0 | GA18: 0 | GB18: 0 | GC18: 0 | GD18: 0 | GE18: 0 | GF18: 0 | GG18: 0 | GH18: 0 | GI18: 0 | GJ18: 0 | GK18: 0 | GL18: 0 | GM18: 0 | GN18: 0 | GO18: 0 | GP18: 0 | GQ18: 0 | GR18: 0 | GS18: 0 | GT18: =AND(GT9>=$F16,GT9<=$F$17)*1 -> 0 | GU18: 0 | GV18: 0 | GW18: 0 | GX18: 0 | GY18: 0 | GZ18: 0 | HA18: 0 | HB18: 0 | HC18: 0 | HD18: 0 | HE18: 0 | HF18: 0 | HG18: 0 | HH18: 0 | HI18: 0 | HJ18: 0 | HK18: 0 | HL18: 0 | HM18: 0 | HN18: 0 | HO18: 0 | HP18: 0 | HQ18: 0 | HR18: 0 | HS18: 0 | HT18: 0 | HU18: 0 | HV18: 0 | HW18: 0 | HX18: 0 | HY18: 0 | HZ18: 0 | IA18: 0 | IB18: 0 | IC18: 0 | ID18: 0 | IE18: 0 | IF18: 0 | IG18: 0 | IH18: 0 | II18: 0 | IJ18: 0 | IK18: 0 | IL18: 0 | IM18: 0 | IN18: 0 | IO18: 0 | IP18: 0 | IQ18: 0 | IR18: 0 | IS18: 0 | IT18: 0 | IU18: 0 | IV18: 0 | IW18: 0 | IX18: 0 | IY18: 0 | IZ18: 0 | JA18: 0 | JB18: 0 | JC18: 0 | JD18: 0 | JE18: 0 | JF18: =AND(JF9>=$F16,JF9<=$F$17)*1 -> 0 | JG18: 0 | JH18: 0 | JI18: 0 | JJ18: 0 | JK18: 0 | JL18: 0 | JM18: 0 | JN18: 0 | JO18: 0 | JP18: 0 | JQ18: 0 | JR18: 0 | JS18: 0 | JT18: 0 | JU18: 0 | JV18: 0 | JW18: 0 | JX18: 0 | JY18: 0 | JZ18: 0 | KA18: 0 | KB18: 0 | KC18: 0 | KD18: 0 | KE18: 0 | KF18: 0 | KG18: 0 | KH18: 0 | KI18: 0 | KJ18: 0 | KK18: 0 | KL18: 0 | KM18: 0 | KN18: 0 | KO18: 0 | KP18: 0 | KQ18: 0 | KR18: 0 | KS18: 0 | KT18: 0 | KU18: 0 | KV18: 0 | KW18: 0 | KX18: 0 | KY18: 0 | KZ18: 0 | LA18: 0 | LB18: 0 | LC18: 0 | LD18: 0 | LE18: 0 | LF18: 0 | LG18: 0 | LH18: 0 | LI18: 0 | LJ18: 0 | LK18: 0 | LL18: 0 | LM18: 0 | LN18: 0 | LO18: 0 | LP18: 0 | LQ18: 0 | LR18: =AND(LR9>=$F16,LR9<=$F$17)*1 -> 0 | LS18: 0 | LT18: 0 | LU18: 0 | LV18: 0 | LW18: 0 | LX18: 0 | LY18: 0 | LZ18: 0 | MA18: 0 | MB18: 0 | MC18: 0 | MD18: 0 | ME18: 0 | MF18: 0 | MG18: 0 | MH18: 0 | MI18: 0 | MJ18: 0 | MK18: 0 | ML18: 0 | MM18: 0 | MN18: 0 | MO18: 0 | MP18: 0 | MQ18: 0 | MR18: 0 | MS18: 0 | MT18: 0 | MU18: 0 | MV18: 0 | MW18: 0 | MX18: 0 | MY18: 0 | MZ18: 0 | NA18: 0 | NB18: 0 | NC18: 0 | ND18: 0 | NE18: 0 | NF18: 0 | NG18: 0 | NH18: 0 | NI18: 0 | NJ18: 0 | NK18: 0 | NL18: 0 | NM18: 0 | NN18: 0 | NO18: 0 | NP18: 0 | NQ18: 0 | NR18: 0 | NS18: 0 | NT18: 0 | NU18: 0 | NV18: 0 | NW18: 0 | NX18: 0 | NY18: 0 | NZ18: 0 | OA18: 0 | OB18: 0 | OC18: 0 | OD18: =AND(OD9>=$F16,OD9<=$F$17)*1 -> 0 | OE18: 0 | OF18: 0 | OG18: 0 | OH18: 0 | OI18: 0 | OJ18: 0 | OK18: 0 | OL18: 0 | OM18: 0 | ON18: 0 | OO18: 0 | OP18: 0 | OQ18: 0 | OR18: 0 | OS18: 0 | OT18: 0 | OU18: 0 | OV18: 0 | OW18: 0 | OX18: 0 | OY18: 0 | OZ18: 0 | PA18: 0 | PB18: 0 | PC18: 0 | PD18: 0 | PE18: 0 | PF18: 0 | PG18: 0 | PH18: 0 | PI18: 0 | PJ18: 0 | PK18: 0 | PL18: 0 | PM18: 0 | PN18: 0 | PO18: 0 | PP18: 0 | PQ18: 0 | PR18: 0 | PS18: 0 | PT18: 0 | PU18: 0 | PV18: 0 | PW18: 0 | PX18: 0 | PY18: 0 | PZ18: 0 | QA18: 0 | QB18: 0 | QC18: 0 | QD18: 0 | QE18: 0 | QF18: 0 | QG18: 0 | QH18: 0 | QI18: 0 | QJ18: 0 | QK18: 0 | QL18: 0 | QM18: 0 | QN18: 0 | QO18: 0 | QP18: =AND(QP9>=$F16,QP9<=$F$17)*1 -> 0 | QQ18: 0 | QR18: 0 | QS18: 0 | QT18: 0 | QU18: 0 | QV18: 0 | QW18: 0 | QX18: 0 | QY18: 0 | QZ18: 0 | RA18: 0 | RB18: 0 | RC18: 0 | RD18: 0 | RE18: 0 | RF18: 0 | RG18: 0 | RH18: 0 | RI18: 0 | RJ18: 0 | RK18: 0 | RL18: 0 | RM18: 0 | RN18: 0 | RO18: 0 | RP18: 0 | RQ18: 0 | RR18: 0 | RS18: 0 | RT18: 0 | RU18: 0 | RV18: 0 | RW18: 0 | RX18: 0 | RY18: 0 | RZ18: 0 | SA18: 0 | SB18: 0 | SC18: 0 | SD18: 0 | SE18: 0 | SF18: 0 | SG18: 0 | SH18: 0 | SI18: 0 | SJ18: 0 | SK18: 0 | SL18: 0 | SM18: 0 | SN18: 0 | SO18: 0
E19: Construction Phase Counter | G19: Code | J19: =IF(AND(J18,NOT(J13)),2,0) -> 0 | K19: =IF(AND(K18,NOT(K13)),2,0) -> 2 | L19: 2 | M19: 2 | N19: 2 | O19: 2 | P19: 2 | Q19: 0 | R19: 0 | S19: 0 | T19: 0 | U19: 0 | V19: 0 | W19: 0 | X19: 0 | Y19: 0 | Z19: 0 | AA19: 0 | AB19: 0 | AC19: 0 | AD19: 0 | AE19: 0 | AF19: 0 | AG19: 0 | AH19: 0 | AI19: 0 | AJ19: 0 | AK19: 0 | AL19: 0 | AM19: 0 | AN19: 0 | AO19: 0 | AP19: 0 | AQ19: 0 | AR19: 0 | AS19: 0 | AT19: 0 | AU19: 0 | AV19: 0 | AW19: 0 | AX19: 0 | AY19: 0 | AZ19: 0 | BA19: 0 | BB19: 0 | BC19: 0 | BD19: 0 | BE19: 0 | BF19: 0 | BG19: 0 | BH19: 0 | BI19: 0 | BJ19: 0 | BK19: 0 | BL19: 0 | BM19: 0 | BN19: 0 | BO19: 0 | BP19: 0 | BQ19: 0 | BR19: 0 | BS19: 0 | BT19: 0 | BU19: 0 | BV19: 0 | BW19: =IF(AND(BW18,NOT(BW13)),2,0) -> 0 | BX19: 0 | BY19: 0 | BZ19: 0 | CA19: 0 | CB19: 0 | CC19: 0 | CD19: 0 | CE19: 0 | CF19: 0 | CG19: 0 | CH19: 0 | CI19: 0 | CJ19: 0 | CK19: 0 | CL19: 0 | CM19: 0 | CN19: 0 | CO19: 0 | CP19: 0 | CQ19: 0 | CR19: 0 | CS19: 0 | CT19: 0 | CU19: 0 | CV19: 0 | CW19: 0 | CX19: 0 | CY19: 0 | CZ19: 0 | DA19: 0 | DB19: 0 | DC19: 0 | DD19: 0 | DE19: 0 | DF19: 0 | DG19: 0 | DH19: 0 | DI19: 0 | DJ19: 0 | DK19: 0 | DL19: 0 | DM19: 0 | DN19: 0 | DO19: 0 | DP19: 0 | DQ19: 0 | DR19: 0 | DS19: 0 | DT19: 0 | DU19: 0 | DV19: 0 | DW19: 0 | DX19: 0 | DY19: 0 | DZ19: 0 | EA19: 0 | EB19: 0 | EC19: 0 | ED19: 0 | EE19: 0 | EF19: 0 | EG19: 0 | EH19: 0 | EI19: =IF(AND(EI18,NOT(EI13)),2,0) -> 0 | EJ19: 0 | EK19: 0 | EL19: 0 | EM19: 0 | EN19: 0 | EO19: 0 | EP19: 0 | EQ19: 0 | ER19: 0 | ES19: 0 | ET19: 0 | EU19: 0 | EV19: 0 | EW19: 0 | EX19: 0 | EY19: 0 | EZ19: 0 | FA19: 0 | FB19: 0 | FC19: 0 | FD19: 0 | FE19: 0 | FF19: 0 | FG19: 0 | FH19: 0 | FI19: 0 | FJ19: 0 | FK19: 0 | FL19: 0 | FM19: 0 | FN19: 0 | FO19: 0 | FP19: 0 | FQ19: 0 | FR19: 0 | FS19: 0 | FT19: 0 | FU19: 0 | FV19: 0 | FW19: 0 | FX19: 0 | FY19: 0 | FZ19: 0 | GA19: 0 | GB19: 0 | GC19: 0 | GD19: 0 | GE19: 0 | GF19: 0 | GG19: 0 | GH19: 0 | GI19: 0 | GJ19: 0 | GK19: 0 | GL19: 0 | GM19: 0 | GN19: 0 | GO19: 0 | GP19: 0 | GQ19: 0 | GR19: 0 | GS19: 0 | GT19: 0 | GU19: =IF(AND(GU18,NOT(GU13)),2,0) -> 0 | GV19: 0 | GW19: 0 | GX19: 0 | GY19: 0 | GZ19: 0 | HA19: 0 | HB19: 0 | HC19: 0 | HD19: 0 | HE19: 0 | HF19: 0 | HG19: 0 | HH19: 0 | HI19: 0 | HJ19: 0 | HK19: 0 | HL19: 0 | HM19: 0 | HN19: 0 | HO19: 0 | HP19: 0 | HQ19: 0 | HR19: 0 | HS19: 0 | HT19: 0 | HU19: 0 | HV19: 0 | HW19: 0 | HX19: 0 | HY19: 0 | HZ19: 0 | IA19: 0 | IB19: 0 | IC19: 0 | ID19: 0 | IE19: 0 | IF19: 0 | IG19: 0 | IH19: 0 | II19: 0 | IJ19: 0 | IK19: 0 | IL19: 0 | IM19: 0 | IN19: 0 | IO19: 0 | IP19: 0 | IQ19: 0 | IR19: 0 | IS19: 0 | IT19: 0 | IU19: 0 | IV19: 0 | IW19: 0 | IX19: 0 | IY19: 0 | IZ19: 0 | JA19: 0 | JB19: 0 | JC19: 0 | JD19: 0 | JE19: 0 | JF19: 0 | JG19: =IF(AND(JG18,NOT(JG13)),2,0) -> 0 | JH19: 0 | JI19: 0 | JJ19: 0 | JK19: 0 | JL19: 0 | JM19: 0 | JN19: 0 | JO19: 0 | JP19: 0 | JQ19: 0 | JR19: 0 | JS19: 0 | JT19: 0 | JU19: 0 | JV19: 0 | JW19: 0 | JX19: 0 | JY19: 0 | JZ19: 0 | KA19: 0 | KB19: 0 | KC19: 0 | KD19: 0 | KE19: 0 | KF19: 0 | KG19: 0 | KH19: 0 | KI19: 0 | KJ19: 0 | KK19: 0 | KL19: 0 | KM19: 0 | KN19: 0 | KO19: 0 | KP19: 0 | KQ19: 0 | KR19: 0 | KS19: 0 | KT19: 0 | KU19: 0 | KV19: 0 | KW19: 0 | KX19: 0 | KY19: 0 | KZ19: 0 | LA19: 0 | LB19: 0 | LC19: 0 | LD19: 0 | LE19: 0 | LF19: 0 | LG19: 0 | LH19: 0 | LI19: 0 | LJ19: 0 | LK19: 0 | LL19: 0 | LM19: 0 | LN19: 0 | LO19: 0 | LP19: 0 | LQ19: 0 | LR19: 0 | LS19: =IF(AND(LS18,NOT(LS13)),2,0) -> 0 | LT19: 0 | LU19: 0 | LV19: 0 | LW19: 0 | LX19: 0 | LY19: 0 | LZ19: 0 | MA19: 0 | MB19: 0 | MC19: 0 | MD19: 0 | ME19: 0 | MF19: 0 | MG19: 0 | MH19: 0 | MI19: 0 | MJ19: 0 | MK19: 0 | ML19: 0 | MM19: 0 | MN19: 0 | MO19: 0 | MP19: 0 | MQ19: 0 | MR19: 0 | MS19: 0 | MT19: 0 | MU19: 0 | MV19: 0 | MW19: 0 | MX19: 0 | MY19: 0 | MZ19: 0 | NA19: 0 | NB19: 0 | NC19: 0 | ND19: 0 | NE19: 0 | NF19: 0 | NG19: 0 | NH19: 0 | NI19: 0 | NJ19: 0 | NK19: 0 | NL19: 0 | NM19: 0 | NN19: 0 | NO19: 0 | NP19: 0 | NQ19: 0 | NR19: 0 | NS19: 0 | NT19: 0 | NU19: 0 | NV19: 0 | NW19: 0 | NX19: 0 | NY19: 0 | NZ19: 0 | OA19: 0 | OB19: 0 | OC19: 0 | OD19: 0 | OE19: =IF(AND(OE18,NOT(OE13)),2,0) -> 0 | OF19: 0 | OG19: 0 | OH19: 0 | OI19: 0 | OJ19: 0 | OK19: 0 | OL19: 0 | OM19: 0 | ON19: 0 | OO19: 0 | OP19: 0 | OQ19: 0 | OR19: 0 | OS19: 0 | OT19: 0 | OU19: 0 | OV19: 0 | OW19: 0 | OX19: 0 | OY19: 0 | OZ19: 0 | PA19: 0 | PB19: 0 | PC19: 0 | PD19: 0 | PE19: 0 | PF19: 0 | PG19: 0 | PH19: 0 | PI19: 0 | PJ19: 0 | PK19: 0 | PL19: 0 | PM19: 0 | PN19: 0 | PO19: 0 | PP19: 0 | PQ19: 0 | PR19: 0 | PS19: 0 | PT19: 0 | PU19: 0 | PV19: 0 | PW19: 0 | PX19: 0 | PY19: 0 | PZ19: 0 | QA19: 0 | QB19: 0 | QC19: 0 | QD19: 0 | QE19: 0 | QF19: 0 | QG19: 0 | QH19: 0 | QI19: 0 | QJ19: 0 | QK19: 0 | QL19: 0 | QM19: 0 | QN19: 0 | QO19: 0 | QP19: 0 | QQ19: =IF(AND(QQ18,NOT(QQ13)),2,0) -> 0 | QR19: 0 | QS19: 0 | QT19: 0 | QU19: 0 | QV19: 0 | QW19: 0 | QX19: 0 | QY19: 0 | QZ19: 0 | RA19: 0 | RB19: 0 | RC19: 0 | RD19: 0 | RE19: 0 | RF19: 0 | RG19: 0 | RH19: 0 | RI19: 0 | RJ19: 0 | RK19: 0 | RL19: 0 | RM19: 0 | RN19: 0 | RO19: 0 | RP19: 0 | RQ19: 0 | RR19: 0 | RS19: 0 | RT19: 0 | RU19: 0 | RV19: 0 | RW19: 0 | RX19: 0 | RY19: 0 | RZ19: 0 | SA19: 0 | SB19: 0 | SC19: 0 | SD19: 0 | SE19: 0 | SF19: 0 | SG19: 0 | SH19: 0 | SI19: 0 | SJ19: 0 | SK19: 0 | SL19: 0 | SM19: 0 | SN19: 0 | SO19: 0
E21: Operation Start Date | F21: =InputC!F14 -> 2023-08-01 | G21: Date
E22: Operation End Date | F22: =InputC!$F$17 -> 2058-07-01 | G22: Date
E23: Operation Flag | G23: Flag | H23: =SUM(J23:SO23) -> 420 | J23: =AND(J9>=$F21,J9<=$F$22)*1 -> 0 | K23: 0 | L23: 0 | M23: 0 | N23: 0 | O23: 0 | P23: 0 | Q23: 1 | R23: 1 | S23: 1 | T23: 1 | U23: 1 | V23: 1 | W23: 1 | X23: 1 | Y23: 1 | Z23: 1 | AA23: 1 | AB23: 1 | AC23: 1 | AD23: 1 | AE23: 1 | AF23: 1 | AG23: 1 | AH23: 1 | AI23: 1 | AJ23: 1 | AK23: 1 | AL23: 1 | AM23: 1 | AN23: 1 | AO23: 1 | AP23: 1 | AQ23: 1 | AR23: 1 | AS23: 1 | AT23: 1 | AU23: 1 | AV23: 1 | AW23: 1 | AX23: 1 | AY23: 1 | AZ23: 1 | BA23: 1 | BB23: 1 | BC23: 1 | BD23: 1 | BE23: 1 | BF23: 1 | BG23: 1 | BH23: 1 | BI23: 1 | BJ23: 1 | BK23: 1 | BL23: 1 | BM23: 1 | BN23: 1 | BO23: 1 | BP23: 1 | BQ23: 1 | BR23: 1 | BS23: 1 | BT23: 1 | BU23: 1 | BV23: =AND(BV9>=$F21,BV9<=$F$22)*1 -> 1 | BW23: 1 | BX23: 1 | BY23: 1 | BZ23: 1 | CA23: 1 | CB23: 1 | CC23: 1 | CD23: 1 | CE23: 1 | CF23: 1 | CG23: 1 | CH23: 1 | CI23: 1 | CJ23: 1 | CK23: 1 | CL23: 1 | CM23: 1 | CN23: 1 | CO23: 1 | CP23: 1 | CQ23: 1 | CR23: 1 | CS23: 1 | CT23: 1 | CU23: 1 | CV23: 1 | CW23: 1 | CX23: 1 | CY23: 1 | CZ23: 1 | DA23: 1 | DB23: 1 | DC23: 1 | DD23: 1 | DE23: 1 | DF23: 1 | DG23: 1 | DH23: 1 | DI23: 1 | DJ23: 1 | DK23: 1 | DL23: 1 | DM23: 1 | DN23: 1 | DO23: 1 | DP23: 1 | DQ23: 1 | DR23: 1 | DS23: 1 | DT23: 1 | DU23: 1 | DV23: 1 | DW23: 1 | DX23: 1 | DY23: 1 | DZ23: 1 | EA23: 1 | EB23: 1 | EC23: 1 | ED23: 1 | EE23: 1 | EF23: 1 | EG23: 1 | EH23: =AND(EH9>=$F21,EH9<=$F$22)*1 -> 1 | EI23: 1 | EJ23: 1 | EK23: 1 | EL23: 1 | EM23: 1 | EN23: 1 | EO23: 1 | EP23: 1 | EQ23: 1 | ER23: 1 | ES23: 1 | ET23: 1 | EU23: 1 | EV23: 1 | EW23: 1 | EX23: 1 | EY23: 1 | EZ23: 1 | FA23: 1 | FB23: 1 | FC23: 1 | FD23: 1 | FE23: 1 | FF23: 1 | FG23: 1 | FH23: 1 | FI23: 1 | FJ23: 1 | FK23: 1 | FL23: 1 | FM23: 1 | FN23: 1 | FO23: 1 | FP23: 1 | FQ23: 1 | FR23: 1 | FS23: 1 | FT23: 1 | FU23: 1 | FV23: 1 | FW23: 1 | FX23: 1 | FY23: 1 | FZ23: 1 | GA23: 1 | GB23: 1 | GC23: 1 | GD23: 1 | GE23: 1 | GF23: 1 | GG23: 1 | GH23: 1 | GI23: 1 | GJ23: 1 | GK23: 1 | GL23: 1 | GM23: 1 | GN23: 1 | GO23: 1 | GP23: 1 | GQ23: 1 | GR23: 1 | GS23: 1 | GT23: =AND(GT9>=$F21,GT9<=$F$22)*1 -> 1 | GU23: 1 | GV23: 1 | GW23: 1 | GX23: 1 | GY23: 1 | GZ23: 1 | HA23: 1 | HB23: 1 | HC23: 1 | HD23: 1 | HE23: 1 | HF23: 1 | HG23: 1 | HH23: 1 | HI23: 1 | HJ23: 1 | HK23: 1 | HL23: 1 | HM23: 1 | HN23: 1 | HO23: 1 | HP23: 1 | HQ23: 1 | HR23: 1 | HS23: 1 | HT23: 1 | HU23: 1 | HV23: 1 | HW23: 1 | HX23: 1 | HY23: 1 | HZ23: 1 | IA23: 1 | IB23: 1 | IC23: 1 | ID23: 1 | IE23: 1 | IF23: 1 | IG23: 1 | IH23: 1 | II23: 1 | IJ23: 1 | IK23: 1 | IL23: 1 | IM23: 1 | IN23: 1 | IO23: 1 | IP23: 1 | IQ23: 1 | IR23: 1 | IS23: 1 | IT23: 1 | IU23: 1 | IV23: 1 | IW23: 1 | IX23: 1 | IY23: 1 | IZ23: 1 | JA23: 1 | JB23: 1 | JC23: 1 | JD23: 1 | JE23: 1 | JF23: =AND(JF9>=$F21,JF9<=$F$22)*1 -> 1 | JG23: 1 | JH23: 1 | JI23: 1 | JJ23: 1 | JK23: 1 | JL23: 1 | JM23: 1 | JN23: 1 | JO23: 1 | JP23: 1 | JQ23: 1 | JR23: 1 | JS23: 1 | JT23: 1 | JU23: 1 | JV23: 1 | JW23: 1 | JX23: 1 | JY23: 1 | JZ23: 1 | KA23: 1 | KB23: 1 | KC23: 1 | KD23: 1 | KE23: 1 | KF23: 1 | KG23: 1 | KH23: 1 | KI23: 1 | KJ23: 1 | KK23: 1 | KL23: 1 | KM23: 1 | KN23: 1 | KO23: 1 | KP23: 1 | KQ23: 1 | KR23: 1 | KS23: 1 | KT23: 1 | KU23: 1 | KV23: 1 | KW23: 1 | KX23: 1 | KY23: 1 | KZ23: 1 | LA23: 1 | LB23: 1 | LC23: 1 | LD23: 1 | LE23: 1 | LF23: 1 | LG23: 1 | LH23: 1 | LI23: 1 | LJ23: 1 | LK23: 1 | LL23: 1 | LM23: 1 | LN23: 1 | LO23: 1 | LP23: 1 | LQ23: 1 | LR23: =AND(LR9>=$F21,LR9<=$F$22)*1 -> 1 | LS23: 1 | LT23: 1 | LU23: 1 | LV23: 1 | LW23: 1 | LX23: 1 | LY23: 1 | LZ23: 1 | MA23: 1 | MB23: 1 | MC23: 1 | MD23: 1 | ME23: 1 | MF23: 1 | MG23: 1 | MH23: 1 | MI23: 1 | MJ23: 1 | MK23: 1 | ML23: 1 | MM23: 1 | MN23: 1 | MO23: 1 | MP23: 1 | MQ23: 1 | MR23: 1 | MS23: 1 | MT23: 1 | MU23: 1 | MV23: 1 | MW23: 1 | MX23: 1 | MY23: 1 | MZ23: 1 | NA23: 1 | NB23: 1 | NC23: 1 | ND23: 1 | NE23: 1 | NF23: 1 | NG23: 1 | NH23: 1 | NI23: 1 | NJ23: 1 | NK23: 1 | NL23: 1 | NM23: 1 | NN23: 1 | NO23: 1 | NP23: 1 | NQ23: 1 | NR23: 1 | NS23: 1 | NT23: 1 | NU23: 1 | NV23: 1 | NW23: 1 | NX23: 1 | NY23: 1 | NZ23: 1 | OA23: 1 | OB23: 1 | OC23: 1 | OD23: =AND(OD9>=$F21,OD9<=$F$22)*1 -> 1 | OE23: 1 | OF23: 1 | OG23: 1 | OH23: 1 | OI23: 1 | OJ23: 1 | OK23: 1 | OL23: 1 | OM23: 1 | ON23: 1 | OO23: 1 | OP23: 1 | OQ23: 1 | OR23: 1 | OS23: 1 | OT23: 1 | OU23: 1 | OV23: 1 | OW23: 1 | OX23: 1 | OY23: 1 | OZ23: 1 | PA23: 1 | PB23: 1 | PC23: 1 | PD23: 1 | PE23: 1 | PF23: 1 | PG23: 1 | PH23: 1 | PI23: 1 | PJ23: 1 | PK23: 1 | PL23: 1 | PM23: 1 | PN23: 1 | PO23: 1 | PP23: 1 | PQ23: 1 | PR23: 1 | PS23: 1 | PT23: 1 | PU23: 0 | PV23: 0 | PW23: 0 | PX23: 0 | PY23: 0 | PZ23: 0 | QA23: 0 | QB23: 0 | QC23: 0 | QD23: 0 | QE23: 0 | QF23: 0 | QG23: 0 | QH23: 0 | QI23: 0 | QJ23: 0 | QK23: 0 | QL23: 0 | QM23: 0 | QN23: 0 | QO23: 0 | QP23: =AND(QP9>=$F21,QP9<=$F$22)*1 -> 0 | QQ23: 0 | QR23: 0 | QS23: 0 | QT23: 0 | QU23: 0 | QV23: 0 | QW23: 0 | QX23: 0 | QY23: 0 | QZ23: 0 | RA23: 0 | RB23: 0 | RC23: 0 | RD23: 0 | RE23: 0 | RF23: 0 | RG23: 0 | RH23: 0 | RI23: 0 | RJ23: 0 | RK23: 0 | RL23: 0 | RM23: 0 | RN23: 0 | RO23: 0 | RP23: 0 | RQ23: 0 | RR23: 0 | RS23: 0 | RT23: 0 | RU23: 0 | RV23: 0 | RW23: 0 | RX23: 0 | RY23: 0 | RZ23: 0 | SA23: 0 | SB23: 0 | SC23: 0 | SD23: 0 | SE23: 0 | SF23: 0 | SG23: 0 | SH23: 0 | SI23: 0 | SJ23: 0 | SK23: 0 | SL23: 0 | SM23: 0 | SN23: 0 | SO23: 0
E24: Operation Phase Counter | G24: Code | J24: =IF(J23,3,0) -> 0 | K24: =IF(K23,3,0) -> 0 | L24: 0 | M24: 0 | N24: 0 | O24: 0 | P24: 0 | Q24: 3 | R24: 3 | S24: 3 | T24: 3 | U24: 3 | V24: 3 | W24: 3 | X24: 3 | Y24: 3 | Z24: 3 | AA24: 3 | AB24: 3 | AC24: 3 | AD24: 3 | AE24: 3 | AF24: 3 | AG24: 3 | AH24: 3 | AI24: 3 | AJ24: 3 | AK24: 3 | AL24: 3 | AM24: 3 | AN24: 3 | AO24: 3 | AP24: 3 | AQ24: 3 | AR24: 3 | AS24: 3 | AT24: 3 | AU24: 3 | AV24: 3 | AW24: 3 | AX24: 3 | AY24: 3 | AZ24: 3 | BA24: 3 | BB24: 3 | BC24: 3 | BD24: 3 | BE24: 3 | BF24: 3 | BG24: 3 | BH24: 3 | BI24: 3 | BJ24: 3 | BK24: 3 | BL24: 3 | BM24: 3 | BN24: 3 | BO24: 3 | BP24: 3 | BQ24: 3 | BR24: 3 | BS24: 3 | BT24: 3 | BU24: 3 | BV24: 3 | BW24: =IF(BW23,3,0) -> 3 | BX24: 3 | BY24: 3 | BZ24: 3 | CA24: 3 | CB24: 3 | CC24: 3 | CD24: 3 | CE24: 3 | CF24: 3 | CG24: 3 | CH24: 3 | CI24: 3 | CJ24: 3 | CK24: 3 | CL24: 3 | CM24: 3 | CN24: 3 | CO24: 3 | CP24: 3 | CQ24: 3 | CR24: 3 | CS24: 3 | CT24: 3 | CU24: 3 | CV24: 3 | CW24: 3 | CX24: 3 | CY24: 3 | CZ24: 3 | DA24: 3 | DB24: 3 | DC24: 3 | DD24: 3 | DE24: 3 | DF24: 3 | DG24: 3 | DH24: 3 | DI24: 3 | DJ24: 3 | DK24: 3 | DL24: 3 | DM24: 3 | DN24: 3 | DO24: 3 | DP24: 3 | DQ24: 3 | DR24: 3 | DS24: 3 | DT24: 3 | DU24: 3 | DV24: 3 | DW24: 3 | DX24: 3 | DY24: 3 | DZ24: 3 | EA24: 3 | EB24: 3 | EC24: 3 | ED24: 3 | EE24: 3 | EF24: 3 | EG24: 3 | EH24: 3 | EI24: =IF(EI23,3,0) -> 3 | EJ24: 3 | EK24: 3 | EL24: 3 | EM24: 3 | EN24: 3 | EO24: 3 | EP24: 3 | EQ24: 3 | ER24: 3 | ES24: 3 | ET24: 3 | EU24: 3 | EV24: 3 | EW24: 3 | EX24: 3 | EY24: 3 | EZ24: 3 | FA24: 3 | FB24: 3 | FC24: 3 | FD24: 3 | FE24: 3 | FF24: 3 | FG24: 3 | FH24: 3 | FI24: 3 | FJ24: 3 | FK24: 3 | FL24: 3 | FM24: 3 | FN24: 3 | FO24: 3 | FP24: 3 | FQ24: 3 | FR24: 3 | FS24: 3 | FT24: 3 | FU24: 3 | FV24: 3 | FW24: 3 | FX24: 3 | FY24: 3 | FZ24: 3 | GA24: 3 | GB24: 3 | GC24: 3 | GD24: 3 | GE24: 3 | GF24: 3 | GG24: 3 | GH24: 3 | GI24: 3 | GJ24: 3 | GK24: 3 | GL24: 3 | GM24: 3 | GN24: 3 | GO24: 3 | GP24: 3 | GQ24: 3 | GR24: 3 | GS24: 3 | GT24: 3 | GU24: =IF(GU23,3,0) -> 3 | GV24: 3 | GW24: 3 | GX24: 3 | GY24: 3 | GZ24: 3 | HA24: 3 | HB24: 3 | HC24: 3 | HD24: 3 | HE24: 3 | HF24: 3 | HG24: 3 | HH24: 3 | HI24: 3 | HJ24: 3 | HK24: 3 | HL24: 3 | HM24: 3 | HN24: 3 | HO24: 3 | HP24: 3 | HQ24: 3 | HR24: 3 | HS24: 3 | HT24: 3 | HU24: 3 | HV24: 3 | HW24: 3 | HX24: 3 | HY24: 3 | HZ24: 3 | IA24: 3 | IB24: 3 | IC24: 3 | ID24: 3 | IE24: 3 | IF24: 3 | IG24: 3 | IH24: 3 | II24: 3 | IJ24: 3 | IK24: 3 | IL24: 3 | IM24: 3 | IN24: 3 | IO24: 3 | IP24: 3 | IQ24: 3 | IR24: 3 | IS24: 3 | IT24: 3 | IU24: 3 | IV24: 3 | IW24: 3 | IX24: 3 | IY24: 3 | IZ24: 3 | JA24: 3 | JB24: 3 | JC24: 3 | JD24: 3 | JE24: 3 | JF24: 3 | JG24: =IF(JG23,3,0) -> 3 | JH24: 3 | JI24: 3 | JJ24: 3 | JK24: 3 | JL24: 3 | JM24: 3 | JN24: 3 | JO24: 3 | JP24: 3 | JQ24: 3 | JR24: 3 | JS24: 3 | JT24: 3 | JU24: 3 | JV24: 3 | JW24: 3 | JX24: 3 | JY24: 3 | JZ24: 3 | KA24: 3 | KB24: 3 | KC24: 3 | KD24: 3 | KE24: 3 | KF24: 3 | KG24: 3 | KH24: 3 | KI24: 3 | KJ24: 3 | KK24: 3 | KL24: 3 | KM24: 3 | KN24: 3 | KO24: 3 | KP24: 3 | KQ24: 3 | KR24: 3 | KS24: 3 | KT24: 3 | KU24: 3 | KV24: 3 | KW24: 3 | KX24: 3 | KY24: 3 | KZ24: 3 | LA24: 3 | LB24: 3 | LC24: 3 | LD24: 3 | LE24: 3 | LF24: 3 | LG24: 3 | LH24: 3 | LI24: 3 | LJ24: 3 | LK24: 3 | LL24: 3 | LM24: 3 | LN24: 3 | LO24: 3 | LP24: 3 | LQ24: 3 | LR24: 3 | LS24: =IF(LS23,3,0) -> 3 | LT24: 3 | LU24: 3 | LV24: 3 | LW24: 3 | LX24: 3 | LY24: 3 | LZ24: 3 | MA24: 3 | MB24: 3 | MC24: 3 | MD24: 3 | ME24: 3 | MF24: 3 | MG24: 3 | MH24: 3 | MI24: 3 | MJ24: 3 | MK24: 3 | ML24: 3 | MM24: 3 | MN24: 3 | MO24: 3 | MP24: 3 | MQ24: 3 | MR24: 3 | MS24: 3 | MT24: 3 | MU24: 3 | MV24: 3 | MW24: 3 | MX24: 3 | MY24: 3 | MZ24: 3 | NA24: 3 | NB24: 3 | NC24: 3 | ND24: 3 | NE24: 3 | NF24: 3 | NG24: 3 | NH24: 3 | NI24: 3 | NJ24: 3 | NK24: 3 | NL24: 3 | NM24: 3 | NN24: 3 | NO24: 3 | NP24: 3 | NQ24: 3 | NR24: 3 | NS24: 3 | NT24: 3 | NU24: 3 | NV24: 3 | NW24: 3 | NX24: 3 | NY24: 3 | NZ24: 3 | OA24: 3 | OB24: 3 | OC24: 3 | OD24: 3 | OE24: =IF(OE23,3,0) -> 3 | OF24: 3 | OG24: 3 | OH24: 3 | OI24: 3 | OJ24: 3 | OK24: 3 | OL24: 3 | OM24: 3 | ON24: 3 | OO24: 3 | OP24: 3 | OQ24: 3 | OR24: 3 | OS24: 3 | OT24: 3 | OU24: 3 | OV24: 3 | OW24: 3 | OX24: 3 | OY24: 3 | OZ24: 3 | PA24: 3 | PB24: 3 | PC24: 3 | PD24: 3 | PE24: 3 | PF24: 3 | PG24: 3 | PH24: 3 | PI24: 3 | PJ24: 3 | PK24: 3 | PL24: 3 | PM24: 3 | PN24: 3 | PO24: 3 | PP24: 3 | PQ24: 3 | PR24: 3 | PS24: 3 | PT24: 3 | PU24: 0 | PV24: 0 | PW24: 0 | PX24: 0 | PY24: 0 | PZ24: 0 | QA24: 0 | QB24: 0 | QC24: 0 | QD24: 0 | QE24: 0 | QF24: 0 | QG24: 0 | QH24: 0 | QI24: 0 | QJ24: 0 | QK24: 0 | QL24: 0 | QM24: 0 | QN24: 0 | QO24: 0 | QP24: 0 | QQ24: =IF(QQ23,3,0) -> 0 | QR24: 0 | QS24: 0 | QT24: 0 | QU24: 0 | QV24: 0 | QW24: 0 | QX24: 0 | QY24: 0 | QZ24: 0 | RA24: 0 | RB24: 0 | RC24: 0 | RD24: 0 | RE24: 0 | RF24: 0 | RG24: 0 | RH24: 0 | RI24: 0 | RJ24: 0 | RK24: 0 | RL24: 0 | RM24: 0 | RN24: 0 | RO24: 0 | RP24: 0 | RQ24: 0 | RR24: 0 | RS24: 0 | RT24: 0 | RU24: 0 | RV24: 0 | RW24: 0 | RX24: 0 | RY24: 0 | RZ24: 0 | SA24: 0 | SB24: 0 | SC24: 0 | SD24: 0 | SE24: 0 | SF24: 0 | SG24: 0 | SH24: 0 | SI24: 0 | SJ24: 0 | SK24: 0 | SL24: 0 | SM24: 0 | SN24: 0 | SO24: 0
E26: Retirement Date | F26: =InputC!$F$17 -> 2058-07-01 | G26: Date
E27: Post Retirement Phase | G27: Flag | J27: =(J2>$F$26)*1 -> 0 | K27: =(K2>$F$26)*1 -> 0 | L27: 0 | M27: 0 | N27: 0 | O27: 0 | P27: 0 | Q27: 0 | R27: 0 | S27: 0 | T27: 0 | U27: 0 | V27: 0 | W27: 0 | X27: 0 | Y27: 0 | Z27: 0 | AA27: 0 | AB27: 0 | AC27: 0 | AD27: 0 | AE27: 0 | AF27: 0 | AG27: 0 | AH27: 0 | AI27: 0 | AJ27: 0 | AK27: 0 | AL27: 0 | AM27: 0 | AN27: 0 | AO27: 0 | AP27: 0 | AQ27: 0 | AR27: 0 | AS27: 0 | AT27: 0 | AU27: 0 | AV27: 0 | AW27: 0 | AX27: 0 | AY27: 0 | AZ27: 0 | BA27: 0 | BB27: 0 | BC27: 0 | BD27: 0 | BE27: 0 | BF27: 0 | BG27: 0 | BH27: 0 | BI27: 0 | BJ27: 0 | BK27: 0 | BL27: 0 | BM27: 0 | BN27: 0 | BO27: 0 | BP27: 0 | BQ27: 0 | BR27: 0 | BS27: 0 | BT27: 0 | BU27: 0 | BV27: 0 | BW27: =(BW2>$F$26)*1 -> 0 | BX27: 0 | BY27: 0 | BZ27: 0 | CA27: 0 | CB27: 0 | CC27: 0 | CD27: 0 | CE27: 0 | CF27: 0 | CG27: 0 | CH27: 0 | CI27: 0 | CJ27: 0 | CK27: 0 | CL27: 0 | CM27: 0 | CN27: 0 | CO27: 0 | CP27: 0 | CQ27: 0 | CR27: 0 | CS27: 0 | CT27: 0 | CU27: 0 | CV27: 0 | CW27: 0 | CX27: 0 | CY27: 0 | CZ27: 0 | DA27: 0 | DB27: 0 | DC27: 0 | DD27: 0 | DE27: 0 | DF27: 0 | DG27: 0 | DH27: 0 | DI27: 0 | DJ27: 0 | DK27: 0 | DL27: 0 | DM27: 0 | DN27: 0 | DO27: 0 | DP27: 0 | DQ27: 0 | DR27: 0 | DS27: 0 | DT27: 0 | DU27: 0 | DV27: 0 | DW27: 0 | DX27: 0 | DY27: 0 | DZ27: 0 | EA27: 0 | EB27: 0 | EC27: 0 | ED27: 0 | EE27: 0 | EF27: 0 | EG27: 0 | EH27: 0 | EI27: =(EI2>$F$26)*1 -> 0 | EJ27: 0 | EK27: 0 | EL27: 0 | EM27: 0 | EN27: 0 | EO27: 0 | EP27: 0 | EQ27: 0 | ER27: 0 | ES27: 0 | ET27: 0 | EU27: 0 | EV27: 0 | EW27: 0 | EX27: 0 | EY27: 0 | EZ27: 0 | FA27: 0 | FB27: 0 | FC27: 0 | FD27: 0 | FE27: 0 | FF27: 0 | FG27: 0 | FH27: 0 | FI27: 0 | FJ27: 0 | FK27: 0 | FL27: 0 | FM27: 0 | FN27: 0 | FO27: 0 | FP27: 0 | FQ27: 0 | FR27: 0 | FS27: 0 | FT27: 0 | FU27: 0 | FV27: 0 | FW27: 0 | FX27: 0 | FY27: 0 | FZ27: 0 | GA27: 0 | GB27: 0 | GC27: 0 | GD27: 0 | GE27: 0 | GF27: 0 | GG27: 0 | GH27: 0 | GI27: 0 | GJ27: 0 | GK27: 0 | GL27: 0 | GM27: 0 | GN27: 0 | GO27: 0 | GP27: 0 | GQ27: 0 | GR27: 0 | GS27: 0 | GT27: 0 | GU27: =(GU2>$F$26)*1 -> 0 | GV27: 0 | GW27: 0 | GX27: 0 | GY27: 0 | GZ27: 0 | HA27: 0 | HB27: 0 | HC27: 0 | HD27: 0 | HE27: 0 | HF27: 0 | HG27: 0 | HH27: 0 | HI27: 0 | HJ27: 0 | HK27: 0 | HL27: 0 | HM27: 0 | HN27: 0 | HO27: 0 | HP27: 0 | HQ27: 0 | HR27: 0 | HS27: 0 | HT27: 0 | HU27: 0 | HV27: 0 | HW27: 0 | HX27: 0 | HY27: 0 | HZ27: 0 | IA27: 0 | IB27: 0 | IC27: 0 | ID27: 0 | IE27: 0 | IF27: 0 | IG27: 0 | IH27: 0 | II27: 0 | IJ27: 0 | IK27: 0 | IL27: 0 | IM27: 0 | IN27: 0 | IO27: 0 | IP27: 0 | IQ27: 0 | IR27: 0 | IS27: 0 | IT27: 0 | IU27: 0 | IV27: 0 | IW27: 0 | IX27: 0 | IY27: 0 | IZ27: 0 | JA27: 0 | JB27: 0 | JC27: 0 | JD27: 0 | JE27: 0 | JF27: 0 | JG27: =(JG2>$F$26)*1 -> 0 | JH27: 0 | JI27: 0 | JJ27: 0 | JK27: 0 | JL27: 0 | JM27: 0 | JN27: 0 | JO27: 0 | JP27: 0 | JQ27: 0 | JR27: 0 | JS27: 0 | JT27: 0 | JU27: 0 | JV27: 0 | JW27: 0 | JX27: 0 | JY27: 0 | JZ27: 0 | KA27: 0 | KB27: 0 | KC27: 0 | KD27: 0 | KE27: 0 | KF27: 0 | KG27: 0 | KH27: 0 | KI27: 0 | KJ27: 0 | KK27: 0 | KL27: 0 | KM27: 0 | KN27: 0 | KO27: 0 | KP27: 0 | KQ27: 0 | KR27: 0 | KS27: 0 | KT27: 0 | KU27: 0 | KV27: 0 | KW27: 0 | KX27: 0 | KY27: 0 | KZ27: 0 | LA27: 0 | LB27: 0 | LC27: 0 | LD27: 0 | LE27: 0 | LF27: 0 | LG27: 0 | LH27: 0 | LI27: 0 | LJ27: 0 | LK27: 0 | LL27: 0 | LM27: 0 | LN27: 0 | LO27: 0 | LP27: 0 | LQ27: 0 | LR27: 0 | LS27: =(LS2>$F$26)*1 -> 0 | LT27: 0 | LU27: 0 | LV27: 0 | LW27: 0 | LX27: 0 | LY27: 0 | LZ27: 0 | MA27: 0 | MB27: 0 | MC27: 0 | MD27: 0 | ME27: 0 | MF27: 0 | MG27: 0 | MH27: 0 | MI27: 0 | MJ27: 0 | MK27: 0 | ML27: 0 | MM27: 0 | MN27: 0 | MO27: 0 | MP27: 0 | MQ27: 0 | MR27: 0 | MS27: 0 | MT27: 0 | MU27: 0 | MV27: 0 | MW27: 0 | MX27: 0 | MY27: 0 | MZ27: 0 | NA27: 0 | NB27: 0 | NC27: 0 | ND27: 0 | NE27: 0 | NF27: 0 | NG27: 0 | NH27: 0 | NI27: 0 | NJ27: 0 | NK27: 0 | NL27: 0 | NM27: 0 | NN27: 0 | NO27: 0 | NP27: 0 | NQ27: 0 | NR27: 0 | NS27: 0 | NT27: 0 | NU27: 0 | NV27: 0 | NW27: 0 | NX27: 0 | NY27: 0 | NZ27: 0 | OA27: 0 | OB27: 0 | OC27: 0 | OD27: 0 | OE27: =(OE2>$F$26)*1 -> 0 | OF27: 0 | OG27: 0 | OH27: 0 | OI27: 0 | OJ27: 0 | OK27: 0 | OL27: 0 | OM27: 0 | ON27: 0 | OO27: 0 | OP27: 0 | OQ27: 0 | OR27: 0 | OS27: 0 | OT27: 0 | OU27: 0 | OV27: 0 | OW27: 0 | OX27: 0 | OY27: 0 | OZ27: 0 | PA27: 0 | PB27: 0 | PC27: 0 | PD27: 0 | PE27: 0 | PF27: 0 | PG27: 0 | PH27: 0 | PI27: 0 | PJ27: 0 | PK27: 0 | PL27: 0 | PM27: 0 | PN27: 0 | PO27: 0 | PP27: 0 | PQ27: 0 | PR27: 0 | PS27: 0 | PT27: 0 | PU27: 1 | PV27: 1 | PW27: 1 | PX27: 1 | PY27: 1 | PZ27: 1 | QA27: 1 | QB27: 1 | QC27: 1 | QD27: 1 | QE27: 1 | QF27: 1 | QG27: 1 | QH27: 1 | QI27: 1 | QJ27: 1 | QK27: 1 | QL27: 1 | QM27: 1 | QN27: 1 | QO27: 1 | QP27: 1 | QQ27: =(QQ2>$F$26)*1 -> 1 | QR27: 1 | QS27: 1 | QT27: 1 | QU27: 1 | QV27: 1 | QW27: 1 | QX27: 1 | QY27: 1 | QZ27: 1 | RA27: 1 | RB27: 1 | RC27: 1 | RD27: 1 | RE27: 1 | RF27: 1 | RG27: 1 | RH27: 1 | RI27: 1 | RJ27: 1 | RK27: 1 | RL27: 1 | RM27: 1 | RN27: 1 | RO27: 1 | RP27: 1 | RQ27: 1 | RR27: 1 | RS27: 1 | RT27: 1 | RU27: 1 | RV27: 1 | RW27: 1 | RX27: 1 | RY27: 1 | RZ27: 1 | SA27: 1 | SB27: 1 | SC27: 1 | SD27: 1 | SE27: 1 | SF27: 1 | SG27: 1 | SH27: 1 | SI27: 1 | SJ27: 1 | SK27: 1 | SL27: 1 | SM27: 1 | SN27: 1 | SO27: 1
